Workbook

Sheet ACS_Notes (hidden)
A1: NOTES:
A4: Data are based on a sample and are subject to sampling variability. The degree of uncertainty for an estimate arising from sampling variability is represented through the use of a margin of error. The value shown here is the 90 percent margin of error. The margin of error can be interpreted roughly as providing a 90 percent probability that the interval defined by the estimate minus the margin of error and the estimate plus the margin of error (the lower and upper confidence bounds) contains the true value. In addition to sampling variability, the ACS estimates are subject to non-sampling error (for a discussion of non-sampling variability, see Accuracy of the Data). The effect of non-sampling error is not represented in these tables.
A8: In addition to sampling variability, the ACS estimates are subject to non-sampling error (for a discussion of non-sampling variability, see Accuracy of the Data. The link is located at the end of this worksheet.). The effect of non-sampling error is not represented in these tables.
A11: While the 2005-2009 American Community Survey (ACS) data generally reflect the November 2008 Office of Management and Budget (OMB) definitions of metropolitan and micropolitan statistical areas; in certain instances the names, codes, and boundaries of the principal cities shown in ACS tables may differ from the OMB definitions due to differences in the effective dates of the geographic entities.
A15: Estimates of urban and rural population, housing units, and characteristics reflect boundaries of urban areas defined based on Census 2000 data. Boundaries for urban areas have not been updated since Census 2000. As a result, data for urban and rural areas from the ACS do not necessarily reflect the results of ongoing urbanization.
A17: Explanation of Symbols:
A19: 1. An '**' entry in the margin of error column indicates that either no sample observations or too few sample observations were available to compute a standard error and thus the margin of error. A statistical test is not appropriate.
A21: 2. An '-' entry in the estimate column indicates that either no sample observations or too few sample observations were available to compute an estimate, or a ratio of medians cannot be calculated because one or both of the median estimates falls in the lowest interval or upper interval of an open-ended distribution.
A23: 3. An '-' following a median estimate means the median falls in the lowest interval of an open-ended distribution.
A24: 4. An '+' following a median estimate means the median falls in the upper interval of an open-ended distribution.
A25: 5. An '***' entry in the margin of error column indicates that the median falls in the lowest interval or upper interval of an open-ended distribution. A statistical test is not appropriate.
A26: 6. An '*****' entry in the margin of error column indicates that the estimate is controlled. A statistical test for sampling variability is not appropriate.
A28: Accuracy of Data

Sheet StartInstruction
A1: Demographic Profiles for Municipalities in Cheshire County
A3: To view or print a Demographic Profile follow the steps below
A6: Step 1. | C6: Select the municipality you wish to
C7: Profile from the drop down box below.
A12: Step 2. | C12: Click one of the profile topic buttons below to review or print
C13: the information for the selected geography.
C14: Don't forget to adjust the axis on charts as necessary.
N29: Updated: | P29: 2020-12-18
N31: Next Update: | P31: Fall 2021 - Annual Employment and Wage data

Sheet Updates
A1: Important Notes
A3: Date | C3: Task
A4: 2020-12-18 | C4: Updated 2015-2019 Amreican Community Survey Data and added 2019 NH Permit data.
A5: 2020-10-01 | C5: Updated 2019 Employment and Wage data by industry sector
A6: 2019-12-31 | C6: Updated Visual Basic Code changing the footer font from Gotham Medium to Verdana.
A7: 2019-12-26 | C7: Updated with 2014-2018 ACS Data. Updated 2018 Permit data. Updated CPI Adjustment Factor (1.02437673) to the 2009-2013 and 2014-2018 Income Comparison Table. This factor was provided by Census
A8: 2019-11-26 | C8: Updated the 2009-2013 ACS data for comparison purposes.
A9: 2019-09-17 | C9: Updated 2018 Annual Employment and Wage data; updated Housing and Employment worksheet.
A10: 2018-12-19 | C10: Updated 2017 Annual Employment and Wage data; updated Housing and Employment worksheet. Updated 2017 Permit data
A11: 2018-12-11 | C11: Updated the 2008-2012 ACS data for comparison purposes. Updated CPI Adjustment Factor (1.0676) to the 2008-2012 and 2014-2018 Income Comparison Table. This factor was provided by Census.
A12: 2018-12-06 | C12: Updated 2014-2018 ACS Data
A13: 2018-12-05 | C13: Updated labels in workbook to reflect 2013-2017 data set and 2008-2012 comparison data set. Updated footer text.
A14: 2018-08-13 | C14: Updated Graph formats.
A15: 2018-05-09 | C15: Reviewed that unemployment rate data does not need to updated. There are no cities or towns that needed this update. Only a select number of locations are updated with this data.
A16: 2017-12-18 | C16: Updated 2016 NH Permit Data
A17: 2017-12-08 | C17: Updated Charts with 2012-2016 data; updated code to reflect additional data points in various tables. Updated CPI Adjustment Factor (1.06686838) to the 2007-2011 and 2012-2016 Income Comparison Table. This factor was provided by Census.
A18: 2017-10-12 | C18: Updated 2016 Annual Employment and Wage data; updated Housing and Employment worksheet
A19: 2017-05-15 | C19: Reviewed that unemployment rate data does not need to updated. There are no cities or towns that needed this update. Only a select number of locations are updated with this data.
A20: 2017-01-04 | C20: Verified Charts; Added 2015 Permit Data; Updated Housing and Permit data; Updated Owner Cost worksheet to fix code issue.
A21: 2016-12-28 | C21: Updated the 2006-2010 ACS data for comparison purposes.
A22: 2016-12-23 | C22: Updated Town Comparisons: Employment and Housing with 2015 data
A23: 2016-12-15 | C23: Updated 2011-2015 ACS Data
A24: 2016-10-31 | C24: Updated 2015 Annual Employment and Wage data
A25: 2016-01-14 | C25: Fixed error in School Attainment worksheet - Graduate or Professional Degree data.
A26: 2016-01-07 | C26: Fixed formula in Poverty worksheet; fixed Non-Family Persons per Household data; fixed legend of Rental Cost Charts.
A27: 2015-12-23 | C27: Updated Code to correct an error on the RentalHousingCost worksheet; updated column names on CntyDataLink; updated Code to correct an error on the RentalHousingCost worksheet; updated column names on CntyDataLink; Fixed Table ACS_B25074
A28: 2015-12-09 | C28: Updated 2010-2014 ACS Data
A29: 2015-12-07 | C29: Updated Permit Data and all appropriate charts.
A30: 2015-12-03 | C30: Updated the CPI Adjustment Factor (1.1034264) to the 2005-2009 and 2011-2015 Income Comparison Table. This factor was provided by Census. Updated RentalHousingCost and OwnerCost worksheet to eliminate a printed page. Charts were moved and reduced in size.
A31: 2015-11-24 | C31: Updated Color scheme on charts and added correct logo to the charts
A32: 2015-10-05 | C32: Added Town Employment and Housing Comparison data. Added Visual basic code to automatically update footer. Visual basic code will run when Ctrl-j is selected.
A33: 2015-09-29 | C33: Updated Employment and Employment vs. Housing data.
A34: 2015-09-16 | C34: Updated RentalHousingCost worksheet to accommodate changes to Table B25074; Updated Charts and code to allow for prior 5 year estimates to be update.
A35: 2015-09-01 | C35: Updated Code to include Prior 5 year estimate. Added Statistically Significant worksheet.
A36: 2015-08-20 | C36: Updated 2005-2009 ACS Estimate data.
A37: 2015-08-11 | C37: Updated Owner Cost Chart and data. Added Table B25106. Housing Cost burden by Income.
A38: 2015-08-06 | C38: Corrected the Employment vs. Housing worksheet.
A39: 2015-03-17 | C39: Added Labor Force Data
A40: 2014-12-30 | C40: Corrected Rental Cost formula.
A41: 2014-12-17 | C41: Corrected and verified household pie charts. All Permit data and employment data has been updated through 2013.
A42: 2011-10-14 | C42: Reformatted the code in the worksheet and corrected an error in the Income Comparison Sheet
A43: 2010-12-21 | C43: Added Margin of Error information on all applicable ACS Sheets
A44: 2010-12-07 | C44: Created a calculated Table B19001 in anticipation for the 5 year data. Table C19001 will not be provided

Sheet ACS_Table_B08303 (hidden)
B1: B08303: TRAVEL TIME TO WORK
B2: Universe: Workers 16 years and over who did not work at home
B3: Data Set: 2006-2010 American Community Survey 3-Year Estimates
C5: New Hampshire | E5: Belknap County | G5: Carroll County | I5: Cheshire County | K5: Coos County | M5: Grafton County | O5: Hillsborough County | Q5: Merrimack County | S5: Rockingham County | U5: Strafford County | W5: Sullivan County
C6: Estimates | D6: Margin Of Error | E6: Estimates | F6: Margin Of Error | G6: Estimates | H6: Margin Of Error | I6: Estimates | J6: Margin Of Error | K6: Estimates | L6: Margin Of Error | M6: Estimates | N6: Margin Of Error | O6: Estimates | P6: Margin Of Error | Q6: Estimates | R6: Margin Of Error | S6: Estimates | T6: Margin Of Error | U6: Estimates | V6: Margin Of Error | W6: Estimates | X6: Margin Of Error
B7: Population Older than 16 not working at hom | C7: 786 | D7: 131 | E7: 1528 | F7: 172 | G7: 657 | H7: 93 | I7: 1115 | J7: 178 | K7: 401 | L7: 70 | M7: 426 | N7: 88 | O7: 2105 | P7: 247 | Q7: 10446 | R7: 475 | S7: 10731 | T7: 450 | U7: 1118 | V7: 165 | W7: 343 | X7: 65 | Y7: 270 | Z7: 56 | AA7: 557 | AB7: 119 | AC7: 2240 | AD7: 254 | AE7: 105 | AF7: 29 | AG7: 600 | AH7: 106 | AI7: 373 | AJ7: 70 | AK7: 411 | AL7: 60 | AM7: 3799 | AN7: 315 | AO7: 1026 | AP7: 193 | AQ7: 1937 | AR7: 194 | AS7: 848 | AT7: 236 | AU7: 1750 | AV7: 184
B8: Less than 5 minutes | C8: 7 | D8: 10 | E8: 149 | F8: 97 | G8: 27 | H8: 18 | I8: 32 | J8: 26 | K8: 11 | L8: 11 | M8: 7 | N8: 9 | O8: 189 | P8: 170 | Q8: 826 | R8: 259 | S8: 942 | T8: 254 | U8: 49 | V8: 46 | W8: 5 | X8: 5 | Y8: 3 | Z8: 4 | AA8: 17 | AB8: 19 | AC8: 117 | AD8: 67 | AE8: 2 | AF8: 3 | AG8: 21 | AH8: 15 | AI8: 13 | AJ8: 14 | AK8: 10 | AL8: 10 | AM8: 151 | AN8: 85 | AO8: 34 | AP8: 28 | AQ8: 120 | AR8: 63 | AS8: 33 | AT8: 25 | AU8: 51 | AV8: 53
B9: 5 to 9 minutes | C9: 20 | D9: 17 | E9: 133 | F9: 78 | G9: 93 | H9: 35 | I9: 54 | J9: 34 | K9: 23 | L9: 11 | M9: 39 | N9: 25 | O9: 258 | P9: 134 | Q9: 3153 | R9: 435 | S9: 3281 | T9: 368 | U9: 97 | V9: 50 | W9: 6 | X9: 6 | Y9: 15 | Z9: 12 | AA9: 17 | AB9: 16 | AC9: 306 | AD9: 104 | AE9: 20 | AF9: 11 | AG9: 18 | AH9: 15 | AI9: 12 | AJ9: 11 | AK9: 35 | AL9: 28 | AM9: 368 | AN9: 190 | AO9: 30 | AP9: 19 | AQ9: 234 | AR9: 108 | AS9: 51 | AT9: 33 | AU9: 85 | AV9: 57
B10: 10 to 14 minutes | C10: 63 | D10: 38 | E10: 143 | F10: 88 | G10: 74 | H10: 27 | I10: 10 | J10: 12 | K10: 24 | L10: 12 | M10: 41 | N10: 18 | O10: 195 | P10: 80 | Q10: 2940 | R10: 422 | S10: 2882 | T10: 403 | U10: 225 | V10: 96 | W10: 14 | X10: 10 | Y10: 8 | Z10: 8 | AA10: 38 | AB10: 27 | AC10: 243 | AD10: 111 | AE10: 24 | AF10: 11 | AG10: 7 | AH10: 7 | AI10: 32 | AJ10: 17 | AK10: 82 | AL10: 34 | AM10: 904 | AN10: 272 | AO10: 54 | AP10: 24 | AQ10: 195 | AR10: 76 | AS10: 123 | AT10: 62 | AU10: 110 | AV10: 82
B11: 15 to 19 minutes | C11: 73 | D11: 32 | E11: 419 | F11: 171 | G11: 113 | H11: 49 | I11: 126 | J11: 47 | K11: 61 | L11: 30 | M11: 32 | N11: 14 | O11: 518 | P11: 139 | Q11: 825 | R11: 197 | S11: 1067 | T11: 226 | U11: 286 | V11: 102 | W11: 18 | X11: 19 | Y11: 41 | Z11: 20 | AA11: 37 | AB11: 20 | AC11: 225 | AD11: 107 | AE11: 20 | AF11: 12 | AG11: 32 | AH11: 20 | AI11: 104 | AJ11: 29 | AK11: 129 | AL11: 40 | AM11: 710 | AN11: 218 | AO11: 104 | AP11: 52 | AQ11: 112 | AR11: 59 | AS11: 119 | AT11: 36 | AU11: 169 | AV11: 99
B12: 20 to 24 minutes | C12: 160 | D12: 58 | E12: 206 | F12: 109 | G12: 80 | H12: 33 | I12: 136 | J12: 64 | K12: 117 | L12: 34 | M12: 77 | N12: 28 | O12: 295 | P12: 120 | Q12: 708 | R12: 256 | S12: 564 | T12: 177 | U12: 195 | V12: 68 | W12: 41 | X12: 19 | Y12: 87 | Z12: 37 | AA12: 79 | AB12: 48 | AC12: 189 | AD12: 83 | AE12: 10 | AF12: 7 | AG12: 133 | AH12: 73 | AI12: 95 | AJ12: 33 | AK12: 43 | AL12: 18 | AM12: 766 | AN12: 163 | AO12: 393 | AP12: 124 | AQ12: 282 | AR12: 131 | AS12: 263 | AT12: 101 | AU12: 532 | AV12: 140
B13: 25 to 29 minutes | C13: 76 | D13: 45 | E13: 71 | F13: 48 | G13: 71 | H13: 36 | I13: 116 | J13: 45 | K13: 27 | L13: 17 | M13: 52 | N13: 21 | O13: 84 | P13: 58 | Q13: 234 | R13: 102 | S13: 241 | T13: 107 | U13: 58 | V13: 31 | W13: 33 | X13: 23 | Y13: 35 | Z13: 18 | AA13: 60 | AB13: 28 | AC13: 177 | AD13: 102 | AE13: 2 | AF13: 3 | AG13: 63 | AH13: 55 | AI13: 20 | AJ13: 11 | AK13: 21 | AL13: 11 | AM13: 121 | AN13: 82 | AO13: 204 | AP13: 104 | AQ13: 322 | AR13: 132 | AS13: 86 | AT13: 42 | AU13: 202 | AV13: 115
B14: 30 to 34 minutes | C14: 154 | D14: 46 | E14: 153 | F14: 114 | G14: 111 | H14: 45 | I14: 213 | J14: 100 | K14: 44 | L14: 23 | M14: 74 | N14: 39 | O14: 169 | P14: 72 | Q14: 670 | R14: 221 | S14: 647 | T14: 208 | U14: 53 | V14: 33 | W14: 92 | X14: 33 | Y14: 17 | Z14: 13 | AA14: 169 | AB14: 69 | AC14: 290 | AD14: 116 | AE14: 13 | AF14: 9 | AG14: 173 | AH14: 43 | AI14: 53 | AJ14: 29 | AK14: 37 | AL14: 23 | AM14: 384 | AN14: 208 | AO14: 45 | AP14: 32 | AQ14: 285 | AR14: 127 | AS14: 47 | AT14: 33 | AU14: 352 | AV14: 116
B15: 35 to 39 minutes | C15: 21 | D15: 19 | E15: 0 | F15: 11 | G15: 0 | H15: 11 | I15: 55 | J15: 37 | K15: 18 | L15: 12 | M15: 17 | N15: 15 | O15: 94 | P15: 55 | Q15: 216 | R15: 99 | S15: 190 | T15: 94 | U15: 39 | V15: 25 | W15: 28 | X15: 19 | Y15: 3 | Z15: 4 | AA15: 6 | AB15: 7 | AC15: 95 | AD15: 59 | AE15: 0 | AF15: 11 | AG15: 22 | AH15: 14 | AI15: 0 | AJ15: 11 | AK15: 3 | AL15: 4 | AM15: 96 | AN15: 89 | AO15: 6 | AP15: 9 | AQ15: 157 | AR15: 84 | AS15: 14 | AT15: 14 | AU15: 65 | AV15: 68
B16: 40 to 44 minutes | C16: 65 | D16: 33 | E16: 60 | F16: 69 | G16: 7 | H16: 7 | I16: 38 | J16: 24 | K16: 18 | L16: 14 | M16: 7 | N16: 7 | O16: 121 | P16: 108 | Q16: 117 | R16: 72 | S16: 190 | T16: 104 | U16: 24 | V16: 21 | W16: 12 | X16: 9 | Y16: 8 | Z16: 6 | AA16: 10 | AB16: 8 | AC16: 68 | AD16: 46 | AE16: 4 | AF16: 4 | AG16: 22 | AH16: 12 | AI16: 3 | AJ16: 4 | AK16: 10 | AL16: 9 | AM16: 69 | AN16: 64 | AO16: 21 | AP16: 16 | AQ16: 13 | AR16: 16 | AS16: 7 | AT16: 11 | AU16: 77 | AV16: 69
B17: 45 to 59 minutes | C17: 93 | D17: 34 | E17: 62 | F17: 77 | G17: 37 | H17: 20 | I17: 158 | J17: 77 | K17: 20 | L17: 16 | M17: 24 | N17: 18 | O17: 126 | P17: 65 | Q17: 244 | R17: 93 | S17: 238 | T17: 106 | U17: 16 | V17: 16 | W17: 24 | X17: 15 | Y17: 8 | Z17: 6 | AA17: 59 | AB17: 26 | AC17: 154 | AD17: 124 | AE17: 8 | AF17: 7 | AG17: 52 | AH17: 22 | AI17: 25 | AJ17: 12 | AK17: 20 | AL17: 11 | AM17: 133 | AN17: 83 | AO17: 48 | AP17: 33 | AQ17: 151 | AR17: 87 | AS17: 49 | AT17: 28 | AU17: 9 | AV17: 15
B18: 60 to 89 minutes | C18: 40 | D18: 29 | E18: 80 | F18: 55 | G18: 16 | H18: 10 | I18: 120 | J18: 50 | K18: 24 | L18: 17 | M18: 34 | N18: 20 | O18: 14 | P18: 17 | Q18: 347 | R18: 126 | S18: 305 | T18: 121 | U18: 21 | V18: 28 | W18: 31 | X18: 14 | Y18: 15 | Z18: 12 | AA18: 29 | AB18: 18 | AC18: 196 | AD18: 78 | AE18: 2 | AF18: 3 | AG18: 28 | AH18: 19 | AI18: 6 | AJ18: 6 | AK18: 12 | AL18: 9 | AM18: 46 | AN18: 44 | AO18: 59 | AP18: 39 | AQ18: 20 | AR18: 26 | AS18: 24 | AT18: 22 | AU18: 74 | AV18: 42
B19: 90 or more minutes | C19: 14 | D19: 11 | E19: 52 | F19: 42 | G19: 28 | H19: 17 | I19: 57 | J19: 37 | K19: 14 | L19: 9 | M19: 22 | N19: 15 | O19: 42 | P19: 61 | Q19: 166 | R19: 95 | S19: 184 | T19: 86 | U19: 55 | V19: 33 | W19: 39 | X19: 21 | Y19: 30 | Z19: 16 | AA19: 36 | AB19: 24 | AC19: 180 | AD19: 69 | AE19: 0 | AF19: 11 | AG19: 29 | AH19: 20 | AI19: 10 | AJ19: 10 | AK19: 9 | AL19: 9 | AM19: 51 | AN19: 55 | AO19: 28 | AP19: 21 | AQ19: 46 | AR19: 32 | AS19: 32 | AT19: 19 | AU19: 24 | AV19: 25
C39: 642668 | D39: 3466 | E39: 28483 | F39: 1018 | G39: 21150 | H39: 846 | I39: 36744 | J39: 934 | K39: 14089 | L39: 645 | M39: 42727 | N39: 1151 | O39: 197866 | P39: 2634 | Q39: 70876 | R39: 1467 | S39: 148355 | T39: 1823 | U39: 61589 | V39: 1595 | W39: 20789 | X39: 620
C40: Estimate

Sheet PopulationCharacteristics (hidden)
B2: =CntyDataLink!A35 -> Alstead
H3: Land Area: | I3: =((CntyDataLink!F35*10.764)/43560)/640 -> 38.9035985 | K3: Water Area: | L3: =((CntyDataLink!G35*10.764)/43560)/640 -> 0.4681550801
B4: POPULATION CHARACTERISTICS
B19: Population | C19: ="Source: US Census; New Hampshire Office of Strategic Initiatives; "& L20&", "&P20&", and "&S20&" American Community Survey Table B01001" -> Source: US Census; New Hampshire Office of Strategic Initiatives; 2005-2009, 2010-2014, and 2015-2019 American Community Survey Table B01001 | N19: Population by Age | P19: ="Source: "& L20&", "&P20&", and "&S20&" American Community Survey Tables B01001 and B01002" -> Source: 2005-2009, 2010-2014, and 2015-2019 American Community Survey Tables B01001 and B01002
L20: 2005-2009 | P20: 2010-2014 | S20: 2015-2019
C21: 1980 | D21: 1990 | E21: 2000 | F21: 2015-2019 | G21: 2025 | H21: 2030 | L21: Estimate | N21: Margin of Error | O21: Percent Change | P21: Estimate | Q21: Margin of Error | R21: Percent Change | S21: Estimate | T21: Margin of Error | V21: Percent Change | W21: Statistically Significant Change
C22: =CntyDataLink!$E$20 -> 1461 | D22: =CntyDataLink!$F$20 -> 1721 | E22: =CntyDataLink!$G$20 -> 1944 | F22: =CntyDataLink!$B$132 -> 1744 | G22: =CntyDataLink!$I$20 -> 1890 | H22: =CntyDataLink!$K$20 -> 1923 | K22: Under 15 yrs. | L22: =CntyDataLinkPrior10YearEstimate!$D$132 -> 416 | N22: =CntyDataLinkPrior10YearEstimate!$E$132 -> 86.34234187 | O22: =L22/SUM($L$22:$L$29) -> 0.2047244094 | P22: =CntyDataLinkPrior5YearEstimates!$D$132 -> 389 | Q22: =CntyDataLinkPrior5YearEstimates!$E$132 -> 94.58329662 | R22: =P22/SUM($P$22:$P$29) -> 0.2023933403 | S22: =CntyDataLink!$D$132 -> 262 | T22: =CntyDataLink!$E$132 -> 73.34848328 | U22: =S22/SUM($S$22:$S$29) -> 0.1502293578 | V22: =(S22-P22)/P22 -> -0.3264781491 | W22: =StatisticallySignificantCalcs!$A3 -> Y
K23: 15 to 24 yrs. | L23: =CntyDataLinkPrior10YearEstimate!$F$132 -> 187 | N23: =CntyDataLinkPrior10YearEstimate!$G$132 -> 126.2061805 | O23: =L23/SUM($L$22:$L$29) -> 0.09202755906 | P23: =CntyDataLinkPrior5YearEstimates!$F$132 -> 177 | Q23: =CntyDataLinkPrior5YearEstimates!$G$132 -> 59.84981203 | R23: 0.09209157128 | S23: =CntyDataLink!$F$132 -> 132 | T23: =CntyDataLink!$G$132 -> 55.3714728 | U23: 0.07568807339 | V23: -0.2542372881 | W23: =StatisticallySignificantCalcs!$A4 -> Y
B24: Percent Change | K24: 25 to 34 yrs. | L24: =CntyDataLinkPrior10YearEstimate!$H$132 -> 200 | N24: =CntyDataLinkPrior10YearEstimate!$I$132 -> 59.54829972 | O24: =L24/SUM($L$22:$L$29) -> 0.09842519685 | P24: =CntyDataLinkPrior5YearEstimates!$H$132 -> 181 | Q24: =CntyDataLinkPrior5YearEstimates!$I$132 -> 52.24940191 | R24: 0.09417273673 | S24: =CntyDataLink!$H$132 -> 233 | T24: =CntyDataLink!$I$132 -> 75.05997602 | U24: 0.1336009174 | V24: 0.2872928177 | W24: =StatisticallySignificantCalcs!$A5 -> Y
D25: =C21&"-"&(D21-1900) -> 1980-90 | E25: 1990-2000 | F25: =E21&"-19" -> 2000-19 | G25: =2019&"-"&(G21) -> 2019-2025 | H25: =G21&"-"&(H21) -> 2025-2030 | K25: 35 to 44 yrs. | L25: =CntyDataLinkPrior10YearEstimate!$J$132 -> 316 | N25: =CntyDataLinkPrior10YearEstimate!$K$132 -> 64.80740698 | O25: 0.155511811 | P25: =CntyDataLinkPrior5YearEstimates!$J$132 -> 225 | Q25: =CntyDataLinkPrior5YearEstimates!$K$132 -> 63.89835679 | R25: 0.1170655567 | S25: =CntyDataLink!$J$132 -> 172 | T25: =CntyDataLink!$K$132 -> 56.24944444 | U25: 0.09862385321 | V25: -0.2355555556 | W25: =StatisticallySignificantCalcs!$A6 -> Y
D26: =(D22-C22)/C22 -> 0.1779603012 | E26: =(E22-D22)/D22 -> 0.129575828 | F26: =(F22-E22)/E22 -> -0.1028806584 | G26: =(G22-F22)/F22 -> 0.08371559633 | H26: =(H22-G22)/G22 -> 0.01746031746 | K26: 45 to 54 yrs. | L26: =CntyDataLinkPrior10YearEstimate!$L$132 -> 340 | N26: =CntyDataLinkPrior10YearEstimate!$M$132 -> 79.24645102 | O26: 0.1673228346 | P26: =CntyDataLinkPrior5YearEstimates!$L$132 -> 343 | Q26: =CntyDataLinkPrior5YearEstimates!$M$132 -> 76.58981656 | R26: 0.1784599376 | S26: =CntyDataLink!$L$132 -> 286 | T26: =CntyDataLink!$M$132 -> 67.95586803 | U26: 0.1639908257 | V26: -0.166180758 | W26: =StatisticallySignificantCalcs!$A7 -> Y
K27: 55 to 64 yrs. | L27: =CntyDataLinkPrior10YearEstimate!$N$132 -> 364 | N27: =CntyDataLinkPrior10YearEstimate!$O$132 -> 76.37407937 | O27: 0.1791338583 | P27: =CntyDataLinkPrior5YearEstimates!$N$132 -> 299 | Q27: =CntyDataLinkPrior5YearEstimates!$O$132 -> 61.66036004 | R27: 0.1555671176 | S27: =CntyDataLink!$N$132 -> 229 | T27: =CntyDataLink!$O$132 -> 61.26989473 | U27: 0.1313073394 | V27: -0.2341137124 | W27: =StatisticallySignificantCalcs!$A8 -> Y
K28: 65 to 74 yrs. | L28: =CntyDataLinkPrior10YearEstimate!$P$132 -> 89 | N28: =CntyDataLinkPrior10YearEstimate!$Q$132 -> 28.61817604 | O28: 0.0437992126 | P28: =CntyDataLinkPrior5YearEstimates!$P$132 -> 227 | Q28: =CntyDataLinkPrior5YearEstimates!$Q$132 -> 53.1789432 | R28: 0.1181061394 | S28: =CntyDataLink!$P$132 -> 279 | T28: =CntyDataLink!$Q$132 -> 67.85278181 | U28: 0.1599770642 | V28: 0.2290748899 | W28: =StatisticallySignificantCalcs!$A9 -> Y
K29: Over 74 yrs. | L29: =CntyDataLinkPrior10YearEstimate!$R$132 -> 120 | N29: =CntyDataLinkPrior10YearEstimate!$S$132 -> 39.9374511 | O29: 0.05905511811 | P29: =CntyDataLinkPrior5YearEstimates!$R$132 -> 81 | Q29: =CntyDataLinkPrior5YearEstimates!$S$132 -> 30 | R29: 0.04214360042 | S29: =CntyDataLink!$R$132 -> 151 | T29: =CntyDataLink!$S$132 -> 59.93329626 | U29: 0.08658256881 | V29: 0.8641975309 | W29: =StatisticallySignificantCalcs!$A10 -> Y
K30: Median Age (years) | L30: =CntyDataLinkPrior10YearEstimate!$AX132 -> 40.8 | N30: =CntyDataLinkPrior10YearEstimate!$AY$132 -> 2.9 | P30: =CntyDataLinkPrior5YearEstimates!$AX132 -> 44.7 | Q30: =CntyDataLinkPrior5YearEstimates!$AY$132 -> 2.6 | S30: =CntyDataLink!$AX$132 -> 48.7 | T30: =CntyDataLink!$AY$132 -> 5.9
B32: Population By Race | M32: Statistically Significant Change
M33: =IF(L36="","-",StatisticallySignificantCalcs!A20) -> Y
C34: 2005-2009 | F34: 2010-2014 | I34: 2015-2019 | L34: Statistically Significant Change
C35: Estimate | D35: Margin of Error | F35: Estimate | G35: Margin of Error | I35: Estimate | J35: Margin of Error | L35: 2009-2019 | M35: 2014-2019
B36: White | C36: =CntyDataLinkPrior10YearEstimate!$AL$132 -> 2020 | D36: =CntyDataLinkPrior10YearEstimate!$AM$132 -> 222 | E36: =IF(C$36="-","-",VALUE(C36/$C$41)) -> 0.9940944882 | F36: =CntyDataLinkPrior5YearEstimates!$AL$132 -> 1874 | G36: =CntyDataLinkPrior5YearEstimates!$AM$132 -> 232 | H36: =IF(F$36="-","-",VALUE(F36/$F$41)) -> 0.9750260146 | I36: =CntyDataLink!$AL$132 -> 1672 | J36: =CntyDataLink!$AM$132 -> 182 | K36: =IF(I$36="-","-",VALUE(I36/$I$41)) -> 0.9587155963 | L36: =StatisticallySignificantCalcs!A20 -> Y | M36: =StatisticallySignificantCalcs!J20 -> N
B37: Black | C37: =CntyDataLinkPrior10YearEstimate!$AN132 -> 0 | D37: =CntyDataLinkPrior10YearEstimate!$AO$132 -> 114 | E37: =IF(C$37="-","-",VALUE(C37/$C$41)) -> 0 | F37: =CntyDataLinkPrior5YearEstimates!$AN132 -> 4 | G37: =CntyDataLinkPrior5YearEstimates!$AO$132 -> 6 | H37: =IF(F$37="-","-",VALUE(F37/$F$41)) -> 0.002081165453 | I37: =CntyDataLink!$AN$132 -> 0 | J37: =CntyDataLink!$AO$132 -> 11 | K37: =IF(I$37="-","-",VALUE(I37/$I$41)) -> 0 | L37: =StatisticallySignificantCalcs!A21 -> N | M37: =StatisticallySignificantCalcs!J21 -> N
B38: American Indian | C38: =CntyDataLinkPrior10YearEstimate!$AP$132 -> 0 | D38: =CntyDataLinkPrior10YearEstimate!$AQ$132 -> 114 | E38: =IF(C$38="-","-",VALUE(C38/$C$41)) -> 0 | F38: =CntyDataLinkPrior5YearEstimates!$AP$132 -> 0 | G38: =CntyDataLinkPrior5YearEstimates!$AQ$132 -> 11 | H38: =IF(F$38="-","-",VALUE(F38/$F$41)) -> 0 | I38: =CntyDataLink!$AP$132 -> 0 | J38: =CntyDataLink!$AQ$132 -> 11 | K38: =IF(I$38="-","-",VALUE(I38/$I$41)) -> 0 | L38: =StatisticallySignificantCalcs!A22 -> N | M38: =StatisticallySignificantCalcs!J22 -> N
B39: Asian &Pacific Is. | C39: =CntyDataLinkPrior10YearEstimate!$AR$132 -> 3 | D39: =CntyDataLinkPrior10YearEstimate!$AS$132 -> 114.1095964 | E39: =IF(C$39="-","-",VALUE(C39/$C$41)) -> 0.001476377953 | F39: =CntyDataLinkPrior5YearEstimates!$AR$132 -> 8 | G39: =CntyDataLinkPrior5YearEstimates!$AS$132 -> 14.2126704 | H39: =IF(F$39="-","-",VALUE(F39/$F$41)) -> 0.004162330905 | I39: =CntyDataLink!$AR$132 -> 8 | J39: =CntyDataLink!$AS$132 -> 13.60147051 | K39: =IF(I$39="-","-",VALUE(I39/$I$41)) -> 0.004587155963 | L39: =StatisticallySignificantCalcs!A23 -> N | M39: =StatisticallySignificantCalcs!J23 -> N
B40: Other* | C40: =CntyDataLinkPrior10YearEstimate!$AT$132 -> 3 | D40: =CntyDataLinkPrior10YearEstimate!$AU$132 -> 114.1577855 | E40: =IF(C$40="-","-",VALUE(C40/$C$41)) -> 0.001476377953 | F40: =CntyDataLinkPrior5YearEstimates!$AT$132 -> 7 | G40: =CntyDataLinkPrior5YearEstimates!$AU$132 -> 13.60147051 | H40: =IF(F$40="-","-",VALUE(F40/$F$41)) -> 0.003642039542 | I40: =CntyDataLink!$AT$132 -> 27 | J40: =CntyDataLink!$AU$132 -> 32.89376841 | K40: =IF(I$40="-","-",VALUE(I40/$I$41)) -> 0.01548165138 | L40: =StatisticallySignificantCalcs!A24 -> N | M40: =StatisticallySignificantCalcs!J24 -> N
B41: Total Population | C41: =CntyDataLinkPrior10YearEstimate!$B$132 -> 2032 | D41: =CntyDataLinkPrior10YearEstimate!$C$132 -> 220 | F41: =CntyDataLinkPrior5YearEstimates!$B$132 -> 1922 | G41: =CntyDataLinkPrior5YearEstimates!$C$132 -> 228 | I41: =CntyDataLink!$B$132 -> 1744 | J41: =CntyDataLink!$C$132 -> 192
B42: Hispanic | C42: =CntyDataLinkPrior10YearEstimate!$AV$132 -> 6 | D42: =CntyDataLinkPrior10YearEstimate!$AW$132 -> 10 | E42: =IF(C$42="-","-",VALUE(C42/$C$41)) -> 0.002952755906 | F42: =CntyDataLinkPrior5YearEstimates!$AV132 -> 29 | G42: =CntyDataLinkPrior5YearEstimates!$AW$132 -> 43 | H42: =IF(F$42="-","-",VALUE(F42/$F$41)) -> 0.01508844953 | I42: =CntyDataLink!$AV$132 -> 37 | J42: =CntyDataLink!$AW$132 -> 40 | K42: =IF(I$42="-","-",VALUE(I42/$I$41)) -> 0.02121559633 | L42: =StatisticallySignificantCalcs!A26 -> Y | M42: =StatisticallySignificantCalcs!J26 -> N
B44: * | C44: Other includes population of 2 or more races
B46: ="Source: "& L20&", "&P20&", and "&S20&" American Community Survey Table B03002" -> Source: 2005-2009, 2010-2014, and 2015-2019 American Community Survey Table B03002
C48: Households and Families
D49: 2010-2014 | G49: 2010-2014 | J49: 2015-2019 | N49: Percent Change 2009-2019 | P49: Percent Change 2010-2019
D50: Estimate | E50: Margin of Error | G50: Estimate | H50: Margin of Error | J50: Estimate | K50: Margin of Error
C51: Total Households | D51: =CntyDataLinkPrior10YearEstimate!$T$132 -> 789 | E51: =CntyDataLinkPrior10YearEstimate!$U$132 -> 93 | G51: =CntyDataLinkPrior5YearEstimates!$T$132 -> 770 | H51: =CntyDataLinkPrior5YearEstimates!$U$132 -> 74 | J51: =CntyDataLink!$T$132 -> 749 | K51: =CntyDataLink!$U$132 -> 71 | N51: =(J51-D51)/D51 -> -0.05069708492 | P51: =(J51-G51)/G51 -> -0.02727272727
C52: Persons per Household | D52: =CntyDataLinkPrior10YearEstimate!$BD$132 -> 2.575411914 | E52: =CntyDataLinkPrior10YearEstimate!$BE$132 -> 0.25 | G52: =CntyDataLinkPrior5YearEstimates!$BD$132 -> 2.496103896 | H52: =CntyDataLinkPrior5YearEstimates!$BE$132 -> 0.19 | J52: =CntyDataLink!$BD$132 -> 2.328437917 | K52: =CntyDataLink!$BE$132 -> 0.19 | N52: =(J52-D52)/D52 -> -0.09589689139 | P52: =(J52-G52)/G52 -> -0.06717107375
C53: Family Households | D53: =CntyDataLinkPrior10YearEstimate!$V$132 -> 537 | E53: =CntyDataLinkPrior10YearEstimate!$U$132 -> 93 | G53: =CntyDataLinkPrior5YearEstimates!$V$132 -> 516 | H53: =CntyDataLinkPrior5YearEstimates!$U$132 -> 74 | J53: =CntyDataLink!$V$132 -> 475 | K53: =CntyDataLink!$U$132 -> 71 | N53: -0.1154562384 | P53: -0.07945736434
C54: Persons per Family Household | D54: =CntyDataLinkPrior10YearEstimate!$BF$132 -> 3.230912477 | E54: =CntyDataLinkPrior10YearEstimate!$BG$132 -> 0.6931458984 | G54: =CntyDataLinkPrior5YearEstimates!$BF$132 -> 3.040697674 | H54: =CntyDataLinkPrior5YearEstimates!$BG$132 -> 0.5640201679 | J54: =CntyDataLink!$BF$132 -> 2.835789474 | K54: =CntyDataLink!$BG$132 -> 0.5640201679 | N54: -0.1222945548 | P54: -0.06738854785
C55: Married-Couple Family Hh | D55: =CntyDataLinkPrior10YearEstimate!$X$132 -> 402 | E55: =CntyDataLinkPrior10YearEstimate!$Y$132 -> 74 | G55: =CntyDataLinkPrior5YearEstimates!$X$132 -> 429 | H55: =CntyDataLinkPrior5YearEstimates!$Y$132 -> 62 | J55: =CntyDataLink!$X$132 -> 344 | K55: =CntyDataLink!$Y$132 -> 76 | N55: -0.144278607 | P55: -0.1981351981
C56: Single-Parent Family Hh | D56: =CntyDataLinkPrior10YearEstimate!$Z$132 -> 135 | E56: =CntyDataLinkPrior10YearEstimate!$AA$132 -> 66 | G56: =CntyDataLinkPrior5YearEstimates!$Z$132 -> 87 | H56: =CntyDataLinkPrior5YearEstimates!$AA$132 -> 39 | J56: =CntyDataLink!$Z$132 -> 131 | K56: =CntyDataLink!$AA$132 -> 44 | N56: -0.02962962963 | P56: 0.5057471264
C57: Non-Family Households | D57: =CntyDataLinkPrior10YearEstimate!$AF$132 -> 252 | E57: =CntyDataLinkPrior10YearEstimate!$AG$132 -> 76 | G57: =CntyDataLinkPrior5YearEstimates!$AF$132 -> 254 | H57: =CntyDataLinkPrior5YearEstimates!$AG$132 -> 56 | J57: =CntyDataLink!$AF$132 -> 274 | K57: =CntyDataLink!$AG$132 -> 71 | N57: 0.0873015873 | P57: 0.07874015748
C58: Persons per Non-Family Hh | D58: =CntyDataLinkPrior10YearEstimate!$BH$132 -> 1.178571429 | E58: =CntyDataLinkPrior10YearEstimate!$BI$132 -> 0.5010702959 | G58: =CntyDataLinkPrior5YearEstimates!$BH$132 -> 1.38976378 | H58: =CntyDataLinkPrior5YearEstimates!$BI$132 -> 0.5824193485 | J58: =CntyDataLink!$BH$132 -> 1.448905109 | K58: =CntyDataLink!$BI$132 -> 0.5824193485 | N58: 0.2293740323 | P58: 0.0425549513
B61: As a result of changes in the American Community Survey, direct comparisons between the data should be made with caution.
B63: Source: 2005-2009, 2010-2014, and 2015-2019 American Community Survey Table B11001
B64: POPULATION CHARACTERISTICS
B87: As a result of changes in the American Community Survey, direct comparisons between the 2009-2013 and 2015-2019 data should be made with caution.

Sheet SchoolEnrolEduAttain (hidden)
C2: =CntyDataLink!A50 -> Alstead
C3: SOCIAL CHARACTERISTICS
C21: School Enrollment | F21: 2005-2009 | I21: 2010-2014 | L21: 2015-2019 | P21: Statistically Significant Change
F22: Estimate | G22: Margin of Error | H22: Percent of Population | I22: Estimate | J22: Margin of Error | K22: Percent of Population | L22: Estimate | M22: Margin of Error | N22: Percent of Population | P22: 2009-2019 | Q22: 2014-2019
C23: Population 3 years and over | F23: =CntyDataLinkPrior10YearEstimate!$B$140 -> 1964 | G23: =CntyDataLinkPrior10YearEstimate!$C$140 -> 205 | I23: =CntyDataLinkPrior5YearEstimates!$B$140 -> 1876 | J23: =CntyDataLinkPrior5YearEstimates!$C$140 -> 221 | L23: =CntyDataLink!$B$140 -> 1668 | M23: =CntyDataLink!$C$140 -> 176 | P23: =StatisticallySignificantCalcs!$A$45 -> Y | Q23: =StatisticallySignificantCalcs!$J$45 -> N
C24: Population 3 years & over enrolled in school | F24: =CntyDataLinkPrior10YearEstimate!$D$140 -> 453 | G24: =CntyDataLinkPrior10YearEstimate!$E$140 -> 113 | H24: =F24/$F$23 -> 0.2306517312 | I24: =CntyDataLinkPrior5YearEstimates!$D$140 -> 421 | J24: =CntyDataLinkPrior5YearEstimates!$E$140 -> 106 | K24: =I24/$I$23 -> 0.2244136461 | L24: =CntyDataLink!$D$140 -> 309 | M24: =CntyDataLink!$E$140 -> 128 | N24: =L24/$L$23 -> 0.1852517986 | P24: =StatisticallySignificantCalcs!$A$46 -> N | Q24: =StatisticallySignificantCalcs!$J$46 -> N
C25: Preprimary (Nursery, Preschool, Kindergarten) | F25: =CntyDataLinkPrior10YearEstimate!$F$140 -> 26 | G25: =CntyDataLinkPrior10YearEstimate!$G$140 -> 116.7090399 | H25: 0.01323828921 | I25: =CntyDataLinkPrior5YearEstimates!$F$140 -> 63 | J25: =CntyDataLinkPrior5YearEstimates!$G$140 -> 30.8058436 | K25: =I25/$I$23 -> 0.03358208955 | L25: =CntyDataLink!$F$140 -> 6 | M25: =CntyDataLink!$G$140 -> 13.60147051 | N25: =L25/$L$23 -> 0.003597122302 | P25: =StatisticallySignificantCalcs!$A$47 -> N | Q25: =StatisticallySignificantCalcs!$J$47 -> Y
C26: Nursery school and Preschool | F26: =CntyDataLinkPrior10YearEstimate!$H$140 -> 26 | G26: =CntyDataLinkPrior10YearEstimate!$I$140 -> 25 | H26: 0.01323828921 | I26: =CntyDataLinkPrior5YearEstimates!$H$140 -> 43 | J26: =CntyDataLinkPrior5YearEstimates!$I$140 -> 25 | K26: 0.02292110874 | L26: =CntyDataLink!$H$140 -> 6 | M26: =CntyDataLink!$I$140 -> 8 | N26: 0.003597122302 | P26: =StatisticallySignificantCalcs!$A$48 -> N | Q26: =StatisticallySignificantCalcs!$J$48 -> Y
C27: Kindergarten | F27: =CntyDataLinkPrior10YearEstimate!$J$140 -> 0 | G27: =CntyDataLinkPrior10YearEstimate!$K$140 -> 114 | H27: 0 | I27: =CntyDataLinkPrior5YearEstimates!$J$140 -> 20 | J27: =CntyDataLinkPrior5YearEstimates!$K$140 -> 18 | K27: 0.01066098081 | L27: =CntyDataLink!$J$140 -> 0 | M27: =CntyDataLink!$K$140 -> 11 | N27: 0 | P27: =StatisticallySignificantCalcs!$A$49 -> N | Q27: =StatisticallySignificantCalcs!$J$49 -> N
C28: Elementary through High school | F28: =CntyDataLinkPrior10YearEstimate!$P$140 -> 369 | G28: =CntyDataLinkPrior10YearEstimate!$Q$140 -> 71.11258679 | H28: 0.1878818737 | I28: =CntyDataLinkPrior5YearEstimates!$P$140 -> 321 | J28: =CntyDataLinkPrior5YearEstimates!$Q$140 -> 81.10487038 | K28: 0.171108742 | L28: =CntyDataLink!$P$140 -> 220 | M28: =CntyDataLink!$Q$140 -> 64.85368147 | N28: 0.1318944844 | P28: =StatisticallySignificantCalcs!$A$50 -> Y | Q28: =StatisticallySignificantCalcs!$J$50 -> N
C29: Elementary school (grades 1-8) | F29: =CntyDataLinkPrior10YearEstimate!$L$140 -> 261 | G29: =CntyDataLinkPrior10YearEstimate!$M$140 -> 59.46427499 | H29: 0.132892057 | I29: =CntyDataLinkPrior5YearEstimates!$L$140 -> 210 | J29: =CntyDataLinkPrior5YearEstimates!$M$140 -> 67.47592163 | K29: 0.1119402985 | L29: =CntyDataLink!$L$140 -> 146 | M29: =CntyDataLink!$M$140 -> 53.26349594 | N29: 0.08752997602 | P29: =StatisticallySignificantCalcs!$A$51 -> Y | Q29: =StatisticallySignificantCalcs!$J$51 -> N
C30: High school (grades 9-12) | F30: =CntyDataLinkPrior10YearEstimate!$N$140 -> 108 | G30: =CntyDataLinkPrior10YearEstimate!$O$140 -> 39 | H30: 0.0549898167 | I30: =CntyDataLinkPrior5YearEstimates!$N$140 -> 111 | J30: =CntyDataLinkPrior5YearEstimates!$O$140 -> 45 | K30: 0.0591684435 | L30: =CntyDataLink!$N$140 -> 74 | M30: =CntyDataLink!$O$140 -> 37 | N30: 0.04436450839 | P30: =StatisticallySignificantCalcs!$A$52 -> N | Q30: =StatisticallySignificantCalcs!$J$52 -> N
C31: College or Graduate School | F31: =CntyDataLinkPrior10YearEstimate!$R$140 -> 58 | G31: =CntyDataLinkPrior10YearEstimate!$S$140 -> 30.6757233 | H31: 0.02953156823 | I31: =CntyDataLinkPrior5YearEstimates!$R$140 -> 37 | J31: =CntyDataLinkPrior5YearEstimates!$S$140 -> 25.29822128 | K31: 0.0197228145 | L31: =CntyDataLink!$R$140 -> 83 | M31: =CntyDataLink!$S$140 -> 63.78871374 | N31: 0.04976019185 | P31: =StatisticallySignificantCalcs!$A$53 -> N | Q31: =StatisticallySignificantCalcs!$J$53 -> N
C33: ="Source: "&F21&", "& I21&" and "&L21&" American Community Survey Table B14001" -> Source: 2005-2009, 2010-2014 and 2015-2019 American Community Survey Table B14001
C50: Educational Attainment | F50: 2005-2009 | I50: 2010-2014 | L50: 2015.-2019 | P50: Statistically Significant Change
F51: Estimate | G51: Margin of Error | H51: Percent of Population | I51: Estimate | J51: Margin of Error | K51: Percent of Population | L51: Estimate | M51: Margin of Error | N51: Percent of Population | P51: 2009-2019 | Q51: 2014-2019
C52: Population 25 years and over | F52: =CntyDataLinkPrior10YearEstimate!$V$140 -> 1429 | G52: =CntyDataLinkPrior10YearEstimate!$W$140 -> 152 | I52: =CntyDataLinkPrior5YearEstimates!$V$140 -> 1429 | J52: =CntyDataLinkPrior5YearEstimates!$W$140 -> 152 | L52: =CntyDataLink!$V$140 -> 1356 | M52: =CntyDataLink!$W$140 -> 144 | P52: =StatisticallySignificantCalcs!A54 -> N | Q52: =StatisticallySignificantCalcs!$J$54 -> N
C53: Less than 9th Grade | F53: =CntyDataLinkPrior10YearEstimate!$X$140 -> 9 | G53: =CntyDataLinkPrior10YearEstimate!$Y$140 -> 255.0705785 | H53: =F53/$F$52 -> 0.006298110567 | I53: =CntyDataLinkPrior5YearEstimates!$X$140 -> 9 | J53: =CntyDataLinkPrior5YearEstimates!$Y$140 -> 255.0705785 | K53: =I53/$I$52 -> 0.006298110567 | L53: =CntyDataLink!$X$140 -> 24 | M53: =CntyDataLink!$Y$140 -> 27.82085549 | N53: =L53/$L$52 -> 0.01769911504 | P53: =StatisticallySignificantCalcs!A55 -> N | Q53: =StatisticallySignificantCalcs!$J$55 -> N
C54: 9th to 12th Grade, no Diploma | F54: =CntyDataLinkPrior10YearEstimate!$Z$140 -> 57 | G54: =CntyDataLinkPrior10YearEstimate!$AA$140 -> 163.4288836 | H54: =F54/$F$52 -> 0.03988803359 | I54: =CntyDataLinkPrior5YearEstimates!$Z$140 -> 57 | J54: =CntyDataLinkPrior5YearEstimates!$AA$140 -> 163.4288836 | K54: =I54/$I$52 -> 0.03988803359 | L54: =CntyDataLink!$Z$140 -> 69 | M54: =CntyDataLink!$AA$140 -> 38.93584467 | N54: =L54/$L$52 -> 0.05088495575 | P54: =StatisticallySignificantCalcs!A56 -> N | Q54: =StatisticallySignificantCalcs!$J$56 -> N
C55: High School Graduate | F55: =CntyDataLinkPrior10YearEstimate!$AB$140 -> 535 | G55: =CntyDataLinkPrior10YearEstimate!$AC$140 -> 79.9812478 | H55: 0.3743876837 | I55: =CntyDataLinkPrior5YearEstimates!$AB$140 -> 535 | J55: =CntyDataLinkPrior5YearEstimates!$AC$140 -> 79.9812478 | K55: 0.3743876837 | L55: =CntyDataLink!$AB$140 -> 404 | M55: =CntyDataLink!$AC$140 -> 92.6984358 | N55: 0.2979351032 | P55: =StatisticallySignificantCalcs!A57 -> Y | Q55: =StatisticallySignificantCalcs!$J$57 -> Y
C56: Some College, No Degree | F56: =CntyDataLinkPrior10YearEstimate!$AD$140 -> 304 | G56: =CntyDataLinkPrior10YearEstimate!$AE$140 -> 78.16648898 | H56: 0.2127361791 | I56: =CntyDataLinkPrior5YearEstimates!$AD$140 -> 304 | J56: =CntyDataLinkPrior5YearEstimates!$AE$140 -> 78.16648898 | K56: 0.2127361791 | L56: =CntyDataLink!$AD$140 -> 222 | M56: =CntyDataLink!$AE$140 -> 55.65069631 | N56: 0.1637168142 | P56: =StatisticallySignificantCalcs!A58 -> N | Q56: =StatisticallySignificantCalcs!$J$58 -> N
C57: Associate Degree | F57: =CntyDataLinkPrior10YearEstimate!$AF$140 -> 152 | G57: =CntyDataLinkPrior10YearEstimate!$AG$140 -> 49.2036584 | H57: 0.1063680896 | I57: =CntyDataLinkPrior5YearEstimates!$AF$140 -> 152 | J57: =CntyDataLinkPrior5YearEstimates!$AG$140 -> 49.2036584 | K57: 0.1063680896 | L57: =CntyDataLink!$AF$140 -> 115 | M57: =CntyDataLink!$AG$140 -> 37.64306045 | N57: 0.08480825959 | P57: =StatisticallySignificantCalcs!A59 -> N | Q57: =StatisticallySignificantCalcs!$J$59 -> N
C58: Bachelor's Degree | F58: =CntyDataLinkPrior10YearEstimate!$AH$140 -> 243 | G58: =CntyDataLinkPrior10YearEstimate!$AI$140 -> 64.47480128 | H58: 0.1700489853 | I58: =CntyDataLinkPrior5YearEstimates!$AH$140 -> 243 | J58: =CntyDataLinkPrior5YearEstimates!$AI$140 -> 64.47480128 | K58: 0.1700489853 | L58: =CntyDataLink!$AH$140 -> 278 | M58: =CntyDataLink!$AI$140 -> 62.62587325 | N58: 0.2050147493 | P58: =StatisticallySignificantCalcs!A60 -> N | Q58: =StatisticallySignificantCalcs!$J$60 -> N
C59: Graduate or Professional Degree | F59: =CntyDataLinkPrior10YearEstimate!$AJ$140 -> 49 | G59: =CntyDataLinkPrior10YearEstimate!$AK$140 -> 116.6361865 | H59: 0.03428971309 | I59: =CntyDataLinkPrior5YearEstimates!$AJ$140 -> 49 | J59: =CntyDataLinkPrior5YearEstimates!$AK$140 -> 116.6361865 | K59: 0.03428971309 | L59: =CntyDataLink!$AJ$140 -> 240 | M59: =CntyDataLink!$AK$140 -> 54.15717866 | N59: 0.1769911504 | P59: =StatisticallySignificantCalcs!A61 -> Y | Q59: =StatisticallySignificantCalcs!$J$61 -> Y
C61: Percent of High School Graduate or Higher | H61: =SUM(F55:F59)/F52 -> 0.8978306508 | K61: =SUM(I55:I59)/I52 -> 0.8978306508 | N61: =SUM(L55:L59)/L52 -> 0.9284660767
C62: Percent of Bachelor's Degree or Higher | H62: =SUM(F58:F59)/F52 -> 0.2043386984 | K62: =SUM(I58:I59)/I52 -> 0.2043386984 | N62: =SUM(L58:L59)/L52 -> 0.3820058997
C64: ="Source: "&F21&", "&I21&" and "&L21&" American Community Survey Table B15002" -> Source: 2005-2009, 2010-2014 and 2015-2019 American Community Survey Table B15002 | H64: Data from the American Community Survey are estimates
C66: As a result of changes in the American Community Survey, direct comparisons between the data should be made with caution.
C67: be made with caution.

Sheet HousingCharacteristics (hidden)
B2: =CntyDataLink!$A35 -> Alstead
B4: HOUSING CHARACTERISTICS
D27: ="Source: "& " "&D69&", "&G69&" and "&J69& " American Community Survey Table B25024; B25032" -> Source: 2005-2009, 2010-2014 and 2015-2019 American Community Survey Table B25024; B25032
B28: Units by Tenure & Vacancy
C30: 2005-2009 | F30: 2010-2014 | I30: 2015-2019 | L30: Percent Change | O30: Statistically Significant Change
C31: Estimate | D31: Margin of Error | E31: % | F31: Estimate | G31: Margin of Error | H31: % | I31: Estimate | J31: Margin of Error | K31: % | L31: 2009-2019 | M31: 2014-2019 | O31: 2009-2019 | P31: 2014-2019
B32: Total Units | C32: =CntyDataLinkPrior10YearEstimate!$B$108 -> 1017 | D32: =CntyDataLinkPrior5YearEstimates!$C$108 -> 79 | F32: =CntyDataLinkPrior5YearEstimates!$B$108 -> 907 | G32: =CntyDataLinkPrior5YearEstimates!$C$108 -> 79 | I32: =CntyDataLink!$B$108 -> 913 | J32: =CntyDataLink!$C$108 -> 78 | L32: =IF(I32="-","-",(I32-C32)/C32) -> -0.1022615536 | M32: =IF(I32="-","-",(I32-F32)/F32) -> 0.006615214994 | O32: =StatisticallySignificantCalcs!$A62 -> N | P32: =StatisticallySignificantCalcs!$J62 -> N
B33: Occupied Units | C33: =CntyDataLinkPrior10YearEstimate!$D$108 -> 789 | D33: =CntyDataLinkPrior5YearEstimates!$E$108 -> 74 | E33: =ROUND(C33/C32,2)*100&"% of Total" -> 78% of Total | F33: =CntyDataLinkPrior5YearEstimates!$D$108 -> 770 | G33: =CntyDataLinkPrior5YearEstimates!$E$108 -> 74 | H33: =ROUND(F33/F32,2)*100&"% of Total" -> 85% of Total | I33: =CntyDataLink!$D$108 -> 749 | J33: =CntyDataLink!$E$108 -> 71 | K33: =ROUND(I33/I32,2)*100&"% of Total" -> 82% of Total | L33: =IF(I33="-","-",(I33-C33)/C33) -> -0.05069708492 | M33: =IF(I33="-","-",(I33-F33)/F33) -> -0.02727272727 | O33: =StatisticallySignificantCalcs!$A63 -> N | P33: =StatisticallySignificantCalcs!$J63 -> N
B34: Owner Occupied | C34: =CntyDataLinkPrior10YearEstimate!$F$108 -> 633 | D34: =CntyDataLinkPrior5YearEstimates!$G$108 -> 72 | E34: =ROUND(C34/C33,2)*100&"% of Occ." -> 80% of Occ. | F34: =CntyDataLinkPrior5YearEstimates!$F$108 -> 617 | G34: =CntyDataLinkPrior5YearEstimates!$G$108 -> 72 | H34: =ROUND(F34/F33,2)*100&"% of Occ." -> 80% of Occ. | I34: =CntyDataLink!$F$108 -> 516 | J34: =CntyDataLink!$G$108 -> 72 | K34: =ROUND(I34/I33,2)*100&"% of Occ." -> 69% of Occ. | L34: =IF(I34="-","-",(I34-C34)/C34) -> -0.1848341232 | M34: -0.1636952998 | O34: =StatisticallySignificantCalcs!$A64 -> Y | P34: =StatisticallySignificantCalcs!$J64 -> N
B35: Renter Occupied | C35: =CntyDataLinkPrior10YearEstimate!$H$108 -> 156 | D35: =CntyDataLinkPrior5YearEstimates!$I$108 -> 48 | E35: =ROUND(C35/C33,2)*100&"% of Occ." -> 20% of Occ. | F35: =CntyDataLinkPrior5YearEstimates!$H$108 -> 153 | G35: =CntyDataLinkPrior5YearEstimates!$I$108 -> 48 | H35: =ROUND(F35/F33,2)*100&"% of Occ." -> 20% of Occ. | I35: =CntyDataLink!$H$108 -> 233 | J35: =CntyDataLink!$I$108 -> 67 | K35: =ROUND(I35/I33,2)*100&"% of Occ." -> 31% of Occ. | L35: =IF(I35="-","-",(I35-C35)/C35) -> 0.4935897436 | M35: 0.522875817 | O35: =StatisticallySignificantCalcs!$A65 -> N | P35: =StatisticallySignificantCalcs!$J65 -> N
B36: Vacant Units | C36: =CntyDataLinkPrior10YearEstimate!$J$108 -> 228 | D36: =CntyDataLinkPrior5YearEstimates!$K$108 -> 54 | E36: =ROUND(C36/C32,2)*100&"% of Total" -> 22% of Total | F36: =CntyDataLinkPrior5YearEstimates!$J$108 -> 137 | G36: =CntyDataLinkPrior5YearEstimates!$K$108 -> 54 | H36: =ROUND(F36/F32,2)*100&"% of Total" -> 15% of Total | I36: =CntyDataLink!$J$108 -> 164 | J36: =CntyDataLink!$K$108 -> 63 | K36: =ROUND(I36/I32,2)*100&"% of Total" -> 18% of Total | L36: =IF(I36="-",I36,VALUE((I36-C36)/C36)) -> -0.2807017544 | M36: 0.197080292 | O36: =StatisticallySignificantCalcs!$A66 -> N | P36: =StatisticallySignificantCalcs!$J66 -> N
B37: Vacant For Sale | C37: =CntyDataLinkPrior10YearEstimate!$P$108 -> 21 | D37: =CntyDataLinkPrior5YearEstimates!$Q$108 -> 30 | E37: =ROUND(C37/(C34+C37),3)*100&"% Vac." -> 3.2% Vac. | F37: =CntyDataLinkPrior5YearEstimates!$P$108 -> 33 | G37: =CntyDataLinkPrior5YearEstimates!$Q$108 -> 30 | H37: =ROUND(F37/(F34+F37),3)*100&"% Vac." -> 5.1% Vac. | I37: =CntyDataLink!$P$108 -> 17 | J37: =CntyDataLink!$Q$108 -> 27 | K37: =ROUND(I37/(I34+I37),3)*100&"% Vac." -> 3.2% Vac. | L37: =IF(I37="-",I37,VALUE((I37-C37)/C37)) -> -0.1904761905 | M37: -0.4848484848 | O37: =StatisticallySignificantCalcs!$A67 -> N | P37: =StatisticallySignificantCalcs!$J67 -> N
B38: Vacant For Rent | C38: =CntyDataLinkPrior10YearEstimate!$L$108 -> 8 | D38: =CntyDataLinkPrior5YearEstimates!$M$108 -> 11 | E38: =ROUND(C38/(C35+C38),3)*100&"% Vac." -> 4.9% Vac. | F38: =CntyDataLinkPrior5YearEstimates!$L$108 -> 0 | G38: =CntyDataLinkPrior5YearEstimates!$M$108 -> 11 | H38: =ROUND(F38/(F35+F38),3)*100&"% Vac." -> 0% Vac. | I38: =CntyDataLink!$L$108 -> 0 | J38: =CntyDataLink!$M$108 -> 11 | K38: =ROUND(I38/(I35+I38),3)*100&"% Vac." -> 0% Vac. | L38: =IF(I38="-",I38,VALUE((I38-C38)/C38)) -> -1 | O38: =StatisticallySignificantCalcs!$A68 -> N | P38: =StatisticallySignificantCalcs!$J68 -> N
B39: Vacant Seasonal | C39: =CntyDataLinkPrior10YearEstimate!$T$108 -> 151 | D39: =CntyDataLinkPrior5YearEstimates!$U$108 -> 40 | E39: =ROUND(C39/C32,2)*100&"% of Total" -> 15% of Total | F39: =CntyDataLinkPrior5YearEstimates!$T$108 -> 67 | G39: =CntyDataLinkPrior5YearEstimates!$U$108 -> 40 | H39: =ROUND(F39/F32,2)*100&"% of Total" -> 7% of Total | I39: =CntyDataLink!$T$108 -> 98 | J39: =CntyDataLink!$U$108 -> 45 | K39: =ROUND(I39/I32,2)*100&"% of Total" -> 11% of Total | L39: =IF(I39="-",I39,VALUE((I39-C39)/C39)) -> -0.3509933775 | M39: 0.4626865672 | O39: =StatisticallySignificantCalcs!$A69 -> N | P39: =StatisticallySignificantCalcs!$J69 -> N
B41: Data from the American Community Survey are estimates
B44: HOUSING CHARACTERISTICS
D65: ="Source: "& " "&D69&", "&G69&" and "&J69& " American Community Survey Table B25024; B25032" -> Source: 2005-2009, 2010-2014 and 2015-2019 American Community Survey Table B25024; B25032
C67: Units by Type
D69: 2005-2009 | G69: 2010-2014 | J69: 2015-2019 | M69: Percent Change | O69: Statistically Significant Change
D70: Estimate | E70: Margin of Error | F70: % of Total | G70: Estimate | H70: Margin of Error | I70: % of Total | J70: Estimate | K70: Margin of Error | L70: % of Total | M70: 2009-2019 | N70: 2014-2019 | O70: 2009-2019 | P70: 2014-2019
C71: Total Units | D71: =CntyDataLinkPrior10YearEstimate!$B$108 -> 1017 | E71: =CntyDataLinkPrior10YearEstimate!$C$108 -> 78 | G71: =CntyDataLinkPrior5YearEstimates!$B$108 -> 907 | H71: =CntyDataLinkPrior5YearEstimates!$C$108 -> 79 | J71: =CntyDataLink!$B$108 -> 913 | K71: =CntyDataLink!$C$108 -> 78 | O71: =StatisticallySignificantCalcs!$A70 -> N | P71: =StatisticallySignificantCalcs!$J70 -> N
C72: Single Family Units | D72: =CntyDataLinkPrior10YearEstimate!$AT$108 -> 810 | E72: =CntyDataLinkPrior10YearEstimate!$AU$108 -> 79 | F72: =IF(D72="-","-",($D$72/$D$71)) -> 0.796460177 | G72: =CntyDataLinkPrior5YearEstimates!$AT$108 -> 784 | H72: =CntyDataLinkPrior5YearEstimates!$AU$108 -> 78 | I72: =IF(G72="-","-",($G$72/$G$71)) -> 0.8643880926 | J72: =CntyDataLink!$AT$108 -> 678 | K72: =CntyDataLink!$AU$108 -> 80 | L72: =IF(J72="-","-",($J$72/$J$71)) -> 0.7426067908 | M72: =IF(J72="-","-",($J72-$D72)/$D72) -> -0.162962963 | N72: =IF(J72="-","-",($J72-$G72)/$G72) -> -0.1352040816 | O72: =StatisticallySignificantCalcs!$A71 -> Y | P72: =StatisticallySignificantCalcs!$J71 -> N
C73: SF Owner Occ. | D73: =CntyDataLinkPrior10YearEstimate!$AF$108 -> 542 | E73: =CntyDataLinkPrior10YearEstimate!$AG$108 -> 78 | G73: =CntyDataLinkPrior5YearEstimates!$AF$108 -> 569 | H73: =CntyDataLinkPrior5YearEstimates!$AG$108 -> 69 | J73: =CntyDataLink!$AF$108 -> 435 | K73: =CntyDataLink!$AG$108 -> 73 | O73: =StatisticallySignificantCalcs!$A72 -> Y | P73: =StatisticallySignificantCalcs!$J72 -> Y
C74: SF Renter Occ. | D74: =CntyDataLinkPrior10YearEstimate!$AN$108 -> 60 | E74: =CntyDataLinkPrior10YearEstimate!$AO$108 -> 29 | G74: =CntyDataLinkPrior5YearEstimates!$AN$108 -> 90 | H74: =CntyDataLinkPrior5YearEstimates!$AO$108 -> 40 | J74: =CntyDataLink!$AN$108 -> 105 | K74: =CntyDataLink!$AO$108 -> 47 | O74: =StatisticallySignificantCalcs!$A73 -> N | P74: =StatisticallySignificantCalcs!$J73 -> N
C75: Multi-family Units | D75: =CntyDataLinkPrior10YearEstimate!$AV$108 -> 93 | E75: =CntyDataLinkPrior10YearEstimate!$AW$108 -> 203.3371584 | F75: =IF(D75="-","-",$D$75/$D$71) -> 0.09144542773 | G75: =CntyDataLinkPrior5YearEstimates!$AV$108 -> 66 | H75: =CntyDataLinkPrior5YearEstimates!$AW$108 -> 38.92300091 | I75: =IF(G75="-","-",$G$75/$G$71) -> 0.07276736494 | J75: =CntyDataLink!$AV$108 -> 84 | K75: =CntyDataLink!$AW$108 -> 46.24932432 | L75: =IF(J75="-","-",$J$75/$J$71) -> 0.09200438116 | M75: =IF(J75="-","-",($J75-$D75)/$D75) -> -0.09677419355 | N75: =IF(J75="-","-",($J75-$G75)/$G75) -> 0.2727272727 | O75: =StatisticallySignificantCalcs!$A74 -> N | P75: =StatisticallySignificantCalcs!$J74 -> N
C76: MF Owner Occ. | D76: =CntyDataLinkPrior10YearEstimate!$AH$108 -> 11 | E76: =CntyDataLinkPrior10YearEstimate!$AI$108 -> 255.1078203 | G76: =CntyDataLinkPrior5YearEstimates!$AH$108 -> 17 | H76: =CntyDataLinkPrior5YearEstimates!$AI$108 -> 31.85906464 | J76: =CntyDataLink!$AH$108 -> 9 | K76: =CntyDataLink!$AI$108 -> 26.05762844 | O76: =StatisticallySignificantCalcs!$A75 -> N | P76: =StatisticallySignificantCalcs!$J75 -> N
C77: MF Renter Occ. | D77: =CntyDataLinkPrior10YearEstimate!$AP$108 -> 72 | E77: =CntyDataLinkPrior10YearEstimate!$AQ$108 -> 233.1587442 | G77: =CntyDataLinkPrior5YearEstimates!$AP$108 -> 49 | H77: =CntyDataLinkPrior5YearEstimates!$AQ$108 -> 33.1662479 | J77: =CntyDataLink!$AP$108 -> 75 | K77: =CntyDataLink!$AQ$108 -> 45.32107677 | O77: =StatisticallySignificantCalcs!$A76 -> N | P77: =StatisticallySignificantCalcs!$J76 -> N
C78: Mobile Home & Other | D78: =CntyDataLinkPrior10YearEstimate!$AX$108 -> 114 | E78: =CntyDataLinkPrior10YearEstimate!$AY$108 -> 119.2518344 | F78: =IF(D78="-","-",($D$78/$D$71)) -> 0.1120943953 | G78: =CntyDataLinkPrior5YearEstimates!$AX$108 -> 57 | H78: =CntyDataLinkPrior5YearEstimates!$AY$108 -> 28.23118843 | I78: =IF(G78="-","-",($G$78/$G$71)) -> 0.06284454245 | J78: =CntyDataLink!$AX$108 -> 151 | K78: =CntyDataLink!$AY$108 -> 57.07013229 | L78: =IF(J78="-","-",($J$78/$J$71)) -> 0.165388828 | M78: =IF(J78="-","-",($J78-$D78)/$D78) -> 0.3245614035 | N78: =IF(J78="-","-",($J78-$G78)/$G78) -> 1.649122807 | O78: =StatisticallySignificantCalcs!$A77 -> N | P78: =StatisticallySignificantCalcs!$J77 -> Y
B80: Data from the American Community Survey are estimates
B83: Units by Number of Bedrooms
D84: ="Source: "& " "&D69&", "&G69&" and "&J69& " American Community Survey Table B25041" -> Source: 2005-2009, 2010-2014 and 2015-2019 American Community Survey Table B25041
C86: 2005-2009 | G86: 2010-2014 | K86: 2015-2019 | O86: Statistically Significant Change
B87: Bedrooms | C87: Estimate | D87: Margin of Error | E87: % of Total | G87: Estimate | H87: Margin of Error | I87: % of Total | K87: Estimate | L87: Margin of Error | M87: % of Total | O87: 2009-2019 | P87: 2014-2019
B88: No Bedrooms | C88: =CntyDataLinkPrior10YearEstimate!$BR$108 -> 12 | D88: =CntyDataLinkPrior10YearEstimate!$BS$108 -> 19 | E88: =C88/SUM($C$88:$C$92) -> 0.01179941003 | G88: =CntyDataLinkPrior5YearEstimates!$BR$108 -> 10 | H88: =CntyDataLinkPrior5YearEstimates!$BS$108 -> 9 | I88: =G88/SUM($G$88:$G$92) -> 0.01102535832 | K88: =CntyDataLink!$BT$108 -> 11 | L88: =CntyDataLink!$BU$108 -> 13 | M88: =K88/SUM($K$88:$K$92) -> 0.01204819277 | O88: =StatisticallySignificantCalcs!$A78 -> N | P88: =StatisticallySignificantCalcs!$J78 -> N
B89: 1 Bedroom | C89: =CntyDataLinkPrior10YearEstimate!$BT$108 -> 125 | D89: =CntyDataLinkPrior10YearEstimate!$BU$108 -> 54 | E89: =C89/SUM($C$88:$C$92) -> 0.1229105211 | G89: =CntyDataLinkPrior5YearEstimates!$BT$108 -> 118 | H89: =CntyDataLinkPrior5YearEstimates!$BU$108 -> 45 | I89: =G89/SUM($G$88:$G$92) -> 0.1300992282 | K89: =CntyDataLink!$BV$108 -> 149 | L89: =CntyDataLink!$BW$108 -> 58 | M89: =K89/SUM($K$88:$K$92) -> 0.1631982475 | O89: =StatisticallySignificantCalcs!$A79 -> Y | P89: =StatisticallySignificantCalcs!$J79 -> N
B90: 2 Bedrooms | C90: =CntyDataLinkPrior10YearEstimate!$BV$108 -> 342 | D90: =CntyDataLinkPrior10YearEstimate!$BW$108 -> 68 | E90: =C90/SUM($C$88:$C$92) -> 0.3362831858 | G90: =CntyDataLinkPrior5YearEstimates!$BV$108 -> 254 | H90: =CntyDataLinkPrior5YearEstimates!$BW$108 -> 60 | I90: =G90/SUM($G$88:$G$92) -> 0.2800441014 | K90: =CntyDataLink!$BX$108 -> 310 | L90: =CntyDataLink!$BY$108 -> 74 | M90: =K90/SUM($K$88:$K$92) -> 0.3395399781 | O90: =StatisticallySignificantCalcs!$A80 -> Y | P90: =StatisticallySignificantCalcs!$J80 -> N
B91: 3 Bedrooms | C91: =CntyDataLinkPrior10YearEstimate!$BX$108 -> 371 | D91: =CntyDataLinkPrior10YearEstimate!$BY$108 -> 65 | E91: =C91/SUM($C$88:$C$92) -> 0.3647984267 | G91: =CntyDataLinkPrior5YearEstimates!$BX$108 -> 300 | H91: =CntyDataLinkPrior5YearEstimates!$BY$108 -> 64 | I91: =G91/SUM($G$88:$G$92) -> 0.3307607497 | K91: =CntyDataLink!$BZ$108 -> 302 | L91: =CntyDataLink!$CA$108 -> 58 | M91: =K91/SUM($K$88:$K$92) -> 0.3307776561 | O91: =StatisticallySignificantCalcs!$A81 -> Y | P91: =StatisticallySignificantCalcs!$J81 -> N
B92: 4+ Bedrooms | C92: =CntyDataLinkPrior10YearEstimate!$BZ$108 -> 167 | D92: =CntyDataLinkPrior10YearEstimate!$CA$108 -> 51.97114584 | E92: =C92/SUM($C$88:$C$92) -> 0.1642084562 | G92: =CntyDataLinkPrior5YearEstimates!$BZ$108 -> 225 | H92: =CntyDataLinkPrior5YearEstimates!$CA$108 -> 69.77105417 | I92: =G92/SUM($G$88:$G$92) -> 0.2480705623 | K92: =CntyDataLink!$CB$108 -> 141 | L92: =CntyDataLink!$CC$108 -> 55.36244214 | M92: =K92/SUM($K$88:$K$92) -> 0.1544359255 | O92: =StatisticallySignificantCalcs!$A82 -> Y | P92: =StatisticallySignificantCalcs!$J82 -> N
B94: As a result of changes in the American Community Survey, direct comparisons between the 2009-2013 and 2015-2019 data should be made with caution.
B95: Data from the American Community Survey are estimates
B97: Units by Year Built
B98: ="Source: "&K86& " American Community Survey Table B25034" -> Source: 2015-2019 American Community Survey Table B25034
D100: Year Built | G100: Units | I100: % of Total | K100: Margin of Error
F101: 2014 or later | G101: =CntyDataLink!$AZ$108 -> 0 | I101: =G101/SUM($G$101:$G$110) -> 0 | K101: =CntyDataLink!$BA$108 -> 11
F102: 2010 through 2013 | G102: =CntyDataLink!$BB$108 -> 34 | I102: =G102/SUM($G$101:$G$110) -> 0.03723986857 | K102: =CntyDataLink!$BC$108 -> 17
F103: 2000 through 2009 | G103: =CntyDataLink!$BD$108 -> 214 | I103: 0.2343921139 | K103: =CntyDataLink!$BE$108 -> 69
F104: 1990 through 1999 | G104: =CntyDataLink!$BF$108 -> 88 | I104: 0.09638554217 | K104: =CntyDataLink!$BG$108 -> 35
F105: 1980 through 1989 | G105: =CntyDataLink!$BH$108 -> 125 | I105: 0.1369112815 | K105: =CntyDataLink!$BI$108 -> 41
F106: 1970 through 1979 | G106: =CntyDataLink!$BJ$108 -> 127 | I106: 0.139101862 | K106: =CntyDataLink!$BK$108 -> 59
F107: 1960 through 1969 | G107: =CntyDataLink!$BL$108 -> 84 | I107: 0.09200438116 | K107: =CntyDataLink!$BM$108 -> 47
F108: 1950 through 1959 | G108: =CntyDataLink!$BN$108 -> 45 | I108: 0.04928806134 | K108: =CntyDataLink!$BO$108 -> 19
F109: 1940 through 1949 | G109: =CntyDataLink!$BP$108 -> 10 | I109: 0.01095290252 | K109: =CntyDataLink!$BQ$108 -> 9
F110: 1939 and earlier | G110: =CntyDataLink!$BR$108 -> 186 | I110: 0.2037239869 | K110: =CntyDataLink!$BS$108 -> 53
B112: Data from the American Community Survey are estimates

Sheet CntyDataLink (hidden)
A1: 1 | B1: =A1+1 -> 2 | C1: =B1+1 -> 3 | D1: 4 | E1: 5 | F1: 6 | G1: 7 | H1: 8 | I1: 9 | J1: 10 | K1: 11 | L1: 12 | M1: 13 | N1: 14 | O1: 15 | P1: =O1+1 -> 16 | Q1: 17 | R1: 18 | S1: 19 | T1: 20 | U1: 21 | V1: 22 | W1: 23 | X1: 24 | Y1: 25 | Z1: 26 | AA1: 27 | AB1: 28 | AC1: 29 | AD1: 30 | AE1: 31 | AF1: 32 | AG1: 33 | AH1: 34 | AI1: 35 | AJ1: 36 | AK1: 37 | AL1: 38 | AM1: 39 | AN1: 40 | AO1: 41 | AP1: 42 | AQ1: 43 | AR1: 44 | AS1: 45 | AT1: 46 | AU1: 47 | AV1: 48 | AW1: 49 | AX1: 50 | AY1: 51 | AZ1: 52 | BA1: 53 | BB1: 54 | BC1: 55 | BD1: 56 | BE1: 57 | BF1: 58 | BG1: 59 | BH1: 60 | BI1: 61 | BJ1: 62 | BK1: 63 | BL1: 64 | BM1: 65 | BN1: 66 | BO1: =BN1+1 -> 67 | BP1: 68 | BQ1: 69 | BR1: 70 | BS1: 71 | BT1: 72 | BU1: 73 | BV1: 74 | BW1: 75 | BX1: 76 | BY1: 77 | BZ1: 78 | CA1: 79 | CB1: 80 | CC1: 81 | CD1: 82 | CE1: 83 | CF1: 84 | CG1: 85 | CH1: 86 | CI1: 87 | CJ1: 88 | CK1: 89 | CL1: 90 | CM1: 91 | CN1: 92 | CO1: 93 | CP1: 94 | CQ1: 95 | CR1: 96 | CS1: 97 | CT1: 98 | CU1: 99 | CV1: 100 | CW1: 101 | CX1: 102 | CY1: 103 | CZ1: 104 | DA1: 105 | DB1: 106 | DC1: 107 | DD1: 108 | DE1: 109 | DF1: 110 | DG1: 111 | DH1: 112 | DI1: 113 | DJ1: 114 | DK1: 115 | DL1: 116 | DM1: 117 | DN1: 118 | DO1: 119 | DP1: 120 | DQ1: 121 | DR1: 122 | DS1: 123 | DT1: 124 | DU1: 125 | DV1: 126 | DW1: 127 | DX1: 128 | DY1: 129 | DZ1: 130 | EA1: =DZ1+1 -> 131 | EB1: 132 | EC1: 133 | ED1: 134 | EE1: 135 | EF1: 136 | EG1: 137 | EH1: 138 | EI1: 139 | EJ1: 140 | EK1: 141 | EL1: 142 | EM1: 143 | EN1: 144 | EO1: 145 | EP1: 146 | EQ1: 147 | ER1: 148 | ES1: 149 | ET1: 150 | EU1: 151 | EV1: 152 | EW1: 153 | EX1: 154 | EY1: 155 | EZ1: 156 | FA1: 157 | FB1: 158 | FC1: 159 | FD1: 160 | FE1: 161 | FF1: 162 | FG1: 163 | FH1: 164 | FI1: 165 | FJ1: 166 | FK1: 167 | FL1: 168 | FM1: 169 | FN1: 170 | FO1: 171 | FP1: 172 | FQ1: 173 | FR1: 174 | FS1: 175 | FT1: 176 | FU1: 177 | FV1: 178 | FW1: 179 | FX1: 180 | FY1: 181 | FZ1: 182 | GA1: 183 | GB1: 184 | GC1: 185 | GD1: 186 | GE1: 187 | GF1: 188 | GG1: 189 | GH1: 190 | GI1: 191 | GJ1: 192 | GK1: 193 | GL1: 194 | GM1: =GL1+1 -> 195 | GN1: 196 | GO1: 197 | GP1: 198 | GQ1: 199 | GR1: 200 | GS1: 201 | GT1: 202 | GU1: 203 | GV1: 204 | GW1: 205 | GX1: 206 | GY1: 207 | GZ1: 208 | HA1: 209 | HB1: 210 | HC1: 211 | HD1: 212 | HE1: 213 | HF1: 214 | HG1: 215 | HH1: 216 | HI1: 217 | HJ1: 218 | HK1: 219 | HL1: 220 | HM1: 221 | HN1: 222 | HO1: 223 | HP1: 224 | HQ1: 225 | HR1: 226 | HS1: 227 | HT1: 228 | HU1: 229 | HV1: 230 | HW1: 231 | HX1: 232 | HY1: 233 | HZ1: 234 | IA1: 235 | IB1: 236 | IC1: 237 | ID1: 238 | IE1: 239 | IF1: 240 | IG1: 241 | IH1: 242 | II1: 243 | IJ1: 244 | IK1: 245 | IL1: 246 | IM1: 247 | IN1: 248 | IO1: 249 | IP1: 250 | IQ1: 251 | IR1: 252 | IS1: 253 | IT1: 254 | IU1: 255
A3: Census 1990 Data - Query Name: DPCnty90Census
A4: TownName | B4: Cnty_Code | C4: Census_Cnty_Code | D4: LandAcres | E4: WaterAcres | F4: HousingUnits90Cen | G4: Persons90Cen | H4: Families90Cen | I4: Households90cen | J4: MalePop90cen | K4: FemalePop90cen | L4: WhitePop | M4: BlackPop | N4: AmerIndianPop | O4: AsianPIPop | P4: OtherRacePop | Q4: HispanicOrPop | R4: AgeUnder15_90cen | S4: Age15to24_90cen | T4: Age25to34_90cen | U4: Age35to44_90cen | V4: Age45to54_90cen | W4: Age55to64_90cen | X4: Age65to74_90cen | Y4: Age75andOver_90cen | Z4: PersonsInHH90cen | AA4: PersonsInFamHH90cen | AB4: PersonsInGC | AC4: PersonsPerHH90cen | AD4: PersonsPerFam90Cen | AE4: SinglePersonHH90cen | AF4: MarriedCoupleHH90cen | AG4: SingleParentHH90cen | AH4: NonFamilyHH90cen | AI4: TotalHousingUnits | AJ4: OccupiedHousingUnits | AK4: VacantHousingUnits | AL4: OwnerOccHU | AM4: RenterOccHU | AN4: VacantForRent90 | AO4: VacantForSale90 | AP4: VacantSeasonalRec | AQ4: SingFamHU90cen | AR4: MultiFamHU90cen | AS4: MobileHom90cen | AT4: SingFamOwnHU90cen | AU4: MultiFamOwnHU90cen | AV4: MobileHomOwnHU90cen | AW4: SingFamRntrHU90cen | AX4: MultiFamRntrHU90cen | AY4: MobileHomRntrHU90cen | AZ4: HU<5yrs90cen | BA4: HU5to20yrs90cen | BB4: HU20to50yrs90cen | BC4: HU>50yrs90cen | BD4: Units0Bedroom90cen | BE4: Units1Bedroom90cen | BF4: Units2Bedroom90cen | BG4: Units3Bedroom90cen | BH4: Units4+Bedroom90cen | BI4: HI<5K | BJ4: HI5Kto10K | BK4: HI10Kto15K | BL4: HI15Kto25K | BM4: HI25Kto35K | BN4: HI35Kto50K | BO4: HI50Kto75K | BP4: HI75Kto100K | BQ4: HI>100K | BR4: MedHI | BS4: HH<25HI<5K | BT4: HH<25HI5Kto10K | BU4: HH<25HI10Kto15K | BV4: HH<25HI15Kto25K | BW4: HH<25HI25Kto35K | BX4: HH<25HI35Kto50K | BY4: HH<25HI50Kto75K | BZ4: HH<25HI75Kto100K | CA4: HH<25HI>100K | CB4: HH25to34HI<5K | CC4: HH25to34HI5Kto10K | CD4: HH25to34HI10Kto15K | CE4: HH25to34HI15Kto25K | CF4: HH25to34HI25Kto35K | CG4: HH25to34HI35Kto50K | CH4: HH25to34HI50Kto75K | CI4: HH25to34HI75Kto100K | CJ4: HH25to34HI>100K | CK4: HH35to44HI<5K | CL4: HH35to44HI5Kto10K | CM4: HH35to44HI10Kto15K | CN4: HH35to44HI15Kto25K | CO4: HH35to44HI25Kto35K | CP4: HH35to44HI35Kto50K | CQ4: HH35to44HI50Kto75K | CR4: HH35to44HI75Kto100K | CS4: HH35to44HI>100K | CT4: HH45to54HI<5K | CU4: HH45to54HI5Kto10K | CV4: HH45to54HI10Kto15K | CW4: HH45to54HI15Kto25K | CX4: HH45to54HI25Kto35K | CY4: HH45to54HI35Kto50K | CZ4: HH45to54HI50Kto75K | DA4: HH45to54HI75Kto100K | DB4: HH45to54HI>100K | DC4: HH55to64HI<5K | DD4: HH55to64HI5Kto10K | DE4: HH55to64HI10Kto15K | DF4: HH55to64HI15Kto25K | DG4: HH55to64HI25Kto35K | DH4: HH55to64HI35Kto50K | DI4: HH55to64HI50Kto75K | DJ4: HH55to64HI75Kto100K | DK4: HH55to64HI>100K | DL4: HH65to74HI<5K | DM4: HH65to74HI5Kto10K | DN4: HH65to74HI10Kto15K | DO4: HH65to74HI15Kto25K | DP4: HH65to74HI25Kto35K | DQ4: HH65to74HI35Kto50K | DR4: HH65to74HI50Kto75K | DS4: HH65to74HI75Kto100K | DT4: HH65to74HI>100K | DU4: HH>75HI<5K | DV4: HH>75HI5Kto10K | DW4: HH>75HI10Kto15K | DX4: HH>75HI15Kto25K | DY4: HH>75HI25Kto35K | DZ4: HH>75HI35Kto50K | EA4: HH>75HI50Kto75K | EB4: HH>75HI75Kto100K | EC4: HH>75HI>100K | ED4: SchoolEnrollment1thru12 | EE4: Pop25andOver | EF4: HSGradorHigher | EG4: CollGradorHigher | EH4: NativePop | EI4: ForeignBornPop | EJ4: BornStateOfRes | EK4: NativePop2 | EL4: ForeignBornPop2 | EM4: DroveAlone | EN4: CarPooled | EO4: PublicTranspt | EP4: Walked | EQ4: OtherMeans | ER4: WorkedAtHome | ES4: HHInc<10K | ET4: HHInc10to15K | EU4: HHInc15to25K | EV4: HHInc25to35K | EW4: HHInc35to50K | EX4: HHInc50to75K | EY4: HHInc75to100K | EZ4: HHInc100to150K | FA4: HHInc>150K
A5: =VLOOKUP(DropDownList!$A$27,CntyQuery!$A$4:$FI$26,A1) -> Alstead | B5: =VLOOKUP(DropDownList!$A$27,CntyQuery!$A$4:$FI$26,B1) -> 5005 | C5: =VLOOKUP(DropDownList!$A$27,CntyQuery!$A$4:$FI$26,C1) -> 00820 | D5: =VLOOKUP(DropDownList!$A$27,CntyQuery!$A$4:$FI$26,D1) -> 24943.55 | E5: =VLOOKUP(DropDownList!$A$27,CntyQuery!$A$4:$FI$26,E1) -> 267.3 | F5: =VLOOKUP(DropDownList!$A$27,CntyQuery!$A$4:$FI$26,F1) -> 843 | G5: =VLOOKUP(DropDownList!$A$27,CntyQuery!$A$4:$FI$26,G1) -> 1721 | H5: =VLOOKUP(DropDownList!$A$27,CntyQuery!$A$4:$FI$26,H1) -> 478 | I5: =VLOOKUP(DropDownList!$A$27,CntyQuery!$A$4:$FI$26,I1) -> 654 | J5: =VLOOKUP(DropDownList!$A$27,CntyQuery!$A$4:$FI$26,J1) -> 850 | K5: =VLOOKUP(DropDownList!$A$27,CntyQuery!$A$4:$FI$26,K1) -> 871 | L5: =VLOOKUP(DropDownList!$A$27,CntyQuery!$A$4:$FI$26,L1) -> 1713 | M5: =VLOOKUP(DropDownList!$A$27,CntyQuery!$A$4:$FI$26,M1) -> 1 | N5: =VLOOKUP(DropDownList!$A$27,CntyQuery!$A$4:$FI$26,N1) -> 4 | O5: =VLOOKUP(DropDownList!$A$27,CntyQuery!$A$4:$FI$26,O1) -> 3 | P5: =VLOOKUP(DropDownList!$A$27,CntyQuery!$A$4:$FI$26,P1) -> 0 | Q5: =VLOOKUP(DropDownList!$A$27,CntyQuery!$A$4:$FI$26,Q1) -> 8 | R5: =VLOOKUP(DropDownList!$A$27,CntyQuery!$A$4:$FI$26,R1) -> 397 | S5: =VLOOKUP(DropDownList!$A$27,CntyQuery!$A$4:$FI$26,S1) -> 185 | T5: =VLOOKUP(DropDownList!$A$27,CntyQuery!$A$4:$FI$26,T1) -> 293 | U5: =VLOOKUP(DropDownList!$A$27,CntyQuery!$A$4:$FI$26,U1) -> 312 | V5: =VLOOKUP(DropDownList!$A$27,CntyQuery!$A$4:$FI$26,V1) -> 188 | W5: =VLOOKUP(DropDownList!$A$27,CntyQuery!$A$4:$FI$26,W1) -> 152 | X5: =VLOOKUP(DropDownList!$A$27,CntyQuery!$A$4:$FI$26,X1) -> 122 | Y5: =VLOOKUP(DropDownList!$A$27,CntyQuery!$A$4:$FI$26,Y1) -> 72 | Z5: =VLOOKUP(DropDownList!$A$27,CntyQuery!$A$4:$FI$26,Z1) -> 1721 | AA5: =VLOOKUP(DropDownList!$A$27,CntyQuery!$A$4:$FI$26,AA1) -> 1486 | AB5: =VLOOKUP(DropDownList!$A$27,CntyQuery!$A$4:$FI$26,AB1) -> 0 | AC5: =VLOOKUP(DropDownList!$A$27,CntyQuery!$A$4:$FI$26,AC1) -> 2.631498471 | AD5: =VLOOKUP(DropDownList!$A$27,CntyQuery!$A$4:$FI$26,AD1) -> 3.108786611 | AE5: =VLOOKUP(DropDownList!$A$27,CntyQuery!$A$4:$FI$26,AE1) -> 128 | AF5: =VLOOKUP(DropDownList!$A$27,CntyQuery!$A$4:$FI$26,AF1) -> 407 | AG5: =VLOOKUP(DropDownList!$A$27,CntyQuery!$A$4:$FI$26,AG1) -> 71 | AH5: =VLOOKUP(DropDownList!$A$27,CntyQuery!$A$4:$FI$26,AH1) -> 48 | AI5: =VLOOKUP(DropDownList!$A$27,CntyQuery!$A$4:$FI$26,AI1) -> 843 | AJ5: =VLOOKUP(DropDownList!$A$27,CntyQuery!$A$4:$FI$26,AJ1) -> 654 | AK5: =VLOOKUP(DropDownList!$A$27,CntyQuery!$A$4:$FI$26,AK1) -> 189 | AL5: =VLOOKUP(DropDownList!$A$27,CntyQuery!$A$4:$FI$26,AL1) -> 526 | AM5: =VLOOKUP(DropDownList!$A$27,CntyQuery!$A$4:$FI$26,AM1) -> 128 | AN5: =VLOOKUP(DropDownList!$A$27,CntyQuery!$A$4:$FI$26,AN1) -> 8 | AO5: =VLOOKUP(DropDownList!$A$27,CntyQuery!$A$4:$FI$26,AO1) -> 8 | AP5: =VLOOKUP(DropDownList!$A$27,CntyQuery!$A$4:$FI$26,AP1) -> 135 | AQ5: =VLOOKUP(DropDownList!$A$27,CntyQuery!$A$4:$FI$26,AQ1) -> 644 | AR5: =VLOOKUP(DropDownList!$A$27,CntyQuery!$A$4:$FI$26,AR1) -> 73 | AS5: =VLOOKUP(DropDownList!$A$27,CntyQuery!$A$4:$FI$26,AS1) -> 126 | AT5: =VLOOKUP(DropDownList!$A$27,CntyQuery!$A$4:$FI$26,AT1) -> 430 | AU5: =VLOOKUP(DropDownList!$A$27,CntyQuery!$A$4:$FI$26,AU1) -> 14 | AV5: =VLOOKUP(DropDownList!$A$27,CntyQuery!$A$4:$FI$26,AV1) -> 126 | AW5: =VLOOKUP(DropDownList!$A$27,CntyQuery!$A$4:$FI$26,AW1) -> 58 | AX5: =VLOOKUP(DropDownList!$A$27,CntyQuery!$A$4:$FI$26,AX1) -> 49 | AY5: =VLOOKUP(DropDownList!$A$27,CntyQuery!$A$4:$FI$26,AY1) -> 21 | AZ5: =VLOOKUP(DropDownList!$A$27,CntyQuery!$A$4:$FI$26,AZ1) -> 108 | BA5: =VLOOKUP(DropDownList!$A$27,CntyQuery!$A$4:$FI$26,BA1) -> 189 | BB5: =VLOOKUP(DropDownList!$A$27,CntyQuery!$A$4:$FI$26,BB1) -> 192 | BC5: =VLOOKUP(DropDownList!$A$27,CntyQuery!$A$4:$FI$26,BC1) -> 354 | BD5: =VLOOKUP(DropDownList!$A$27,CntyQuery!$A$4:$FI$26,BD1) -> 22 | BE5: =VLOOKUP(DropDownList!$A$27,CntyQuery!$A$4:$FI$26,BE1) -> 122 | BF5: =VLOOKUP(DropDownList!$A$27,CntyQuery!$A$4:$FI$26,BF1) -> 287 | BG5: =VLOOKUP(DropDownList!$A$27,CntyQuery!$A$4:$FI$26,BG1) -> 266 | BH5: =VLOOKUP(DropDownList!$A$27,CntyQuery!$A$4:$FI$26,BH1) -> 146 | BI5: =VLOOKUP(DropDownList!$A$27,CntyQuery!$A$4:$FI$26,BI1) -> 9 | BJ5: =VLOOKUP(DropDownList!$A$27,CntyQuery!$A$4:$FI$26,BJ1) -> 30 | BK5: =VLOOKUP(DropDownList!$A$27,CntyQuery!$A$4:$FI$26,BK1) -> 82 | BL5: =VLOOKUP(DropDownList!$A$27,CntyQuery!$A$4:$FI$26,BL1) -> 128 | BM5: =VLOOKUP(DropDownList!$A$27,CntyQuery!$A$4:$FI$26,BM1) -> 148 | BN5: =VLOOKUP(DropDownList!$A$27,CntyQuery!$A$4:$FI$26,BN1) -> 106 | BO5: =VLOOKUP(DropDownList!$A$27,CntyQuery!$A$4:$FI$26,BO1) -> 117 | BP5: =VLOOKUP(DropDownList!$A$27,CntyQuery!$A$4:$FI$26,BP1) -> 24 | BQ5: =VLOOKUP(DropDownList!$A$27,CntyQuery!$A$4:$FI$26,BQ1) -> 8 | BR5: =VLOOKUP(DropDownList!$A$27,CntyQuery!$A$4:$FI$26,BR1) -> 30956 | BS5: =VLOOKUP(DropDownList!$A$27,CntyQuery!$A$4:$FI$26,BS1) -> 2 | BT5: =VLOOKUP(DropDownList!$A$27,CntyQuery!$A$4:$FI$26,BT1) -> 4 | BU5: =VLOOKUP(DropDownList!$A$27,CntyQuery!$A$4:$FI$26,BU1) -> 4 | BV5: =VLOOKUP(DropDownList!$A$27,CntyQuery!$A$4:$FI$26,BV1) -> 9 | BW5: =VLOOKUP(DropDownList!$A$27,CntyQuery!$A$4:$FI$26,BW1) -> 11 | BX5: =VLOOKUP(DropDownList!$A$27,CntyQuery!$A$4:$FI$26,BX1) -> 2 | BY5: =VLOOKUP(DropDownList!$A$27,CntyQuery!$A$4:$FI$26,BY1) -> 4 | BZ5: =VLOOKUP(DropDownList!$A$27,CntyQuery!$A$4:$FI$26,BZ1) -> 4 | CA5: =VLOOKUP(DropDownList!$A$27,CntyQuery!$A$4:$FI$26,CA1) -> 0 | CB5: =VLOOKUP(DropDownList!$A$27,CntyQuery!$A$4:$FI$26,CB1) -> 0 | CC5: =VLOOKUP(DropDownList!$A$27,CntyQuery!$A$4:$FI$26,CC1) -> 0 | CD5: =VLOOKUP(DropDownList!$A$27,CntyQuery!$A$4:$FI$26,CD1) -> 10 | CE5: =VLOOKUP(DropDownList!$A$27,CntyQuery!$A$4:$FI$26,CE1) -> 27 | CF5: =VLOOKUP(DropDownList!$A$27,CntyQuery!$A$4:$FI$26,CF1) -> 56 | CG5: =VLOOKUP(DropDownList!$A$27,CntyQuery!$A$4:$FI$26,CG1) -> 28 | CH5: =VLOOKUP(DropDownList!$A$27,CntyQuery!$A$4:$FI$26,CH1) -> 29 | CI5: =VLOOKUP(DropDownList!$A$27,CntyQuery!$A$4:$FI$26,CI1) -> 0 | CJ5: =VLOOKUP(DropDownList!$A$27,CntyQuery!$A$4:$FI$26,CJ1) -> 0 | CK5: =VLOOKUP(DropDownList!$A$27,CntyQuery!$A$4:$FI$26,CK1) -> 0 | CL5: =VLOOKUP(DropDownList!$A$27,CntyQuery!$A$4:$FI$26,CL1) -> 3 | CM5: =VLOOKUP(DropDownList!$A$27,CntyQuery!$A$4:$FI$26,CM1) -> 17 | CN5: =VLOOKUP(DropDownList!$A$27,CntyQuery!$A$4:$FI$26,CN1) -> 15 | CO5: =VLOOKUP(DropDownList!$A$27,CntyQuery!$A$4:$FI$26,CO1) -> 40 | CP5: =VLOOKUP(DropDownList!$A$27,CntyQuery!$A$4:$FI$26,CP1) -> 50 | CQ5: =VLOOKUP(DropDownList!$A$27,CntyQuery!$A$4:$FI$26,CQ1) -> 34 | CR5: =VLOOKUP(DropDownList!$A$27,CntyQuery!$A$4:$FI$26,CR1) -> 4 | CS5: =VLOOKUP(DropDownList!$A$27,CntyQuery!$A$4:$FI$26,CS1) -> 0 | CT5: =VLOOKUP(DropDownList!$A$27,CntyQuery!$A$4:$FI$26,CT1) -> 2 | CU5: =VLOOKUP(DropDownList!$A$27,CntyQuery!$A$4:$FI$26,CU1) -> 0 | CV5: =VLOOKUP(DropDownList!$A$27,CntyQuery!$A$4:$FI$26,CV1) -> 4 | CW5: =VLOOKUP(DropDownList!$A$27,CntyQuery!$A$4:$FI$26,CW1) -> 17 | CX5: =VLOOKUP(DropDownList!$A$27,CntyQuery!$A$4:$FI$26,CX1) -> 15 | CY5: =VLOOKUP(DropDownList!$A$27,CntyQuery!$A$4:$FI$26,CY1) -> 11 | CZ5: =VLOOKUP(DropDownList!$A$27,CntyQuery!$A$4:$FI$26,CZ1) -> 34 | DA5: =VLOOKUP(DropDownList!$A$27,CntyQuery!$A$4:$FI$26,DA1) -> 11 | DB5: =VLOOKUP(DropDownList!$A$27,CntyQuery!$A$4:$FI$26,DB1) -> 4 | DC5: =VLOOKUP(DropDownList!$A$27,CntyQuery!$A$4:$FI$26,DC1) -> 0 | DD5: =VLOOKUP(DropDownList!$A$27,CntyQuery!$A$4:$FI$26,DD1) -> 4 | DE5: =VLOOKUP(DropDownList!$A$27,CntyQuery!$A$4:$FI$26,DE1) -> 12 | DF5: =VLOOKUP(DropDownList!$A$27,CntyQuery!$A$4:$FI$26,DF1) -> 26 | DG5: =VLOOKUP(DropDownList!$A$27,CntyQuery!$A$4:$FI$26,DG1) -> 11 | DH5: =VLOOKUP(DropDownList!$A$27,CntyQuery!$A$4:$FI$26,DH1) -> 12 | DI5: =VLOOKUP(DropDownList!$A$27,CntyQuery!$A$4:$FI$26,DI1) -> 12 | DJ5: =VLOOKUP(DropDownList!$A$27,CntyQuery!$A$4:$FI$26,DJ1) -> 2 | DK5: =VLOOKUP(DropDownList!$A$27,CntyQuery!$A$4:$FI$26,DK1) -> 2 | DL5: =VLOOKUP(DropDownList!$A$27,CntyQuery!$A$4:$FI$26,DL1) -> 2 | DM5: =VLOOKUP(DropDownList!$A$27,CntyQuery!$A$4:$FI$26,DM1) -> 2 | DN5: =VLOOKUP(DropDownList!$A$27,CntyQuery!$A$4:$FI$26,DN1) -> 16 | DO5: =VLOOKUP(DropDownList!$A$27,CntyQuery!$A$4:$FI$26,DO1) -> 31 | DP5: =VLOOKUP(DropDownList!$A$27,CntyQuery!$A$4:$FI$26,DP1) -> 13 | DQ5: =VLOOKUP(DropDownList!$A$27,CntyQuery!$A$4:$FI$26,DQ1) -> 0 | DR5: =VLOOKUP(DropDownList!$A$27,CntyQuery!$A$4:$FI$26,DR1) -> 4 | DS5: =VLOOKUP(DropDownList!$A$27,CntyQuery!$A$4:$FI$26,DS1) -> 3 | DT5: =VLOOKUP(DropDownList!$A$27,CntyQuery!$A$4:$FI$26,DT1) -> 2 | DU5: =VLOOKUP(DropDownList!$A$27,CntyQuery!$A$4:$FI$26,DU1) -> 3 | DV5: =VLOOKUP(DropDownList!$A$27,CntyQuery!$A$4:$FI$26,DV1) -> 17 | DW5: =VLOOKUP(DropDownList!$A$27,CntyQuery!$A$4:$FI$26,DW1) -> 19 | DX5: =VLOOKUP(DropDownList!$A$27,CntyQuery!$A$4:$FI$26,DX1) -> 3 | DY5: =VLOOKUP(DropDownList!$A$27,CntyQuery!$A$4:$FI$26,DY1) -> 2 | DZ5: =VLOOKUP(DropDownList!$A$27,CntyQuery!$A$4:$FI$26,DZ1) -> 3 | EA5: =VLOOKUP(DropDownList!$A$27,CntyQuery!$A$4:$FI$26,EA1) -> 0 | EB5: =VLOOKUP(DropDownList!$A$27,CntyQuery!$A$4:$FI$26,EB1) -> 0 | EC5: =VLOOKUP(DropDownList!$A$27,CntyQuery!$A$4:$FI$26,EC1) -> 0 | ED5: =VLOOKUP(DropDownList!$A$27,CntyQuery!$A$4:$FI$26,ED1) -> 275 | EE5: =VLOOKUP(DropDownList!$A$27,CntyQuery!$A$4:$FI$26,EE1) -> 1139 | EF5: =VLOOKUP(DropDownList!$A$27,CntyQuery!$A$4:$FI$26,EF1) -> 916 | EG5: =VLOOKUP(DropDownList!$A$27,CntyQuery!$A$4:$FI$26,EG1) -> 274 | EH5: =VLOOKUP(DropDownList!$A$27,CntyQuery!$A$4:$FI$26,EH1) -> 1686 | EI5: =VLOOKUP(DropDownList!$A$27,CntyQuery!$A$4:$FI$26,EI1) -> 35 | EJ5: =VLOOKUP(DropDownList!$A$27,CntyQuery!$A$4:$FI$26,EJ1) -> 671 | EK5: =VLOOKUP(DropDownList!$A$27,CntyQuery!$A$4:$FI$26,EK1) -> 1686 | EL5: =VLOOKUP(DropDownList!$A$27,CntyQuery!$A$4:$FI$26,EL1) -> 35 | EM5: =VLOOKUP(DropDownList!$A$27,CntyQuery!$A$4:$FI$26,EM1) -> 681 | EN5: =VLOOKUP(DropDownList!$A$27,CntyQuery!$A$4:$FI$26,EN1) -> 89 | EO5: =VLOOKUP(DropDownList!$A$27,CntyQuery!$A$4:$FI$26,EO1) -> 1 | EP5: =VLOOKUP(DropDownList!$A$27,CntyQuery!$A$4:$FI$26,EP1) -> 12 | EQ5: =VLOOKUP(DropDownList!$A$27,CntyQuery!$A$4:$FI$26,EQ1) -> 15 | ER5: =VLOOKUP(DropDownList!$A$27,CntyQuery!$A$4:$FI$26,ER1) -> 50 | ES5: =VLOOKUP(DropDownList!$A$27,CntyQuery!$A$4:$FI$26,ES1) -> 39 | ET5: =VLOOKUP(DropDownList!$A$27,CntyQuery!$A$4:$FI$26,ET1) -> 82 | EU5: =VLOOKUP(DropDownList!$A$27,CntyQuery!$A$4:$FI$26,EU1) -> 128 | EV5: =VLOOKUP(DropDownList!$A$27,CntyQuery!$A$4:$FI$26,EV1) -> 148 | EW5: =VLOOKUP(DropDownList!$A$27,CntyQuery!$A$4:$FI$26,EW1) -> 106 | EX5: =VLOOKUP(DropDownList!$A$27,CntyQuery!$A$4:$FI$26,EX1) -> 117 | EY5: =VLOOKUP(DropDownList!$A$27,CntyQuery!$A$4:$FI$26,EY1) -> 24 | EZ5: =VLOOKUP(DropDownList!$A$27,CntyQuery!$A$4:$FI$26,EZ1) -> 4 | FA5: =VLOOKUP(DropDownList!$A$27,CntyQuery!$A$4:$FI$26,FA1) -> 4
A8: Census 1990 Data - Query Name: TownSTF1Qry1
A9: NAME | B9: COUSUBFP | C9: Census_Cnty_Code | D9: FIPS | E9: LandAcres | F9: WaterAcres | G9: HousingUnits90Cen | H9: P01Persons90Cen | I9: P02Families90Cen | J9: P03Households90cen | K9: P05MalePop90cen | L9: P05FemalePop90cen | M9: P06WhitePop | N9: P06BlackPop | O9: P06AmerIndianPop | P9: P06AsianPIPop | Q9: P06OtherRacePop | R9: P08HispanicOrPop | S9: P11AgeUnder15_90cen | T9: P11Age15to24_90cen | U9: P11Age25to34_90cen | V9: P11Age35to44_90cen | W9: P11Age45to54_90cen | X9: P11Age55to64_90cen | Y9: P11Age65to74_90cen | Z9: P11Age75andOver_90cen | AA9: P15PersonsInHH90cen | AB9: P15PersonsInFamHH90cen | AC9: P15PersonsInGC | AD9: PersonsPerHH90cen | AE9: PersonsPerFam90Cen | AF9: P16SinglePersonHH90cen | AG9: P16MarriedCoupleHH90cen | AH9: P16SingleParentHH90cen | AI9: P16NonFamilyHH90cen | AJ9: H01TotalHousingUnits | AK9: H02OccupiedHousingUnits | AL9: H02VacantHousingUnits | AM9: H03OwnerOccHU | AN9: H03RenterOccHU | AO9: H05VacantForRent90 | AP9: H05VacantForSale90 | AQ9: H05VacantSeasonalRec | AR9: H23OOHUVal<15k | AS9: H23OOHUVal15to19k | AT9: H23OOHUVal20to24k | AU9: H23OOHUVal25to29k | AV9: H23OOHUVal30to34k | AW9: H23OOHUVal35to39k | AX9: H23OOHUVal40to44k | AY9: H23OOHUVal45to49k | AZ9: H23OOHUVal50to59k | BA9: H23OOHUVal60to74k | BB9: H23OOHUVal75to99k | BC9: H23OOHUVal100to124k | BD9: H23OOHUVal125to149k | BE9: H23OOHUVal150to174k | BF9: H23OOHUVal175to199k | BG9: H23OOHUVal200to249k | BH9: H23OOHUVal250to299k | BI9: H23OOHUVal300to399k | BJ9: H23OOHUVal400to499k | BK9: H23OOHUVal500kOrMore | BL9: H23BOOHUMedVal | BM9: H41SingFamHU90cen | BN9: H41MultiFamHU90cen | BO9: H41MobileHom90cen | BP9: H43SingFamOwnHU90cen | BQ9: H43MultiFamOwnHU90cen | BR9: H43MobileHomOwnHU90cen | BS9: H43SingFamRntrHU90cen | BT9: H43MultiFamRntrHU90cen | BU9: H43MobileHomRntrHU90cen | BV9: H41HU1UnitDet | BW9: H41HU1UnitAtt | BX9: H41HU2Unit | BY9: H41HU3to4Unit | BZ9: H41HU5to9Unit | CA9: H41HU10to19Unit | CB9: H41HU20to49Unit | CC9: H41HU50PlusUnit | CD9: H41HUMobilH | CE9: H41HUOther
A10: =VLOOKUP(DropDownList!$B$27,CntyQuery!$A$31:$CE$53,A$1) -> Alstead | B10: =VLOOKUP(DropDownList!$B$27,CntyQuery!$A$31:$CE$53,B$1) -> 301 | C10: =VLOOKUP(DropDownList!$B$27,CntyQuery!$A$31:$CE$53,C$1) -> 5005 | D10: =VLOOKUP(DropDownList!$B$27,CntyQuery!$A$31:$CE$53,D$1) -> 00820 | E10: =VLOOKUP(DropDownList!$B$27,CntyQuery!$A$31:$CE$53,E$1) -> 24943.55 | F10: =VLOOKUP(DropDownList!$B$27,CntyQuery!$A$31:$CE$53,F$1) -> 267.3 | G10: =VLOOKUP(DropDownList!$B$27,CntyQuery!$A$31:$CE$53,G$1) -> 843 | H10: =VLOOKUP(DropDownList!$B$27,CntyQuery!$A$31:$CE$53,H$1) -> 1721 | I10: =VLOOKUP(DropDownList!$B$27,CntyQuery!$A$31:$CE$53,I$1) -> 478 | J10: =VLOOKUP(DropDownList!$B$27,CntyQuery!$A$31:$CE$53,J$1) -> 654 | K10: =VLOOKUP(DropDownList!$B$27,CntyQuery!$A$31:$CE$53,K$1) -> 850 | L10: =VLOOKUP(DropDownList!$B$27,CntyQuery!$A$31:$CE$53,L$1) -> 871 | M10: =VLOOKUP(DropDownList!$B$27,CntyQuery!$A$31:$CE$53,M$1) -> 1713 | N10: =VLOOKUP(DropDownList!$B$27,CntyQuery!$A$31:$CE$53,N$1) -> 1 | O10: =VLOOKUP(DropDownList!$B$27,CntyQuery!$A$31:$CE$53,O$1) -> 4 | P10: =VLOOKUP(DropDownList!$B$27,CntyQuery!$A$31:$CE$53,P$1) -> 3 | Q10: =VLOOKUP(DropDownList!$B$27,CntyQuery!$A$31:$CE$53,Q$1) -> 0 | R10: =VLOOKUP(DropDownList!$B$27,CntyQuery!$A$31:$CE$53,R$1) -> 8 | S10: =VLOOKUP(DropDownList!$B$27,CntyQuery!$A$31:$CE$53,S$1) -> 397 | T10: =VLOOKUP(DropDownList!$B$27,CntyQuery!$A$31:$CE$53,T$1) -> 185 | U10: =VLOOKUP(DropDownList!$B$27,CntyQuery!$A$31:$CE$53,U$1) -> 293 | V10: =VLOOKUP(DropDownList!$B$27,CntyQuery!$A$31:$CE$53,V$1) -> 312 | W10: =VLOOKUP(DropDownList!$B$27,CntyQuery!$A$31:$CE$53,W$1) -> 188 | X10: =VLOOKUP(DropDownList!$B$27,CntyQuery!$A$31:$CE$53,X$1) -> 152 | Y10: =VLOOKUP(DropDownList!$B$27,CntyQuery!$A$31:$CE$53,Y$1) -> 122 | Z10: =VLOOKUP(DropDownList!$B$27,CntyQuery!$A$31:$CE$53,Z$1) -> 72 | AA10: =VLOOKUP(DropDownList!$B$27,CntyQuery!$A$31:$CE$53,AA$1) -> 1721 | AB10: =VLOOKUP(DropDownList!$B$27,CntyQuery!$A$31:$CE$53,AB$1) -> 1486 | AC10: =VLOOKUP(DropDownList!$B$27,CntyQuery!$A$31:$CE$53,AC$1) -> 0 | AD10: =VLOOKUP(DropDownList!$B$27,CntyQuery!$A$31:$CE$53,AD$1) -> 2.631498471 | AE10: =VLOOKUP(DropDownList!$B$27,CntyQuery!$A$31:$CE$53,AE$1) -> 3.108786611 | AF10: =VLOOKUP(DropDownList!$B$27,CntyQuery!$A$31:$CE$53,AF$1) -> 128 | AG10: =VLOOKUP(DropDownList!$B$27,CntyQuery!$A$31:$CE$53,AG$1) -> 407 | AH10: =VLOOKUP(DropDownList!$B$27,CntyQuery!$A$31:$CE$53,AH$1) -> 71 | AI10: =VLOOKUP(DropDownList!$B$27,CntyQuery!$A$31:$CE$53,AI$1) -> 48 | AJ10: =VLOOKUP(DropDownList!$B$27,CntyQuery!$A$31:$CE$53,AJ$1) -> 843 | AK10: =VLOOKUP(DropDownList!$B$27,CntyQuery!$A$31:$CE$53,AK$1) -> 654 | AL10: =VLOOKUP(DropDownList!$B$27,CntyQuery!$A$31:$CE$53,AL$1) -> 189 | AM10: =VLOOKUP(DropDownList!$B$27,CntyQuery!$A$31:$CE$53,AM$1) -> 526 | AN10: =VLOOKUP(DropDownList!$B$27,CntyQuery!$A$31:$CE$53,AN$1) -> 128 | AO10: =VLOOKUP(DropDownList!$B$27,CntyQuery!$A$31:$CE$53,AO$1) -> 8 | AP10: =VLOOKUP(DropDownList!$B$27,CntyQuery!$A$31:$CE$53,AP$1) -> 8 | AQ10: =VLOOKUP(DropDownList!$B$27,CntyQuery!$A$31:$CE$53,AQ$1) -> 135 | AR10: =VLOOKUP(DropDownList!$B$27,CntyQuery!$A$31:$CE$53,AR$1) -> 2 | AS10: =VLOOKUP(DropDownList!$B$27,CntyQuery!$A$31:$CE$53,AS$1) -> 0 | AT10: =VLOOKUP(DropDownList!$B$27,CntyQuery!$A$31:$CE$53,AT$1) -> 6 | AU10: =VLOOKUP(DropDownList!$B$27,CntyQuery!$A$31:$CE$53,AU$1) -> 3 | AV10: =VLOOKUP(DropDownList!$B$27,CntyQuery!$A$31:$CE$53,AV$1) -> 4 | AW10: =VLOOKUP(DropDownList!$B$27,CntyQuery!$A$31:$CE$53,AW$1) -> 5 | AX10: =VLOOKUP(DropDownList!$B$27,CntyQuery!$A$31:$CE$53,AX$1) -> 6 | AY10: =VLOOKUP(DropDownList!$B$27,CntyQuery!$A$31:$CE$53,AY$1) -> 10 | AZ10: =VLOOKUP(DropDownList!$B$27,CntyQuery!$A$31:$CE$53,AZ$1) -> 22 | BA10: =VLOOKUP(DropDownList!$B$27,CntyQuery!$A$31:$CE$53,BA$1) -> 31 | BB10: =VLOOKUP(DropDownList!$B$27,CntyQuery!$A$31:$CE$53,BB$1) -> 58 | BC10: =VLOOKUP(DropDownList!$B$27,CntyQuery!$A$31:$CE$53,BC$1) -> 44 | BD10: =VLOOKUP(DropDownList!$B$27,CntyQuery!$A$31:$CE$53,BD$1) -> 28 | BE10: =VLOOKUP(DropDownList!$B$27,CntyQuery!$A$31:$CE$53,BE$1) -> 22 | BF10: =VLOOKUP(DropDownList!$B$27,CntyQuery!$A$31:$CE$53,BF$1) -> 12 | BG10: =VLOOKUP(DropDownList!$B$27,CntyQuery!$A$31:$CE$53,BG$1) -> 6 | BH10: =VLOOKUP(DropDownList!$B$27,CntyQuery!$A$31:$CE$53,BH$1) -> 1 | BI10: =VLOOKUP(DropDownList!$B$27,CntyQuery!$A$31:$CE$53,BI$1) -> 2 | BJ10: =VLOOKUP(DropDownList!$B$27,CntyQuery!$A$31:$CE$53,BJ$1) -> 0 | BK10: =VLOOKUP(DropDownList!$B$27,CntyQuery!$A$31:$CE$53,BK$1) -> 1 | BL10: =VLOOKUP(DropDownList!$B$27,CntyQuery!$A$31:$CE$53,BL$1) -> 93300 | BM10: =VLOOKUP(DropDownList!$B$27,CntyQuery!$A$31:$CE$53,BM$1) -> 644 | BN10: =VLOOKUP(DropDownList!$B$27,CntyQuery!$A$31:$CE$53,BN$1) -> 73 | BO10: =VLOOKUP(DropDownList!$B$27,CntyQuery!$A$31:$CE$53,BO$1) -> 126 | BP10: =VLOOKUP(DropDownList!$B$27,CntyQuery!$A$31:$CE$53,BP$1) -> 430 | BQ10: =VLOOKUP(DropDownList!$B$27,CntyQuery!$A$31:$CE$53,BQ$1) -> 14 | BR10: =VLOOKUP(DropDownList!$B$27,CntyQuery!$A$31:$CE$53,BR$1) -> 82 | BS10: =VLOOKUP(DropDownList!$B$27,CntyQuery!$A$31:$CE$53,BS$1) -> 58 | BT10: =VLOOKUP(DropDownList!$B$27,CntyQuery!$A$31:$CE$53,BT$1) -> 49 | BU10: =VLOOKUP(DropDownList!$B$27,CntyQuery!$A$31:$CE$53,BU$1) -> 21 | BV10: =VLOOKUP(DropDownList!$B$27,CntyQuery!$A$31:$CE$53,BV$1) -> 644 | BW10: =VLOOKUP(DropDownList!$B$27,CntyQuery!$A$31:$CE$53,BW$1) -> 7 | BX10: =VLOOKUP(DropDownList!$B$27,CntyQuery!$A$31:$CE$53,BX$1) -> 24 | BY10: =VLOOKUP(DropDownList!$B$27,CntyQuery!$A$31:$CE$53,BY$1) -> 26 | BZ10: =VLOOKUP(DropDownList!$B$27,CntyQuery!$A$31:$CE$53,BZ$1) -> 16 | CA10: =VLOOKUP(DropDownList!$B$27,CntyQuery!$A$31:$CE$53,CA$1) -> 0 | CB10: =VLOOKUP(DropDownList!$B$27,CntyQuery!$A$31:$CE$53,CB$1) -> 0 | CC10: =VLOOKUP(DropDownList!$B$27,CntyQuery!$A$31:$CE$53,CC$1) -> 0 | CD10: =VLOOKUP(DropDownList!$B$27,CntyQuery!$A$31:$CE$53,CD$1) -> 117 | CE10: =VLOOKUP(DropDownList!$B$27,CntyQuery!$A$31:$CE$53,CE$1) -> 9
A13: Census 1990 Data - Query Name: TownSTF3Qry1
A14: NAME | B14: FIPS | C14: COUSUBFP | D14: LandAcres | E14: WaterAcres | F14: HousingUnits90Cen | G14: P01Persons90Cen | H14: P02Families90Cen | I14: P03Households90cen | J14: H25HU<5yrs90cen | K14: H25HU5to20yrs90cen | L14: H25HU20to50yrs90cen | M14: H25HU>50yrs90cen | N14: H31Units0Bedroom90cen | O14: H31Units1Bedroom90cen | P14: H31Units2Bedroom90cen | Q14: H31Units3Bedroom90cen | R14: H31Units4Bedroom90cen | S14: H31Units5+Bedroom90cen | T14: P80HI<5K | U14: P80HI5Kto10K | V14: P80HI10Kto15K | W14: P80HI15Kto25K | X14: P80HI25Kto35K | Y14: P80HI35Kto50K | Z14: P80HI50Kto75K | AA14: P80HI75Kto100K | AB14: P80HI>100K | AC14: P80AMedHI | AD14: P86HH<25HI<5K | AE14: P86HH<25HI5Kto10K | AF14: P86HH<25HI10Kto15K | AG14: P86HH<25HI15Kto25K | AH14: P86HH<25HI25Kto35K | AI14: P86HH<25HI35Kto50K | AJ14: P86HH<25HI50Kto75K | AK14: P86HH<25HI75Kto100K | AL14: P86HH<25HI>100K | AM14: P86HH25to34HI<5K | AN14: P86HH25to34HI5Kto10K | AO14: P86HH25to34HI10Kto15K | AP14: P86HH25to34HI15Kto25K | AQ14: P86HH25to34HI25Kto35K | AR14: P86HH25to34HI35Kto50K | AS14: P86HH25to34HI50Kto75K | AT14: P86HH25to34HI75Kto100K | AU14: P86HH25to34HI>100K | AV14: P86HH35to44HI<5K | AW14: P86HH35to44HI5Kto10K | AX14: P86HH35to44HI10Kto15K | AY14: P86HH35to44HI15Kto25K | AZ14: P86HH35to44HI25Kto35K | BA14: P86HH35to44HI35Kto50K | BB14: P86HH35to44HI50Kto75K | BC14: P86HH35to44HI75Kto100K | BD14: P86HH35to44HI>100K | BE14: P86HH45to54HI<5K | BF14: P86HH45to54HI5Kto10K | BG14: P86HH45to54HI10Kto15K | BH14: P86HH45to54HI15Kto25K | BI14: P86HH45to54HI25Kto35K | BJ14: P86HH45to54HI35Kto50K | BK14: P86HH45to54HI50Kto75K | BL14: P86HH45to54HI75Kto100K | BM14: P86HH45to54HI>100K | BN14: P86HH55to64HI<5K | BO14: P86HH55to64HI5Kto10K | BP14: P86HH55to64HI10Kto15K | BQ14: P86HH55to64HI15Kto25K | BR14: P86HH55to64HI25Kto35K | BS14: P86HH55to64HI35Kto50K | BT14: P86HH55to64HI50Kto75K | BU14: P86HH55to64HI75Kto100K | BV14: P86HH55to64HI>100K | BW14: P86HH65to74HI<5K | BX14: P86HH65to74HI5Kto10K | BY14: P86HH65to74HI10Kto15K | BZ14: P86HH65to74HI15Kto25K | CA14: P86HH65to74HI25Kto35K | CB14: P86HH65to74HI35Kto50K | CC14: P86HH65to74HI50Kto75K | CD14: P86HH65to74HI75Kto100K | CE14: P86HH65to74HI>100K | CF14: P86HH>75HI<5K | CG14: P86HH>75HI5Kto10K | CH14: P86HH>75HI10Kto15K | CI14: P86HH>75HI15Kto25K | CJ14: P86HH>75HI25Kto35K | CK14: P86HH>75HI35Kto50K | CL14: P86HH>75HI50Kto75K | CM14: P86HH>75HI75Kto100K | CN14: P86HH>75HI>100K | CO14: P54SchlEnrlPrePrim | CP14: P54SchlEnrlElemThrHS | CQ14: P54SchlEnrlCollege | CR14: P54NotEnrlInSch | CS14: P57Pop25andOver | CT14: P57LessThan9thGrade | CU14: P579thto12thNoDip | CV14: P57HSGrad | CW14: P57SomeCollege | CX14: P57AssocDeg | CY14: P57BachelDeg | CZ14: P57GradorProfDeg | DA14: P57HSGradorHigher | DB14: P57CollGradorHigher | DC14: P42NativePop | DD14: P42ForeignBornPop | DE14: P42BornStateOfRes | DF14: P37NativePop2 | DG14: P37ForeignBornPop2 | DH14: P49DroveAlone | DI14: P49CarPooled | DJ14: P49PublicTranspt | DK14: P49Walked | DL14: P49OtherMeans | DM14: P49WorkedAtHome | DN14: P80HHInc<10K | DO14: P80HHInc10to15K | DP14: P80HHInc15to25K | DQ14: P80HHInc25to35K | DR14: P80HHInc35to50K | DS14: P80HHInc50to75K | DT14: P80HHInc75to100K | DU14: P80HHInc100to150K | DV14: P80HHInc>150K | DW14: H25YearStBlt89to90 | DX14: H25YearStBlt85to88 | DY14: H25YearStBlt80to84 | DZ14: H25YearStBlt70to79 | EA14: H25YearStBlt60to69 | EB14: H25YearStBlt50to59 | EC14: H25YearStBlt40to49 | ED14: H25YearStBlt39earlier | EE14: P107FamInc<10K | EF14: P107FamInc10to15K | EG14: P107FamInc15to25K | EH14: P107FamInc25to35K | EI14: P107FamInc35to50K | EJ14: P107FamInc50to75K | EK14: P107FamInc75to100K | EL14: P107FamInc100to150K | EM14: P107FamInc>150K | EN14: P107AMedFamInc | EO14: P110NonFamInc<10K | EP14: P110NonFamInc10to15K | EQ14: P110NonFamInc15to25K | ER14: P110NonFamInc25to35K | ES14: P110NonFamInc35to50K | ET14: P110NonFamInc50to75K | EU14: P110NonFamInc75to100K | EV14: P110NonFamInc100to150K | EW14: P110NonFamInc>150K | EX14: P110AMedNonFamInc | EY14: H16HU1Room | EZ14: H16HU2Room | FA14: H16HU3Room | FB14: H16HU4Room | FC14: H16HU5Room | FD14: H16HU6Room | FE14: H16HU7Room | FF14: H16HU8Room | FG14: H16HU9+Room | FH14: H43GrossRnt<100 | FI14: H43GrossRnt100to149 | FJ14: H43GrossRnt150to199 | FK14: H43GrossRnt200to249 | FL14: H43GrossRnt250to299 | FM14: H43GrossRnt300to349 | FN14: H43GrossRnt350to399 | FO14: H43GrossRnt400to449 | FP14: H43GrossRnt450to499 | FQ14: H43GrossRnt500to549 | FR14: H43GrossRnt550to599 | FS14: H43GrossRnt600to649 | FT14: H43GrossRnt650to699 | FU14: H43GrossRnt700to749 | FV14: H43GrossRnt750to999 | FW14: H43GrossRnt1000Plus | FX14: H43NoCashRent | FY14: H43MedGrossRent | FZ14: H51GrossRnt<20PctHHInc | GA14: H51GrossRnt20to24PctHHInc | GB14: H51GrossRnt25to29PctHHInc | GC14: H51GrossRnt30to34PctHHInc | GD14: H51GrossRnt35PctOrMoreHHInc | GE14: H51GrossRntAsPctHHIncNotComp | GF14: H52HUwMtgMoOwnCst<200 | GG14: H52HUwMtgMoOwnCst200to299 | GH14: H52HUwMtgMoOwnCst300to399 | GI14: H52HUwMtgMoOwnCst400to499 | GJ14: H52HUwMtgMoOwnCst500to599 | GK14: H52HUwMtgMoOwnCst600to699 | GL14: H52HUwMtgMoOwnCst700to799 | GM14: H52HUwMtgMoOwnCst800to899 | GN14: H52HUwMtgMoOwnCst900to999 | GO14: H52HUwMtgMoOwnCst1000to1249 | GP14: H52HUwMtgMoOwnCst1250to1499 | GQ14: H52HUwMtgMoOwnCst1500to1999 | GR14: H52HUwMtgMoOwnCst2000More | GS14: H52HUwNoMtgMoOwnCst<100 | GT14: H52HUwNoMtgMoOwnCst100to149 | GU14: H52HUwNoMtgMoOwnCst150to199 | GV14: H52HUwNoMtgMoOwnCst200to249 | GW14: H52HUwNoMtgMoOwnCst250to299 | GX14: H52HUwNoMtgMoOwnCst300to349 | GY14: H52HUwNoMtgMoOwnCst350to399 | GZ14: H52HUwNoMtgMoOwnCst400More | HA14: H52AMedMoOwnCstWMortg | HB14: H52AMedMoOwnCstWNoMortg | HC14: H58HUwMtgMOC<20pHHInc | HD14: H58HUwMtgMOC20to24pHHInc | HE14: H58HUwMtgMOC25to29pHHInc | HF14: H58HUwMtgMOC30to34pHHInc | HG14: H58wMtgMOC>35pHHInc | HH14: H58HUwMtgMOCNotComp | HI14: H58HUwNoMtgMOC<20pHHInc | HJ14: H58HUwNoMtgMOC20to24pHHInc | HK14: H58HUwNoMtgMOC25to29pHHInc | HL14: H58HUwNoMtgMOC30to34pHHInc | HM14: H58wNoMtgMOC>35pHHInc | HN14: H58HUwNoMtgMOCNotComp | HO14: H61OOHUVal<15k | HP14: H61OOHUVal15to19k | HQ14: H61OOHUVal20to24k | HR14: H61OOHUVal25to29k | HS14: H61OOHUVal30to34k | HT14: H61OOHUVal35to39k | HU14: H61OOHUVal40to44k | HV14: H61OOHUVal45to49k | HW14: H61OOHUVal50to59k | HX14: H61OOHUVal60to74k | HY14: H61OOHUVal75to99k | HZ14: H61OOHUVal100to124k | IA14: H61OOHUVal125to149k | IB14: H61OOHUVal150to174k | IC14: H61OOHUVal175to199k | ID14: H61OOHUVal200to249k | IE14: H61OOHUVal250to299k | IF14: H61OOHUVal300to399k | IG14: H61OOHUVal400to499k | IH14: H61OOHUVal500kOrMore | II14: H61aOOHUMedVal
A19: TOWN_NAME | B19: FIPS | C19: TOWNCNTY | D19: COUSUB | E19: POP80 | F19: POP90CDCEN | G19: POP2000CEN | H19: POP2010CEN | I19: POP2025-Proj | J19: POP2030-Proj | K19: POP2040-Proj | L19: SF80 | M19: MF80 | N19: MH80 | O19: SF81 | P19: MF81 | Q19: MH81 | R19: SF82 | S19: MF82 | T19: MH82 | U19: SF83 | V19: MF83 | W19: MH83 | X19: SF84_OSP | Y19: MF84_OSP | Z19: MH84_OSP | AA19: SF85_OSP | AB19: MF85_OSP | AC19: MH85_OSP | AD19: SF86_OSP | AE19: MF86_OSP | AF19: MH86_OSP | AG19: SF87_OSP | AH19: MF87_OSP | AI19: MH87_OSP | AJ19: SF88_OSP | AK19: MF88_OSP | AL19: MH88_OSP | AM19: SF89_OSP | AN19: MF89_OSP | AO19: MH89_OSP | AP19: SF90_OSP | AQ19: MF90_OSP | AR19: MH90_OSP | AS19: SF91_OSP | AT19: MF91_OSP | AU19: MH91_OSP | AV19: SF92_OSP | AW19: MF92_OSP | AX19: MH92_OSP | AY19: SF93_OSP | AZ19: MF93_OSP | BA19: MH93_OSP | BB19: SF94_OSP | BC19: MF94_OSP | BD19: MH94_OSP | BE19: SF95_OSP | BF19: MF95_OSP | BG19: MH95_OSP | BH19: SF96_OSP | BI19: MF96_OSP | BJ19: MH96_OSP | BK19: SF97_OSP | BL19: MF97_OSP | BM19: MH97_OSP | BN19: SF98_OSP | BO19: MF98_OSP | BP19: MH98_OSP | BQ19: SF99_OSP | BR19: MF99_OSP | BS19: MH99_OSP | BT19: SF00_OSP | BU19: MF00_OSP | BV19: MH00_OSP | BW19: SF01_OSP | BX19: MF01_OSP | BY19: MH01_OSP | BZ19: SF02_OSP | CA19: MF02_OSP | CB19: MH02_OSP | CC19: SF03_OSP | CD19: MF03_OSP | CE19: MH03_OSP | CF19: SF04_OSP | CG19: MF04_OSP | CH19: MH04_OSP | CI19: SF05_OSP | CJ19: MF05_OSP | CK19: MH05_OSP | CL19: SF06_OSP | CM19: MF06_OSP | CN19: MH06_OSP | CO19: SF07_OSP | CP19: MF07_OSP | CQ19: MH07_OSP | CR19: SF08_OSP | CS19: MF08_OSP | CT19: MH08_OSP | CU19: SF09_OSP | CV19: MF09_OSP | CW19: MH09_OSP | CX19: SF10_OSP | CY19: MF10_OSP | CZ19: MH10_OSP | DA19: SF11_OSP | DB19: MF11_OSP | DC19: MH11_OSP | DD19: SF12_OSP | DE19: MF12_OSP | DF19: MH12_OSP | DG19: SF13_OSP | DH19: MF13_OSP | DI19: MH13_OSP | DJ19: SF14_OSP | DK19: MF14_OSP | DL19: MH14_OSP | DM19: SF15_OSP | DN19: MF15_OSP | DO19: MH15_OSP | DP19: SF16_OSP | DQ19: MF16_OSP | DR19: MH16_OSP | DS19: SF17_OSP | DT19: MF17_OSP | DU19: MH17_OSP | DV19: SF18_OSP | DW19: MF18_OSP | DX19: MH18_OSP | DY19: SF19_OSP | DZ19: MF19_OSP | EA19: MH19_OSP | EB19: COMMENTS | EC19: CNTY_CODE
A20: =VLOOKUP(DropDownList!$B$27,CntyQuery!$A$77:$FZ$99,A$1) -> Alstead | B20: =VLOOKUP(DropDownList!$B$27,CntyQuery!$A$77:$FZ$99,B$1) -> 5005 | C20: =VLOOKUP(DropDownList!$B$27,CntyQuery!$A$77:$FZ$99,C$1) -> 301 | D20: =VLOOKUP(DropDownList!$B$27,CntyQuery!$A$77:$FZ$99,D$1) -> 00820 | E20: =VLOOKUP(DropDownList!$B$27,CntyQuery!$A$77:$FZ$99,E$1) -> 1461 | F20: =VLOOKUP(DropDownList!$B$27,CntyQuery!$A$77:$FZ$99,F$1) -> 1721 | G20: =VLOOKUP(DropDownList!$B$27,CntyQuery!$A$77:$FZ$99,G$1) -> 1944 | H20: =VLOOKUP(DropDownList!$B$27,CntyQuery!$A$77:$FZ$99,H$1) -> 1937 | I20: =VLOOKUP(DropDownList!$B$27,CntyQuery!$A$77:$FZ$99,I$1) -> 1890 | J20: =VLOOKUP(DropDownList!$B$27,CntyQuery!$A$77:$FZ$99,J$1) -> 1909 | K20: =VLOOKUP(DropDownList!$B$27,CntyQuery!$A$77:$FZ$99,K$1) -> 1923 | L20: =VLOOKUP(DropDownList!$B$27,CntyQuery!$A$77:$FZ$99,L$1) -> 4 | M20: =VLOOKUP(DropDownList!$B$27,CntyQuery!$A$77:$FZ$99,M$1) -> 0 | N20: =VLOOKUP(DropDownList!$B$27,CntyQuery!$A$77:$FZ$99,N$1) -> 2 | O20: =VLOOKUP(DropDownList!$B$27,CntyQuery!$A$77:$FZ$99,O$1) -> 5 | P20: =VLOOKUP(DropDownList!$B$27,CntyQuery!$A$77:$FZ$99,P$1) -> 0 | Q20: =VLOOKUP(DropDownList!$B$27,CntyQuery!$A$77:$FZ$99,Q$1) -> 1 | R20: =VLOOKUP(DropDownList!$B$27,CntyQuery!$A$77:$FZ$99,R$1) -> 0 | S20: =VLOOKUP(DropDownList!$B$27,CntyQuery!$A$77:$FZ$99,S$1) -> 0 | T20: =VLOOKUP(DropDownList!$B$27,CntyQuery!$A$77:$FZ$99,T$1) -> 0 | U20: =VLOOKUP(DropDownList!$B$27,CntyQuery!$A$77:$FZ$99,U$1) -> 6 | V20: =VLOOKUP(DropDownList!$B$27,CntyQuery!$A$77:$FZ$99,V$1) -> 0 | W20: =VLOOKUP(DropDownList!$B$27,CntyQuery!$A$77:$FZ$99,W$1) -> 2 | X20: =VLOOKUP(DropDownList!$B$27,CntyQuery!$A$77:$FZ$99,X$1) -> 8 | Y20: =VLOOKUP(DropDownList!$B$27,CntyQuery!$A$77:$FZ$99,Y$1) -> 0 | Z20: =VLOOKUP(DropDownList!$B$27,CntyQuery!$A$77:$FZ$99,Z$1) -> 5 | AA20: =VLOOKUP(DropDownList!$B$27,CntyQuery!$A$77:$FZ$99,AA$1) -> 6 | AB20: =VLOOKUP(DropDownList!$B$27,CntyQuery!$A$77:$FZ$99,AB$1) -> 0 | AC20: =VLOOKUP(DropDownList!$B$27,CntyQuery!$A$77:$FZ$99,AC$1) -> 7 | AD20: =VLOOKUP(DropDownList!$B$27,CntyQuery!$A$77:$FZ$99,AD$1) -> 6 | AE20: =VLOOKUP(DropDownList!$B$27,CntyQuery!$A$77:$FZ$99,AE$1) -> 0 | AF20: =VLOOKUP(DropDownList!$B$27,CntyQuery!$A$77:$FZ$99,AF$1) -> 3 | AG20: =VLOOKUP(DropDownList!$B$27,CntyQuery!$A$77:$FZ$99,AG$1) -> 0 | AH20: =VLOOKUP(DropDownList!$B$27,CntyQuery!$A$77:$FZ$99,AH$1) -> 0 | AI20: =VLOOKUP(DropDownList!$B$27,CntyQuery!$A$77:$FZ$99,AI$1) -> 0 | AJ20: =VLOOKUP(DropDownList!$B$27,CntyQuery!$A$77:$FZ$99,AJ$1) -> 21 | AK20: =VLOOKUP(DropDownList!$B$27,CntyQuery!$A$77:$FZ$99,AK$1) -> 0 | AL20: =VLOOKUP(DropDownList!$B$27,CntyQuery!$A$77:$FZ$99,AL$1) -> -3 | AM20: =VLOOKUP(DropDownList!$B$27,CntyQuery!$A$77:$FZ$99,AM$1) -> 8 | AN20: =VLOOKUP(DropDownList!$B$27,CntyQuery!$A$77:$FZ$99,AN$1) -> 0 | AO20: =VLOOKUP(DropDownList!$B$27,CntyQuery!$A$77:$FZ$99,AO$1) -> 6 | AP20: =VLOOKUP(DropDownList!$B$27,CntyQuery!$A$77:$FZ$99,AP$1) -> 6 | AQ20: =VLOOKUP(DropDownList!$B$27,CntyQuery!$A$77:$FZ$99,AQ$1) -> 3 | AR20: =VLOOKUP(DropDownList!$B$27,CntyQuery!$A$77:$FZ$99,AR$1) -> 0 | AS20: =VLOOKUP(DropDownList!$B$27,CntyQuery!$A$77:$FZ$99,AS$1) -> 9 | AT20: =VLOOKUP(DropDownList!$B$27,CntyQuery!$A$77:$FZ$99,AT$1) -> 0 | AU20: =VLOOKUP(DropDownList!$B$27,CntyQuery!$A$77:$FZ$99,AU$1) -> 0 | AV20: =VLOOKUP(DropDownList!$B$27,CntyQuery!$A$77:$FZ$99,AV$1) -> 7 | AW20: =VLOOKUP(DropDownList!$B$27,CntyQuery!$A$77:$FZ$99,AW$1) -> 0 | AX20: =VLOOKUP(DropDownList!$B$27,CntyQuery!$A$77:$FZ$99,AX$1) -> 1 | AY20: =VLOOKUP(DropDownList!$B$27,CntyQuery!$A$77:$FZ$99,AY$1) -> 3 | AZ20: =VLOOKUP(DropDownList!$B$27,CntyQuery!$A$77:$FZ$99,AZ$1) -> 1 | BA20: =VLOOKUP(DropDownList!$B$27,CntyQuery!$A$77:$FZ$99,BA$1) -> 1 | BB20: =VLOOKUP(DropDownList!$B$27,CntyQuery!$A$77:$FZ$99,BB$1) -> 5 | BC20: =VLOOKUP(DropDownList!$B$27,CntyQuery!$A$77:$FZ$99,BC$1) -> 0 | BD20: =VLOOKUP(DropDownList!$B$27,CntyQuery!$A$77:$FZ$99,BD$1) -> 1 | BE20: =VLOOKUP(DropDownList!$B$27,CntyQuery!$A$77:$FZ$99,BE$1) -> 4 | BF20: =VLOOKUP(DropDownList!$B$27,CntyQuery!$A$77:$FZ$99,BF$1) -> 0 | BG20: =VLOOKUP(DropDownList!$B$27,CntyQuery!$A$77:$FZ$99,BG$1) -> -3 | BH20: =VLOOKUP(DropDownList!$B$27,CntyQuery!$A$77:$FZ$99,BH$1) -> 5 | BI20: =VLOOKUP(DropDownList!$B$27,CntyQuery!$A$77:$FZ$99,BI$1) -> 0 | BJ20: =VLOOKUP(DropDownList!$B$27,CntyQuery!$A$77:$FZ$99,BJ$1) -> 2 | BK20: =VLOOKUP(DropDownList!$B$27,CntyQuery!$A$77:$FZ$99,BK$1) -> 4 | BL20: =VLOOKUP(DropDownList!$B$27,CntyQuery!$A$77:$FZ$99,BL$1) -> 0 | BM20: =VLOOKUP(DropDownList!$B$27,CntyQuery!$A$77:$FZ$99,BM$1) -> 0 | BN20: =VLOOKUP(DropDownList!$B$27,CntyQuery!$A$77:$FZ$99,BN$1) -> 10 | BO20: =VLOOKUP(DropDownList!$B$27,CntyQuery!$A$77:$FZ$99,BO$1) -> 0 | BP20: =VLOOKUP(DropDownList!$B$27,CntyQuery!$A$77:$FZ$99,BP$1) -> 2 | BQ20: =VLOOKUP(DropDownList!$B$27,CntyQuery!$A$77:$FZ$99,BQ$1) -> 2 | BR20: =VLOOKUP(DropDownList!$B$27,CntyQuery!$A$77:$FZ$99,BR$1) -> 0 | BS20: =VLOOKUP(DropDownList!$B$27,CntyQuery!$A$77:$FZ$99,BS$1) -> 0 | BT20: =VLOOKUP(DropDownList!$B$27,CntyQuery!$A$77:$FZ$99,BT$1) -> 7 | BU20: =VLOOKUP(DropDownList!$B$27,CntyQuery!$A$77:$FZ$99,BU$1) -> 0 | BV20: =VLOOKUP(DropDownList!$B$27,CntyQuery!$A$77:$FZ$99,BV$1) -> 0 | BW20: =VLOOKUP(DropDownList!$B$27,CntyQuery!$A$77:$FZ$99,BW$1) -> 5 | BX20: =VLOOKUP(DropDownList!$B$27,CntyQuery!$A$77:$FZ$99,BX$1) -> 1 | BY20: =VLOOKUP(DropDownList!$B$27,CntyQuery!$A$77:$FZ$99,BY$1) -> 0 | BZ20: =VLOOKUP(DropDownList!$B$27,CntyQuery!$A$77:$FZ$99,BZ$1) -> 12 | CA20: =VLOOKUP(DropDownList!$B$27,CntyQuery!$A$77:$FZ$99,CA$1) -> 0 | CB20: =VLOOKUP(DropDownList!$B$27,CntyQuery!$A$77:$FZ$99,CB$1) -> 0 | CC20: =VLOOKUP(DropDownList!$B$27,CntyQuery!$A$77:$FZ$99,CC$1) -> 4 | CD20: =VLOOKUP(DropDownList!$B$27,CntyQuery!$A$77:$FZ$99,CD$1) -> 0 | CE20: =VLOOKUP(DropDownList!$B$27,CntyQuery!$A$77:$FZ$99,CE$1) -> 0 | CF20: =VLOOKUP(DropDownList!$B$27,CntyQuery!$A$77:$FZ$99,CF$1) -> 8 | CG20: =VLOOKUP(DropDownList!$B$27,CntyQuery!$A$77:$FZ$99,CG$1) -> 0 | CH20: =VLOOKUP(DropDownList!$B$27,CntyQuery!$A$77:$FZ$99,CH$1) -> 0 | CI20: =VLOOKUP(DropDownList!$B$27,CntyQuery!$A$77:$FZ$99,CI$1) -> -5 | CJ20: =VLOOKUP(DropDownList!$B$27,CntyQuery!$A$77:$FZ$99,CJ$1) -> 0 | CK20: =VLOOKUP(DropDownList!$B$27,CntyQuery!$A$77:$FZ$99,CK$1) -> 0 | CL20: =VLOOKUP(DropDownList!$B$27,CntyQuery!$A$77:$FZ$99,CL$1) -> 16 | CM20: =VLOOKUP(DropDownList!$B$27,CntyQuery!$A$77:$FZ$99,CM$1) -> 20 | CN20: =VLOOKUP(DropDownList!$B$27,CntyQuery!$A$77:$FZ$99,CN$1) -> 0 | CO20: =VLOOKUP(DropDownList!$B$27,CntyQuery!$A$77:$FZ$99,CO$1) -> 9 | CP20: =VLOOKUP(DropDownList!$B$27,CntyQuery!$A$77:$FZ$99,CP$1) -> 0 | CQ20: =VLOOKUP(DropDownList!$B$27,CntyQuery!$A$77:$FZ$99,CQ$1) -> 0 | CR20: =VLOOKUP(DropDownList!$B$27,CntyQuery!$A$77:$FZ$99,CR$1) -> 5 | CS20: =VLOOKUP(DropDownList!$B$27,CntyQuery!$A$77:$FZ$99,CS$1) -> 0 | CT20: =VLOOKUP(DropDownList!$B$27,CntyQuery!$A$77:$FZ$99,CT$1) -> 0 | CU20: =VLOOKUP(DropDownList!$B$27,CntyQuery!$A$77:$FZ$99,CU$1) -> 2 | CV20: =VLOOKUP(DropDownList!$B$27,CntyQuery!$A$77:$FZ$99,CV$1) -> 0 | CW20: =VLOOKUP(DropDownList!$B$27,CntyQuery!$A$77:$FZ$99,CW$1) -> 0 | CX20: =VLOOKUP(DropDownList!$B$27,CntyQuery!$A$77:$FZ$99,CX$1) -> 6 | CY20: =VLOOKUP(DropDownList!$B$27,CntyQuery!$A$77:$FZ$99,CY$1) -> 0 | CZ20: =VLOOKUP(DropDownList!$B$27,CntyQuery!$A$77:$FZ$99,CZ$1) -> 1 | DA20: =VLOOKUP(DropDownList!$B$27,CntyQuery!$A$77:$FZ$99,DA$1) -> 1 | DB20: =VLOOKUP(DropDownList!$B$27,CntyQuery!$A$77:$FZ$99,DB$1) -> 0 | DC20: =VLOOKUP(DropDownList!$B$27,CntyQuery!$A$77:$FZ$99,DC$1) -> 0 | DD20: =VLOOKUP(DropDownList!$B$27,CntyQuery!$A$77:$FZ$99,DD$1) -> 2 | DE20: =VLOOKUP(DropDownList!$B$27,CntyQuery!$A$77:$FZ$99,DE$1) -> 0 | DF20: =VLOOKUP(DropDownList!$B$27,CntyQuery!$A$77:$FZ$99,DF$1) -> 0 | DG20: =VLOOKUP(DropDownList!$B$27,CntyQuery!$A$77:$FZ$99,DG$1) -> 3 | DH20: =VLOOKUP(DropDownList!$B$27,CntyQuery!$A$77:$FZ$99,DH$1) -> 0 | DI20: =VLOOKUP(DropDownList!$B$27,CntyQuery!$A$77:$FZ$99,DI$1) -> 0 | DJ20: =VLOOKUP(DropDownList!$B$27,CntyQuery!$A$77:$FZ$99,DJ$1) -> 7 | DK20: =VLOOKUP(DropDownList!$B$27,CntyQuery!$A$77:$FZ$99,DK$1) -> 0 | DL20: =VLOOKUP(DropDownList!$B$27,CntyQuery!$A$77:$FZ$99,DL$1) -> 0 | DM20: =VLOOKUP(DropDownList!$B$27,CntyQuery!$A$77:$FZ$99,DM$1) -> 2 | DN20: =VLOOKUP(DropDownList!$B$27,CntyQuery!$A$77:$FZ$99,DN$1) -> 0 | DO20: =VLOOKUP(DropDownList!$B$27,CntyQuery!$A$77:$FZ$99,DO$1) -> 0 | DP20: =VLOOKUP(DropDownList!$B$27,CntyQuery!$A$77:$FZ$99,DP$1) -> 0 | DQ20: =VLOOKUP(DropDownList!$B$27,CntyQuery!$A$77:$FZ$99,DQ$1) -> 0 | DR20: =VLOOKUP(DropDownList!$B$27,CntyQuery!$A$77:$FZ$99,DR$1) -> 0 | DS20: =VLOOKUP(DropDownList!$B$27,CntyQuery!$A$77:$FZ$99,DS$1) -> 4 | DT20: =VLOOKUP(DropDownList!$B$27,CntyQuery!$A$77:$FZ$99,DT$1) -> 0 | DU20: =VLOOKUP(DropDownList!$B$27,CntyQuery!$A$77:$FZ$99,DU$1) -> 1 | DV20: =VLOOKUP(DropDownList!$B$27,CntyQuery!$A$77:$FZ$99,DV$1) -> 2 | DW20: =VLOOKUP(DropDownList!$B$27,CntyQuery!$A$77:$FZ$99,DW$1) -> 0 | DX20: =VLOOKUP(DropDownList!$B$27,CntyQuery!$A$77:$FZ$99,DX$1) -> -2 | DY20: =VLOOKUP(DropDownList!$B$27,CntyQuery!$A$77:$FZ$99,DY$1) -> 6 | DZ20: =VLOOKUP(DropDownList!$B$27,CntyQuery!$A$77:$FZ$99,DZ$1) -> 0 | EA20: =VLOOKUP(DropDownList!$B$27,CntyQuery!$A$77:$FZ$99,EA$1) -> 0 | EB20: =VLOOKUP(DropDownList!$B$27,CntyQuery!$A$77:$FZ$99,EB$1) ->  | EC20: =VLOOKUP(DropDownList!$B$27,CntyQuery!$A$77:$FZ$99,EC$1) -> 3
A23: NH Employment Data | B23: Query Name: DPQryEmploymentByCnty
A24: AreaName | B24: COUNTYCODE | C24: TOTP & G2001 | D24: TOT2001 | E24: GOODPRO2001 | F24: SERVICEPROMAN2001 | G24: WAGEP & G2001 | H24: WAGETOT2001 | I24: WAGEGOODPRO2001 | J24: WAGESERVICEPRO2001 | K24: TOTP & G2002 | L24: TOT2002 | M24: GOODPRO2002 | N24: SERVICEPROMAN2002 | O24: WAGEP & G2002 | P24: WAGETOT2002 | Q24: WAGEGOODPRO2002 | R24: WAGESERVICEPRO2002 | S24: TOTP & G2003 | T24: TOT2003 | U24: GOODPRO2003 | V24: SERVICEPROMAN2003 | W24: WAGEP & G2003 | X24: WAGETOT2003 | Y24: WAGEGOODPRO2003 | Z24: WAGESERVICEPRO2003 | AA24: TOTP & G2004 | AB24: TOT2004 | AC24: GOODPRO2004 | AD24: SERVICEPROMAN2004 | AE24: WAGEP & G2004 | AF24: WAGETOT2004 | AG24: WAGEGOODPRO2004 | AH24: WAGESERVICEPRO2004 | AI24: TOTP & G2005 | AJ24: TOT2005 | AK24: GOODPRO2005 | AL24: SERVICEPROMAN2005 | AM24: WAGEP & G2005 | AN24: WAGETOT2005 | AO24: WAGEGOODPRO2005 | AP24: WAGESERVICEPRO2005 | AQ24: TOTP & G2006 | AR24: TOT2006 | AS24: GOODPRO2006 | AT24: SERVICEPROMAN2006 | AU24: WAGEP & G2006 | AV24: WAGETOT2006 | AW24: WAGEGOODPRO2006 | AX24: WAGESERVICEPRO2006 | AY24: TOTP & G2007 | AZ24: TOT2007 | BA24: GOODPRO2007 | BB24: SERVICEPROMAN2007 | BC24: WAGEP & G2007 | BD24: WAGETOT2007 | BE24: WAGEGOODPRO2007 | BF24: WAGESERVICEPRO2007 | BG24: TOTP & G2008 | BH24: TOT2008 | BI24: GOODPRO2008 | BJ24: SERVICEPROMAN2008 | BK24: WAGEP & G2008 | BL24: WAGETOT2008 | BM24: WAGEGOODPRO2008 | BN24: WAGESERVICEPRO2008 | BO24: TOTP & G2009 | BP24: TOT2009 | BQ24: GOODPRO2009 | BR24: SERVICEPROMAN2009 | BS24: WAGEP & G2009 | BT24: WAGETOT2009 | BU24: WAGEGOODPRO2009 | BV24: WAGESERVICEPRO2009 | BW24: TOTP & G2010 | BX24: TOT2010 | BY24: GOODPRO2010 | BZ24: SERVICEPROMAN2010 | CA24: WAGEP & G2010 | CB24: WAGETOT2010 | CC24: WAGEGOODPRO2010 | CD24: WAGESERVICEPRO2010 | CE24: TOTP & G2011 | CF24: TOT2011 | CG24: GOODPRO2011 | CH24: SERVICEPROMAN2011 | CI24: WAGEP & G2011 | CJ24: WAGETOT2011 | CK24: WAGEGOODPRO2011 | CL24: WAGESERVICEPRO2011 | CM24: TOTP & G2012 | CN24: TOT2012 | CO24: GOODPRO2012 | CP24: SERVICEPROMAN2012 | CQ24: WAGEP & G2012 | CR24: WAGETOT2012 | CS24: WAGEGOODPRO2012 | CT24: WAGESERVICEPRO2012 | CU24: TOTP & G2013 | CV24: TOT2013 | CW24: GOODPRO2013 | CX24: SERVICEPROMAN2013 | CY24: WAGEP & G2013 | CZ24: WAGETOT2013 | DA24: WAGEGOODPRO2013 | DB24: WAGESERVICEPRO2013 | DC24: TOTP & G2014 | DD24: TOT2014 | DE24: GOODPRO2014 | DF24: SERVICEPROMAN2014 | DG24: WAGEP & G2014 | DH24: WAGETOT2014 | DI24: WAGEGOODPRO2014 | DJ24: WAGESERVICEPRO2014 | DK24: TOTP & G2015 | DL24: TOT2015 | DM24: GOODPRO2015 | DN24: SERVICEPROMAN2015 | DO24: WAGEP & G2015 | DP24: WAGETOT2015 | DQ24: WAGEGOODPRO2015 | DR24: WAGESERVICEPRO2015 | DS24: TOTP & G2016 | DT24: TOT2016 | DU24: GOODPRO2016 | DV24: SERVICEPROMAN2016 | DW24: WAGEP & G2016 | DX24: WAGETOT2016 | DY24: WAGEGOODPRO2016 | DZ24: WAGESERVICEPRO2016 | EA24: TOTP & G2017 | EB24: TOT2017 | EC24: GOODPRO2017 | ED24: SERVICEPROMAN2017 | EE24: WAGEP & G2017 | EF24: WAGETOT2017 | EG24: WAGEGOODPRO2017 | EH24: WAGESERVICEPRO2017 | EI24: TOTP & G2018 | EJ24: TOT2018 | EK24: GOODPRO2018 | EL24: SERVICEPROMAN2018 | EM24: WAGEP & G2018 | EN24: WAGETOT2018 | EO24: WAGEGOODPRO2018 | EP24: WAGESERVICEPRO2018 | EQ24: TOTP & G2019 | ER24: TOT2019 | ES24: TOTGov2019 | ET24: GOODPRO2019 | EU24: SERVICEPROMAN2019 | EV24: WAGEP & G2019 | EW24: WAGETOT2019 | EX24: WAGEGov2019 | EY24: WAGEGOODPRO2019 | EZ24: WAGESERVICEPRO2019 | FA24: SummaryLevel
A25: =VLOOKUP(DropDownList!$B$27,CntyQuery!$A$106:$FJ$128,A$1) -> Alstead | B25: =VLOOKUP(DropDownList!$B$27,CntyQuery!$A$106:$FJ$128,B$1) -> 3 | C25: =VLOOKUP(DropDownList!$B$27,CntyQuery!$A$106:$FJ$128,C$1) -> 196 | D25: =VLOOKUP(DropDownList!$B$27,CntyQuery!$A$106:$FJ$128,D$1) -> 168 | E25: =VLOOKUP(DropDownList!$B$27,CntyQuery!$A$106:$FJ$128,E$1) -> 86 | F25: =VLOOKUP(DropDownList!$B$27,CntyQuery!$A$106:$FJ$128,F$1) -> 82 | G25: =VLOOKUP(DropDownList!$B$27,CntyQuery!$A$106:$FJ$128,G$1) -> 450.27 | H25: =VLOOKUP(DropDownList!$B$27,CntyQuery!$A$106:$FJ$128,H$1) -> 484.67 | I25: =VLOOKUP(DropDownList!$B$27,CntyQuery!$A$106:$FJ$128,I$1) -> 557.22 | J25: =VLOOKUP(DropDownList!$B$27,CntyQuery!$A$106:$FJ$128,J$1) -> 408.81 | K25: =VLOOKUP(DropDownList!$B$27,CntyQuery!$A$106:$FJ$128,K$1) -> 202 | L25: =VLOOKUP(DropDownList!$B$27,CntyQuery!$A$106:$FJ$128,L$1) -> 174 | M25: =VLOOKUP(DropDownList!$B$27,CntyQuery!$A$106:$FJ$128,M$1) -> 81 | N25: =VLOOKUP(DropDownList!$B$27,CntyQuery!$A$106:$FJ$128,N$1) -> 93 | O25: =VLOOKUP(DropDownList!$B$27,CntyQuery!$A$106:$FJ$128,O$1) -> 433.76 | P25: =VLOOKUP(DropDownList!$B$27,CntyQuery!$A$106:$FJ$128,P$1) -> 464.76 | Q25: =VLOOKUP(DropDownList!$B$27,CntyQuery!$A$106:$FJ$128,Q$1) -> 518.78 | R25: =VLOOKUP(DropDownList!$B$27,CntyQuery!$A$106:$FJ$128,R$1) -> 417.57 | S25: =VLOOKUP(DropDownList!$B$27,CntyQuery!$A$106:$FJ$128,S$1) -> 198 | T25: =VLOOKUP(DropDownList!$B$27,CntyQuery!$A$106:$FJ$128,T$1) -> 169 | U25: =VLOOKUP(DropDownList!$B$27,CntyQuery!$A$106:$FJ$128,U$1) -> 79 | V25: =VLOOKUP(DropDownList!$B$27,CntyQuery!$A$106:$FJ$128,V$1) -> 89 | W25: =VLOOKUP(DropDownList!$B$27,CntyQuery!$A$106:$FJ$128,W$1) -> 446.95 | X25: =VLOOKUP(DropDownList!$B$27,CntyQuery!$A$106:$FJ$128,X$1) -> 475.84 | Y25: =VLOOKUP(DropDownList!$B$27,CntyQuery!$A$106:$FJ$128,Y$1) -> 537.52 | Z25: =VLOOKUP(DropDownList!$B$27,CntyQuery!$A$106:$FJ$128,Z$1) -> 421.11 | AA25: =VLOOKUP(DropDownList!$B$27,CntyQuery!$A$106:$FJ$128,AA$1) -> 192 | AB25: =VLOOKUP(DropDownList!$B$27,CntyQuery!$A$106:$FJ$128,AB$1) -> 166 | AC25: =VLOOKUP(DropDownList!$B$27,CntyQuery!$A$106:$FJ$128,AC$1) -> 81 | AD25: =VLOOKUP(DropDownList!$B$27,CntyQuery!$A$106:$FJ$128,AD$1) -> 85 | AE25: =VLOOKUP(DropDownList!$B$27,CntyQuery!$A$106:$FJ$128,AE$1) -> 497.05 | AF25: =VLOOKUP(DropDownList!$B$27,CntyQuery!$A$106:$FJ$128,AF$1) -> 525.14 | AG25: =VLOOKUP(DropDownList!$B$27,CntyQuery!$A$106:$FJ$128,AG$1) -> 554.94 | AH25: =VLOOKUP(DropDownList!$B$27,CntyQuery!$A$106:$FJ$128,AH$1) -> 496.66 | AI25: =VLOOKUP(DropDownList!$B$27,CntyQuery!$A$106:$FJ$128,AI$1) -> 182 | AJ25: =VLOOKUP(DropDownList!$B$27,CntyQuery!$A$106:$FJ$128,AJ$1) -> 161 | AK25: =VLOOKUP(DropDownList!$B$27,CntyQuery!$A$106:$FJ$128,AK$1) -> 76 | AL25: =VLOOKUP(DropDownList!$B$27,CntyQuery!$A$106:$FJ$128,AL$1) -> 85 | AM25: =VLOOKUP(DropDownList!$B$27,CntyQuery!$A$106:$FJ$128,AM$1) -> 479.74 | AN25: =VLOOKUP(DropDownList!$B$27,CntyQuery!$A$106:$FJ$128,AN$1) -> 480.41 | AO25: =VLOOKUP(DropDownList!$B$27,CntyQuery!$A$106:$FJ$128,AO$1) -> 581.28 | AP25: =VLOOKUP(DropDownList!$B$27,CntyQuery!$A$106:$FJ$128,AP$1) -> 390.31 | AQ25: =VLOOKUP(DropDownList!$B$27,CntyQuery!$A$106:$FJ$128,AQ$1) -> 161 | AR25: =VLOOKUP(DropDownList!$B$27,CntyQuery!$A$106:$FJ$128,AR$1) -> 143 | AS25: =VLOOKUP(DropDownList!$B$27,CntyQuery!$A$106:$FJ$128,AS$1) -> 73 | AT25: =VLOOKUP(DropDownList!$B$27,CntyQuery!$A$106:$FJ$128,AT$1) -> 71 | AU25: =VLOOKUP(DropDownList!$B$27,CntyQuery!$A$106:$FJ$128,AU$1) -> 499.45 | AV25: =VLOOKUP(DropDownList!$B$27,CntyQuery!$A$106:$FJ$128,AV$1) -> 498.15 | AW25: =VLOOKUP(DropDownList!$B$27,CntyQuery!$A$106:$FJ$128,AW$1) -> 584.21 | AX25: =VLOOKUP(DropDownList!$B$27,CntyQuery!$A$106:$FJ$128,AX$1) -> 409.65 | AY25: =VLOOKUP(DropDownList!$B$27,CntyQuery!$A$106:$FJ$128,AY$1) -> 159 | AZ25: =VLOOKUP(DropDownList!$B$27,CntyQuery!$A$106:$FJ$128,AZ$1) -> 137 | BA25: =VLOOKUP(DropDownList!$B$27,CntyQuery!$A$106:$FJ$128,BA$1) -> 72 | BB25: =VLOOKUP(DropDownList!$B$27,CntyQuery!$A$106:$FJ$128,BB$1) -> 65 | BC25: =VLOOKUP(DropDownList!$B$27,CntyQuery!$A$106:$FJ$128,BC$1) -> 499.57 | BD25: =VLOOKUP(DropDownList!$B$27,CntyQuery!$A$106:$FJ$128,BD$1) -> 496.32 | BE25: =VLOOKUP(DropDownList!$B$27,CntyQuery!$A$106:$FJ$128,BE$1) -> 575.31 | BF25: =VLOOKUP(DropDownList!$B$27,CntyQuery!$A$106:$FJ$128,BF$1) -> 408.49 | BG25: =VLOOKUP(DropDownList!$B$27,CntyQuery!$A$106:$FJ$128,BG$1) -> 148 | BH25: =VLOOKUP(DropDownList!$B$27,CntyQuery!$A$106:$FJ$128,BH$1) -> 127 | BI25: =VLOOKUP(DropDownList!$B$27,CntyQuery!$A$106:$FJ$128,BI$1) -> 72 | BJ25: =VLOOKUP(DropDownList!$B$27,CntyQuery!$A$106:$FJ$128,BJ$1) -> 55 | BK25: =VLOOKUP(DropDownList!$B$27,CntyQuery!$A$106:$FJ$128,BK$1) -> 558.54 | BL25: =VLOOKUP(DropDownList!$B$27,CntyQuery!$A$106:$FJ$128,BL$1) -> 551.75 | BM25: =VLOOKUP(DropDownList!$B$27,CntyQuery!$A$106:$FJ$128,BM$1) -> 591.22 | BN25: =VLOOKUP(DropDownList!$B$27,CntyQuery!$A$106:$FJ$128,BN$1) -> 500.31 | BO25: =VLOOKUP(DropDownList!$B$27,CntyQuery!$A$106:$FJ$128,BO$1) -> 137 | BP25: =VLOOKUP(DropDownList!$B$27,CntyQuery!$A$106:$FJ$128,BP$1) -> 118 | BQ25: =VLOOKUP(DropDownList!$B$27,CntyQuery!$A$106:$FJ$128,BQ$1) -> 63 | BR25: =VLOOKUP(DropDownList!$B$27,CntyQuery!$A$106:$FJ$128,BR$1) -> 55 | BS25: =VLOOKUP(DropDownList!$B$27,CntyQuery!$A$106:$FJ$128,BS$1) -> 561.03 | BT25: =VLOOKUP(DropDownList!$B$27,CntyQuery!$A$106:$FJ$128,BT$1) -> 549.63 | BU25: =VLOOKUP(DropDownList!$B$27,CntyQuery!$A$106:$FJ$128,BU$1) -> 572.91 | BV25: =VLOOKUP(DropDownList!$B$27,CntyQuery!$A$106:$FJ$128,BV$1) -> 522.77 | BW25: =VLOOKUP(DropDownList!$B$27,CntyQuery!$A$106:$FJ$128,BW$1) -> 151 | BX25: =VLOOKUP(DropDownList!$B$27,CntyQuery!$A$106:$FJ$128,BX$1) -> 128 | BY25: =VLOOKUP(DropDownList!$B$27,CntyQuery!$A$106:$FJ$128,BY$1) -> 65 | BZ25: =VLOOKUP(DropDownList!$B$27,CntyQuery!$A$106:$FJ$128,BZ$1) -> 64 | CA25: =VLOOKUP(DropDownList!$B$27,CntyQuery!$A$106:$FJ$128,CA$1) -> 555.14 | CB25: =VLOOKUP(DropDownList!$B$27,CntyQuery!$A$106:$FJ$128,CB$1) -> 557.32 | CC25: =VLOOKUP(DropDownList!$B$27,CntyQuery!$A$106:$FJ$128,CC$1) -> 547.5 | CD25: =VLOOKUP(DropDownList!$B$27,CntyQuery!$A$106:$FJ$128,CD$1) -> 567.27 | CE25: =VLOOKUP(DropDownList!$B$27,CntyQuery!$A$106:$FJ$128,CE$1) -> 155 | CF25: =VLOOKUP(DropDownList!$B$27,CntyQuery!$A$106:$FJ$128,CF$1) -> 131 | CG25: =VLOOKUP(DropDownList!$B$27,CntyQuery!$A$106:$FJ$128,CG$1) -> 70 | CH25: =VLOOKUP(DropDownList!$B$27,CntyQuery!$A$106:$FJ$128,CH$1) -> 61 | CI25: =VLOOKUP(DropDownList!$B$27,CntyQuery!$A$106:$FJ$128,CI$1) -> 596.09 | CJ25: =VLOOKUP(DropDownList!$B$27,CntyQuery!$A$106:$FJ$128,CJ$1) -> 609.2 | CK25: =VLOOKUP(DropDownList!$B$27,CntyQuery!$A$106:$FJ$128,CK$1) -> 578.78 | CL25: =VLOOKUP(DropDownList!$B$27,CntyQuery!$A$106:$FJ$128,CL$1) -> 643.9 | CM25: =VLOOKUP(DropDownList!$B$27,CntyQuery!$A$106:$FJ$128,CM$1) -> 178 | CN25: =VLOOKUP(DropDownList!$B$27,CntyQuery!$A$106:$FJ$128,CN$1) -> 152 | CO25: =VLOOKUP(DropDownList!$B$27,CntyQuery!$A$106:$FJ$128,CO$1) -> 66 | CP25: =VLOOKUP(DropDownList!$B$27,CntyQuery!$A$106:$FJ$128,CP$1) -> 86 | CQ25: =VLOOKUP(DropDownList!$B$27,CntyQuery!$A$106:$FJ$128,CQ$1) -> 645.69 | CR25: =VLOOKUP(DropDownList!$B$27,CntyQuery!$A$106:$FJ$128,CR$1) -> 670.6 | CS25: =VLOOKUP(DropDownList!$B$27,CntyQuery!$A$106:$FJ$128,CS$1) -> 620.42 | CT25: =VLOOKUP(DropDownList!$B$27,CntyQuery!$A$106:$FJ$128,CT$1) -> 708.91 | CU25: =VLOOKUP(DropDownList!$B$27,CntyQuery!$A$106:$FJ$128,CU$1) -> 220 | CV25: =VLOOKUP(DropDownList!$B$27,CntyQuery!$A$106:$FJ$128,CV$1) -> 146 | CW25: =VLOOKUP(DropDownList!$B$27,CntyQuery!$A$106:$FJ$128,CW$1) -> 74 | CX25: =VLOOKUP(DropDownList!$B$27,CntyQuery!$A$106:$FJ$128,CX$1) -> 72 | CY25: =VLOOKUP(DropDownList!$B$27,CntyQuery!$A$106:$FJ$128,CY$1) -> 659.7 | CZ25: =VLOOKUP(DropDownList!$B$27,CntyQuery!$A$106:$FJ$128,CZ$1) -> 610.19 | DA25: =VLOOKUP(DropDownList!$B$27,CntyQuery!$A$106:$FJ$128,DA$1) -> 602.26 | DB25: =VLOOKUP(DropDownList!$B$27,CntyQuery!$A$106:$FJ$128,DB$1) -> 618.41 | DC25: =VLOOKUP(DropDownList!$B$27,CntyQuery!$A$106:$FJ$128,DC$1) -> 236 | DD25: =VLOOKUP(DropDownList!$B$27,CntyQuery!$A$106:$FJ$128,DD$1) -> 155 | DE25: =VLOOKUP(DropDownList!$B$27,CntyQuery!$A$106:$FJ$128,DE$1) -> 72 | DF25: =VLOOKUP(DropDownList!$B$27,CntyQuery!$A$106:$FJ$128,DF$1) -> 83 | DG25: =VLOOKUP(DropDownList!$B$27,CntyQuery!$A$106:$FJ$128,DG$1) -> 673.07 | DH25: =VLOOKUP(DropDownList!$B$27,CntyQuery!$A$106:$FJ$128,DH$1) -> 648.12 | DI25: =VLOOKUP(DropDownList!$B$27,CntyQuery!$A$106:$FJ$128,DI$1) -> 644.08 | DJ25: =VLOOKUP(DropDownList!$B$27,CntyQuery!$A$106:$FJ$128,DJ$1) -> 651.64 | DK25: =VLOOKUP(DropDownList!$B$27,CntyQuery!$A$106:$FJ$128,DK$1) -> 231 | DL25: =VLOOKUP(DropDownList!$B$27,CntyQuery!$A$106:$FJ$128,DL$1) -> 151 | DM25: =VLOOKUP(DropDownList!$B$27,CntyQuery!$A$106:$FJ$128,DM$1) -> 71 | DN25: =VLOOKUP(DropDownList!$B$27,CntyQuery!$A$106:$FJ$128,DN$1) -> 81 | DO25: =VLOOKUP(DropDownList!$B$27,CntyQuery!$A$106:$FJ$128,DO$1) -> 696.35 | DP25: =VLOOKUP(DropDownList!$B$27,CntyQuery!$A$106:$FJ$128,DP$1) -> 684.87 | DQ25: =VLOOKUP(DropDownList!$B$27,CntyQuery!$A$106:$FJ$128,DQ$1) -> 639.46 | DR25: =VLOOKUP(DropDownList!$B$27,CntyQuery!$A$106:$FJ$128,DR$1) -> 724.79 | DS25: =VLOOKUP(DropDownList!$B$27,CntyQuery!$A$106:$FJ$128,DS$1) -> 226 | DT25: =VLOOKUP(DropDownList!$B$27,CntyQuery!$A$106:$FJ$128,DT$1) -> 145 | DU25: =VLOOKUP(DropDownList!$B$27,CntyQuery!$A$106:$FJ$128,DU$1) -> 74 | DV25: =VLOOKUP(DropDownList!$B$27,CntyQuery!$A$106:$FJ$128,DV$1) -> 71 | DW25: =VLOOKUP(DropDownList!$B$27,CntyQuery!$A$106:$FJ$128,DW$1) -> 747.36 | DX25: =VLOOKUP(DropDownList!$B$27,CntyQuery!$A$106:$FJ$128,DX$1) -> 759.75 | DY25: =VLOOKUP(DropDownList!$B$27,CntyQuery!$A$106:$FJ$128,DY$1) -> 697.47 | DZ25: =VLOOKUP(DropDownList!$B$27,CntyQuery!$A$106:$FJ$128,DZ$1) -> 825.18 | EA25: =VLOOKUP(DropDownList!$B$27,CntyQuery!$A$106:$FJ$128,EA$1) -> 212 | EB25: =VLOOKUP(DropDownList!$B$27,CntyQuery!$A$106:$FJ$128,EB$1) -> 133 | EC25: =VLOOKUP(DropDownList!$B$27,CntyQuery!$A$106:$FJ$128,EC$1) -> 72 | ED25: =VLOOKUP(DropDownList!$B$27,CntyQuery!$A$106:$FJ$128,ED$1) -> 62 | EE25: =VLOOKUP(DropDownList!$B$27,CntyQuery!$A$106:$FJ$128,EE$1) -> 722.79 | EF25: =VLOOKUP(DropDownList!$B$27,CntyQuery!$A$106:$FJ$128,EF$1) -> 719.34 | EG25: =VLOOKUP(DropDownList!$B$27,CntyQuery!$A$106:$FJ$128,EG$1) -> 661.51 | EH25: =VLOOKUP(DropDownList!$B$27,CntyQuery!$A$106:$FJ$128,EH$1) -> 786.3 | EI25: =VLOOKUP(DropDownList!$B$27,CntyQuery!$A$106:$FJ$128,EI$1) -> 234 | EJ25: =VLOOKUP(DropDownList!$B$27,CntyQuery!$A$106:$FJ$128,EJ$1) -> 139 | EK25: =VLOOKUP(DropDownList!$B$27,CntyQuery!$A$106:$FJ$128,EK$1) -> 69 | EL25: =VLOOKUP(DropDownList!$B$27,CntyQuery!$A$106:$FJ$128,EL$1) -> 70 | EM25: =VLOOKUP(DropDownList!$B$27,CntyQuery!$A$106:$FJ$128,EM$1) -> 690.28 | EN25: =VLOOKUP(DropDownList!$B$27,CntyQuery!$A$106:$FJ$128,EN$1) -> 743.86 | EO25: =VLOOKUP(DropDownList!$B$27,CntyQuery!$A$106:$FJ$128,EO$1) -> 674.42 | EP25: =VLOOKUP(DropDownList!$B$27,CntyQuery!$A$106:$FJ$128,EP$1) -> 812.32 | EQ25: =VLOOKUP(DropDownList!$B$27,CntyQuery!$A$106:$FJ$128,EQ$1) -> 245 | ER25: =VLOOKUP(DropDownList!$B$27,CntyQuery!$A$106:$FJ$128,ER$1) -> 149 | ES25: =VLOOKUP(DropDownList!$B$27,CntyQuery!$A$106:$FJ$128,ES$1) -> 96 | ET25: =VLOOKUP(DropDownList!$B$27,CntyQuery!$A$106:$FJ$128,ET$1) -> 72 | EU25: =VLOOKUP(DropDownList!$B$27,CntyQuery!$A$106:$FJ$128,EU$1) -> 77 | EV25: =VLOOKUP(DropDownList!$B$27,CntyQuery!$A$106:$FJ$128,EV$1) -> 690.73 | EW25: =VLOOKUP(DropDownList!$B$27,CntyQuery!$A$106:$FJ$128,EW$1) -> 733.35 | EX25: =VLOOKUP(DropDownList!$B$27,CntyQuery!$A$106:$FJ$128,EX$1) -> 625 | EY25: =VLOOKUP(DropDownList!$B$27,CntyQuery!$A$106:$FJ$128,EY$1) -> 662.73 | EZ25: =VLOOKUP(DropDownList!$B$27,CntyQuery!$A$106:$FJ$128,EZ$1) -> 799.83 | FA25: =VLOOKUP(DropDownList!$B$27,CntyQuery!$A$106:$FJ$128,FA$1) -> 60
M32: =IF((CntyDataLink!$BL$25)="n",NA(),IF(VALUE(CntyDataLink!$BL$25)="",NA(),VALUE(CntyDataLink!$BL$25))) -> 551.75
A33: Census 2000 - Query Name: TownAllQuery3 | B33: 2 | C33: =B33+1 -> 3 | D33: =C33+1 -> 4 | E33: 5 | F33: 6 | G33: 7 | H33: 8 | I33: 9 | J33: 10 | K33: 11 | L33: 12 | M33: 13 | N33: 14 | O33: 15 | P33: 16 | Q33: 17 | R33: 18 | S33: 19 | T33: 20 | U33: 21 | V33: 22 | W33: 23 | X33: 24 | Y33: 25 | Z33: 26 | AA33: 27 | AB33: 28 | AC33: 29 | AD33: 30 | AE33: 31 | AF33: 32 | AG33: 33 | AH33: 34 | AI33: 35 | AJ33: 36 | AK33: 37 | AL33: 38 | AM33: 39 | AN33: 40 | AO33: 41 | AP33: 42 | AQ33: 43 | AR33: 44 | AS33: 45 | AT33: 46 | AU33: 47 | AV33: 48 | AW33: 49 | AX33: 50 | AY33: 51 | AZ33: 52 | BA33: 53 | BB33: 54 | BC33: 55 | BD33: 56 | BE33: 57 | BF33: 58 | BG33: 59 | BH33: 60 | BI33: 61 | BJ33: 62 | BK33: 63 | BL33: 64 | BM33: 65 | BN33: 66 | BO33: 67 | BP33: =BO33+1 -> 68 | BQ33: 69 | BR33: 70 | BS33: 71 | BT33: 72 | BU33: 73 | BV33: 74 | BW33: 75 | BX33: 76 | BY33: 77 | BZ33: 78 | CA33: 79 | CB33: 80 | CC33: 81 | CD33: 82 | CE33: 83 | CF33: 84 | CG33: 85 | CH33: 86 | CI33: 87 | CJ33: 88 | CK33: 89 | CL33: 90 | CM33: 91 | CN33: 92 | CO33: 93 | CP33: 94 | CQ33: 95 | CR33: 96 | CS33: 97 | CT33: 98 | CU33: 99 | CV33: 100 | CW33: 101 | CX33: 102
A34: NAME | B34: COUNTY | C34: LOGRECNO | D34: COUSUB | E34: TRACT | F34: AREALAND | G34: AREAWATR | H34: POP100 | I34: HU100 | J34: 2000Population | K34: PopOfOneRace | L34: PopWhite | M34: PopBlack | N34: PopAmIndian | O34: PopAsian | P34: PopHawaiian | Q34: PopOtherRace | R34: Pop2orMoreRaces | S34: PopHispanicLatino | T34: PopNotHispanicLatino | U34: PopMale | V34: PopMale<15 | W34: PopMale15to24 | X34: PopMale25to34 | Y34: PopMale35to44 | Z34: PopMale45to54 | AA34: PopMale55to64 | AB34: PopMale65to74 | AC34: PopMale75to84 | AD34: PopMale85andOver | AE34: PopFemale | AF34: PopFemale<15 | AG34: PopFemale15to24 | AH34: PopFemale25to34 | AI34: PopFemale35t44 | AJ34: PopFemale45to54 | AK34: PopFemale55to64 | AL34: PopFemale65to74 | AM34: PopFemale75to84 | AN34: PopFemale85andOver | AO34: Households2000 | AP34: PopInHH | AQ34: AvgHHSize | AR34: HHs1Person | AS34: HHs2orMorePerson | AT34: HHsFamily | AU34: HHMarriedCoupleFam | AV34: HHSingleParentFam | AW34: HHsNonFamily | AX34: Families | AY34: PopInFam | AZ34: AvgFamSize | BA34: TotHsUnits | BB34: OccHsUnits | BC34: OwnerOccHU | BD34: RenterOccHU | BE34: VctHsUnits | BF34: VctHUForRent | BG34: VctHUForSale | BH34: VctHUSeasonal | BI34: PopInOccHU | BJ34: PopInOwnOccHU | BK34: PopInRntOccHU | BL34: AvgHHSize2 | BM34: AvgHHSizOwnOcc | BN34: AvgHHSizRntOcc | BO34: OwnOccWhtHsHldr | BP34: OwnOccBlkHsHldr | BQ34: OwnOccAmIHsHldr | BR34: OwnOccAsnHsHldr | BS34: OwnOccPIsHsHldr | BT34: OwnOccORHsHldr | BU34: OwnOcc2RcHsHldr | BV34: RntOccWhtHsHldr | BW34: RntOccBlkHsHldr | BX34: RntOccAmIHsHldr | BY34: RntOccAsnHsHldr | BZ34: RntOccPIsHsHldr | CA34: RntOccORHsHldr | CB34: RntOcc2RcHsHldr | CC34: OwnOccHH15to24 | CD34: OwnOccHH25to34 | CE34: OwnOccHH35to44 | CF34: OwnOccHH45to54 | CG34: OwnOccHH55to64 | CH34: OwnOccHH65to74 | CI34: OwnOccHH75to84 | CJ34: OwnOccHH85Over | CK34: RntOccHH15to24 | CL34: RntOccHH25to34 | CM34: RntOccHH35to44 | CN34: RntOccHH45to54 | CO34: RntOccHH55to64 | CP34: RntOccHH65to74 | CQ34: RntOccHH75to84 | CR34: RntOccHH85Over | CS34: P27TotalPop | CT34: P27PopInHseHlds | CU34: P27PopInGrpQtrs | CV34: Median Age Total | CW34: Median Age (Male) | CX34: Median Age (Female)
A35: =VLOOKUP(DropDownList!$B$27,CntyQryCensus!$A$4:$CX$26,A$1) -> Alstead | B35: =VLOOKUP(DropDownList!$B$27,CntyQryCensus!$A$4:$CX$26,B$1) -> 005 | C35: =VLOOKUP(DropDownList!$B$27,CntyQryCensus!$A$4:$CX$26,C$1) -> 0004851 | D35: =VLOOKUP(DropDownList!$B$27,CntyQryCensus!$A$4:$CX$26,D$1) -> 00820 | E35: =VLOOKUP(DropDownList!$B$27,CntyQryCensus!$A$4:$CX$26,E$1) ->  | F35: =VLOOKUP(DropDownList!$B$27,CntyQryCensus!$A$4:$CX$26,F$1) -> 100759019 | G35: =VLOOKUP(DropDownList!$B$27,CntyQryCensus!$A$4:$CX$26,G$1) -> 1212506 | H35: =VLOOKUP(DropDownList!$B$27,CntyQryCensus!$A$4:$CX$26,H$1) -> 1944 | I35: =VLOOKUP(DropDownList!$B$27,CntyQryCensus!$A$4:$CX$26,I$1) -> 941 | J35: =VLOOKUP(DropDownList!$B$27,CntyQryCensus!$A$4:$CX$26,J$1) -> 1944 | K35: =VLOOKUP(DropDownList!$B$27,CntyQryCensus!$A$4:$CX$26,K$1) -> 1935 | L35: =VLOOKUP(DropDownList!$B$27,CntyQryCensus!$A$4:$CX$26,L$1) -> 1909 | M35: =VLOOKUP(DropDownList!$B$27,CntyQryCensus!$A$4:$CX$26,M$1) -> 4 | N35: =VLOOKUP(DropDownList!$B$27,CntyQryCensus!$A$4:$CX$26,N$1) -> 12 | O35: =VLOOKUP(DropDownList!$B$27,CntyQryCensus!$A$4:$CX$26,O$1) -> 10 | P35: =VLOOKUP(DropDownList!$B$27,CntyQryCensus!$A$4:$CX$26,P$1) -> 0 | Q35: =VLOOKUP(DropDownList!$B$27,CntyQryCensus!$A$4:$CX$26,Q$1) -> 0 | R35: =VLOOKUP(DropDownList!$B$27,CntyQryCensus!$A$4:$CX$26,R$1) -> 9 | S35: =VLOOKUP(DropDownList!$B$27,CntyQryCensus!$A$4:$CX$26,S$1) -> 10 | T35: =VLOOKUP(DropDownList!$B$27,CntyQryCensus!$A$4:$CX$26,T$1) -> 1934 | U35: =VLOOKUP(DropDownList!$B$27,CntyQryCensus!$A$4:$CX$26,U$1) -> 993 | V35: =VLOOKUP(DropDownList!$B$27,CntyQryCensus!$A$4:$CX$26,V$1) -> 225 | W35: =VLOOKUP(DropDownList!$B$27,CntyQryCensus!$A$4:$CX$26,W$1) -> 114 | X35: =VLOOKUP(DropDownList!$B$27,CntyQryCensus!$A$4:$CX$26,X$1) -> 89 | Y35: =VLOOKUP(DropDownList!$B$27,CntyQryCensus!$A$4:$CX$26,Y$1) -> 174 | Z35: =VLOOKUP(DropDownList!$B$27,CntyQryCensus!$A$4:$CX$26,Z$1) -> 185 | AA35: =VLOOKUP(DropDownList!$B$27,CntyQryCensus!$A$4:$CX$26,AA$1) -> 88 | AB35: =VLOOKUP(DropDownList!$B$27,CntyQryCensus!$A$4:$CX$26,AB$1) -> 75 | AC35: =VLOOKUP(DropDownList!$B$27,CntyQryCensus!$A$4:$CX$26,AC$1) -> 34 | AD35: =VLOOKUP(DropDownList!$B$27,CntyQryCensus!$A$4:$CX$26,AD$1) -> 9 | AE35: =VLOOKUP(DropDownList!$B$27,CntyQryCensus!$A$4:$CX$26,AE$1) -> 951 | AF35: =VLOOKUP(DropDownList!$B$27,CntyQryCensus!$A$4:$CX$26,AF$1) -> 179 | AG35: =VLOOKUP(DropDownList!$B$27,CntyQryCensus!$A$4:$CX$26,AG$1) -> 106 | AH35: =VLOOKUP(DropDownList!$B$27,CntyQryCensus!$A$4:$CX$26,AH$1) -> 109 | AI35: =VLOOKUP(DropDownList!$B$27,CntyQryCensus!$A$4:$CX$26,AI$1) -> 182 | AJ35: =VLOOKUP(DropDownList!$B$27,CntyQryCensus!$A$4:$CX$26,AJ$1) -> 161 | AK35: =VLOOKUP(DropDownList!$B$27,CntyQryCensus!$A$4:$CX$26,AK$1) -> 86 | AL35: =VLOOKUP(DropDownList!$B$27,CntyQryCensus!$A$4:$CX$26,AL$1) -> 70 | AM35: =VLOOKUP(DropDownList!$B$27,CntyQryCensus!$A$4:$CX$26,AM$1) -> 44 | AN35: =VLOOKUP(DropDownList!$B$27,CntyQryCensus!$A$4:$CX$26,AN$1) -> 14 | AO35: =VLOOKUP(DropDownList!$B$27,CntyQryCensus!$A$4:$CX$26,AO$1) -> 771 | AP35: =VLOOKUP(DropDownList!$B$27,CntyQryCensus!$A$4:$CX$26,AP$1) -> 1932 | AQ35: =VLOOKUP(DropDownList!$B$27,CntyQryCensus!$A$4:$CX$26,AQ$1) -> 2.51 | AR35: =VLOOKUP(DropDownList!$B$27,CntyQryCensus!$A$4:$CX$26,AR$1) -> 189 | AS35: =VLOOKUP(DropDownList!$B$27,CntyQryCensus!$A$4:$CX$26,AS$1) -> 582 | AT35: =VLOOKUP(DropDownList!$B$27,CntyQryCensus!$A$4:$CX$26,AT$1) -> 534 | AU35: =VLOOKUP(DropDownList!$B$27,CntyQryCensus!$A$4:$CX$26,AU$1) -> 437 | AV35: =VLOOKUP(DropDownList!$B$27,CntyQryCensus!$A$4:$CX$26,AV$1) -> 97 | AW35: =VLOOKUP(DropDownList!$B$27,CntyQryCensus!$A$4:$CX$26,AW$1) -> 48 | AX35: =VLOOKUP(DropDownList!$B$27,CntyQryCensus!$A$4:$CX$26,AX$1) -> 534 | AY35: =VLOOKUP(DropDownList!$B$27,CntyQryCensus!$A$4:$CX$26,AY$1) -> 1599 | AZ35: =VLOOKUP(DropDownList!$B$27,CntyQryCensus!$A$4:$CX$26,AZ$1) -> 2.99 | BA35: =VLOOKUP(DropDownList!$B$27,CntyQryCensus!$A$4:$CX$26,BA$1) -> 941 | BB35: =VLOOKUP(DropDownList!$B$27,CntyQryCensus!$A$4:$CX$26,BB$1) -> 771 | BC35: =VLOOKUP(DropDownList!$B$27,CntyQryCensus!$A$4:$CX$26,BC$1) -> 611 | BD35: =VLOOKUP(DropDownList!$B$27,CntyQryCensus!$A$4:$CX$26,BD$1) -> 160 | BE35: =VLOOKUP(DropDownList!$B$27,CntyQryCensus!$A$4:$CX$26,BE$1) -> 170 | BF35: =VLOOKUP(DropDownList!$B$27,CntyQryCensus!$A$4:$CX$26,BF$1) -> 9 | BG35: =VLOOKUP(DropDownList!$B$27,CntyQryCensus!$A$4:$CX$26,BG$1) -> 9 | BH35: =VLOOKUP(DropDownList!$B$27,CntyQryCensus!$A$4:$CX$26,BH$1) -> 125 | BI35: =VLOOKUP(DropDownList!$B$27,CntyQryCensus!$A$4:$CX$26,BI$1) -> 1932 | BJ35: =VLOOKUP(DropDownList!$B$27,CntyQryCensus!$A$4:$CX$26,BJ$1) -> 1578 | BK35: =VLOOKUP(DropDownList!$B$27,CntyQryCensus!$A$4:$CX$26,BK$1) -> 354 | BL35: =VLOOKUP(DropDownList!$B$27,CntyQryCensus!$A$4:$CX$26,BL$1) -> 2.51 | BM35: =VLOOKUP(DropDownList!$B$27,CntyQryCensus!$A$4:$CX$26,BM$1) -> 2.58 | BN35: =VLOOKUP(DropDownList!$B$27,CntyQryCensus!$A$4:$CX$26,BN$1) -> 2.21 | BO35: =VLOOKUP(DropDownList!$B$27,CntyQryCensus!$A$4:$CX$26,BO$1) -> 599 | BP35: =VLOOKUP(DropDownList!$B$27,CntyQryCensus!$A$4:$CX$26,BP$1) -> 0 | BQ35: =VLOOKUP(DropDownList!$B$27,CntyQryCensus!$A$4:$CX$26,BQ$1) -> 6 | BR35: =VLOOKUP(DropDownList!$B$27,CntyQryCensus!$A$4:$CX$26,BR$1) -> 3 | BS35: =VLOOKUP(DropDownList!$B$27,CntyQryCensus!$A$4:$CX$26,BS$1) -> 0 | BT35: =VLOOKUP(DropDownList!$B$27,CntyQryCensus!$A$4:$CX$26,BT$1) -> 0 | BU35: =VLOOKUP(DropDownList!$B$27,CntyQryCensus!$A$4:$CX$26,BU$1) -> 3 | BV35: =VLOOKUP(DropDownList!$B$27,CntyQryCensus!$A$4:$CX$26,BV$1) -> 157 | BW35: =VLOOKUP(DropDownList!$B$27,CntyQryCensus!$A$4:$CX$26,BW$1) -> 0 | BX35: =VLOOKUP(DropDownList!$B$27,CntyQryCensus!$A$4:$CX$26,BX$1) -> 2 | BY35: =VLOOKUP(DropDownList!$B$27,CntyQryCensus!$A$4:$CX$26,BY$1) -> 0 | BZ35: =VLOOKUP(DropDownList!$B$27,CntyQryCensus!$A$4:$CX$26,BZ$1) -> 0 | CA35: =VLOOKUP(DropDownList!$B$27,CntyQryCensus!$A$4:$CX$26,CA$1) -> 0 | CB35: =VLOOKUP(DropDownList!$B$27,CntyQryCensus!$A$4:$CX$26,CB$1) -> 1 | CC35: =VLOOKUP(DropDownList!$B$27,CntyQryCensus!$A$4:$CX$26,CC$1) -> 6 | CD35: =VLOOKUP(DropDownList!$B$27,CntyQryCensus!$A$4:$CX$26,CD$1) -> 54 | CE35: =VLOOKUP(DropDownList!$B$27,CntyQryCensus!$A$4:$CX$26,CE$1) -> 153 | CF35: =VLOOKUP(DropDownList!$B$27,CntyQryCensus!$A$4:$CX$26,CF$1) -> 170 | CG35: =VLOOKUP(DropDownList!$B$27,CntyQryCensus!$A$4:$CX$26,CG$1) -> 95 | CH35: =VLOOKUP(DropDownList!$B$27,CntyQryCensus!$A$4:$CX$26,CH$1) -> 77 | CI35: =VLOOKUP(DropDownList!$B$27,CntyQryCensus!$A$4:$CX$26,CI$1) -> 44 | CJ35: =VLOOKUP(DropDownList!$B$27,CntyQryCensus!$A$4:$CX$26,CJ$1) -> 12 | CK35: =VLOOKUP(DropDownList!$B$27,CntyQryCensus!$A$4:$CX$26,CK$1) -> 16 | CL35: =VLOOKUP(DropDownList!$B$27,CntyQryCensus!$A$4:$CX$26,CL$1) -> 36 | CM35: =VLOOKUP(DropDownList!$B$27,CntyQryCensus!$A$4:$CX$26,CM$1) -> 41 | CN35: =VLOOKUP(DropDownList!$B$27,CntyQryCensus!$A$4:$CX$26,CN$1) -> 33 | CO35: =VLOOKUP(DropDownList!$B$27,CntyQryCensus!$A$4:$CX$26,CO$1) -> 13 | CP35: =VLOOKUP(DropDownList!$B$27,CntyQryCensus!$A$4:$CX$26,CP$1) -> 11 | CQ35: =VLOOKUP(DropDownList!$B$27,CntyQryCensus!$A$4:$CX$26,CQ$1) -> 7 | CR35: =VLOOKUP(DropDownList!$B$27,CntyQryCensus!$A$4:$CX$26,CR$1) -> 3 | CS35: =VLOOKUP(DropDownList!$B$27,CntyQryCensus!$A$4:$CX$26,CS$1) -> 1944 | CT35: =VLOOKUP(DropDownList!$B$27,CntyQryCensus!$A$4:$CX$26,CT$1) -> 1932 | CU35: =VLOOKUP(DropDownList!$B$27,CntyQryCensus!$A$4:$CX$26,CU$1) -> 12 | CV35: =VLOOKUP(DropDownList!$B$27,CntyQryCensus!$A$4:$CX$26,CV$1) -> 39.5 | CW35: =VLOOKUP(DropDownList!$B$27,CntyQryCensus!$A$4:$CX$26,CW$1) -> 39.2 | CX35: =VLOOKUP(DropDownList!$B$27,CntyQryCensus!$A$4:$CX$26,CX$1) -> 39.7
A38: Census 2000 DemoProfile Sample Data Tables 2&3 - DPTab23TownQry
A39: NAME | B39: COUSUB | C39: AREANAME | D39: PopInSchool | E39: Preschool | F39: Kindergarten | G39: Elementary | H39: HighSchool | I39: College | J39: Pop25andOver | K39: HighSchoolGrad | L39: SomeCollege | M39: AssocDegree | N39: BachelDegree | O39: GradDegree | P39: HSGradorHigher | Q39: CollegeGradorHigher | R39: Pop5to20yrs | S39: Pop5to20wDis | T39: Pop21to64 | U39: Pop21to64wDis | V39: Pop65over | W39: Pop65overwDis | X39: Pop5yrsOver | Y39: SameHUin95 | Z39: DiffHUinUSin95 | AA39: HUinSameCountyin95 | AB39: HUinSameStatein95 | AC39: TotalPop | AD39: NativePop | AE39: NatPopBornUS | AF39: NatPopBornInStatRes | AG39: NatPopBornDiffState | AH39: NatPopBornOutUS | AI39: FornBornPop | AJ39: FornPopEnt90to00 | AK39: FornPopNatCit | AL39: FornPopNotCit | AM39: Households | AN39: HHIncLessThn10k | AO39: HHInc10to15K | AP39: HHInc15to25K | AQ39: HHInc25to35K | AR39: HHInc35to50K | AS39: HHInc50to75K | AT39: HHInc75to100K | AU39: HHInc100to150K | AV39: HHInc150to200K | AW39: HHIncOver200K | AX39: MedianHHInc | AY39: HHwithPubAssistInc | AZ39: MeanPubAssist | BA39: FamilyHH | BB39: FHHIncLessThn10k | BC39: FHHInc10to15K | BD39: FHHInc15to25K | BE39: FHHInc25to35K | BF39: FHHInc35to50K | BG39: FHHInc50to75K | BH39: FHHInc75to100K | BI39: FHHInc100to150K | BJ39: FHHInc150to200K | BK39: FHHIncOver200K | BL39: MedianFHHInc | BM39: PerCapitaInc | BN39: PovStatFamilies | BO39: PovStatFHHwChilUnd18 | BP39: PovStatFHHwChilUnd5 | BQ39: PovStFmalHH | BR39: DP3088 | BS39: DP3089 | BT39: PovStatIndiv | BU39: PovStatIndiv18yrOver | BV39: PovStatIndiv65yrOver | BW39: DP3093 | BX39: DP3094 | BY39: DP3095
A40: =VLOOKUP(DropDownList!$B$27,CntyQryCensus!$A$33:$BZ$55,A$1) -> Alstead | B40: =VLOOKUP(DropDownList!$B$27,CntyQryCensus!$A$33:$BZ$55,B$1) -> 00820 | C40: =VLOOKUP(DropDownList!$B$27,CntyQryCensus!$A$33:$BZ$55,C$1) -> Alstead town, Cheshire County, New Hampshire | D40: =VLOOKUP(DropDownList!$B$27,CntyQryCensus!$A$33:$BZ$55,D$1) -> 489 | E40: =VLOOKUP(DropDownList!$B$27,CntyQryCensus!$A$33:$BZ$55,E$1) -> 41 | F40: =VLOOKUP(DropDownList!$B$27,CntyQryCensus!$A$33:$BZ$55,F$1) -> 22 | G40: =VLOOKUP(DropDownList!$B$27,CntyQryCensus!$A$33:$BZ$55,G$1) -> 237 | H40: =VLOOKUP(DropDownList!$B$27,CntyQryCensus!$A$33:$BZ$55,H$1) -> 126 | I40: =VLOOKUP(DropDownList!$B$27,CntyQryCensus!$A$33:$BZ$55,I$1) -> 63 | J40: =VLOOKUP(DropDownList!$B$27,CntyQryCensus!$A$33:$BZ$55,J$1) -> 1323 | K40: =VLOOKUP(DropDownList!$B$27,CntyQryCensus!$A$33:$BZ$55,K$1) -> 417 | L40: =VLOOKUP(DropDownList!$B$27,CntyQryCensus!$A$33:$BZ$55,L$1) -> 257 | M40: =VLOOKUP(DropDownList!$B$27,CntyQryCensus!$A$33:$BZ$55,M$1) -> 111 | N40: =VLOOKUP(DropDownList!$B$27,CntyQryCensus!$A$33:$BZ$55,N$1) -> 240 | O40: =VLOOKUP(DropDownList!$B$27,CntyQryCensus!$A$33:$BZ$55,O$1) -> 122 | P40: =VLOOKUP(DropDownList!$B$27,CntyQryCensus!$A$33:$BZ$55,P$1) -> 1147 | Q40: =VLOOKUP(DropDownList!$B$27,CntyQryCensus!$A$33:$BZ$55,Q$1) -> 362 | R40: =VLOOKUP(DropDownList!$B$27,CntyQryCensus!$A$33:$BZ$55,R$1) -> 451 | S40: =VLOOKUP(DropDownList!$B$27,CntyQryCensus!$A$33:$BZ$55,S$1) -> 58 | T40: =VLOOKUP(DropDownList!$B$27,CntyQryCensus!$A$33:$BZ$55,T$1) -> 1163 | U40: =VLOOKUP(DropDownList!$B$27,CntyQryCensus!$A$33:$BZ$55,U$1) -> 200 | V40: =VLOOKUP(DropDownList!$B$27,CntyQryCensus!$A$33:$BZ$55,V$1) -> 232 | W40: =VLOOKUP(DropDownList!$B$27,CntyQryCensus!$A$33:$BZ$55,W$1) -> 88 | X40: =VLOOKUP(DropDownList!$B$27,CntyQryCensus!$A$33:$BZ$55,X$1) -> 1846 | Y40: =VLOOKUP(DropDownList!$B$27,CntyQryCensus!$A$33:$BZ$55,Y$1) -> 1173 | Z40: =VLOOKUP(DropDownList!$B$27,CntyQryCensus!$A$33:$BZ$55,Z$1) -> 668 | AA40: =VLOOKUP(DropDownList!$B$27,CntyQryCensus!$A$33:$BZ$55,AA$1) -> 353 | AB40: =VLOOKUP(DropDownList!$B$27,CntyQryCensus!$A$33:$BZ$55,AB$1) -> 315 | AC40: =VLOOKUP(DropDownList!$B$27,CntyQryCensus!$A$33:$BZ$55,AC$1) -> 1964 | AD40: =VLOOKUP(DropDownList!$B$27,CntyQryCensus!$A$33:$BZ$55,AD$1) -> 1922 | AE40: =VLOOKUP(DropDownList!$B$27,CntyQryCensus!$A$33:$BZ$55,AE$1) -> 1913 | AF40: =VLOOKUP(DropDownList!$B$27,CntyQryCensus!$A$33:$BZ$55,AF$1) -> 779 | AG40: =VLOOKUP(DropDownList!$B$27,CntyQryCensus!$A$33:$BZ$55,AG$1) -> 1134 | AH40: =VLOOKUP(DropDownList!$B$27,CntyQryCensus!$A$33:$BZ$55,AH$1) -> 9 | AI40: =VLOOKUP(DropDownList!$B$27,CntyQryCensus!$A$33:$BZ$55,AI$1) -> 42 | AJ40: =VLOOKUP(DropDownList!$B$27,CntyQryCensus!$A$33:$BZ$55,AJ$1) -> 14 | AK40: =VLOOKUP(DropDownList!$B$27,CntyQryCensus!$A$33:$BZ$55,AK$1) -> 19 | AL40: =VLOOKUP(DropDownList!$B$27,CntyQryCensus!$A$33:$BZ$55,AL$1) -> 23 | AM40: =VLOOKUP(DropDownList!$B$27,CntyQryCensus!$A$33:$BZ$55,AM$1) -> 795 | AN40: =VLOOKUP(DropDownList!$B$27,CntyQryCensus!$A$33:$BZ$55,AN$1) -> 43 | AO40: =VLOOKUP(DropDownList!$B$27,CntyQryCensus!$A$33:$BZ$55,AO$1) -> 32 | AP40: =VLOOKUP(DropDownList!$B$27,CntyQryCensus!$A$33:$BZ$55,AP$1) -> 118 | AQ40: =VLOOKUP(DropDownList!$B$27,CntyQryCensus!$A$33:$BZ$55,AQ$1) -> 118 | AR40: =VLOOKUP(DropDownList!$B$27,CntyQryCensus!$A$33:$BZ$55,AR$1) -> 173 | AS40: =VLOOKUP(DropDownList!$B$27,CntyQryCensus!$A$33:$BZ$55,AS$1) -> 168 | AT40: =VLOOKUP(DropDownList!$B$27,CntyQryCensus!$A$33:$BZ$55,AT$1) -> 91 | AU40: =VLOOKUP(DropDownList!$B$27,CntyQryCensus!$A$33:$BZ$55,AU$1) -> 35 | AV40: =VLOOKUP(DropDownList!$B$27,CntyQryCensus!$A$33:$BZ$55,AV$1) -> 9 | AW40: =VLOOKUP(DropDownList!$B$27,CntyQryCensus!$A$33:$BZ$55,AW$1) -> 8 | AX40: =VLOOKUP(DropDownList!$B$27,CntyQryCensus!$A$33:$BZ$55,AX$1) -> 43191 | AY40: =VLOOKUP(DropDownList!$B$27,CntyQryCensus!$A$33:$BZ$55,AY$1) -> 21 | AZ40: =VLOOKUP(DropDownList!$B$27,CntyQryCensus!$A$33:$BZ$55,AZ$1) -> 1548 | BA40: =VLOOKUP(DropDownList!$B$27,CntyQryCensus!$A$33:$BZ$55,BA$1) -> 549 | BB40: =VLOOKUP(DropDownList!$B$27,CntyQryCensus!$A$33:$BZ$55,BB$1) -> 12 | BC40: =VLOOKUP(DropDownList!$B$27,CntyQryCensus!$A$33:$BZ$55,BC$1) -> 2 | BD40: =VLOOKUP(DropDownList!$B$27,CntyQryCensus!$A$33:$BZ$55,BD$1) -> 80 | BE40: =VLOOKUP(DropDownList!$B$27,CntyQryCensus!$A$33:$BZ$55,BE$1) -> 68 | BF40: =VLOOKUP(DropDownList!$B$27,CntyQryCensus!$A$33:$BZ$55,BF$1) -> 127 | BG40: =VLOOKUP(DropDownList!$B$27,CntyQryCensus!$A$33:$BZ$55,BG$1) -> 141 | BH40: =VLOOKUP(DropDownList!$B$27,CntyQryCensus!$A$33:$BZ$55,BH$1) -> 78 | BI40: =VLOOKUP(DropDownList!$B$27,CntyQryCensus!$A$33:$BZ$55,BI$1) -> 29 | BJ40: =VLOOKUP(DropDownList!$B$27,CntyQryCensus!$A$33:$BZ$55,BJ$1) -> 4 | BK40: =VLOOKUP(DropDownList!$B$27,CntyQryCensus!$A$33:$BZ$55,BK$1) -> 8 | BL40: =VLOOKUP(DropDownList!$B$27,CntyQryCensus!$A$33:$BZ$55,BL$1) -> 47311 | BM40: =VLOOKUP(DropDownList!$B$27,CntyQryCensus!$A$33:$BZ$55,BM$1) -> 20444 | BN40: =VLOOKUP(DropDownList!$B$27,CntyQryCensus!$A$33:$BZ$55,BN$1) -> 19 | BO40: =VLOOKUP(DropDownList!$B$27,CntyQryCensus!$A$33:$BZ$55,BO$1) -> 16 | BP40: =VLOOKUP(DropDownList!$B$27,CntyQryCensus!$A$33:$BZ$55,BP$1) -> 7 | BQ40: =VLOOKUP(DropDownList!$B$27,CntyQryCensus!$A$33:$BZ$55,BQ$1) -> 14 | BR40: =VLOOKUP(DropDownList!$B$27,CntyQryCensus!$A$33:$BZ$55,BR$1) -> 11 | BS40: =VLOOKUP(DropDownList!$B$27,CntyQryCensus!$A$33:$BZ$55,BS$1) -> 2 | BT40: =VLOOKUP(DropDownList!$B$27,CntyQryCensus!$A$33:$BZ$55,BT$1) -> 153 | BU40: =VLOOKUP(DropDownList!$B$27,CntyQryCensus!$A$33:$BZ$55,BU$1) -> 99 | BV40: =VLOOKUP(DropDownList!$B$27,CntyQryCensus!$A$33:$BZ$55,BV$1) -> 11 | BW40: =VLOOKUP(DropDownList!$B$27,CntyQryCensus!$A$33:$BZ$55,BW$1) -> 54 | BX40: =VLOOKUP(DropDownList!$B$27,CntyQryCensus!$A$33:$BZ$55,BX$1) -> 44 | BY40: =VLOOKUP(DropDownList!$B$27,CntyQryCensus!$A$33:$BZ$55,BY$1) -> 72
A43: Census 2000 DemoProfile Sample Data Table 4 - DPTab4TownQry
A44: NAME | B44: COUSUB | C44: TotHousingUnits | D44: 1UnitDet | E44: 1UnitAtt | F44: 2Units | G44: 3to4Units | H44: 5to9Units | I44: 10to19Units | J44: 20orMoreUnits | K44: MobileHomes | L44: BoatRvVan | M44: SingleFamilyUnits | N44: MultiFamUnits | O44: MobileHomeUnits | P44: YearBuilt99to00 | Q44: YearBuilt95to98 | R44: YearBUilt90to94 | S44: YearBuilt80to89 | T44: YearBuilt70to79 | U44: YearBuilt60to69 | V44: YearBuilt40to59 | W44: YearBuilt39orEarlier | X44: Rooms1 | Y44: Rooms2 | Z44: Rooms3 | AA44: Rooms4 | AB44: Rooms5 | AC44: Rooms6 | AD44: Rooms7 | AE44: Rooms8 | AF44: Rooms9orMore | AG44: MedianRooms | AH44: OccHU1 | AI44: YrHHMvdIn99to00 | AJ44: YrHHMvdIn95to98 | AK44: YrHHMvdIn90to94 | AL44: YrHHMvdIn80to89 | AM44: YrHHMvdIn70to79 | AN44: YrHHMvdIn69orBefore | AO44: HeatFuelNatGas | AP44: HeatFuelBotGas | AQ44: HeatFuelElectric | AR44: HeatFuelOil | AS44: HeatFuelCoal | AT44: HeatFuelWood | AU44: HeatFuelSolar | AV44: HeatFuelOther | AW44: HeatFuelNone | AX44: LackCompPlumb | AY44: LackCompKit | AZ44: NoTelephone | BA44: OccHU | BB44: OccPerRm1orLess | BC44: OccPerRm1to1_5 | BD44: OccPerRm1_5orMore | BE44: SpecOwnOccUnits | BF44: Value<50K | BG44: Value50to100K | BH44: Value100to150K | BI44: Value150to200K | BJ44: Value200to300K | BK44: Value300to500K | BL44: Value500Kto1mil | BM44: Value1MilorMore | BN44: MedianValue | BO44: WithMortg | BP44: MnthOwnCst<300 | BQ44: MnthOwnCst300to500 | BR44: MnthOwnCst500to700 | BS44: MnthOwnCst700to1000 | BT44: MnthOwnCst1000to1500 | BU44: MnthOwnCst1500to2000 | BV44: MnthOwnCst2000orMore | BW44: MediMnthOwnCst | BX44: NotMrtg | BY44: NotMrtgMediMnthOwnCst | BZ44: OwnCst%HHInc<15 | CA44: OwnCst%HHInc15to20 | CB44: OwnCst%HHInc20to25 | CC44: OwnCst%HHInc25to30 | CD44: OwnCst%HHInc30to35 | CE44: OwnCst%HHInc35orMor | CF44: NotComputed | CG44: SpecRntOccUnits | CH44: Rnt<200 | CI44: Rnt200to300 | CJ44: Rnt300to500 | CK44: Rnt500to750 | CL44: Rnt750to1000 | CM44: Rnt1000to1500 | CN44: Rnt1500orMore | CO44: NoRent | CP44: MedianRent | CQ44: Rnt%HHInc<15 | CR44: Rnt%HHInc15to20 | CS44: Rnt%HHInc20to25 | CT44: Rnt%HHInc25to30 | CU44: Rnt%HHInc30to35 | CV44: Rnt%HHInc35orMore | CW44: Rnt%NotCompute
A45: =VLOOKUP(DropDownList!$B$27,CntyQryCensus!$A$63:$CX$85,A$1) -> Alstead | B45: =VLOOKUP(DropDownList!$B$27,CntyQryCensus!$A$63:$CX$85,B$1) -> 00820 | C45: =VLOOKUP(DropDownList!$B$27,CntyQryCensus!$A$63:$CX$85,C$1) -> 950 | D45: =VLOOKUP(DropDownList!$B$27,CntyQryCensus!$A$63:$CX$85,D$1) -> 750 | E45: =VLOOKUP(DropDownList!$B$27,CntyQryCensus!$A$63:$CX$85,E$1) -> 6 | F45: =VLOOKUP(DropDownList!$B$27,CntyQryCensus!$A$63:$CX$85,F$1) -> 31 | G45: =VLOOKUP(DropDownList!$B$27,CntyQryCensus!$A$63:$CX$85,G$1) -> 30 | H45: =VLOOKUP(DropDownList!$B$27,CntyQryCensus!$A$63:$CX$85,H$1) -> 18 | I45: =VLOOKUP(DropDownList!$B$27,CntyQryCensus!$A$63:$CX$85,I$1) -> 0 | J45: =VLOOKUP(DropDownList!$B$27,CntyQryCensus!$A$63:$CX$85,J$1) -> 0 | K45: =VLOOKUP(DropDownList!$B$27,CntyQryCensus!$A$63:$CX$85,K$1) -> 110 | L45: =VLOOKUP(DropDownList!$B$27,CntyQryCensus!$A$63:$CX$85,L$1) -> 5 | M45: =VLOOKUP(DropDownList!$B$27,CntyQryCensus!$A$63:$CX$85,M$1) -> 750 | N45: =VLOOKUP(DropDownList!$B$27,CntyQryCensus!$A$63:$CX$85,N$1) -> 85 | O45: =VLOOKUP(DropDownList!$B$27,CntyQryCensus!$A$63:$CX$85,O$1) -> 115 | P45: =VLOOKUP(DropDownList!$B$27,CntyQryCensus!$A$63:$CX$85,P$1) -> 6 | Q45: =VLOOKUP(DropDownList!$B$27,CntyQryCensus!$A$63:$CX$85,Q$1) -> 50 | R45: =VLOOKUP(DropDownList!$B$27,CntyQryCensus!$A$63:$CX$85,R$1) -> 70 | S45: =VLOOKUP(DropDownList!$B$27,CntyQryCensus!$A$63:$CX$85,S$1) -> 198 | T45: =VLOOKUP(DropDownList!$B$27,CntyQryCensus!$A$63:$CX$85,T$1) -> 150 | U45: =VLOOKUP(DropDownList!$B$27,CntyQryCensus!$A$63:$CX$85,U$1) -> 102 | V45: =VLOOKUP(DropDownList!$B$27,CntyQryCensus!$A$63:$CX$85,V$1) -> 117 | W45: =VLOOKUP(DropDownList!$B$27,CntyQryCensus!$A$63:$CX$85,W$1) -> 257 | X45: =VLOOKUP(DropDownList!$B$27,CntyQryCensus!$A$63:$CX$85,X$1) -> 26 | Y45: =VLOOKUP(DropDownList!$B$27,CntyQryCensus!$A$63:$CX$85,Y$1) -> 28 | Z45: =VLOOKUP(DropDownList!$B$27,CntyQryCensus!$A$63:$CX$85,Z$1) -> 106 | AA45: =VLOOKUP(DropDownList!$B$27,CntyQryCensus!$A$63:$CX$85,AA$1) -> 180 | AB45: =VLOOKUP(DropDownList!$B$27,CntyQryCensus!$A$63:$CX$85,AB$1) -> 180 | AC45: =VLOOKUP(DropDownList!$B$27,CntyQryCensus!$A$63:$CX$85,AC$1) -> 164 | AD45: =VLOOKUP(DropDownList!$B$27,CntyQryCensus!$A$63:$CX$85,AD$1) -> 128 | AE45: =VLOOKUP(DropDownList!$B$27,CntyQryCensus!$A$63:$CX$85,AE$1) -> 72 | AF45: =VLOOKUP(DropDownList!$B$27,CntyQryCensus!$A$63:$CX$85,AF$1) -> 66 | AG45: =VLOOKUP(DropDownList!$B$27,CntyQryCensus!$A$63:$CX$85,AG$1) -> 5.3 | AH45: =VLOOKUP(DropDownList!$B$27,CntyQryCensus!$A$63:$CX$85,AH$1) -> 781 | AI45: =VLOOKUP(DropDownList!$B$27,CntyQryCensus!$A$63:$CX$85,AI$1) -> 109 | AJ45: =VLOOKUP(DropDownList!$B$27,CntyQryCensus!$A$63:$CX$85,AJ$1) -> 180 | AK45: =VLOOKUP(DropDownList!$B$27,CntyQryCensus!$A$63:$CX$85,AK$1) -> 105 | AL45: =VLOOKUP(DropDownList!$B$27,CntyQryCensus!$A$63:$CX$85,AL$1) -> 190 | AM45: =VLOOKUP(DropDownList!$B$27,CntyQryCensus!$A$63:$CX$85,AM$1) -> 100 | AN45: =VLOOKUP(DropDownList!$B$27,CntyQryCensus!$A$63:$CX$85,AN$1) -> 97 | AO45: =VLOOKUP(DropDownList!$B$27,CntyQryCensus!$A$63:$CX$85,AO$1) -> 2 | AP45: =VLOOKUP(DropDownList!$B$27,CntyQryCensus!$A$63:$CX$85,AP$1) -> 74 | AQ45: =VLOOKUP(DropDownList!$B$27,CntyQryCensus!$A$63:$CX$85,AQ$1) -> 27 | AR45: =VLOOKUP(DropDownList!$B$27,CntyQryCensus!$A$63:$CX$85,AR$1) -> 459 | AS45: =VLOOKUP(DropDownList!$B$27,CntyQryCensus!$A$63:$CX$85,AS$1) -> 13 | AT45: =VLOOKUP(DropDownList!$B$27,CntyQryCensus!$A$63:$CX$85,AT$1) -> 201 | AU45: =VLOOKUP(DropDownList!$B$27,CntyQryCensus!$A$63:$CX$85,AU$1) -> 0 | AV45: =VLOOKUP(DropDownList!$B$27,CntyQryCensus!$A$63:$CX$85,AV$1) -> 0 | AW45: =VLOOKUP(DropDownList!$B$27,CntyQryCensus!$A$63:$CX$85,AW$1) -> 5 | AX45: =VLOOKUP(DropDownList!$B$27,CntyQryCensus!$A$63:$CX$85,AX$1) -> 47 | AY45: =VLOOKUP(DropDownList!$B$27,CntyQryCensus!$A$63:$CX$85,AY$1) -> 24 | AZ45: =VLOOKUP(DropDownList!$B$27,CntyQryCensus!$A$63:$CX$85,AZ$1) -> 10 | BA45: =VLOOKUP(DropDownList!$B$27,CntyQryCensus!$A$63:$CX$85,BA$1) -> 781 | BB45: =VLOOKUP(DropDownList!$B$27,CntyQryCensus!$A$63:$CX$85,BB$1) -> 763 | BC45: =VLOOKUP(DropDownList!$B$27,CntyQryCensus!$A$63:$CX$85,BC$1) -> 8 | BD45: =VLOOKUP(DropDownList!$B$27,CntyQryCensus!$A$63:$CX$85,BD$1) -> 10 | BE45: =VLOOKUP(DropDownList!$B$27,CntyQryCensus!$A$63:$CX$85,BE$1) -> 330 | BF45: =VLOOKUP(DropDownList!$B$27,CntyQryCensus!$A$63:$CX$85,BF$1) -> 34 | BG45: =VLOOKUP(DropDownList!$B$27,CntyQryCensus!$A$63:$CX$85,BG$1) -> 174 | BH45: =VLOOKUP(DropDownList!$B$27,CntyQryCensus!$A$63:$CX$85,BH$1) -> 90 | BI45: =VLOOKUP(DropDownList!$B$27,CntyQryCensus!$A$63:$CX$85,BI$1) -> 25 | BJ45: =VLOOKUP(DropDownList!$B$27,CntyQryCensus!$A$63:$CX$85,BJ$1) -> 2 | BK45: =VLOOKUP(DropDownList!$B$27,CntyQryCensus!$A$63:$CX$85,BK$1) -> 2 | BL45: =VLOOKUP(DropDownList!$B$27,CntyQryCensus!$A$63:$CX$85,BL$1) -> 0 | BM45: =VLOOKUP(DropDownList!$B$27,CntyQryCensus!$A$63:$CX$85,BM$1) -> 3 | BN45: =VLOOKUP(DropDownList!$B$27,CntyQryCensus!$A$63:$CX$85,BN$1) -> 87900 | BO45: =VLOOKUP(DropDownList!$B$27,CntyQryCensus!$A$63:$CX$85,BO$1) -> 209 | BP45: =VLOOKUP(DropDownList!$B$27,CntyQryCensus!$A$63:$CX$85,BP$1) -> 0 | BQ45: =VLOOKUP(DropDownList!$B$27,CntyQryCensus!$A$63:$CX$85,BQ$1) -> 16 | BR45: =VLOOKUP(DropDownList!$B$27,CntyQryCensus!$A$63:$CX$85,BR$1) -> 36 | BS45: =VLOOKUP(DropDownList!$B$27,CntyQryCensus!$A$63:$CX$85,BS$1) -> 91 | BT45: =VLOOKUP(DropDownList!$B$27,CntyQryCensus!$A$63:$CX$85,BT$1) -> 51 | BU45: =VLOOKUP(DropDownList!$B$27,CntyQryCensus!$A$63:$CX$85,BU$1) -> 15 | BV45: =VLOOKUP(DropDownList!$B$27,CntyQryCensus!$A$63:$CX$85,BV$1) -> 0 | BW45: =VLOOKUP(DropDownList!$B$27,CntyQryCensus!$A$63:$CX$85,BW$1) -> 880 | BX45: =VLOOKUP(DropDownList!$B$27,CntyQryCensus!$A$63:$CX$85,BX$1) -> 121 | BY45: =VLOOKUP(DropDownList!$B$27,CntyQryCensus!$A$63:$CX$85,BY$1) -> 363 | BZ45: =VLOOKUP(DropDownList!$B$27,CntyQryCensus!$A$63:$CX$85,BZ$1) -> 122 | CA45: =VLOOKUP(DropDownList!$B$27,CntyQryCensus!$A$63:$CX$85,CA$1) -> 60 | CB45: =VLOOKUP(DropDownList!$B$27,CntyQryCensus!$A$63:$CX$85,CB$1) -> 42 | CC45: =VLOOKUP(DropDownList!$B$27,CntyQryCensus!$A$63:$CX$85,CC$1) -> 35 | CD45: =VLOOKUP(DropDownList!$B$27,CntyQryCensus!$A$63:$CX$85,CD$1) -> 16 | CE45: =VLOOKUP(DropDownList!$B$27,CntyQryCensus!$A$63:$CX$85,CE$1) -> 55 | CF45: =VLOOKUP(DropDownList!$B$27,CntyQryCensus!$A$63:$CX$85,CF$1) -> 0 | CG45: =VLOOKUP(DropDownList!$B$27,CntyQryCensus!$A$63:$CX$85,CG$1) -> 142 | CH45: =VLOOKUP(DropDownList!$B$27,CntyQryCensus!$A$63:$CX$85,CH$1) -> 0 | CI45: =VLOOKUP(DropDownList!$B$27,CntyQryCensus!$A$63:$CX$85,CI$1) -> 2 | CJ45: =VLOOKUP(DropDownList!$B$27,CntyQryCensus!$A$63:$CX$85,CJ$1) -> 31 | CK45: =VLOOKUP(DropDownList!$B$27,CntyQryCensus!$A$63:$CX$85,CK$1) -> 69 | CL45: =VLOOKUP(DropDownList!$B$27,CntyQryCensus!$A$63:$CX$85,CL$1) -> 17 | CM45: =VLOOKUP(DropDownList!$B$27,CntyQryCensus!$A$63:$CX$85,CM$1) -> 5 | CN45: =VLOOKUP(DropDownList!$B$27,CntyQryCensus!$A$63:$CX$85,CN$1) -> 0 | CO45: =VLOOKUP(DropDownList!$B$27,CntyQryCensus!$A$63:$CX$85,CO$1) -> 18 | CP45: =VLOOKUP(DropDownList!$B$27,CntyQryCensus!$A$63:$CX$85,CP$1) -> 617 | CQ45: =VLOOKUP(DropDownList!$B$27,CntyQryCensus!$A$63:$CX$85,CQ$1) -> 26 | CR45: =VLOOKUP(DropDownList!$B$27,CntyQryCensus!$A$63:$CX$85,CR$1) -> 10 | CS45: =VLOOKUP(DropDownList!$B$27,CntyQryCensus!$A$63:$CX$85,CS$1) -> 23 | CT45: =VLOOKUP(DropDownList!$B$27,CntyQryCensus!$A$63:$CX$85,CT$1) -> 13 | CU45: =VLOOKUP(DropDownList!$B$27,CntyQryCensus!$A$63:$CX$85,CU$1) -> 4 | CV45: =VLOOKUP(DropDownList!$B$27,CntyQryCensus!$A$63:$CX$85,CV$1) -> 43 | CW45: =VLOOKUP(DropDownList!$B$27,CntyQryCensus!$A$63:$CX$85,CW$1) -> 23
A48: Census 2000 SummaryFile3 Sample Data - SF3TownQry1SocialChar
A49: NAME | B49: LOGRECNO | C49: COUNTY | D49: P01TotalPopulation | E49: P02SampleCountOfPop | F49: P03Pop100pctCount | G49: P05UrbanPopulation | H49: P05RuralPopulation | I49: P06WhiteAlone | J49: P06BlackOrAfAm | K49: P06AmIndAlone | L49: P06AsianAlone | M49: P06HawaiianOrPI | N49: P06OtherRace | O49: P06TwoPlusRaces | P49: P07NotHispanicOrLatino | Q49: P07HispanicOrLatino | R49: P08MalePop | S49: P08FemalePop | T49: P09PopInHouseholds | U49: P09PopInFamHH | V49: P09PopInNonFamHH | W49: P09PopInGroupQtr | X49: P13TotalHH | Y49: P13FamilyHH | Z49: P13FamHHolder15to24yrs | AA49: P13FamHHolder25to34yrs | AB49: P13FamHHolder35to44yrs | AC49: P13FamHHolder45to54yrs | AD49: P13FamHHolder55to64yrs | AE49: P13FamHHolder65to74yrs | AF49: P13FamHHolder75to84yrs | AG49: P13FamHHolder85yrsOver | AH49: P13NonFamilyHH | AI49: P13NonFamHHolder15to24yrs | AJ49: P13NonFamHHolder25to34yrs | AK49: P13NonFamHHolder35to44yrs | AL49: P13NonFamHHolder45to54yrs | AM49: P13NonFamHHolder55to64yrs | AN49: P13NonFamHHolder65to74yrs | AO49: P13NonFamHHolder75to84yrs | AP49: P13NonFamHHolder85yrsOver | AQ49: P18Pop15yrsOver | AR49: P18MaritalStatNeverMarried | AS49: P18MaritalStatNowMarried | AT49: P18MaritalStatSeparated | AU49: P18MaritalStatWidowed | AV49: P18MaritalStatWidowFemale | AW49: P18MaritalStatDivorced | AX49: P18MaritalStatDivorcedFemale | AY49: P21NativeBornPop | AZ49: P21NatPopBornInState | BA49: P21NatPopBornOtherState | BB49: P021005 | BC49: P021006 | BD49: P021007 | BE49: P021008 | BF49: P21NatPopBornOutUS | BG49: P21ForeignBornPop | BH49: P021014 | BI49: P021015 | BJ49: P24Pop5YrsPlus | BK49: P24ResSameHouseIn95 | BL49: P24ResDiffHouseIn95 | BM49: P24ResDiffHouseInUSIn95 | BN49: P24ResDiffHouseSameCountyIn95 | BO49: P24ResDiffHouseDiffCountyIn95 | BP49: P24ResDiffHouseDiffCntySamStIn95 | BQ49: P24ResDiffHouseDiffCntyDifStIn95 | BR49: P24ResDiffHouseDiffCntyNEStIn95 | BS49: P24ResDiffHouseDiffCntyMWStIn95 | BT49: P24ResDiffHouseDiffCntySoStIn95 | BU49: P24ResDiffHouseDiffCntyWstStIn95 | BV49: P24ResDiffInPR | BW49: P24ResDiffElsewhereIn95 | BX49: P26Workers16yrsOver | BY49: P26WorkedInState | BZ49: P26WorkedInCnty | CA49: P26WorkedOutsideCnty | CB49: P26WorkedOutsideState | CC49: P30Workers16Over | CD49: P30TranspToWrkCar | CE49: P30TranspToWrkPublic | CF49: P30TranspToWrkOther | CG49: P30WrkdAtHome | CH49: P31WrkrsNotWrkAtHom | CI49: P31TravTim<5min | CJ49: P31TravTim5to9Min | CK49: P31TravTim10to14Min | CL49: P31TravTim15to19Min | CM49: P31TravTim20to24Min | CN49: P31TravTim25to29Min | CO49: P31TravTim30to34Min | CP49: P31TravTim35to39Min | CQ49: P31TravTim40to44Min | CR49: P31TravTim45to59Min | CS49: P31TravTim60to89Min | CT49: P31TravTim90MinMore | CU49: P31WorkAtHome | CV49: P36SchEnrlPop3yrOver | CW49: P36NurserSchEnrl | CX49: P36KinderSchEnrl | CY49: P36ElemSchEnrl | CZ49: P36HighSchEnrl | DA49: P36CollGradSchEnrl | DB49: P37Pop25yrsOver | DC49: P37EduAtain<9grd | DD49: P37EduAtainHSnoDip | DE49: P37EduAtainHSgrad | DF49: P37EduAtainCollNoDeg | DG49: P37EduAtainAssocDeg | DH49: P37EduAtainBachDeg | DI49: P37EduAtainGradProfDeg | DJ49: P42NIPop5to15 | DK49: P42NIPop5to15wDisabl | DL49: P42NIPop16to20 | DM49: P42NIPop16to20wDisab | DN49: P42NIPop16to20wDisEmp | DO49: P42NIPop16to21NoDis | DP49: P42NIPop16to21NoDisEmpl | DQ49: P42NIPop21to64 | DR49: P42NIPop21to64wDis | DS49: P42NIPop21to64wDisEmp | DT49: P42NIPop21to64NoDis | DU49: P42NIPop21to64NoDisEmp | DV49: P42NIPop65to74 | DW49: P42NIPop65to74wDis | DX49: P42NIPop75Over | DY49: P42NIPop75OverwDis | DZ49: P43Pop16YrsOver | EA49: P43Pop16OvrInLaborForce | EB49: P43Pop16OvrCivlLabFrc | EC49: P43Pop16OvrCivlLbrFrcEmp | ED49: P48Families | EE49: P48MarriedFam | EF49: P48MarrFamNoWorkers | EG49: P48MarrFam1Worker | EH49: P48MarrFam2Worker | EI49: P48MarrFamHusbWifeWorked | EJ49: P48MarrFamOther | EK49: P48MarrFam3PlusWorker | EL49: P48MarrFam3WorkHsbWif | EM49: P48MarrFam3PlsWrkOther | EN49: P48OtherFam | EO49: P48MaleHHNoWif | EP49: P48MaleHHNoWifNoWorker | EQ49: P48MaleHHNoWif1Worker | ER49: P48MaleHHNoWif2Worker | ES49: P48MaleHHNoWif3PlusWorker | ET49: P48FemaleHHNoHsb | EU49: P48FemaleHHNoHsbNoWorker | EV49: P48FemaleHHNoHsb1Worker | EW49: P48FemaleHHNoHsb2Worker | EX49: P48FemaleHHNoHsb3Worker | EY49: P49EmpCivPop16YrOver | EZ49: P49IndustAgricult | FA49: P49IndustConst | FB49: P49IndustMnftg | FC49: P49IndustWhlslTrd | FD49: P49IndustRtlTrd | FE49: P49IndustTrspWrhsUtlt | FF49: P49IndustInfrm | FG49: P49IndustFinInsRE | FH49: P49IndustPrfsScntfMngmt | FI49: P49IndustEduHlthSocSrv | FJ49: P49IndustArtsEntRec | FK49: P49IndustOthrSrvc | FL49: P49IndustPubAdm | FM49: P50OccupMngmtProfs | FN49: P50OccupService | FO49: P50OccupSalesOff | FP49: P50OccupFarmFishForest | FQ49: P50OccupConstExtrctMaint | FR49: P50OccupPrdctTrnspMatMv
A50: =VLOOKUP(DropDownList!$B$27,CntyQryCensus!$A$95:$FR$117,A$1) -> Alstead | B50: =VLOOKUP(DropDownList!$B$27,CntyQryCensus!$A$95:$FR$117,B$1) -> 0000512 | C50: =VLOOKUP(DropDownList!$B$27,CntyQryCensus!$A$95:$FR$117,C$1) -> 00820 | D50: =VLOOKUP(DropDownList!$B$27,CntyQryCensus!$A$95:$FR$117,D$1) -> 1964 | E50: =VLOOKUP(DropDownList!$B$27,CntyQryCensus!$A$95:$FR$117,E$1) -> 919 | F50: =VLOOKUP(DropDownList!$B$27,CntyQryCensus!$A$95:$FR$117,F$1) -> 1944 | G50: =VLOOKUP(DropDownList!$B$27,CntyQryCensus!$A$95:$FR$117,G$1) -> 0 | H50: =VLOOKUP(DropDownList!$B$27,CntyQryCensus!$A$95:$FR$117,H$1) -> 1964 | I50: =VLOOKUP(DropDownList!$B$27,CntyQryCensus!$A$95:$FR$117,I$1) -> 1936 | J50: =VLOOKUP(DropDownList!$B$27,CntyQryCensus!$A$95:$FR$117,J$1) -> 0 | K50: =VLOOKUP(DropDownList!$B$27,CntyQryCensus!$A$95:$FR$117,K$1) -> 7 | L50: =VLOOKUP(DropDownList!$B$27,CntyQryCensus!$A$95:$FR$117,L$1) -> 10 | M50: =VLOOKUP(DropDownList!$B$27,CntyQryCensus!$A$95:$FR$117,M$1) -> 0 | N50: =VLOOKUP(DropDownList!$B$27,CntyQryCensus!$A$95:$FR$117,N$1) -> 0 | O50: =VLOOKUP(DropDownList!$B$27,CntyQryCensus!$A$95:$FR$117,O$1) -> 11 | P50: =VLOOKUP(DropDownList!$B$27,CntyQryCensus!$A$95:$FR$117,P$1) -> 1958 | Q50: =VLOOKUP(DropDownList!$B$27,CntyQryCensus!$A$95:$FR$117,Q$1) -> 6 | R50: =VLOOKUP(DropDownList!$B$27,CntyQryCensus!$A$95:$FR$117,R$1) -> 1019 | S50: =VLOOKUP(DropDownList!$B$27,CntyQryCensus!$A$95:$FR$117,S$1) -> 945 | T50: =VLOOKUP(DropDownList!$B$27,CntyQryCensus!$A$95:$FR$117,T$1) -> 1952 | U50: =VLOOKUP(DropDownList!$B$27,CntyQryCensus!$A$95:$FR$117,U$1) -> 1647 | V50: =VLOOKUP(DropDownList!$B$27,CntyQryCensus!$A$95:$FR$117,V$1) -> 305 | W50: =VLOOKUP(DropDownList!$B$27,CntyQryCensus!$A$95:$FR$117,W$1) -> 12 | X50: =VLOOKUP(DropDownList!$B$27,CntyQryCensus!$A$95:$FR$117,X$1) -> 795 | Y50: =VLOOKUP(DropDownList!$B$27,CntyQryCensus!$A$95:$FR$117,Y$1) -> 549 | Z50: =VLOOKUP(DropDownList!$B$27,CntyQryCensus!$A$95:$FR$117,Z$1) -> 16 | AA50: =VLOOKUP(DropDownList!$B$27,CntyQryCensus!$A$95:$FR$117,AA$1) -> 69 | AB50: =VLOOKUP(DropDownList!$B$27,CntyQryCensus!$A$95:$FR$117,AB$1) -> 154 | AC50: =VLOOKUP(DropDownList!$B$27,CntyQryCensus!$A$95:$FR$117,AC$1) -> 147 | AD50: =VLOOKUP(DropDownList!$B$27,CntyQryCensus!$A$95:$FR$117,AD$1) -> 78 | AE50: =VLOOKUP(DropDownList!$B$27,CntyQryCensus!$A$95:$FR$117,AE$1) -> 48 | AF50: =VLOOKUP(DropDownList!$B$27,CntyQryCensus!$A$95:$FR$117,AF$1) -> 28 | AG50: =VLOOKUP(DropDownList!$B$27,CntyQryCensus!$A$95:$FR$117,AG$1) -> 9 | AH50: =VLOOKUP(DropDownList!$B$27,CntyQryCensus!$A$95:$FR$117,AH$1) -> 246 | AI50: =VLOOKUP(DropDownList!$B$27,CntyQryCensus!$A$95:$FR$117,AI$1) -> 14 | AJ50: =VLOOKUP(DropDownList!$B$27,CntyQryCensus!$A$95:$FR$117,AJ$1) -> 25 | AK50: =VLOOKUP(DropDownList!$B$27,CntyQryCensus!$A$95:$FR$117,AK$1) -> 56 | AL50: =VLOOKUP(DropDownList!$B$27,CntyQryCensus!$A$95:$FR$117,AL$1) -> 65 | AM50: =VLOOKUP(DropDownList!$B$27,CntyQryCensus!$A$95:$FR$117,AM$1) -> 34 | AN50: =VLOOKUP(DropDownList!$B$27,CntyQryCensus!$A$95:$FR$117,AN$1) -> 21 | AO50: =VLOOKUP(DropDownList!$B$27,CntyQryCensus!$A$95:$FR$117,AO$1) -> 27 | AP50: =VLOOKUP(DropDownList!$B$27,CntyQryCensus!$A$95:$FR$117,AP$1) -> 4 | AQ50: =VLOOKUP(DropDownList!$B$27,CntyQryCensus!$A$95:$FR$117,AQ$1) -> 1553 | AR50: =VLOOKUP(DropDownList!$B$27,CntyQryCensus!$A$95:$FR$117,AR$1) -> 363 | AS50: =VLOOKUP(DropDownList!$B$27,CntyQryCensus!$A$95:$FR$117,AS$1) -> 912 | AT50: =VLOOKUP(DropDownList!$B$27,CntyQryCensus!$A$95:$FR$117,AT$1) -> 15 | AU50: =VLOOKUP(DropDownList!$B$27,CntyQryCensus!$A$95:$FR$117,AU$1) -> 65 | AV50: =VLOOKUP(DropDownList!$B$27,CntyQryCensus!$A$95:$FR$117,AV$1) -> 53 | AW50: =VLOOKUP(DropDownList!$B$27,CntyQryCensus!$A$95:$FR$117,AW$1) -> 198 | AX50: =VLOOKUP(DropDownList!$B$27,CntyQryCensus!$A$95:$FR$117,AX$1) -> 108 | AY50: =VLOOKUP(DropDownList!$B$27,CntyQryCensus!$A$95:$FR$117,AY$1) -> 1922 | AZ50: =VLOOKUP(DropDownList!$B$27,CntyQryCensus!$A$95:$FR$117,AZ$1) -> 779 | BA50: =VLOOKUP(DropDownList!$B$27,CntyQryCensus!$A$95:$FR$117,BA$1) -> 1134 | BB50: =VLOOKUP(DropDownList!$B$27,CntyQryCensus!$A$95:$FR$117,BB$1) -> 964 | BC50: =VLOOKUP(DropDownList!$B$27,CntyQryCensus!$A$95:$FR$117,BC$1) -> 60 | BD50: =VLOOKUP(DropDownList!$B$27,CntyQryCensus!$A$95:$FR$117,BD$1) -> 61 | BE50: =VLOOKUP(DropDownList!$B$27,CntyQryCensus!$A$95:$FR$117,BE$1) -> 49 | BF50: =VLOOKUP(DropDownList!$B$27,CntyQryCensus!$A$95:$FR$117,BF$1) -> 9 | BG50: =VLOOKUP(DropDownList!$B$27,CntyQryCensus!$A$95:$FR$117,BG$1) -> 42 | BH50: =VLOOKUP(DropDownList!$B$27,CntyQryCensus!$A$95:$FR$117,BH$1) -> 19 | BI50: =VLOOKUP(DropDownList!$B$27,CntyQryCensus!$A$95:$FR$117,BI$1) -> 23 | BJ50: =VLOOKUP(DropDownList!$B$27,CntyQryCensus!$A$95:$FR$117,BJ$1) -> 1846 | BK50: =VLOOKUP(DropDownList!$B$27,CntyQryCensus!$A$95:$FR$117,BK$1) -> 1173 | BL50: =VLOOKUP(DropDownList!$B$27,CntyQryCensus!$A$95:$FR$117,BL$1) -> 673 | BM50: =VLOOKUP(DropDownList!$B$27,CntyQryCensus!$A$95:$FR$117,BM$1) -> 668 | BN50: =VLOOKUP(DropDownList!$B$27,CntyQryCensus!$A$95:$FR$117,BN$1) -> 353 | BO50: =VLOOKUP(DropDownList!$B$27,CntyQryCensus!$A$95:$FR$117,BO$1) -> 315 | BP50: =VLOOKUP(DropDownList!$B$27,CntyQryCensus!$A$95:$FR$117,BP$1) -> 82 | BQ50: =VLOOKUP(DropDownList!$B$27,CntyQryCensus!$A$95:$FR$117,BQ$1) -> 233 | BR50: =VLOOKUP(DropDownList!$B$27,CntyQryCensus!$A$95:$FR$117,BR$1) -> 146 | BS50: =VLOOKUP(DropDownList!$B$27,CntyQryCensus!$A$95:$FR$117,BS$1) -> 32 | BT50: =VLOOKUP(DropDownList!$B$27,CntyQryCensus!$A$95:$FR$117,BT$1) -> 37 | BU50: =VLOOKUP(DropDownList!$B$27,CntyQryCensus!$A$95:$FR$117,BU$1) -> 18 | BV50: =VLOOKUP(DropDownList!$B$27,CntyQryCensus!$A$95:$FR$117,BV$1) -> 0 | BW50: =VLOOKUP(DropDownList!$B$27,CntyQryCensus!$A$95:$FR$117,BW$1) -> 5 | BX50: =VLOOKUP(DropDownList!$B$27,CntyQryCensus!$A$95:$FR$117,BX$1) -> 1044 | BY50: =VLOOKUP(DropDownList!$B$27,CntyQryCensus!$A$95:$FR$117,BY$1) -> 892 | BZ50: =VLOOKUP(DropDownList!$B$27,CntyQryCensus!$A$95:$FR$117,BZ$1) -> 777 | CA50: =VLOOKUP(DropDownList!$B$27,CntyQryCensus!$A$95:$FR$117,CA$1) -> 115 | CB50: =VLOOKUP(DropDownList!$B$27,CntyQryCensus!$A$95:$FR$117,CB$1) -> 152 | CC50: =VLOOKUP(DropDownList!$B$27,CntyQryCensus!$A$95:$FR$117,CC$1) -> 1044 | CD50: =VLOOKUP(DropDownList!$B$27,CntyQryCensus!$A$95:$FR$117,CD$1) -> 933 | CE50: =VLOOKUP(DropDownList!$B$27,CntyQryCensus!$A$95:$FR$117,CE$1) -> 4 | CF50: =VLOOKUP(DropDownList!$B$27,CntyQryCensus!$A$95:$FR$117,CF$1) -> 0 | CG50: =VLOOKUP(DropDownList!$B$27,CntyQryCensus!$A$95:$FR$117,CG$1) -> 77 | CH50: =VLOOKUP(DropDownList!$B$27,CntyQryCensus!$A$95:$FR$117,CH$1) -> 967 | CI50: =VLOOKUP(DropDownList!$B$27,CntyQryCensus!$A$95:$FR$117,CI$1) -> 39 | CJ50: =VLOOKUP(DropDownList!$B$27,CntyQryCensus!$A$95:$FR$117,CJ$1) -> 54 | CK50: =VLOOKUP(DropDownList!$B$27,CntyQryCensus!$A$95:$FR$117,CK$1) -> 82 | CL50: =VLOOKUP(DropDownList!$B$27,CntyQryCensus!$A$95:$FR$117,CL$1) -> 122 | CM50: =VLOOKUP(DropDownList!$B$27,CntyQryCensus!$A$95:$FR$117,CM$1) -> 160 | CN50: =VLOOKUP(DropDownList!$B$27,CntyQryCensus!$A$95:$FR$117,CN$1) -> 112 | CO50: =VLOOKUP(DropDownList!$B$27,CntyQryCensus!$A$95:$FR$117,CO$1) -> 213 | CP50: =VLOOKUP(DropDownList!$B$27,CntyQryCensus!$A$95:$FR$117,CP$1) -> 36 | CQ50: =VLOOKUP(DropDownList!$B$27,CntyQryCensus!$A$95:$FR$117,CQ$1) -> 14 | CR50: =VLOOKUP(DropDownList!$B$27,CntyQryCensus!$A$95:$FR$117,CR$1) -> 65 | CS50: =VLOOKUP(DropDownList!$B$27,CntyQryCensus!$A$95:$FR$117,CS$1) -> 33 | CT50: =VLOOKUP(DropDownList!$B$27,CntyQryCensus!$A$95:$FR$117,CT$1) -> 37 | CU50: =VLOOKUP(DropDownList!$B$27,CntyQryCensus!$A$95:$FR$117,CU$1) -> 77 | CV50: =VLOOKUP(DropDownList!$B$27,CntyQryCensus!$A$95:$FR$117,CV$1) -> 1888 | CW50: =VLOOKUP(DropDownList!$B$27,CntyQryCensus!$A$95:$FR$117,CW$1) -> 41 | CX50: =VLOOKUP(DropDownList!$B$27,CntyQryCensus!$A$95:$FR$117,CX$1) -> 22 | CY50: =VLOOKUP(DropDownList!$B$27,CntyQryCensus!$A$95:$FR$117,CY$1) -> 237 | CZ50: =VLOOKUP(DropDownList!$B$27,CntyQryCensus!$A$95:$FR$117,CZ$1) -> 126 | DA50: =VLOOKUP(DropDownList!$B$27,CntyQryCensus!$A$95:$FR$117,DA$1) -> 63 | DB50: =VLOOKUP(DropDownList!$B$27,CntyQryCensus!$A$95:$FR$117,DB$1) -> 1323 | DC50: =VLOOKUP(DropDownList!$B$27,CntyQryCensus!$A$95:$FR$117,DC$1) -> 33 | DD50: =VLOOKUP(DropDownList!$B$27,CntyQryCensus!$A$95:$FR$117,DD$1) -> 143 | DE50: =VLOOKUP(DropDownList!$B$27,CntyQryCensus!$A$95:$FR$117,DE$1) -> 417 | DF50: =VLOOKUP(DropDownList!$B$27,CntyQryCensus!$A$95:$FR$117,DF$1) -> 257 | DG50: =VLOOKUP(DropDownList!$B$27,CntyQryCensus!$A$95:$FR$117,DG$1) -> 111 | DH50: =VLOOKUP(DropDownList!$B$27,CntyQryCensus!$A$95:$FR$117,DH$1) -> 240 | DI50: =VLOOKUP(DropDownList!$B$27,CntyQryCensus!$A$95:$FR$117,DI$1) -> 122 | DJ50: =VLOOKUP(DropDownList!$B$27,CntyQryCensus!$A$95:$FR$117,DJ$1) -> 310 | DK50: =VLOOKUP(DropDownList!$B$27,CntyQryCensus!$A$95:$FR$117,DK$1) -> 35 | DL50: =VLOOKUP(DropDownList!$B$27,CntyQryCensus!$A$95:$FR$117,DL$1) -> 141 | DM50: =VLOOKUP(DropDownList!$B$27,CntyQryCensus!$A$95:$FR$117,DM$1) -> 23 | DN50: =VLOOKUP(DropDownList!$B$27,CntyQryCensus!$A$95:$FR$117,DN$1) -> 12 | DO50: =VLOOKUP(DropDownList!$B$27,CntyQryCensus!$A$95:$FR$117,DO$1) -> 118 | DP50: =VLOOKUP(DropDownList!$B$27,CntyQryCensus!$A$95:$FR$117,DP$1) -> 64 | DQ50: =VLOOKUP(DropDownList!$B$27,CntyQryCensus!$A$95:$FR$117,DQ$1) -> 1163 | DR50: =VLOOKUP(DropDownList!$B$27,CntyQryCensus!$A$95:$FR$117,DR$1) -> 200 | DS50: =VLOOKUP(DropDownList!$B$27,CntyQryCensus!$A$95:$FR$117,DS$1) -> 128 | DT50: =VLOOKUP(DropDownList!$B$27,CntyQryCensus!$A$95:$FR$117,DT$1) -> 963 | DU50: =VLOOKUP(DropDownList!$B$27,CntyQryCensus!$A$95:$FR$117,DU$1) -> 830 | DV50: =VLOOKUP(DropDownList!$B$27,CntyQryCensus!$A$95:$FR$117,DV$1) -> 126 | DW50: =VLOOKUP(DropDownList!$B$27,CntyQryCensus!$A$95:$FR$117,DW$1) -> 36 | DX50: =VLOOKUP(DropDownList!$B$27,CntyQryCensus!$A$95:$FR$117,DX$1) -> 106 | DY50: =VLOOKUP(DropDownList!$B$27,CntyQryCensus!$A$95:$FR$117,DY$1) -> 52 | DZ50: =VLOOKUP(DropDownList!$B$27,CntyQryCensus!$A$95:$FR$117,DZ$1) -> 1536 | EA50: =VLOOKUP(DropDownList!$B$27,CntyQryCensus!$A$95:$FR$117,EA$1) -> 1117 | EB50: =VLOOKUP(DropDownList!$B$27,CntyQryCensus!$A$95:$FR$117,EB$1) -> 1117 | EC50: =VLOOKUP(DropDownList!$B$27,CntyQryCensus!$A$95:$FR$117,EC$1) -> 1068 | ED50: =VLOOKUP(DropDownList!$B$27,CntyQryCensus!$A$95:$FR$117,ED$1) -> 549 | EE50: =VLOOKUP(DropDownList!$B$27,CntyQryCensus!$A$95:$FR$117,EE$1) -> 450 | EF50: =VLOOKUP(DropDownList!$B$27,CntyQryCensus!$A$95:$FR$117,EF$1) -> 51 | EG50: =VLOOKUP(DropDownList!$B$27,CntyQryCensus!$A$95:$FR$117,EG$1) -> 87 | EH50: =VLOOKUP(DropDownList!$B$27,CntyQryCensus!$A$95:$FR$117,EH$1) -> 245 | EI50: =VLOOKUP(DropDownList!$B$27,CntyQryCensus!$A$95:$FR$117,EI$1) -> 241 | EJ50: =VLOOKUP(DropDownList!$B$27,CntyQryCensus!$A$95:$FR$117,EJ$1) -> 4 | EK50: =VLOOKUP(DropDownList!$B$27,CntyQryCensus!$A$95:$FR$117,EK$1) -> 67 | EL50: =VLOOKUP(DropDownList!$B$27,CntyQryCensus!$A$95:$FR$117,EL$1) -> 66 | EM50: =VLOOKUP(DropDownList!$B$27,CntyQryCensus!$A$95:$FR$117,EM$1) -> 1 | EN50: =VLOOKUP(DropDownList!$B$27,CntyQryCensus!$A$95:$FR$117,EN$1) -> 99 | EO50: =VLOOKUP(DropDownList!$B$27,CntyQryCensus!$A$95:$FR$117,EO$1) -> 27 | EP50: =VLOOKUP(DropDownList!$B$27,CntyQryCensus!$A$95:$FR$117,EP$1) -> 2 | EQ50: =VLOOKUP(DropDownList!$B$27,CntyQryCensus!$A$95:$FR$117,EQ$1) -> 18 | ER50: =VLOOKUP(DropDownList!$B$27,CntyQryCensus!$A$95:$FR$117,ER$1) -> 7 | ES50: =VLOOKUP(DropDownList!$B$27,CntyQryCensus!$A$95:$FR$117,ES$1) -> 0 | ET50: =VLOOKUP(DropDownList!$B$27,CntyQryCensus!$A$95:$FR$117,ET$1) -> 72 | EU50: =VLOOKUP(DropDownList!$B$27,CntyQryCensus!$A$95:$FR$117,EU$1) -> 10 | EV50: =VLOOKUP(DropDownList!$B$27,CntyQryCensus!$A$95:$FR$117,EV$1) -> 42 | EW50: =VLOOKUP(DropDownList!$B$27,CntyQryCensus!$A$95:$FR$117,EW$1) -> 15 | EX50: =VLOOKUP(DropDownList!$B$27,CntyQryCensus!$A$95:$FR$117,EX$1) -> 5 | EY50: =VLOOKUP(DropDownList!$B$27,CntyQryCensus!$A$95:$FR$117,EY$1) -> 1068 | EZ50: =VLOOKUP(DropDownList!$B$27,CntyQryCensus!$A$95:$FR$117,EZ$1) -> 53 | FA50: =VLOOKUP(DropDownList!$B$27,CntyQryCensus!$A$95:$FR$117,FA$1) -> 123 | FB50: =VLOOKUP(DropDownList!$B$27,CntyQryCensus!$A$95:$FR$117,FB$1) -> 210 | FC50: =VLOOKUP(DropDownList!$B$27,CntyQryCensus!$A$95:$FR$117,FC$1) -> 30 | FD50: =VLOOKUP(DropDownList!$B$27,CntyQryCensus!$A$95:$FR$117,FD$1) -> 105 | FE50: =VLOOKUP(DropDownList!$B$27,CntyQryCensus!$A$95:$FR$117,FE$1) -> 28 | FF50: =VLOOKUP(DropDownList!$B$27,CntyQryCensus!$A$95:$FR$117,FF$1) -> 40 | FG50: =VLOOKUP(DropDownList!$B$27,CntyQryCensus!$A$95:$FR$117,FG$1) -> 41 | FH50: =VLOOKUP(DropDownList!$B$27,CntyQryCensus!$A$95:$FR$117,FH$1) -> 68 | FI50: =VLOOKUP(DropDownList!$B$27,CntyQryCensus!$A$95:$FR$117,FI$1) -> 262 | FJ50: =VLOOKUP(DropDownList!$B$27,CntyQryCensus!$A$95:$FR$117,FJ$1) -> 42 | FK50: =VLOOKUP(DropDownList!$B$27,CntyQryCensus!$A$95:$FR$117,FK$1) -> 49 | FL50: =VLOOKUP(DropDownList!$B$27,CntyQryCensus!$A$95:$FR$117,FL$1) -> 17 | FM50: =VLOOKUP(DropDownList!$B$27,CntyQryCensus!$A$95:$FR$117,FM$1) -> 366 | FN50: =VLOOKUP(DropDownList!$B$27,CntyQryCensus!$A$95:$FR$117,FN$1) -> 147 | FO50: =VLOOKUP(DropDownList!$B$27,CntyQryCensus!$A$95:$FR$117,FO$1) -> 190 | FP50: =VLOOKUP(DropDownList!$B$27,CntyQryCensus!$A$95:$FR$117,FP$1) -> 21 | FQ50: =VLOOKUP(DropDownList!$B$27,CntyQryCensus!$A$95:$FR$117,FQ$1) -> 152 | FR50: =VLOOKUP(DropDownList!$B$27,CntyQryCensus!$A$95:$FR$117,FR$1) -> 192
A53: Census 2000 SummaryFile3 Sample Data - SF3TownQry2aIncomeChar
A54: NAME | B54: LOGRECNO | C54: COUNTY | D54: TotalPop | E54: P52Households1 | F54: P52HHInc<10K | G54: P52HHInc10to15K | H54: P52HHInc15to20K | I54: P52HHInc20to25K | J54: P52HHInc25to30K | K54: P52HHInc30to35K | L54: P52HHInc35to40K | M54: P52HHInc40to45K | N54: P52HHInc45to50K | O54: P52HHInc50to60K | P54: P52HHInc60to75K | Q54: P52HHInc75to100K | R54: P52HHInc100to125K | S54: P52HHInc125to150K | T54: P52HHInc150to200K | U54: P52HHInc>200K | V54: P53MedianHHInc | W54: P54AggregHHInc | X54: P55Households2 | Y54: P55HHUnder25yrs | Z54: P55HH<25HHInc<10K | AA54: P55HH<25HHInc10to15K | AB54: P55HH<25HHInc15to20K | AC54: P55HH<25HHInc20to25K | AD54: P55HH<25HHInc25to30K | AE54: P55HH<25HHInc30to35K | AF54: P55HH<25HHInc35to40K | AG54: P55HH<25HHInc40to45K | AH54: P55HH<25HHInc45to50K | AI54: P55HH<25HHInc50to60K | AJ54: P55HH<25HHInc60to75K | AK54: P55HH<25HHInc75to100K | AL54: P55HH<25HHInc100to125K | AM54: P55HH<25HHInc125to150K | AN54: P55HH<25HHInc150to200K | AO54: P55HH<25HHInc>200K | AP54: P55HH25to34yrs | AQ54: P55HH25to34HHInc<10K | AR54: P55HH25to34HHInc10to15K | AS54: P55HH25to34HHInc15to20K | AT54: P55HH25to34HHInc20to25K | AU54: P55HH25to34HHInc25to30K | AV54: P55HH25to34HHInc30to35K | AW54: P55HH25to34HHInc35to40K | AX54: P55HH25to34HHInc40to45K | AY54: P55HH25to34HHInc45to50K | AZ54: P55HH25to34HHInc50to60K | BA54: P55HH25to34HHInc60to75K | BB54: P55HH25to34HHInc75to100K | BC54: P55HH25to34HHInc100to125K | BD54: P55HH25to34HHInc125to150K | BE54: P55HH25to34HHInc150to200K | BF54: P55HH25to34HHInc>200K | BG54: P55HH35to44yrs | BH54: P55HH35to44HHInc<10K | BI54: P55HH35to44HHInc10to15K | BJ54: P55HH35to44HHInc15to20K | BK54: P55HH35to44HHInc20to25K | BL54: P55HH35to44HHInc25to30K | BM54: P55HH35to44HHInc30to35K | BN54: P55HH35to44HHInc35to40K | BO54: P55HH35to44HHInc40to45K | BP54: P55HH35to44HHInc45to50K | BQ54: P55HH35to44HHInc50to60K | BR54: P55HH35to44HHInc60to75K | BS54: P55HH35to44HHInc75to100K | BT54: P55HH35to44HHInc100to125K | BU54: P55HH35to44HHInc125to150K | BV54: P55HH35to44HHInc150to200K | BW54: P55HH35to44HHInc>200K | BX54: P55HH45to54yrs | BY54: P55HH45to55HHInc<10K | BZ54: P55HH45to55HHInc10to15K | CA54: P55HH45to55HHInc15to20K | CB54: P55HH45to55HHInc20to25K | CC54: P55HH45to55HHInc25to30K | CD54: P55HH45to55HHInc30to35K | CE54: P55HH45to55HHInc35to40K | CF54: P55HH45to55HHInc40to45K | CG54: P55HH45to55HHInc45to50K | CH54: P55HH45to55HHInc50to60K | CI54: P55HH45to55HHInc60to75K | CJ54: P55HH45to55HHInc75to100K | CK54: P55HH45to55HHInc100to125K | CL54: P55HH45to55HHInc125to150K | CM54: P55HH45to55HHInc150to200K | CN54: P55HH45to55HHInc>200K | CO54: P55HH55to64yrs | CP54: P55HH55to64HHInc<10K | CQ54: P55HH55to64HHInc10to15K | CR54: P55HH55to64HHInc15to20K | CS54: P55HH55to64HHInc20to25K | CT54: P55HH55to64HHInc25to30K | CU54: P55HH55to64HHInc30to35K | CV54: P55HH55to64HHInc35to40K | CW54: P55HH55to64HHInc40to45K | CX54: P55HH55to64HHInc45to50K | CY54: P55HH55to64HHInc50to60K | CZ54: P55HH55to64HHInc60to75K | DA54: P55HH55to64HHInc75to100K | DB54: P55HH55to64HHInc100to125K | DC54: P55HH55to64HHInc125to150K | DD54: P55HH55to64HHInc150to200K | DE54: P55HH55to64HHInc>200K | DF54: P55HH65to74yrs | DG54: P55HH65to74HHInc<10K | DH54: P55HH65to74HHInc10to15K | DI54: P55HH65to74HHInc15to20K | DJ54: P55HH65to74HHInc20to25K | DK54: P55HH65to74HHInc25to30K | DL54: P55HH65to74HHInc30to35K | DM54: P55HH65to74HHInc35to40K | DN54: P55HH65to74HHInc40to45K | DO54: P55HH65to74HHInc45to50K | DP54: P55HH65to74HHInc50to60K | DQ54: P55HH65to74HHInc60to75K | DR54: P55HH65to74HHInc75to100K | DS54: P55HH65to74HHInc100to125K | DT54: P55HH65to74HHInc125to150K | DU54: P55HH65to74HHInc150to200K | DV54: P55HH65to74HHInc>200K | DW54: P55HH>75yrs | DX54: P55HH>75HHInc<10K | DY54: P55HH>75HHInc10to15K | DZ54: P55HH>75HHInc15to20K | EA54: P55HH>75HHInc20to25K | EB54: P55HH>75HHInc25to30K | EC54: P55HH>75HHInc30to35K | ED54: P55HH>75HHInc35to40K | EE54: P55HH>75HHInc40to45K | EF54: P55HH>75HHInc45to50K | EG54: P55HH>75HHInc50to60K | EH54: P55HH>75HHInc60to75K | EI54: P55HH>75HHInc75to100K | EJ54: P55HH>75HHInc100to125K | EK54: P55HH>75HHInc125to150K | EL54: P55HH>75HHInc150to200K | EM54: P55HH>75HHInc>200K | EN54: P56MedHHInc | EO54: P56MedHHIncHH<25y | EP54: P56MedHHIncHH25to34y | EQ54: P56MedHHIncHH35to44y | ER54: P56MedHHIncHH45to54y | ES54: P56MedHHIncHH55to64y | ET54: P56MedHHIncHH65to74y | EU54: P56MedHHIncHH>75y | EV54: P58Households3 | EW54: P58HHwithEarnings | EX54: P58HHNoEarnings | EY54: P59HHwWageSalInc | EZ54: P59HHNoWageSalInc | FA54: P60HHwSelfEmpInc | FB54: P60HHNoSelfEmpInc | FC54: P61HHwIndDivInc | FD54: P61HHNoIndDivInc | FE54: P62HHwSocSecInc | FF54: P62HHNoSocSecInc | FG54: P63HHwSSI | FH54: P63HHNoSSI | FI54: P64HHwPubAssInc | FJ54: P64HHNoPubAssInc | FK54: P65HHwRetInc | FL54: P65HHNoRetInc | FM54: P66HHwOtherTypInc | FN54: P66HHNoOtherTypInc | FO54: P67AggregEarnings | FP54: P68AggregWageSalInc | FQ54: P69AggregSelfEmpInc | FR54: P70AggregIntDivInc | FS54: P71AggregSocSecInc | FT54: P72AggregSSIInc | FU54: P73AggregPublicAssInc | FV54: P74AggregRetireInc | FW54: P76Families1 | FX54: P76FamInc<10K | FY54: P76FamInc10to15K | FZ54: P76FamInc15to20K | GA54: P76FamInc20to25K | GB54: P76FamInc25to30K | GC54: P76FamInc30to35K | GD54: P76FamInc35to40K | GE54: P76FamInc40to45K | GF54: P76FamInc45to50K | GG54: P76FamInc50to60K | GH54: P76FamInc60to75K | GI54: P76FamInc75to100K | GJ54: P76FamInc100to125K | GK54: P76FamInc125to150K | GL54: P76FamInc150to200K | GM54: P76FamInc>200K | GN54: P77MedFamInc | GO54: P78AggregFamInc | GP54: P79NonFamHH | GQ54: P79NonFamHHwInc<10K | GR54: P79NonFamHHwInc10to15K | GS54: P79NonFamHHwInc15to20K | GT54: P79NonFamHHwInc20to25K | GU54: P79NonFamHHwInc25to30K | GV54: P79NonFamHHwInc30to35K | GW54: P79NonFamHHwInc35to40K | GX54: P79NonFamHHwInc40to45K | GY54: P79NonFamHHwInc45to50K | GZ54: P79NonFamHHwInc50to60K | HA54: P79NonFamHHwInc60to75K | HB54: P79NonFamHHwInc75to100K | HC54: P79NonFamHHwInc100to125K | HD54: P79NonFamHHwInc125to150K | HE54: P79NonFamHHwInc150to200K | HF54: P79NonFamHHwInc200KorMore | HG54: P80MedNonFamInc | HH54: P82PerCapitaInc
A55: =VLOOKUP(DropDownList!$B$27,CntyQryCensus!$A$125:$HH$147,A$1) -> Alstead | B55: =VLOOKUP(DropDownList!$B$27,CntyQryCensus!$A$125:$HH$147,B$1) -> 0000512 | C55: =VLOOKUP(DropDownList!$B$27,CntyQryCensus!$A$125:$HH$147,C$1) -> 00820 | D55: =VLOOKUP(DropDownList!$B$27,CntyQryCensus!$A$125:$HH$147,D$1) -> 1944 | E55: =VLOOKUP(DropDownList!$B$27,CntyQryCensus!$A$125:$HH$147,E$1) -> 795 | F55: =VLOOKUP(DropDownList!$B$27,CntyQryCensus!$A$125:$HH$147,F$1) -> 43 | G55: =VLOOKUP(DropDownList!$B$27,CntyQryCensus!$A$125:$HH$147,G$1) -> 32 | H55: =VLOOKUP(DropDownList!$B$27,CntyQryCensus!$A$125:$HH$147,H$1) -> 51 | I55: =VLOOKUP(DropDownList!$B$27,CntyQryCensus!$A$125:$HH$147,I$1) -> 67 | J55: =VLOOKUP(DropDownList!$B$27,CntyQryCensus!$A$125:$HH$147,J$1) -> 47 | K55: =VLOOKUP(DropDownList!$B$27,CntyQryCensus!$A$125:$HH$147,K$1) -> 71 | L55: =VLOOKUP(DropDownList!$B$27,CntyQryCensus!$A$125:$HH$147,L$1) -> 46 | M55: =VLOOKUP(DropDownList!$B$27,CntyQryCensus!$A$125:$HH$147,M$1) -> 68 | N55: =VLOOKUP(DropDownList!$B$27,CntyQryCensus!$A$125:$HH$147,N$1) -> 59 | O55: =VLOOKUP(DropDownList!$B$27,CntyQryCensus!$A$125:$HH$147,O$1) -> 76 | P55: =VLOOKUP(DropDownList!$B$27,CntyQryCensus!$A$125:$HH$147,P$1) -> 92 | Q55: =VLOOKUP(DropDownList!$B$27,CntyQryCensus!$A$125:$HH$147,Q$1) -> 91 | R55: =VLOOKUP(DropDownList!$B$27,CntyQryCensus!$A$125:$HH$147,R$1) -> 29 | S55: =VLOOKUP(DropDownList!$B$27,CntyQryCensus!$A$125:$HH$147,S$1) -> 6 | T55: =VLOOKUP(DropDownList!$B$27,CntyQryCensus!$A$125:$HH$147,T$1) -> 9 | U55: =VLOOKUP(DropDownList!$B$27,CntyQryCensus!$A$125:$HH$147,U$1) -> 8 | V55: =VLOOKUP(DropDownList!$B$27,CntyQryCensus!$A$125:$HH$147,V$1) -> 43191 | W55: =VLOOKUP(DropDownList!$B$27,CntyQryCensus!$A$125:$HH$147,W$1) -> 39732700 | X55: =VLOOKUP(DropDownList!$B$27,CntyQryCensus!$A$125:$HH$147,X$1) -> 795 | Y55: =VLOOKUP(DropDownList!$B$27,CntyQryCensus!$A$125:$HH$147,Y$1) -> 30 | Z55: =VLOOKUP(DropDownList!$B$27,CntyQryCensus!$A$125:$HH$147,Z$1) -> 4 | AA55: =VLOOKUP(DropDownList!$B$27,CntyQryCensus!$A$125:$HH$147,AA$1) -> 8 | AB55: =VLOOKUP(DropDownList!$B$27,CntyQryCensus!$A$125:$HH$147,AB$1) -> 6 | AC55: =VLOOKUP(DropDownList!$B$27,CntyQryCensus!$A$125:$HH$147,AC$1) -> 2 | AD55: =VLOOKUP(DropDownList!$B$27,CntyQryCensus!$A$125:$HH$147,AD$1) -> 3 | AE55: =VLOOKUP(DropDownList!$B$27,CntyQryCensus!$A$125:$HH$147,AE$1) -> 0 | AF55: =VLOOKUP(DropDownList!$B$27,CntyQryCensus!$A$125:$HH$147,AF$1) -> 5 | AG55: =VLOOKUP(DropDownList!$B$27,CntyQryCensus!$A$125:$HH$147,AG$1) -> 2 | AH55: =VLOOKUP(DropDownList!$B$27,CntyQryCensus!$A$125:$HH$147,AH$1) -> 0 | AI55: =VLOOKUP(DropDownList!$B$27,CntyQryCensus!$A$125:$HH$147,AI$1) -> 0 | AJ55: =VLOOKUP(DropDownList!$B$27,CntyQryCensus!$A$125:$HH$147,AJ$1) -> 0 | AK55: =VLOOKUP(DropDownList!$B$27,CntyQryCensus!$A$125:$HH$147,AK$1) -> 0 | AL55: =VLOOKUP(DropDownList!$B$27,CntyQryCensus!$A$125:$HH$147,AL$1) -> 0 | AM55: =VLOOKUP(DropDownList!$B$27,CntyQryCensus!$A$125:$HH$147,AM$1) -> 0 | AN55: =VLOOKUP(DropDownList!$B$27,CntyQryCensus!$A$125:$HH$147,AN$1) -> 0 | AO55: =VLOOKUP(DropDownList!$B$27,CntyQryCensus!$A$125:$HH$147,AO$1) -> 0 | AP55: =VLOOKUP(DropDownList!$B$27,CntyQryCensus!$A$125:$HH$147,AP$1) -> 94 | AQ55: =VLOOKUP(DropDownList!$B$27,CntyQryCensus!$A$125:$HH$147,AQ$1) -> 6 | AR55: =VLOOKUP(DropDownList!$B$27,CntyQryCensus!$A$125:$HH$147,AR$1) -> 0 | AS55: =VLOOKUP(DropDownList!$B$27,CntyQryCensus!$A$125:$HH$147,AS$1) -> 3 | AT55: =VLOOKUP(DropDownList!$B$27,CntyQryCensus!$A$125:$HH$147,AT$1) -> 9 | AU55: =VLOOKUP(DropDownList!$B$27,CntyQryCensus!$A$125:$HH$147,AU$1) -> 5 | AV55: =VLOOKUP(DropDownList!$B$27,CntyQryCensus!$A$125:$HH$147,AV$1) -> 4 | AW55: =VLOOKUP(DropDownList!$B$27,CntyQryCensus!$A$125:$HH$147,AW$1) -> 2 | AX55: =VLOOKUP(DropDownList!$B$27,CntyQryCensus!$A$125:$HH$147,AX$1) -> 5 | AY55: =VLOOKUP(DropDownList!$B$27,CntyQryCensus!$A$125:$HH$147,AY$1) -> 16 | AZ55: =VLOOKUP(DropDownList!$B$27,CntyQryCensus!$A$125:$HH$147,AZ$1) -> 12 | BA55: =VLOOKUP(DropDownList!$B$27,CntyQryCensus!$A$125:$HH$147,BA$1) -> 15 | BB55: =VLOOKUP(DropDownList!$B$27,CntyQryCensus!$A$125:$HH$147,BB$1) -> 14 | BC55: =VLOOKUP(DropDownList!$B$27,CntyQryCensus!$A$125:$HH$147,BC$1) -> 1 | BD55: =VLOOKUP(DropDownList!$B$27,CntyQryCensus!$A$125:$HH$147,BD$1) -> 0 | BE55: =VLOOKUP(DropDownList!$B$27,CntyQryCensus!$A$125:$HH$147,BE$1) -> 0 | BF55: =VLOOKUP(DropDownList!$B$27,CntyQryCensus!$A$125:$HH$147,BF$1) -> 2 | BG55: =VLOOKUP(DropDownList!$B$27,CntyQryCensus!$A$125:$HH$147,BG$1) -> 210 | BH55: =VLOOKUP(DropDownList!$B$27,CntyQryCensus!$A$125:$HH$147,BH$1) -> 6 | BI55: =VLOOKUP(DropDownList!$B$27,CntyQryCensus!$A$125:$HH$147,BI$1) -> 5 | BJ55: =VLOOKUP(DropDownList!$B$27,CntyQryCensus!$A$125:$HH$147,BJ$1) -> 10 | BK55: =VLOOKUP(DropDownList!$B$27,CntyQryCensus!$A$125:$HH$147,BK$1) -> 21 | BL55: =VLOOKUP(DropDownList!$B$27,CntyQryCensus!$A$125:$HH$147,BL$1) -> 12 | BM55: =VLOOKUP(DropDownList!$B$27,CntyQryCensus!$A$125:$HH$147,BM$1) -> 17 | BN55: =VLOOKUP(DropDownList!$B$27,CntyQryCensus!$A$125:$HH$147,BN$1) -> 11 | BO55: =VLOOKUP(DropDownList!$B$27,CntyQryCensus!$A$125:$HH$147,BO$1) -> 18 | BP55: =VLOOKUP(DropDownList!$B$27,CntyQryCensus!$A$125:$HH$147,BP$1) -> 5 | BQ55: =VLOOKUP(DropDownList!$B$27,CntyQryCensus!$A$125:$HH$147,BQ$1) -> 28 | BR55: =VLOOKUP(DropDownList!$B$27,CntyQryCensus!$A$125:$HH$147,BR$1) -> 26 | BS55: =VLOOKUP(DropDownList!$B$27,CntyQryCensus!$A$125:$HH$147,BS$1) -> 34 | BT55: =VLOOKUP(DropDownList!$B$27,CntyQryCensus!$A$125:$HH$147,BT$1) -> 11 | BU55: =VLOOKUP(DropDownList!$B$27,CntyQryCensus!$A$125:$HH$147,BU$1) -> 2 | BV55: =VLOOKUP(DropDownList!$B$27,CntyQryCensus!$A$125:$HH$147,BV$1) -> 2 | BW55: =VLOOKUP(DropDownList!$B$27,CntyQryCensus!$A$125:$HH$147,BW$1) -> 2 | BX55: =VLOOKUP(DropDownList!$B$27,CntyQryCensus!$A$125:$HH$147,BX$1) -> 212 | BY55: =VLOOKUP(DropDownList!$B$27,CntyQryCensus!$A$125:$HH$147,BY$1) -> 14 | BZ55: =VLOOKUP(DropDownList!$B$27,CntyQryCensus!$A$125:$HH$147,BZ$1) -> 4 | CA55: =VLOOKUP(DropDownList!$B$27,CntyQryCensus!$A$125:$HH$147,CA$1) -> 13 | CB55: =VLOOKUP(DropDownList!$B$27,CntyQryCensus!$A$125:$HH$147,CB$1) -> 16 | CC55: =VLOOKUP(DropDownList!$B$27,CntyQryCensus!$A$125:$HH$147,CC$1) -> 11 | CD55: =VLOOKUP(DropDownList!$B$27,CntyQryCensus!$A$125:$HH$147,CD$1) -> 15 | CE55: =VLOOKUP(DropDownList!$B$27,CntyQryCensus!$A$125:$HH$147,CE$1) -> 18 | CF55: =VLOOKUP(DropDownList!$B$27,CntyQryCensus!$A$125:$HH$147,CF$1) -> 22 | CG55: =VLOOKUP(DropDownList!$B$27,CntyQryCensus!$A$125:$HH$147,CG$1) -> 15 | CH55: =VLOOKUP(DropDownList!$B$27,CntyQryCensus!$A$125:$HH$147,CH$1) -> 17 | CI55: =VLOOKUP(DropDownList!$B$27,CntyQryCensus!$A$125:$HH$147,CI$1) -> 34 | CJ55: =VLOOKUP(DropDownList!$B$27,CntyQryCensus!$A$125:$HH$147,CJ$1) -> 15 | CK55: =VLOOKUP(DropDownList!$B$27,CntyQryCensus!$A$125:$HH$147,CK$1) -> 9 | CL55: =VLOOKUP(DropDownList!$B$27,CntyQryCensus!$A$125:$HH$147,CL$1) -> 2 | CM55: =VLOOKUP(DropDownList!$B$27,CntyQryCensus!$A$125:$HH$147,CM$1) -> 5 | CN55: =VLOOKUP(DropDownList!$B$27,CntyQryCensus!$A$125:$HH$147,CN$1) -> 2 | CO55: =VLOOKUP(DropDownList!$B$27,CntyQryCensus!$A$125:$HH$147,CO$1) -> 112 | CP55: =VLOOKUP(DropDownList!$B$27,CntyQryCensus!$A$125:$HH$147,CP$1) -> 4 | CQ55: =VLOOKUP(DropDownList!$B$27,CntyQryCensus!$A$125:$HH$147,CQ$1) -> 4 | CR55: =VLOOKUP(DropDownList!$B$27,CntyQryCensus!$A$125:$HH$147,CR$1) -> 3 | CS55: =VLOOKUP(DropDownList!$B$27,CntyQryCensus!$A$125:$HH$147,CS$1) -> 4 | CT55: =VLOOKUP(DropDownList!$B$27,CntyQryCensus!$A$125:$HH$147,CT$1) -> 4 | CU55: =VLOOKUP(DropDownList!$B$27,CntyQryCensus!$A$125:$HH$147,CU$1) -> 16 | CV55: =VLOOKUP(DropDownList!$B$27,CntyQryCensus!$A$125:$HH$147,CV$1) -> 4 | CW55: =VLOOKUP(DropDownList!$B$27,CntyQryCensus!$A$125:$HH$147,CW$1) -> 9 | CX55: =VLOOKUP(DropDownList!$B$27,CntyQryCensus!$A$125:$HH$147,CX$1) -> 10 | CY55: =VLOOKUP(DropDownList!$B$27,CntyQryCensus!$A$125:$HH$147,CY$1) -> 9 | CZ55: =VLOOKUP(DropDownList!$B$27,CntyQryCensus!$A$125:$HH$147,CZ$1) -> 15 | DA55: =VLOOKUP(DropDownList!$B$27,CntyQryCensus!$A$125:$HH$147,DA$1) -> 20 | DB55: =VLOOKUP(DropDownList!$B$27,CntyQryCensus!$A$125:$HH$147,DB$1) -> 8 | DC55: =VLOOKUP(DropDownList!$B$27,CntyQryCensus!$A$125:$HH$147,DC$1) -> 2 | DD55: =VLOOKUP(DropDownList!$B$27,CntyQryCensus!$A$125:$HH$147,DD$1) -> 0 | DE55: =VLOOKUP(DropDownList!$B$27,CntyQryCensus!$A$125:$HH$147,DE$1) -> 0 | DF55: =VLOOKUP(DropDownList!$B$27,CntyQryCensus!$A$125:$HH$147,DF$1) -> 69 | DG55: =VLOOKUP(DropDownList!$B$27,CntyQryCensus!$A$125:$HH$147,DG$1) -> 4 | DH55: =VLOOKUP(DropDownList!$B$27,CntyQryCensus!$A$125:$HH$147,DH$1) -> 3 | DI55: =VLOOKUP(DropDownList!$B$27,CntyQryCensus!$A$125:$HH$147,DI$1) -> 8 | DJ55: =VLOOKUP(DropDownList!$B$27,CntyQryCensus!$A$125:$HH$147,DJ$1) -> 7 | DK55: =VLOOKUP(DropDownList!$B$27,CntyQryCensus!$A$125:$HH$147,DK$1) -> 7 | DL55: =VLOOKUP(DropDownList!$B$27,CntyQryCensus!$A$125:$HH$147,DL$1) -> 12 | DM55: =VLOOKUP(DropDownList!$B$27,CntyQryCensus!$A$125:$HH$147,DM$1) -> 2 | DN55: =VLOOKUP(DropDownList!$B$27,CntyQryCensus!$A$125:$HH$147,DN$1) -> 9 | DO55: =VLOOKUP(DropDownList!$B$27,CntyQryCensus!$A$125:$HH$147,DO$1) -> 4 | DP55: =VLOOKUP(DropDownList!$B$27,CntyQryCensus!$A$125:$HH$147,DP$1) -> 8 | DQ55: =VLOOKUP(DropDownList!$B$27,CntyQryCensus!$A$125:$HH$147,DQ$1) -> 0 | DR55: =VLOOKUP(DropDownList!$B$27,CntyQryCensus!$A$125:$HH$147,DR$1) -> 3 | DS55: =VLOOKUP(DropDownList!$B$27,CntyQryCensus!$A$125:$HH$147,DS$1) -> 0 | DT55: =VLOOKUP(DropDownList!$B$27,CntyQryCensus!$A$125:$HH$147,DT$1) -> 0 | DU55: =VLOOKUP(DropDownList!$B$27,CntyQryCensus!$A$125:$HH$147,DU$1) -> 2 | DV55: =VLOOKUP(DropDownList!$B$27,CntyQryCensus!$A$125:$HH$147,DV$1) -> 0 | DW55: =VLOOKUP(DropDownList!$B$27,CntyQryCensus!$A$125:$HH$147,DW$1) -> 68 | DX55: =VLOOKUP(DropDownList!$B$27,CntyQryCensus!$A$125:$HH$147,DX$1) -> 5 | DY55: =VLOOKUP(DropDownList!$B$27,CntyQryCensus!$A$125:$HH$147,DY$1) -> 8 | DZ55: =VLOOKUP(DropDownList!$B$27,CntyQryCensus!$A$125:$HH$147,DZ$1) -> 8 | EA55: =VLOOKUP(DropDownList!$B$27,CntyQryCensus!$A$125:$HH$147,EA$1) -> 8 | EB55: =VLOOKUP(DropDownList!$B$27,CntyQryCensus!$A$125:$HH$147,EB$1) -> 5 | EC55: =VLOOKUP(DropDownList!$B$27,CntyQryCensus!$A$125:$HH$147,EC$1) -> 7 | ED55: =VLOOKUP(DropDownList!$B$27,CntyQryCensus!$A$125:$HH$147,ED$1) -> 4 | EE55: =VLOOKUP(DropDownList!$B$27,CntyQryCensus!$A$125:$HH$147,EE$1) -> 3 | EF55: =VLOOKUP(DropDownList!$B$27,CntyQryCensus!$A$125:$HH$147,EF$1) -> 9 | EG55: =VLOOKUP(DropDownList!$B$27,CntyQryCensus!$A$125:$HH$147,EG$1) -> 2 | EH55: =VLOOKUP(DropDownList!$B$27,CntyQryCensus!$A$125:$HH$147,EH$1) -> 2 | EI55: =VLOOKUP(DropDownList!$B$27,CntyQryCensus!$A$125:$HH$147,EI$1) -> 5 | EJ55: =VLOOKUP(DropDownList!$B$27,CntyQryCensus!$A$125:$HH$147,EJ$1) -> 0 | EK55: =VLOOKUP(DropDownList!$B$27,CntyQryCensus!$A$125:$HH$147,EK$1) -> 0 | EL55: =VLOOKUP(DropDownList!$B$27,CntyQryCensus!$A$125:$HH$147,EL$1) -> 0 | EM55: =VLOOKUP(DropDownList!$B$27,CntyQryCensus!$A$125:$HH$147,EM$1) -> 2 | EN55: =VLOOKUP(DropDownList!$B$27,CntyQryCensus!$A$125:$HH$147,EN$1) -> 43191 | EO55: =VLOOKUP(DropDownList!$B$27,CntyQryCensus!$A$125:$HH$147,EO$1) -> 16250 | EP55: =VLOOKUP(DropDownList!$B$27,CntyQryCensus!$A$125:$HH$147,EP$1) -> 47031 | EQ55: =VLOOKUP(DropDownList!$B$27,CntyQryCensus!$A$125:$HH$147,EQ$1) -> 48750 | ER55: =VLOOKUP(DropDownList!$B$27,CntyQryCensus!$A$125:$HH$147,ER$1) -> 43906 | ES55: =VLOOKUP(DropDownList!$B$27,CntyQryCensus!$A$125:$HH$147,ES$1) -> 47500 | ET55: =VLOOKUP(DropDownList!$B$27,CntyQryCensus!$A$125:$HH$147,ET$1) -> 31528 | EU55: =VLOOKUP(DropDownList!$B$27,CntyQryCensus!$A$125:$HH$147,EU$1) -> 30000 | EV55: =VLOOKUP(DropDownList!$B$27,CntyQryCensus!$A$125:$HH$147,EV$1) -> 795 | EW55: =VLOOKUP(DropDownList!$B$27,CntyQryCensus!$A$125:$HH$147,EW$1) -> 662 | EX55: =VLOOKUP(DropDownList!$B$27,CntyQryCensus!$A$125:$HH$147,EX$1) -> 133 | EY55: =VLOOKUP(DropDownList!$B$27,CntyQryCensus!$A$125:$HH$147,EY$1) -> 619 | EZ55: =VLOOKUP(DropDownList!$B$27,CntyQryCensus!$A$125:$HH$147,EZ$1) -> 176 | FA55: =VLOOKUP(DropDownList!$B$27,CntyQryCensus!$A$125:$HH$147,FA$1) -> 199 | FB55: =VLOOKUP(DropDownList!$B$27,CntyQryCensus!$A$125:$HH$147,FB$1) -> 596 | FC55: =VLOOKUP(DropDownList!$B$27,CntyQryCensus!$A$125:$HH$147,FC$1) -> 330 | FD55: =VLOOKUP(DropDownList!$B$27,CntyQryCensus!$A$125:$HH$147,FD$1) -> 465 | FE55: =VLOOKUP(DropDownList!$B$27,CntyQryCensus!$A$125:$HH$147,FE$1) -> 188 | FF55: =VLOOKUP(DropDownList!$B$27,CntyQryCensus!$A$125:$HH$147,FF$1) -> 607 | FG55: =VLOOKUP(DropDownList!$B$27,CntyQryCensus!$A$125:$HH$147,FG$1) -> 37 | FH55: =VLOOKUP(DropDownList!$B$27,CntyQryCensus!$A$125:$HH$147,FH$1) -> 758 | FI55: =VLOOKUP(DropDownList!$B$27,CntyQryCensus!$A$125:$HH$147,FI$1) -> 21 | FJ55: =VLOOKUP(DropDownList!$B$27,CntyQryCensus!$A$125:$HH$147,FJ$1) -> 774 | FK55: =VLOOKUP(DropDownList!$B$27,CntyQryCensus!$A$125:$HH$147,FK$1) -> 111 | FL55: =VLOOKUP(DropDownList!$B$27,CntyQryCensus!$A$125:$HH$147,FL$1) -> 684 | FM55: =VLOOKUP(DropDownList!$B$27,CntyQryCensus!$A$125:$HH$147,FM$1) -> 109 | FN55: =VLOOKUP(DropDownList!$B$27,CntyQryCensus!$A$125:$HH$147,FN$1) -> 686 | FO55: =VLOOKUP(DropDownList!$B$27,CntyQryCensus!$A$125:$HH$147,FO$1) -> 31711000 | FP55: =VLOOKUP(DropDownList!$B$27,CntyQryCensus!$A$125:$HH$147,FP$1) -> 26444300 | FQ55: =VLOOKUP(DropDownList!$B$27,CntyQryCensus!$A$125:$HH$147,FQ$1) -> 5266600 | FR55: =VLOOKUP(DropDownList!$B$27,CntyQryCensus!$A$125:$HH$147,FR$1) -> 2649800 | FS55: =VLOOKUP(DropDownList!$B$27,CntyQryCensus!$A$125:$HH$147,FS$1) -> 2077300 | FT55: =VLOOKUP(DropDownList!$B$27,CntyQryCensus!$A$125:$HH$147,FT$1) -> 240100 | FU55: =VLOOKUP(DropDownList!$B$27,CntyQryCensus!$A$125:$HH$147,FU$1) -> 32500 | FV55: =VLOOKUP(DropDownList!$B$27,CntyQryCensus!$A$125:$HH$147,FV$1) -> 1770700 | FW55: =VLOOKUP(DropDownList!$B$27,CntyQryCensus!$A$125:$HH$147,FW$1) -> 549 | FX55: =VLOOKUP(DropDownList!$B$27,CntyQryCensus!$A$125:$HH$147,FX$1) -> 12 | FY55: =VLOOKUP(DropDownList!$B$27,CntyQryCensus!$A$125:$HH$147,FY$1) -> 2 | FZ55: =VLOOKUP(DropDownList!$B$27,CntyQryCensus!$A$125:$HH$147,FZ$1) -> 27 | GA55: =VLOOKUP(DropDownList!$B$27,CntyQryCensus!$A$125:$HH$147,GA$1) -> 53 | GB55: =VLOOKUP(DropDownList!$B$27,CntyQryCensus!$A$125:$HH$147,GB$1) -> 28 | GC55: =VLOOKUP(DropDownList!$B$27,CntyQryCensus!$A$125:$HH$147,GC$1) -> 40 | GD55: =VLOOKUP(DropDownList!$B$27,CntyQryCensus!$A$125:$HH$147,GD$1) -> 34 | GE55: =VLOOKUP(DropDownList!$B$27,CntyQryCensus!$A$125:$HH$147,GE$1) -> 48 | GF55: =VLOOKUP(DropDownList!$B$27,CntyQryCensus!$A$125:$HH$147,GF$1) -> 45 | GG55: =VLOOKUP(DropDownList!$B$27,CntyQryCensus!$A$125:$HH$147,GG$1) -> 63 | GH55: =VLOOKUP(DropDownList!$B$27,CntyQryCensus!$A$125:$HH$147,GH$1) -> 78 | GI55: =VLOOKUP(DropDownList!$B$27,CntyQryCensus!$A$125:$HH$147,GI$1) -> 78 | GJ55: =VLOOKUP(DropDownList!$B$27,CntyQryCensus!$A$125:$HH$147,GJ$1) -> 25 | GK55: =VLOOKUP(DropDownList!$B$27,CntyQryCensus!$A$125:$HH$147,GK$1) -> 4 | GL55: =VLOOKUP(DropDownList!$B$27,CntyQryCensus!$A$125:$HH$147,GL$1) -> 4 | GM55: =VLOOKUP(DropDownList!$B$27,CntyQryCensus!$A$125:$HH$147,GM$1) -> 8 | GN55: =VLOOKUP(DropDownList!$B$27,CntyQryCensus!$A$125:$HH$147,GN$1) -> 47311 | GO55: =VLOOKUP(DropDownList!$B$27,CntyQryCensus!$A$125:$HH$147,GO$1) -> 30766500 | GP55: =VLOOKUP(DropDownList!$B$27,CntyQryCensus!$A$125:$HH$147,GP$1) -> 246 | GQ55: =VLOOKUP(DropDownList!$B$27,CntyQryCensus!$A$125:$HH$147,GQ$1) -> 33 | GR55: =VLOOKUP(DropDownList!$B$27,CntyQryCensus!$A$125:$HH$147,GR$1) -> 28 | GS55: =VLOOKUP(DropDownList!$B$27,CntyQryCensus!$A$125:$HH$147,GS$1) -> 24 | GT55: =VLOOKUP(DropDownList!$B$27,CntyQryCensus!$A$125:$HH$147,GT$1) -> 22 | GU55: =VLOOKUP(DropDownList!$B$27,CntyQryCensus!$A$125:$HH$147,GU$1) -> 21 | GV55: =VLOOKUP(DropDownList!$B$27,CntyQryCensus!$A$125:$HH$147,GV$1) -> 31 | GW55: =VLOOKUP(DropDownList!$B$27,CntyQryCensus!$A$125:$HH$147,GW$1) -> 9 | GX55: =VLOOKUP(DropDownList!$B$27,CntyQryCensus!$A$125:$HH$147,GX$1) -> 22 | GY55: =VLOOKUP(DropDownList!$B$27,CntyQryCensus!$A$125:$HH$147,GY$1) -> 15 | GZ55: =VLOOKUP(DropDownList!$B$27,CntyQryCensus!$A$125:$HH$147,GZ$1) -> 7 | HA55: =VLOOKUP(DropDownList!$B$27,CntyQryCensus!$A$125:$HH$147,HA$1) -> 17 | HB55: =VLOOKUP(DropDownList!$B$27,CntyQryCensus!$A$125:$HH$147,HB$1) -> 7 | HC55: =VLOOKUP(DropDownList!$B$27,CntyQryCensus!$A$125:$HH$147,HC$1) -> 3 | HD55: =VLOOKUP(DropDownList!$B$27,CntyQryCensus!$A$125:$HH$147,HD$1) -> 2 | HE55: =VLOOKUP(DropDownList!$B$27,CntyQryCensus!$A$125:$HH$147,HE$1) -> 5 | HF55: =VLOOKUP(DropDownList!$B$27,CntyQryCensus!$A$125:$HH$147,HF$1) -> 0 | HG55: =VLOOKUP(DropDownList!$B$27,CntyQryCensus!$A$125:$HH$147,HG$1) -> 29219 | HH55: =VLOOKUP(DropDownList!$B$27,CntyQryCensus!$A$125:$HH$147,HH$1) -> 20444
A58: Census 2000 SummaryFile3 Sample Data - SF3TownQry2bPovertyChar
A59: NAME | B59: LOGRECNO | C59: COUNTY | D59: TotalPop | E59: P52Households1 | F59: P82PerCapitaInc | G59: P87PopForPovStatus | H59: P87PopWIncBelowPovStatus | I59: P87PopUnder5yrBelowPoverty | J59: P87Pop5yrBelowPoverty | K59: P87Pop5to11yrBelowPoverty | L59: P87Pop12to17yrBelowPoverty | M59: P87Pop18to64yrBelowPoverty | N59: P87Pop65to74yrBelowPoverty | O59: P87PopOver75yrBelowPoverty | P59: P87PopWIncAbovePovStatus | Q59: P87PopUnder5yrAbovePoverty | R59: P87Pop5yrAbovePoverty | S59: P87Pop5to11yrAbovePoverty | T59: P87Pop12to17yrAbovePoverty | U59: P87Pop18to64yrAbovePoverty | V59: P87Pop65to74yrAbovePoverty | W59: P87PopOver75yrAbovePoverty | X59: P90Families | Y59: P90FamWIncBelowPov | Z59: P90MarCupFamWIncBelowPov | AA59: P90MCFamWRltdChld<18WIncBelowPov | AB59: P90MCFamWRltdChld<5WIncBelowPov | AC59: P90MaleHhlrWIncBelowPov | AD59: P90MaleHhlrWRltdChld<18yrWIncBelowPov | AE59: P90MaleHhlrWRltdChld<5yrWIncBelowPov | AF59: P90FemaleHhlrWIncBelowPov | AG59: P90FemaleHhlrWRltdChld<18yWIncBelowPov | AH59: P90FemaleHhlrWRltdChld<5yWIncBelowPov | AI59: P90FamWIncAbovePov | AJ59: P90MarCupFamWIncAbovePov | AK59: P90MCFamWRltdChld<18WIncAbovePov | AL59: P90MCFamWRltdChld<5WIncAbovePov | AM59: P90MaleHhlrWIncAbovePov | AN59: P90MaleHhlrWRltdChld<18yrWIncAbovePov | AO59: P90MaleHhlrWRltdChld<5yrWIncAbovePov | AP59: P90FemaleHhlrWIncAbovePov | AQ59: P90FemaleHhlrWRltdChld<18yWIncAbovePov | AR59: P90FemaleHhlrWRltdChld<5yWIncAbovePov | AS59: P92Households | AT59: P92HHwIncBelowPov | AU59: P92FamHHwIncBelowPov | AV59: P92MCFamHHwIncBelowPov | AW59: P92MaleFamHHwIncBelowPov | AX59: P92FemaleFamHHwIncBelowPov | AY59: P92NonFamHHwIncBelowPov | AZ59: P92NonFamMaleHHwIncBelowPov | BA59: P92NonFamFemaleHHwIncBelowPov | BB59: P92HHwIncAbovePov | BC59: P92FamHHwIncAbovePov | BD59: P92MCFamHHwIncAbovePov | BE59: P92MaleFamHHwIncAbovePov | BF59: P92FemaleFamHHwIncAbovePov | BG59: P92NonFamHHwIncAbovePov | BH59: P92NonFamMaleHHwIncAbovePov | BI59: P92NonFamFemaleHHwIncAbovePov
A60: =VLOOKUP(DropDownList!$B$27,CntyQryCensus!$A$155:$BI$177,A$1) -> Alstead | B60: =VLOOKUP(DropDownList!$B$27,CntyQryCensus!$A$155:$BI$177,B$1) -> 0000512 | C60: =VLOOKUP(DropDownList!$B$27,CntyQryCensus!$A$155:$BI$177,C$1) -> 00820 | D60: =VLOOKUP(DropDownList!$B$27,CntyQryCensus!$A$155:$BI$177,D$1) -> 1944 | E60: =VLOOKUP(DropDownList!$B$27,CntyQryCensus!$A$155:$BI$177,E$1) -> 795 | F60: =VLOOKUP(DropDownList!$B$27,CntyQryCensus!$A$155:$BI$177,F$1) -> 20444 | G60: =VLOOKUP(DropDownList!$B$27,CntyQryCensus!$A$155:$BI$177,G$1) -> 1948 | H60: =VLOOKUP(DropDownList!$B$27,CntyQryCensus!$A$155:$BI$177,H$1) -> 153 | I60: =VLOOKUP(DropDownList!$B$27,CntyQryCensus!$A$155:$BI$177,I$1) -> 10 | J60: =VLOOKUP(DropDownList!$B$27,CntyQryCensus!$A$155:$BI$177,J$1) -> 3 | K60: =VLOOKUP(DropDownList!$B$27,CntyQryCensus!$A$155:$BI$177,K$1) -> 25 | L60: =VLOOKUP(DropDownList!$B$27,CntyQryCensus!$A$155:$BI$177,L$1) -> 16 | M60: =VLOOKUP(DropDownList!$B$27,CntyQryCensus!$A$155:$BI$177,M$1) -> 88 | N60: =VLOOKUP(DropDownList!$B$27,CntyQryCensus!$A$155:$BI$177,N$1) -> 8 | O60: =VLOOKUP(DropDownList!$B$27,CntyQryCensus!$A$155:$BI$177,O$1) -> 3 | P60: =VLOOKUP(DropDownList!$B$27,CntyQryCensus!$A$155:$BI$177,P$1) -> 1795 | Q60: =VLOOKUP(DropDownList!$B$27,CntyQryCensus!$A$155:$BI$177,Q$1) -> 106 | R60: =VLOOKUP(DropDownList!$B$27,CntyQryCensus!$A$155:$BI$177,R$1) -> 32 | S60: =VLOOKUP(DropDownList!$B$27,CntyQryCensus!$A$155:$BI$177,S$1) -> 127 | T60: =VLOOKUP(DropDownList!$B$27,CntyQryCensus!$A$155:$BI$177,T$1) -> 176 | U60: =VLOOKUP(DropDownList!$B$27,CntyQryCensus!$A$155:$BI$177,U$1) -> 1133 | V60: =VLOOKUP(DropDownList!$B$27,CntyQryCensus!$A$155:$BI$177,V$1) -> 118 | W60: =VLOOKUP(DropDownList!$B$27,CntyQryCensus!$A$155:$BI$177,W$1) -> 103 | X60: =VLOOKUP(DropDownList!$B$27,CntyQryCensus!$A$155:$BI$177,X$1) -> 549 | Y60: =VLOOKUP(DropDownList!$B$27,CntyQryCensus!$A$155:$BI$177,Y$1) -> 19 | Z60: =VLOOKUP(DropDownList!$B$27,CntyQryCensus!$A$155:$BI$177,Z$1) -> 5 | AA60: =VLOOKUP(DropDownList!$B$27,CntyQryCensus!$A$155:$BI$177,AA$1) -> 5 | AB60: =VLOOKUP(DropDownList!$B$27,CntyQryCensus!$A$155:$BI$177,AB$1) -> 0 | AC60: =VLOOKUP(DropDownList!$B$27,CntyQryCensus!$A$155:$BI$177,AC$1) -> 0 | AD60: =VLOOKUP(DropDownList!$B$27,CntyQryCensus!$A$155:$BI$177,AD$1) -> 0 | AE60: =VLOOKUP(DropDownList!$B$27,CntyQryCensus!$A$155:$BI$177,AE$1) -> 0 | AF60: =VLOOKUP(DropDownList!$B$27,CntyQryCensus!$A$155:$BI$177,AF$1) -> 14 | AG60: =VLOOKUP(DropDownList!$B$27,CntyQryCensus!$A$155:$BI$177,AG$1) -> 11 | AH60: =VLOOKUP(DropDownList!$B$27,CntyQryCensus!$A$155:$BI$177,AH$1) -> 0 | AI60: =VLOOKUP(DropDownList!$B$27,CntyQryCensus!$A$155:$BI$177,AI$1) -> 530 | AJ60: =VLOOKUP(DropDownList!$B$27,CntyQryCensus!$A$155:$BI$177,AJ$1) -> 445 | AK60: =VLOOKUP(DropDownList!$B$27,CntyQryCensus!$A$155:$BI$177,AK$1) -> 213 | AL60: =VLOOKUP(DropDownList!$B$27,CntyQryCensus!$A$155:$BI$177,AL$1) -> 38 | AM60: =VLOOKUP(DropDownList!$B$27,CntyQryCensus!$A$155:$BI$177,AM$1) -> 27 | AN60: =VLOOKUP(DropDownList!$B$27,CntyQryCensus!$A$155:$BI$177,AN$1) -> 20 | AO60: =VLOOKUP(DropDownList!$B$27,CntyQryCensus!$A$155:$BI$177,AO$1) -> 5 | AP60: =VLOOKUP(DropDownList!$B$27,CntyQryCensus!$A$155:$BI$177,AP$1) -> 58 | AQ60: =VLOOKUP(DropDownList!$B$27,CntyQryCensus!$A$155:$BI$177,AQ$1) -> 38 | AR60: =VLOOKUP(DropDownList!$B$27,CntyQryCensus!$A$155:$BI$177,AR$1) -> 9 | AS60: =VLOOKUP(DropDownList!$B$27,CntyQryCensus!$A$155:$BI$177,AS$1) -> 795 | AT60: =VLOOKUP(DropDownList!$B$27,CntyQryCensus!$A$155:$BI$177,AT$1) -> 50 | AU60: =VLOOKUP(DropDownList!$B$27,CntyQryCensus!$A$155:$BI$177,AU$1) -> 19 | AV60: =VLOOKUP(DropDownList!$B$27,CntyQryCensus!$A$155:$BI$177,AV$1) -> 5 | AW60: =VLOOKUP(DropDownList!$B$27,CntyQryCensus!$A$155:$BI$177,AW$1) -> 0 | AX60: =VLOOKUP(DropDownList!$B$27,CntyQryCensus!$A$155:$BI$177,AX$1) -> 14 | AY60: =VLOOKUP(DropDownList!$B$27,CntyQryCensus!$A$155:$BI$177,AY$1) -> 31 | AZ60: =VLOOKUP(DropDownList!$B$27,CntyQryCensus!$A$155:$BI$177,AZ$1) -> 23 | BA60: =VLOOKUP(DropDownList!$B$27,CntyQryCensus!$A$155:$BI$177,BA$1) -> 8 | BB60: =VLOOKUP(DropDownList!$B$27,CntyQryCensus!$A$155:$BI$177,BB$1) -> 745 | BC60: =VLOOKUP(DropDownList!$B$27,CntyQryCensus!$A$155:$BI$177,BC$1) -> 530 | BD60: =VLOOKUP(DropDownList!$B$27,CntyQryCensus!$A$155:$BI$177,BD$1) -> 445 | BE60: =VLOOKUP(DropDownList!$B$27,CntyQryCensus!$A$155:$BI$177,BE$1) -> 27 | BF60: =VLOOKUP(DropDownList!$B$27,CntyQryCensus!$A$155:$BI$177,BF$1) -> 58 | BG60: =VLOOKUP(DropDownList!$B$27,CntyQryCensus!$A$155:$BI$177,BG$1) -> 215 | BH60: =VLOOKUP(DropDownList!$B$27,CntyQryCensus!$A$155:$BI$177,BH$1) -> 131 | BI60: =VLOOKUP(DropDownList!$B$27,CntyQryCensus!$A$155:$BI$177,BI$1) -> 84
S61: =SUM(R60:T60) -> 335
A63: Census 2000 SummaryFile3 Sample Data - SF3TownQry7HousingA
A64: NAME | B64: LOGRECNO | C64: COUNTY | D64: TotalPop | E64: H1HousingUnitsTotal | F64: H2SampleHU | G64: H2SampleOccHU | H64: H2SampleVacHU | I64: H3HU100pctCount | J64: H5HUTotal | K64: H5HUUrban | L64: H5HUUrbanInUrbanAreas | M64: H5HUUrbanInUrbanClusters | N64: H5HURural | O64: H5HURuralFarm | P64: H5HURuralNonFarm | Q64: H7HUOcc | R64: H7HUOwnrOcc | S64: H7HURentrOcc | T64: H8HUVacant | U64: H8HUVacantForRent | V64: H8HUVacantForSale | W64: H8HUVacRentedorSold | X64: H8HUVacSeasonal | Y64: H8HUVacForMigrantWrkrs | Z64: H8HUOtherVacant | AA64: H14OccHUa | AB64: H14OwnerOccHU | AC64: H14OwnOccHuHh15to24 | AD64: H14OwnOccHuHh25to34 | AE64: H14OwnOccHuHh35to44 | AF64: H14OwnOccHuHh45to54 | AG64: H14OwnOccHuHh55to59 | AH64: H14OwnOccHuHh60to64 | AI64: H14OwnOccHuHh65to74 | AJ64: H14OwnOccHuHh75to84 | AK64: H14OwnOccHuHh85Over | AL64: H14RenterOccHU1 | AM64: H14RntrOccHuHh15to24 | AN64: H14RntrOccHuHh25to34 | AO64: H14RntrOccHuHh35to44 | AP64: H14RntrOccHuHh45to54 | AQ64: H14RntrOccHuHh55to59 | AR64: H14RntrOccHuHh60to64 | AS64: H14RntrOccHuHh65to74 | AT64: H14RntrOccHuHh75to84 | AU64: H14RntrOccHuHh85Over | AV64: H15PopInOccHU | AW64: H15PopInOwnOccHU1 | AX64: H15PopInRentOccHU1 | AY64: H17OccupHUb | AZ64: H17OwnOccHU2 | BA64: H17OwnOccHU1PersonHH | BB64: H17OwnOccHU2PersonHH | BC64: H17OwnOccHU3PersonHH | BD64: H17OwnOccHU4PersonHH | BE64: H17OwnOccHU5PersonHH | BF64: H17OwnOccHU6PersonHH | BG64: H17OwnOccHU7PlusPersonHH | BH64: H17RentOccHU2 | BI64: H17RntOccHU1PersonHH | BJ64: H17RntOccHU2PersonHH | BK64: H17RntOccHU3PersonHH | BL64: H17RntOccHU4PersonHH | BM64: H17RntOccHU5PersonHH | BN64: H17RntOccHU6PersonHH | BO64: H17RntOccHU7PlusPersonHH | BP64: H18AvgHHSize | BQ64: H18AvgHHSizeOwnOcc | BR64: H18AvgHHSizeRentOcc | BS64: H23TotHU | BT64: H23HU1Room | BU64: H23HU2Room | BV64: H23HU3Room | BW64: H23HU4Room | BX64: H23HU5Room | BY64: H23HU6Room | BZ64: H23HU7Room | CA64: H23HU8Room | CB64: H23HU9orMoreRoom | CC64: H24MedianNumRooms | CD64: H25AggregNumRooms | CE64: H30TotalHU | CF64: H30Det1HU | CG64: H30Att1HU | CH64: H30Units2 | CI64: H30Units3or4 | CJ64: H30Units5to9 | CK64: H30Units10to19 | CL64: H30Units20to49 | CM64: H30Units50orMore | CN64: H30UnitsMobileHome | CO64: H30UnitsBoatRv | CP64: H32OccHUcTotal | CQ64: H32OwnerOccHU3 | CR64: H32OwnOccHU1Det | CS64: H32OwnOccHU1Att | CT64: H32OwnOccHU2Unit | CU64: H32OwnOccHU3to4Unit | CV64: H32OwnOccHU5to9Unit | CW64: H32OwnOccHU10to19Unit | CX64: H32OwnOccHU20to49Unit | CY64: H32OwnOccHU50plusUnit | CZ64: H32OwnOccHUMobHom | DA64: H32OwnOccHUBoatRVOth | DB64: H32RentrOccHU3 | DC64: H32RntrOccHU1Det | DD64: H32RntrOccHU1Att | DE64: H32RntrOccHU2Unit | DF64: H32RntrOccHU3to4Unit | DG64: H32RntrOccHU5to9Unit | DH64: H32RntrOccHU10to19Unit | DI64: H32RntrOccHU20to49Unit | DJ64: H32RntrOccHU50PlusUnit | DK64: H32RntrOccHUMobHom | DL64: H32RntrOccHUBoatRVOth | DM64: H33TotPopInOccHU | DN64: H33PopInOwnOccHU2 | DO64: H33PopInOOHU1Det | DP64: H33PopInOOHU1Att | DQ64: H33PopInOOHU2unit | DR64: H33PopInOOHU3to4Unit | DS64: H33PopInOOHU5to9Unit | DT64: H33PopInOOHU10to19Unit | DU64: H33PopInOOHU20to49Unit | DV64: H33PopInOOHU50PlusUnit | DW64: H33PopInOOHUMobilHome | DX64: H33PopInOOHUOtherUnit | DY64: H33PopInRentOccHU2 | DZ64: H33PopInROHU1Det | EA64: H33PopInROHU1Att | EB64: H33PopInROHU2Unit | EC64: H33PopInROHU3to4Unit | ED64: H33PopInROHU5to9Unit | EE64: H33PopInROHU10to19Unit | EF64: H33PopInROHU20to49Unit | EG64: H33PopInROHU50PlusUnit | EH64: H33PopInROHUMobilHome | EI64: H33PopInROHUOtherUnit | EJ64: H36OccHousingUnitsdTotal | EK64: H36OwnerOccHU4 | EL64: H36OOHUBuilt99to0300 | EM64: H36OOHUBuilt95to98 | EN64: H36OOHUBuilt90to94 | EO64: H36OOHUBuilt80to89 | EP64: H36OOHUBuilt70to79 | EQ64: H36OOHUBuilt60to69 | ER64: H36OOHUBuilt50to59 | ES64: H36OOHUBuilt40to49 | ET64: H36OOHUBuilt39Earlier | EU64: H36RentOccHU4 | EV64: H36ROHUBuilt99to0300 | EW64: H36ROHUBuilt95to98 | EX64: H36ROHUBuilt90to94 | EY64: H36ROHUBuilt80to89 | EZ64: H36ROHUBuilt70to79 | FA64: H36ROHUBuilt60to69 | FB64: H36ROHUBuilt50to59 | FC64: H36ROHUBuilt40to49 | FD64: H36ROHUBuilt39Earlier | FE64: H40OccupHousUnitse | FF64: H40HeatFuelUtilGas | FG64: H40HeatFuelBotGas | FH64: H40HeatFuelElect | FI64: H40HeatFuelOilKero | FJ64: H40HeatFuelCoal | FK64: H40HeatFuelWood | FL64: H40HeatFuelSolar | FM64: H40HeatFuelOther | FN64: H40HeatFuelNone | FO64: H41TotalHU | FP64: H41HUNoBdrm | FQ64: H41HU1Bdrm | FR64: H41HU2Bdrm | FS64: H41HU3Bdrm | FT64: H41HU4Bdrm | FU64: H41HU5MoreBdrm | FV64: H42OccuHousUnitf | FW64: H42OwnerOccHU5 | FX64: H42OOHUNoBdrm | FY64: H42OOHU1Bdrm | FZ64: H42OOHU2Bdrm | GA64: H42OOHU3Bdrm | GB64: H42OOHU4Bdrm | GC64: H42OOHU5PlusBdrm | GD64: H42RentOccHU5 | GE64: H42ROHUNoBdrm | GF64: H42ROHU1Bdrm | GG64: H42ROHU2Bdrm | GH64: H42ROHU3Bdrm | GI64: H42ROHU4Bdrm | GJ64: H42ROHU5PlusBdrm | GK64: H48OccupHousUnitsg | GL64: H48OwnerOccHU6 | GM64: H48OOHUwCompltPlumFacil | GN64: H48OOHULackCompltPlumFacil | GO64: H48RentOccHU6 | GP64: H48ROHUwCompltPlumFacil | GQ64: H48ROHULackCompltPlumFacil | GR64: H51OccupHousUnitf | GS64: H51OwnerOccHU7 | GT64: H51OOHUwCompleteKitFacil | GU64: H51OOHULackCompleteKitFacil | GV64: H51RenterOccHU7 | GW64: H51ROHUwCompleteKitFacil | GX64: H51ROHULackCompleteKitFacil
A65: =VLOOKUP(DropDownList!$B$27,CntyQryCensus!$A$185:$GX$207,A$1) -> Alstead | B65: =VLOOKUP(DropDownList!$B$27,CntyQryCensus!$A$185:$GX$207,B$1) -> 0000512 | C65: =VLOOKUP(DropDownList!$B$27,CntyQryCensus!$A$185:$GX$207,C$1) -> 00820 | D65: =VLOOKUP(DropDownList!$B$27,CntyQryCensus!$A$185:$GX$207,D$1) -> 1944 | E65: =VLOOKUP(DropDownList!$B$27,CntyQryCensus!$A$185:$GX$207,E$1) -> 950 | F65: =VLOOKUP(DropDownList!$B$27,CntyQryCensus!$A$185:$GX$207,F$1) -> 447 | G65: =VLOOKUP(DropDownList!$B$27,CntyQryCensus!$A$185:$GX$207,G$1) -> 365 | H65: =VLOOKUP(DropDownList!$B$27,CntyQryCensus!$A$185:$GX$207,H$1) -> 82 | I65: =VLOOKUP(DropDownList!$B$27,CntyQryCensus!$A$185:$GX$207,I$1) -> 941 | J65: =VLOOKUP(DropDownList!$B$27,CntyQryCensus!$A$185:$GX$207,J$1) -> 950 | K65: =VLOOKUP(DropDownList!$B$27,CntyQryCensus!$A$185:$GX$207,K$1) -> 0 | L65: =VLOOKUP(DropDownList!$B$27,CntyQryCensus!$A$185:$GX$207,L$1) -> 0 | M65: =VLOOKUP(DropDownList!$B$27,CntyQryCensus!$A$185:$GX$207,M$1) -> 0 | N65: =VLOOKUP(DropDownList!$B$27,CntyQryCensus!$A$185:$GX$207,N$1) -> 950 | O65: =VLOOKUP(DropDownList!$B$27,CntyQryCensus!$A$185:$GX$207,O$1) -> 14 | P65: =VLOOKUP(DropDownList!$B$27,CntyQryCensus!$A$185:$GX$207,P$1) -> 936 | Q65: =VLOOKUP(DropDownList!$B$27,CntyQryCensus!$A$185:$GX$207,Q$1) -> 781 | R65: =VLOOKUP(DropDownList!$B$27,CntyQryCensus!$A$185:$GX$207,R$1) -> 617 | S65: =VLOOKUP(DropDownList!$B$27,CntyQryCensus!$A$185:$GX$207,S$1) -> 164 | T65: =VLOOKUP(DropDownList!$B$27,CntyQryCensus!$A$185:$GX$207,T$1) -> 169 | U65: =VLOOKUP(DropDownList!$B$27,CntyQryCensus!$A$185:$GX$207,U$1) -> 8 | V65: =VLOOKUP(DropDownList!$B$27,CntyQryCensus!$A$185:$GX$207,V$1) -> 11 | W65: =VLOOKUP(DropDownList!$B$27,CntyQryCensus!$A$185:$GX$207,W$1) -> 9 | X65: =VLOOKUP(DropDownList!$B$27,CntyQryCensus!$A$185:$GX$207,X$1) -> 128 | Y65: =VLOOKUP(DropDownList!$B$27,CntyQryCensus!$A$185:$GX$207,Y$1) -> 0 | Z65: =VLOOKUP(DropDownList!$B$27,CntyQryCensus!$A$185:$GX$207,Z$1) -> 13 | AA65: =VLOOKUP(DropDownList!$B$27,CntyQryCensus!$A$185:$GX$207,AA$1) -> 781 | AB65: =VLOOKUP(DropDownList!$B$27,CntyQryCensus!$A$185:$GX$207,AB$1) -> 617 | AC65: =VLOOKUP(DropDownList!$B$27,CntyQryCensus!$A$185:$GX$207,AC$1) -> 8 | AD65: =VLOOKUP(DropDownList!$B$27,CntyQryCensus!$A$185:$GX$207,AD$1) -> 55 | AE65: =VLOOKUP(DropDownList!$B$27,CntyQryCensus!$A$185:$GX$207,AE$1) -> 146 | AF65: =VLOOKUP(DropDownList!$B$27,CntyQryCensus!$A$185:$GX$207,AF$1) -> 174 | AG65: =VLOOKUP(DropDownList!$B$27,CntyQryCensus!$A$185:$GX$207,AG$1) -> 46 | AH65: =VLOOKUP(DropDownList!$B$27,CntyQryCensus!$A$185:$GX$207,AH$1) -> 42 | AI65: =VLOOKUP(DropDownList!$B$27,CntyQryCensus!$A$185:$GX$207,AI$1) -> 81 | AJ65: =VLOOKUP(DropDownList!$B$27,CntyQryCensus!$A$185:$GX$207,AJ$1) -> 55 | AK65: =VLOOKUP(DropDownList!$B$27,CntyQryCensus!$A$185:$GX$207,AK$1) -> 10 | AL65: =VLOOKUP(DropDownList!$B$27,CntyQryCensus!$A$185:$GX$207,AL$1) -> 164 | AM65: =VLOOKUP(DropDownList!$B$27,CntyQryCensus!$A$185:$GX$207,AM$1) -> 17 | AN65: =VLOOKUP(DropDownList!$B$27,CntyQryCensus!$A$185:$GX$207,AN$1) -> 39 | AO65: =VLOOKUP(DropDownList!$B$27,CntyQryCensus!$A$185:$GX$207,AO$1) -> 49 | AP65: =VLOOKUP(DropDownList!$B$27,CntyQryCensus!$A$185:$GX$207,AP$1) -> 30 | AQ65: =VLOOKUP(DropDownList!$B$27,CntyQryCensus!$A$185:$GX$207,AQ$1) -> 4 | AR65: =VLOOKUP(DropDownList!$B$27,CntyQryCensus!$A$185:$GX$207,AR$1) -> 7 | AS65: =VLOOKUP(DropDownList!$B$27,CntyQryCensus!$A$185:$GX$207,AS$1) -> 9 | AT65: =VLOOKUP(DropDownList!$B$27,CntyQryCensus!$A$185:$GX$207,AT$1) -> 7 | AU65: =VLOOKUP(DropDownList!$B$27,CntyQryCensus!$A$185:$GX$207,AU$1) -> 2 | AV65: =VLOOKUP(DropDownList!$B$27,CntyQryCensus!$A$185:$GX$207,AV$1) -> 1952 | AW65: =VLOOKUP(DropDownList!$B$27,CntyQryCensus!$A$185:$GX$207,AW$1) -> 1553 | AX65: =VLOOKUP(DropDownList!$B$27,CntyQryCensus!$A$185:$GX$207,AX$1) -> 399 | AY65: =VLOOKUP(DropDownList!$B$27,CntyQryCensus!$A$185:$GX$207,AY$1) -> 781 | AZ65: =VLOOKUP(DropDownList!$B$27,CntyQryCensus!$A$185:$GX$207,AZ$1) -> 617 | BA65: =VLOOKUP(DropDownList!$B$27,CntyQryCensus!$A$185:$GX$207,BA$1) -> 130 | BB65: =VLOOKUP(DropDownList!$B$27,CntyQryCensus!$A$185:$GX$207,BB$1) -> 234 | BC65: =VLOOKUP(DropDownList!$B$27,CntyQryCensus!$A$185:$GX$207,BC$1) -> 109 | BD65: =VLOOKUP(DropDownList!$B$27,CntyQryCensus!$A$185:$GX$207,BD$1) -> 89 | BE65: =VLOOKUP(DropDownList!$B$27,CntyQryCensus!$A$185:$GX$207,BE$1) -> 42 | BF65: =VLOOKUP(DropDownList!$B$27,CntyQryCensus!$A$185:$GX$207,BF$1) -> 5 | BG65: =VLOOKUP(DropDownList!$B$27,CntyQryCensus!$A$185:$GX$207,BG$1) -> 8 | BH65: =VLOOKUP(DropDownList!$B$27,CntyQryCensus!$A$185:$GX$207,BH$1) -> 164 | BI65: =VLOOKUP(DropDownList!$B$27,CntyQryCensus!$A$185:$GX$207,BI$1) -> 63 | BJ65: =VLOOKUP(DropDownList!$B$27,CntyQryCensus!$A$185:$GX$207,BJ$1) -> 43 | BK65: =VLOOKUP(DropDownList!$B$27,CntyQryCensus!$A$185:$GX$207,BK$1) -> 31 | BL65: =VLOOKUP(DropDownList!$B$27,CntyQryCensus!$A$185:$GX$207,BL$1) -> 19 | BM65: =VLOOKUP(DropDownList!$B$27,CntyQryCensus!$A$185:$GX$207,BM$1) -> 2 | BN65: =VLOOKUP(DropDownList!$B$27,CntyQryCensus!$A$185:$GX$207,BN$1) -> 2 | BO65: =VLOOKUP(DropDownList!$B$27,CntyQryCensus!$A$185:$GX$207,BO$1) -> 4 | BP65: =VLOOKUP(DropDownList!$B$27,CntyQryCensus!$A$185:$GX$207,BP$1) -> 2 | BQ65: =VLOOKUP(DropDownList!$B$27,CntyQryCensus!$A$185:$GX$207,BQ$1) -> 3 | BR65: =VLOOKUP(DropDownList!$B$27,CntyQryCensus!$A$185:$GX$207,BR$1) -> 2 | BS65: =VLOOKUP(DropDownList!$B$27,CntyQryCensus!$A$185:$GX$207,BS$1) -> 950 | BT65: =VLOOKUP(DropDownList!$B$27,CntyQryCensus!$A$185:$GX$207,BT$1) -> 26 | BU65: =VLOOKUP(DropDownList!$B$27,CntyQryCensus!$A$185:$GX$207,BU$1) -> 28 | BV65: =VLOOKUP(DropDownList!$B$27,CntyQryCensus!$A$185:$GX$207,BV$1) -> 106 | BW65: =VLOOKUP(DropDownList!$B$27,CntyQryCensus!$A$185:$GX$207,BW$1) -> 180 | BX65: =VLOOKUP(DropDownList!$B$27,CntyQryCensus!$A$185:$GX$207,BX$1) -> 180 | BY65: =VLOOKUP(DropDownList!$B$27,CntyQryCensus!$A$185:$GX$207,BY$1) -> 164 | BZ65: =VLOOKUP(DropDownList!$B$27,CntyQryCensus!$A$185:$GX$207,BZ$1) -> 128 | CA65: =VLOOKUP(DropDownList!$B$27,CntyQryCensus!$A$185:$GX$207,CA$1) -> 72 | CB65: =VLOOKUP(DropDownList!$B$27,CntyQryCensus!$A$185:$GX$207,CB$1) -> 66 | CC65: =VLOOKUP(DropDownList!$B$27,CntyQryCensus!$A$185:$GX$207,CC$1) -> 5 | CD65: =VLOOKUP(DropDownList!$B$27,CntyQryCensus!$A$185:$GX$207,CD$1) -> 5136 | CE65: =VLOOKUP(DropDownList!$B$27,CntyQryCensus!$A$185:$GX$207,CE$1) -> 950 | CF65: =VLOOKUP(DropDownList!$B$27,CntyQryCensus!$A$185:$GX$207,CF$1) -> 750 | CG65: =VLOOKUP(DropDownList!$B$27,CntyQryCensus!$A$185:$GX$207,CG$1) -> 6 | CH65: =VLOOKUP(DropDownList!$B$27,CntyQryCensus!$A$185:$GX$207,CH$1) -> 31 | CI65: =VLOOKUP(DropDownList!$B$27,CntyQryCensus!$A$185:$GX$207,CI$1) -> 30 | CJ65: =VLOOKUP(DropDownList!$B$27,CntyQryCensus!$A$185:$GX$207,CJ$1) -> 18 | CK65: =VLOOKUP(DropDownList!$B$27,CntyQryCensus!$A$185:$GX$207,CK$1) -> 0 | CL65: =VLOOKUP(DropDownList!$B$27,CntyQryCensus!$A$185:$GX$207,CL$1) -> 0 | CM65: =VLOOKUP(DropDownList!$B$27,CntyQryCensus!$A$185:$GX$207,CM$1) -> 0 | CN65: =VLOOKUP(DropDownList!$B$27,CntyQryCensus!$A$185:$GX$207,CN$1) -> 110 | CO65: =VLOOKUP(DropDownList!$B$27,CntyQryCensus!$A$185:$GX$207,CO$1) -> 5 | CP65: =VLOOKUP(DropDownList!$B$27,CntyQryCensus!$A$185:$GX$207,CP$1) -> 781 | CQ65: =VLOOKUP(DropDownList!$B$27,CntyQryCensus!$A$185:$GX$207,CQ$1) -> 617 | CR65: =VLOOKUP(DropDownList!$B$27,CntyQryCensus!$A$185:$GX$207,CR$1) -> 529 | CS65: =VLOOKUP(DropDownList!$B$27,CntyQryCensus!$A$185:$GX$207,CS$1) -> 0 | CT65: =VLOOKUP(DropDownList!$B$27,CntyQryCensus!$A$185:$GX$207,CT$1) -> 12 | CU65: =VLOOKUP(DropDownList!$B$27,CntyQryCensus!$A$185:$GX$207,CU$1) -> 6 | CV65: =VLOOKUP(DropDownList!$B$27,CntyQryCensus!$A$185:$GX$207,CV$1) -> 0 | CW65: =VLOOKUP(DropDownList!$B$27,CntyQryCensus!$A$185:$GX$207,CW$1) -> 0 | CX65: =VLOOKUP(DropDownList!$B$27,CntyQryCensus!$A$185:$GX$207,CX$1) -> 0 | CY65: =VLOOKUP(DropDownList!$B$27,CntyQryCensus!$A$185:$GX$207,CY$1) -> 0 | CZ65: =VLOOKUP(DropDownList!$B$27,CntyQryCensus!$A$185:$GX$207,CZ$1) -> 70 | DA65: =VLOOKUP(DropDownList!$B$27,CntyQryCensus!$A$185:$GX$207,DA$1) -> 0 | DB65: =VLOOKUP(DropDownList!$B$27,CntyQryCensus!$A$185:$GX$207,DB$1) -> 164 | DC65: =VLOOKUP(DropDownList!$B$27,CntyQryCensus!$A$185:$GX$207,DC$1) -> 75 | DD65: =VLOOKUP(DropDownList!$B$27,CntyQryCensus!$A$185:$GX$207,DD$1) -> 4 | DE65: =VLOOKUP(DropDownList!$B$27,CntyQryCensus!$A$185:$GX$207,DE$1) -> 17 | DF65: =VLOOKUP(DropDownList!$B$27,CntyQryCensus!$A$185:$GX$207,DF$1) -> 23 | DG65: =VLOOKUP(DropDownList!$B$27,CntyQryCensus!$A$185:$GX$207,DG$1) -> 18 | DH65: =VLOOKUP(DropDownList!$B$27,CntyQryCensus!$A$185:$GX$207,DH$1) -> 0 | DI65: =VLOOKUP(DropDownList!$B$27,CntyQryCensus!$A$185:$GX$207,DI$1) -> 0 | DJ65: =VLOOKUP(DropDownList!$B$27,CntyQryCensus!$A$185:$GX$207,DJ$1) -> 0 | DK65: =VLOOKUP(DropDownList!$B$27,CntyQryCensus!$A$185:$GX$207,DK$1) -> 24 | DL65: =VLOOKUP(DropDownList!$B$27,CntyQryCensus!$A$185:$GX$207,DL$1) -> 3 | DM65: =VLOOKUP(DropDownList!$B$27,CntyQryCensus!$A$185:$GX$207,DM$1) -> 1952 | DN65: =VLOOKUP(DropDownList!$B$27,CntyQryCensus!$A$185:$GX$207,DN$1) -> 1553 | DO65: =VLOOKUP(DropDownList!$B$27,CntyQryCensus!$A$185:$GX$207,DO$1) -> 1339 | DP65: =VLOOKUP(DropDownList!$B$27,CntyQryCensus!$A$185:$GX$207,DP$1) -> 0 | DQ65: =VLOOKUP(DropDownList!$B$27,CntyQryCensus!$A$185:$GX$207,DQ$1) -> 30 | DR65: =VLOOKUP(DropDownList!$B$27,CntyQryCensus!$A$185:$GX$207,DR$1) -> 23 | DS65: =VLOOKUP(DropDownList!$B$27,CntyQryCensus!$A$185:$GX$207,DS$1) -> 0 | DT65: =VLOOKUP(DropDownList!$B$27,CntyQryCensus!$A$185:$GX$207,DT$1) -> 0 | DU65: =VLOOKUP(DropDownList!$B$27,CntyQryCensus!$A$185:$GX$207,DU$1) -> 0 | DV65: =VLOOKUP(DropDownList!$B$27,CntyQryCensus!$A$185:$GX$207,DV$1) -> 0 | DW65: =VLOOKUP(DropDownList!$B$27,CntyQryCensus!$A$185:$GX$207,DW$1) -> 161 | DX65: =VLOOKUP(DropDownList!$B$27,CntyQryCensus!$A$185:$GX$207,DX$1) -> 0 | DY65: =VLOOKUP(DropDownList!$B$27,CntyQryCensus!$A$185:$GX$207,DY$1) -> 399 | DZ65: =VLOOKUP(DropDownList!$B$27,CntyQryCensus!$A$185:$GX$207,DZ$1) -> 176 | EA65: =VLOOKUP(DropDownList!$B$27,CntyQryCensus!$A$185:$GX$207,EA$1) -> 16 | EB65: =VLOOKUP(DropDownList!$B$27,CntyQryCensus!$A$185:$GX$207,EB$1) -> 34 | EC65: =VLOOKUP(DropDownList!$B$27,CntyQryCensus!$A$185:$GX$207,EC$1) -> 55 | ED65: =VLOOKUP(DropDownList!$B$27,CntyQryCensus!$A$185:$GX$207,ED$1) -> 34 | EE65: =VLOOKUP(DropDownList!$B$27,CntyQryCensus!$A$185:$GX$207,EE$1) -> 0 | EF65: =VLOOKUP(DropDownList!$B$27,CntyQryCensus!$A$185:$GX$207,EF$1) -> 0 | EG65: =VLOOKUP(DropDownList!$B$27,CntyQryCensus!$A$185:$GX$207,EG$1) -> 0 | EH65: =VLOOKUP(DropDownList!$B$27,CntyQryCensus!$A$185:$GX$207,EH$1) -> 81 | EI65: =VLOOKUP(DropDownList!$B$27,CntyQryCensus!$A$185:$GX$207,EI$1) -> 3 | EJ65: =VLOOKUP(DropDownList!$B$27,CntyQryCensus!$A$185:$GX$207,EJ$1) -> 781 | EK65: =VLOOKUP(DropDownList!$B$27,CntyQryCensus!$A$185:$GX$207,EK$1) -> 617 | EL65: =VLOOKUP(DropDownList!$B$27,CntyQryCensus!$A$185:$GX$207,EL$1) -> 4 | EM65: =VLOOKUP(DropDownList!$B$27,CntyQryCensus!$A$185:$GX$207,EM$1) -> 30 | EN65: =VLOOKUP(DropDownList!$B$27,CntyQryCensus!$A$185:$GX$207,EN$1) -> 51 | EO65: =VLOOKUP(DropDownList!$B$27,CntyQryCensus!$A$185:$GX$207,EO$1) -> 133 | EP65: =VLOOKUP(DropDownList!$B$27,CntyQryCensus!$A$185:$GX$207,EP$1) -> 106 | EQ65: =VLOOKUP(DropDownList!$B$27,CntyQryCensus!$A$185:$GX$207,EQ$1) -> 56 | ER65: =VLOOKUP(DropDownList!$B$27,CntyQryCensus!$A$185:$GX$207,ER$1) -> 38 | ES65: =VLOOKUP(DropDownList!$B$27,CntyQryCensus!$A$185:$GX$207,ES$1) -> 37 | ET65: =VLOOKUP(DropDownList!$B$27,CntyQryCensus!$A$185:$GX$207,ET$1) -> 162 | EU65: =VLOOKUP(DropDownList!$B$27,CntyQryCensus!$A$185:$GX$207,EU$1) -> 164 | EV65: =VLOOKUP(DropDownList!$B$27,CntyQryCensus!$A$185:$GX$207,EV$1) -> 0 | EW65: =VLOOKUP(DropDownList!$B$27,CntyQryCensus!$A$185:$GX$207,EW$1) -> 11 | EX65: =VLOOKUP(DropDownList!$B$27,CntyQryCensus!$A$185:$GX$207,EX$1) -> 7 | EY65: =VLOOKUP(DropDownList!$B$27,CntyQryCensus!$A$185:$GX$207,EY$1) -> 21 | EZ65: =VLOOKUP(DropDownList!$B$27,CntyQryCensus!$A$185:$GX$207,EZ$1) -> 19 | FA65: =VLOOKUP(DropDownList!$B$27,CntyQryCensus!$A$185:$GX$207,FA$1) -> 26 | FB65: =VLOOKUP(DropDownList!$B$27,CntyQryCensus!$A$185:$GX$207,FB$1) -> 9 | FC65: =VLOOKUP(DropDownList!$B$27,CntyQryCensus!$A$185:$GX$207,FC$1) -> 7 | FD65: =VLOOKUP(DropDownList!$B$27,CntyQryCensus!$A$185:$GX$207,FD$1) -> 64 | FE65: =VLOOKUP(DropDownList!$B$27,CntyQryCensus!$A$185:$GX$207,FE$1) -> 781 | FF65: =VLOOKUP(DropDownList!$B$27,CntyQryCensus!$A$185:$GX$207,FF$1) -> 2 | FG65: =VLOOKUP(DropDownList!$B$27,CntyQryCensus!$A$185:$GX$207,FG$1) -> 74 | FH65: =VLOOKUP(DropDownList!$B$27,CntyQryCensus!$A$185:$GX$207,FH$1) -> 27 | FI65: =VLOOKUP(DropDownList!$B$27,CntyQryCensus!$A$185:$GX$207,FI$1) -> 459 | FJ65: =VLOOKUP(DropDownList!$B$27,CntyQryCensus!$A$185:$GX$207,FJ$1) -> 13 | FK65: =VLOOKUP(DropDownList!$B$27,CntyQryCensus!$A$185:$GX$207,FK$1) -> 201 | FL65: =VLOOKUP(DropDownList!$B$27,CntyQryCensus!$A$185:$GX$207,FL$1) -> 0 | FM65: =VLOOKUP(DropDownList!$B$27,CntyQryCensus!$A$185:$GX$207,FM$1) -> 0 | FN65: =VLOOKUP(DropDownList!$B$27,CntyQryCensus!$A$185:$GX$207,FN$1) -> 5 | FO65: =VLOOKUP(DropDownList!$B$27,CntyQryCensus!$A$185:$GX$207,FO$1) -> 950 | FP65: =VLOOKUP(DropDownList!$B$27,CntyQryCensus!$A$185:$GX$207,FP$1) -> 31 | FQ65: =VLOOKUP(DropDownList!$B$27,CntyQryCensus!$A$185:$GX$207,FQ$1) -> 118 | FR65: =VLOOKUP(DropDownList!$B$27,CntyQryCensus!$A$185:$GX$207,FR$1) -> 329 | FS65: =VLOOKUP(DropDownList!$B$27,CntyQryCensus!$A$185:$GX$207,FS$1) -> 308 | FT65: =VLOOKUP(DropDownList!$B$27,CntyQryCensus!$A$185:$GX$207,FT$1) -> 134 | FU65: =VLOOKUP(DropDownList!$B$27,CntyQryCensus!$A$185:$GX$207,FU$1) -> 30 | FV65: =VLOOKUP(DropDownList!$B$27,CntyQryCensus!$A$185:$GX$207,FV$1) -> 781 | FW65: =VLOOKUP(DropDownList!$B$27,CntyQryCensus!$A$185:$GX$207,FW$1) -> 617 | FX65: =VLOOKUP(DropDownList!$B$27,CntyQryCensus!$A$185:$GX$207,FX$1) -> 6 | FY65: =VLOOKUP(DropDownList!$B$27,CntyQryCensus!$A$185:$GX$207,FY$1) -> 57 | FZ65: =VLOOKUP(DropDownList!$B$27,CntyQryCensus!$A$185:$GX$207,FZ$1) -> 209 | GA65: =VLOOKUP(DropDownList!$B$27,CntyQryCensus!$A$185:$GX$207,GA$1) -> 223 | GB65: =VLOOKUP(DropDownList!$B$27,CntyQryCensus!$A$185:$GX$207,GB$1) -> 97 | GC65: =VLOOKUP(DropDownList!$B$27,CntyQryCensus!$A$185:$GX$207,GC$1) -> 25 | GD65: =VLOOKUP(DropDownList!$B$27,CntyQryCensus!$A$185:$GX$207,GD$1) -> 164 | GE65: =VLOOKUP(DropDownList!$B$27,CntyQryCensus!$A$185:$GX$207,GE$1) -> 12 | GF65: =VLOOKUP(DropDownList!$B$27,CntyQryCensus!$A$185:$GX$207,GF$1) -> 32 | GG65: =VLOOKUP(DropDownList!$B$27,CntyQryCensus!$A$185:$GX$207,GG$1) -> 55 | GH65: =VLOOKUP(DropDownList!$B$27,CntyQryCensus!$A$185:$GX$207,GH$1) -> 43 | GI65: =VLOOKUP(DropDownList!$B$27,CntyQryCensus!$A$185:$GX$207,GI$1) -> 19 | GJ65: =VLOOKUP(DropDownList!$B$27,CntyQryCensus!$A$185:$GX$207,GJ$1) -> 3 | GK65: =VLOOKUP(DropDownList!$B$27,CntyQryCensus!$A$185:$GX$207,GK$1) -> 781 | GL65: =VLOOKUP(DropDownList!$B$27,CntyQryCensus!$A$185:$GX$207,GL$1) -> 617 | GM65: =VLOOKUP(DropDownList!$B$27,CntyQryCensus!$A$185:$GX$207,GM$1) -> 575 | GN65: =VLOOKUP(DropDownList!$B$27,CntyQryCensus!$A$185:$GX$207,GN$1) -> 42 | GO65: =VLOOKUP(DropDownList!$B$27,CntyQryCensus!$A$185:$GX$207,GO$1) -> 164 | GP65: =VLOOKUP(DropDownList!$B$27,CntyQryCensus!$A$185:$GX$207,GP$1) -> 159 | GQ65: =VLOOKUP(DropDownList!$B$27,CntyQryCensus!$A$185:$GX$207,GQ$1) -> 5 | GR65: =VLOOKUP(DropDownList!$B$27,CntyQryCensus!$A$185:$GX$207,GR$1) -> 781 | GS65: =VLOOKUP(DropDownList!$B$27,CntyQryCensus!$A$185:$GX$207,GS$1) -> 617 | GT65: =VLOOKUP(DropDownList!$B$27,CntyQryCensus!$A$185:$GX$207,GT$1) -> 598 | GU65: =VLOOKUP(DropDownList!$B$27,CntyQryCensus!$A$185:$GX$207,GU$1) -> 19 | GV65: =VLOOKUP(DropDownList!$B$27,CntyQryCensus!$A$185:$GX$207,GV$1) -> 164 | GW65: =VLOOKUP(DropDownList!$B$27,CntyQryCensus!$A$185:$GX$207,GW$1) -> 159 | GX65: =VLOOKUP(DropDownList!$B$27,CntyQryCensus!$A$185:$GX$207,GX$1) -> 5
A68: Census 2000 SummaryFile3 Sample Data - SF3TownQry8HousingCostA
A69: NAME | B69: LOGRECNO | C69: COUNTY | D69: TotalPop | E69: H62RntrOccHU | F69: H62RntrOccHUwRent | G69: H62ROHUGRent<100 | H69: H62ROHUGRent100to149 | I69: H62ROHUGRent150to199 | J69: H62ROHUGRent200to249 | K69: H62ROHUGRent250to299 | L69: H62ROHUGRent300to349 | M69: H62ROHUGRent350to399 | N69: H62ROHUGRent400to449 | O69: H62ROHUGRent450to499 | P69: H62ROHUGRent500to549 | Q69: H62ROHUGRent550to599 | R69: H62ROHUGRent600to649 | S69: H62ROHUGRent650to699 | T69: H62ROHUGRent700to749 | U69: H62ROHUGRent750to799 | V69: H62ROHUGRent800to899 | W69: H62ROHUGRent900to999 | X69: H62ROHUGRent1000to1249 | Y69: H62ROHUGRent1250to1499 | Z69: H62ROHUGRent1500to1999 | AA69: H62ROHUGRent2000> | AB69: H62ROHUNoGRent | AC69: H63MedianGrossRnt | AD69: H69RenterOccHsU | AE69: H69GRnt<10PctHHInc | AF69: H69GRnt10to15PctHHInc | AG69: H69GRnt15to20PctHHInc | AH69: H69GRnt20to25PctHHInc | AI69: H69GRnt25to30PctHHInc | AJ69: H69GRnt30to35PctHHInc | AK69: H69GRnt35to40PctHHInc | AL69: H69GRnt40to50PctHHInc | AM69: H69GRnt>50PctHHInc | AN69: H69GRntPctNotcomputed | AO69: H73RenterOccHU | AP69: H73ROHUHhInc<10k | AQ69: H73ROHUHhInc<10kRnt<20pct | AR69: H73ROHUHhInc<10kRnt20to25pct | AS69: H73ROHUHhInc<10kRnt25to30pct | AT69: H73ROHUHhInc<10kRnt30to35pct | AU69: H73ROHUHhInc<10kRnt>35pct | AV69: H73ROHUHhInc<10kPctNotComput | AW69: H73ROHUHhInc10to20k | AX69: H73ROHUHhInc10to20kRnt<20pct | AY69: H73ROHUHhInc10to20kRnt20to25pct | AZ69: H73ROHUHhInc10to20kRnt25to30pct | BA69: H73ROHUHhInc10to20kRnt30to35pct | BB69: H73ROHUHhInc10to20kRnt>35pct | BC69: H73ROHUHhInc10to20kRntPctNC | BD69: H73ROHUHhInc20to35k | BE69: H73ROHUHhInc20to35kRnt<20pct | BF69: H73ROHUHhInc20to35kRnt20to25pct | BG69: H73ROHUHhInc20to35kRnt25to30pct | BH69: H73ROHUHhInc20to35kRnt30to35pct | BI69: H73ROHUHhInc20to35kRnt>35pct | BJ69: H73ROHUHhInc20to35kRntPctNC | BK69: H73ROHUHhInc35to40k | BL69: H73ROHUHhInc35to40kRnt<20pct | BM69: H73ROHUHhInc35to40kRnt20to25pct | BN69: H73ROHUHhInc35to40kRnt25to30pct | BO69: H73ROHUHhInc35to40kRnt30to35pct | BP69: H73ROHUHhInc35to40kRnt>35pct | BQ69: H73ROHUHhInc35to40kRntPctNC | BR69: H73ROHUHhInc50to75k | BS69: H73ROHUHhInc50to75kRnt<20pct | BT69: H73ROHUHhInc50to75kRnt20to25pct | BU69: H73ROHUHhInc50to75kRnt25to30pct | BV69: H73ROHUHhInc50to75kRnt30to35pct | BW69: H73ROHUHhInc50to75kRnt>35pct | BX69: H73ROHUHhInc50to75kRntPctNC | BY69: H73ROHUHhInc75to100k | BZ69: H73ROHUHhInc75to100kRnt<20pct | CA69: H73ROHUHhInc75to100kRnt20to25pct | CB69: H73ROHUHhInc75to100kRnt25to30pct | CC69: H73ROHUHhInc75to100kRnt30to35pct | CD69: H73ROHUHhInc75to100kRnt>35pct | CE69: H73ROHUHhInc75to100kRntPctNC | CF69: H73ROHUHhInc>100k | CG69: H73ROHUHhInc>100kRnt<20pct | CH69: H73ROHUHhInc>100kRnt20to25pct | CI69: H73ROHUHhInc>100kRnt25to30pct | CJ69: H73ROHUHhInc>100kRnt30to35pct | CK69: H73ROHUHhInc>100kRnt>35pct | CL69: H73ROHUHhInc>100kRntPctNC
A70: =VLOOKUP(DropDownList!$B$27,CntyQryCensus!$A$207:$CL$2237,A$1) -> Alstead | B70: =VLOOKUP(DropDownList!$B$27,CntyQryCensus!$A$207:$CL$2237,B$1) -> 0000041 | C70: =VLOOKUP(DropDownList!$B$27,CntyQryCensus!$A$207:$CL$2237,C$1) -> 005 | D70: =VLOOKUP(DropDownList!$B$27,CntyQryCensus!$A$207:$CL$2237,D$1) -> 1937 | E70: =VLOOKUP(DropDownList!$B$27,CntyQryCensus!$A$207:$CL$2237,E$1) -> 1910 | F70: =VLOOKUP(DropDownList!$B$27,CntyQryCensus!$A$207:$CL$2237,F$1) -> 1890 | G70: =VLOOKUP(DropDownList!$B$27,CntyQryCensus!$A$207:$CL$2237,G$1) -> 2 | H70: =VLOOKUP(DropDownList!$B$27,CntyQryCensus!$A$207:$CL$2237,H$1) -> 11 | I70: =VLOOKUP(DropDownList!$B$27,CntyQryCensus!$A$207:$CL$2237,I$1) -> 6 | J70: =VLOOKUP(DropDownList!$B$27,CntyQryCensus!$A$207:$CL$2237,J$1) -> 0 | K70: =VLOOKUP(DropDownList!$B$27,CntyQryCensus!$A$207:$CL$2237,K$1) -> 1 | L70: =VLOOKUP(DropDownList!$B$27,CntyQryCensus!$A$207:$CL$2237,L$1) -> 27 | M70: =VLOOKUP(DropDownList!$B$27,CntyQryCensus!$A$207:$CL$2237,M$1) -> 16 | N70: =VLOOKUP(DropDownList!$B$27,CntyQryCensus!$A$207:$CL$2237,N$1) -> 1921 | O70: =VLOOKUP(DropDownList!$B$27,CntyQryCensus!$A$207:$CL$2237,O$1) -> 333 | P70: =VLOOKUP(DropDownList!$B$27,CntyQryCensus!$A$207:$CL$2237,P$1) -> 211 | Q70: =VLOOKUP(DropDownList!$B$27,CntyQryCensus!$A$207:$CL$2237,Q$1) -> 195 | R70: =VLOOKUP(DropDownList!$B$27,CntyQryCensus!$A$207:$CL$2237,R$1) -> 243 | S70: =VLOOKUP(DropDownList!$B$27,CntyQryCensus!$A$207:$CL$2237,S$1) -> 317 | T70: =VLOOKUP(DropDownList!$B$27,CntyQryCensus!$A$207:$CL$2237,T$1) -> 337 | U70: =VLOOKUP(DropDownList!$B$27,CntyQryCensus!$A$207:$CL$2237,U$1) -> 185 | V70: =VLOOKUP(DropDownList!$B$27,CntyQryCensus!$A$207:$CL$2237,V$1) -> 116 | W70: =VLOOKUP(DropDownList!$B$27,CntyQryCensus!$A$207:$CL$2237,W$1) -> 44.5 | X70: =VLOOKUP(DropDownList!$B$27,CntyQryCensus!$A$207:$CL$2237,X$1) -> 44.5 | Y70: =VLOOKUP(DropDownList!$B$27,CntyQryCensus!$A$207:$CL$2237,Y$1) -> 44.4 | Z70: =VLOOKUP(DropDownList!$B$27,CntyQryCensus!$A$207:$CL$2237,Z$1) -> 809 | AA70: =VLOOKUP(DropDownList!$B$27,CntyQryCensus!$A$207:$CL$2237,AA$1) -> 1937 | AB70: =VLOOKUP(DropDownList!$B$27,CntyQryCensus!$A$207:$CL$2237,AB$1) -> 994 | AC70: =VLOOKUP(DropDownList!$B$27,CntyQryCensus!$A$207:$CL$2237,AC$1) -> 943 | AD70: =VLOOKUP(DropDownList!$B$27,CntyQryCensus!$A$207:$CL$2237,AD$1) -> 2.39 | AE70: =VLOOKUP(DropDownList!$B$27,CntyQryCensus!$A$207:$CL$2237,AE$1) -> 529 | AF70: =VLOOKUP(DropDownList!$B$27,CntyQryCensus!$A$207:$CL$2237,AF$1) -> 422 | AG70: =VLOOKUP(DropDownList!$B$27,CntyQryCensus!$A$207:$CL$2237,AG$1) -> 107 | AH70: =VLOOKUP(DropDownList!$B$27,CntyQryCensus!$A$207:$CL$2237,AH$1) -> 280 | AI70: =VLOOKUP(DropDownList!$B$27,CntyQryCensus!$A$207:$CL$2237,AI$1) -> 2.88 | AJ70: =VLOOKUP(DropDownList!$B$27,CntyQryCensus!$A$207:$CL$2237,AJ$1) -> 3.367857143 | AK70: =VLOOKUP(DropDownList!$B$27,CntyQryCensus!$A$207:$CL$2237,AK$1) -> 2.48 | AL70: =VLOOKUP(DropDownList!$B$27,CntyQryCensus!$A$207:$CL$2237,AL$1) -> 2.1 | AM70: =VLOOKUP(DropDownList!$B$27,CntyQryCensus!$A$207:$CL$2237,AM$1) -> 991 | AN70: =VLOOKUP(DropDownList!$B$27,CntyQryCensus!$A$207:$CL$2237,AN$1) -> 809 | AO70: =VLOOKUP(DropDownList!$B$27,CntyQryCensus!$A$207:$CL$2237,AO$1) -> 622 | AP70: =VLOOKUP(DropDownList!$B$27,CntyQryCensus!$A$207:$CL$2237,AP$1) -> 187 | AQ70: =VLOOKUP(DropDownList!$B$27,CntyQryCensus!$A$207:$CL$2237,AQ$1) -> 182 | AR70: =VLOOKUP(DropDownList!$B$27,CntyQryCensus!$A$207:$CL$2237,AR$1) -> 13 | AS70: =VLOOKUP(DropDownList!$B$27,CntyQryCensus!$A$207:$CL$2237,AS$1) -> 2 | AT70: =VLOOKUP(DropDownList!$B$27,CntyQryCensus!$A$207:$CL$2237,AT$1) -> 13 | AU70: =VLOOKUP(DropDownList!$B$27,CntyQryCensus!$A$207:$CL$2237,AU$1) -> 1 | AV70: =VLOOKUP(DropDownList!$B$27,CntyQryCensus!$A$207:$CL$2237,AV$1) -> 128 | AW70: =VLOOKUP(DropDownList!$B$27,CntyQryCensus!$A$207:$CL$2237,AW$1) -> 25 | AX70: =VLOOKUP(DropDownList!$B$27,CntyQryCensus!$A$207:$CL$2237,AX$1) -> 2 | AY70: =VLOOKUP(DropDownList!$B$27,CntyQryCensus!$A$207:$CL$2237,AY$1) -> 6.4 | AZ70: =VLOOKUP(DropDownList!$B$27,CntyQryCensus!$A$207:$CL$2237,AZ$1) -> 991 | BA70: =VLOOKUP(DropDownList!$B$27,CntyQryCensus!$A$207:$CL$2237,BA$1) -> 826 | BB70: =VLOOKUP(DropDownList!$B$27,CntyQryCensus!$A$207:$CL$2237,BB$1) -> 73 | BC70: =VLOOKUP(DropDownList!$B$27,CntyQryCensus!$A$207:$CL$2237,BC$1) -> 92 | BD70: =VLOOKUP(DropDownList!$B$27,CntyQryCensus!$A$207:$CL$2237,BD$1) -> 0 | BE70: =VLOOKUP(DropDownList!$B$27,CntyQryCensus!$A$207:$CL$2237,BE$1) -> 0 | BF70: =VLOOKUP(DropDownList!$B$27,CntyQryCensus!$A$207:$CL$2237,BF$1) -> 0 | BG70: =VLOOKUP(DropDownList!$B$27,CntyQryCensus!$A$207:$CL$2237,BG$1) -> 0 | BH70: =VLOOKUP(DropDownList!$B$27,CntyQryCensus!$A$207:$CL$2237,BH$1) -> 0 | BI70: =VLOOKUP(DropDownList!$B$27,CntyQryCensus!$A$207:$CL$2237,BI$1) -> 0 | BJ70: =VLOOKUP(DropDownList!$B$27,CntyQryCensus!$A$207:$CL$2237,BJ$1) -> 0 | BK70: =VLOOKUP(DropDownList!$B$27,CntyQryCensus!$A$207:$CL$2237,BK$1) -> 0 | BL70: =VLOOKUP(DropDownList!$B$27,CntyQryCensus!$A$207:$CL$2237,BL$1) -> 0 | BM70: =VLOOKUP(DropDownList!$B$27,CntyQryCensus!$A$207:$CL$2237,BM$1) -> 0 | BN70: =VLOOKUP(DropDownList!$B$27,CntyQryCensus!$A$207:$CL$2237,BN$1) -> 0 | BO70: =VLOOKUP(DropDownList!$B$27,CntyQryCensus!$A$207:$CL$2237,BO$1) -> 0 | BP70: =VLOOKUP(DropDownList!$B$27,CntyQryCensus!$A$207:$CL$2237,BP$1) -> 0 | BQ70: =VLOOKUP(DropDownList!$B$27,CntyQryCensus!$A$207:$CL$2237,BQ$1) -> 0 | BR70: =VLOOKUP(DropDownList!$B$27,CntyQryCensus!$A$207:$CL$2237,BR$1) -> 0 | BS70: =VLOOKUP(DropDownList!$B$27,CntyQryCensus!$A$207:$CL$2237,BS$1) -> 0 | BT70: =VLOOKUP(DropDownList!$B$27,CntyQryCensus!$A$207:$CL$2237,BT$1) -> 0 | BU70: =VLOOKUP(DropDownList!$B$27,CntyQryCensus!$A$207:$CL$2237,BU$1) -> 0 | BV70: =VLOOKUP(DropDownList!$B$27,CntyQryCensus!$A$207:$CL$2237,BV$1) -> 0 | BW70: =VLOOKUP(DropDownList!$B$27,CntyQryCensus!$A$207:$CL$2237,BW$1) -> 0 | BX70: =VLOOKUP(DropDownList!$B$27,CntyQryCensus!$A$207:$CL$2237,BX$1) -> 0 | BY70: =VLOOKUP(DropDownList!$B$27,CntyQryCensus!$A$207:$CL$2237,BY$1) -> 0 | BZ70: =VLOOKUP(DropDownList!$B$27,CntyQryCensus!$A$207:$CL$2237,BZ$1) -> 0 | CA70: =VLOOKUP(DropDownList!$B$27,CntyQryCensus!$A$207:$CL$2237,CA$1) -> 0 | CB70: =VLOOKUP(DropDownList!$B$27,CntyQryCensus!$A$207:$CL$2237,CB$1) -> 0 | CC70: =VLOOKUP(DropDownList!$B$27,CntyQryCensus!$A$207:$CL$2237,CC$1) -> 0 | CD70: =VLOOKUP(DropDownList!$B$27,CntyQryCensus!$A$207:$CL$2237,CD$1) -> 0 | CE70: =VLOOKUP(DropDownList!$B$27,CntyQryCensus!$A$207:$CL$2237,CE$1) -> 0 | CF70: =VLOOKUP(DropDownList!$B$27,CntyQryCensus!$A$207:$CL$2237,CF$1) -> 0 | CG70: =VLOOKUP(DropDownList!$B$27,CntyQryCensus!$A$207:$CL$2237,CG$1) -> 0 | CH70: =VLOOKUP(DropDownList!$B$27,CntyQryCensus!$A$207:$CL$2237,CH$1) -> 0 | CI70: =VLOOKUP(DropDownList!$B$27,CntyQryCensus!$A$207:$CL$2237,CI$1) -> 0 | CJ70: =VLOOKUP(DropDownList!$B$27,CntyQryCensus!$A$207:$CL$2237,CJ$1) -> 0 | CK70: =VLOOKUP(DropDownList!$B$27,CntyQryCensus!$A$207:$CL$2237,CK$1) -> 0 | CL70: =VLOOKUP(DropDownList!$B$27,CntyQryCensus!$A$207:$CL$2237,CL$1) -> 0
A73: Census 2000 SummaryFile3 Sample Data - SF3TownQry8HousingCostB
A74: NAME | B74: LOGRECNO | C74: COUNTY | D74: TotalPop | E74: H74SpecOwnerOccHU | F74: H74OOHU<10k | G74: H74OOHU10to15k | H74: H74OOHU15to20k | I74: H74OOHU20to25k | J74: H74OOHU25to30k | K74: H74OOHU30to35k | L74: H74OOHU35to40k | M74: H74OOHU40to50k | N74: H74OOHU50to60k | O74: H74OOHU60to70k | P74: H74OOHU70to80k | Q74: H74OOHU80to90k | R74: H74OOHU90to100k | S74: H74OOHU100to125k | T74: H74OOHU125to150k | U74: H74OOHU150to175k | V74: H74OOHU175to200k | W74: H74OOHU200to250k | X74: H74OOHU250to300k | Y74: H74OOHU300to400k | Z74: H74OOHU400to500k | AA74: H74OOHU500to750k | AB74: H74OOHU750to1000k | AC74: H74OOHU1000kmore | AD74: H76OOHUMedianVal | AE74: H84OwnerOccHU | AF74: H84AllOOHU<10k | AG74: H84AllOOHU10to15k | AH74: H84AllOOHU15to20k | AI74: H84AllOOHU20to25k | AJ74: H84AllOOHU25to30k | AK74: H84AllOOHU30to35k | AL74: H84AllOOHU35to40k | AM74: H84AllOOHU40to50k | AN74: H84AllOOHU50to60k | AO74: H84AllOOHU60to70k | AP74: H84AllOOHU70to80k | AQ74: H84AllOOHU80to90k | AR74: H84AllOOHU90to100k | AS74: H84AllOOHU100to125k | AT74: H84AllOOHU125to150k | AU74: H84AllOOHU150to175k | AV74: H84AllOOHU175to200k | AW74: H84AllOOHU200to250k | AX74: H84AllOOHU250to300k | AY74: H84AllOOHU300to400k | AZ74: H84AllOOHU400to500k | BA74: H84AllOOHU500to750k | BB74: H84AllOOHU750to1000k | BC74: H84AllOOHU1000kmore | BD74: H85OOHUMedVal | BE74: H90SOOHU | BF74: H90HUwMorgt | BG74: H90HUwMtgHC<200 | BH74: H90HUwMtgHC200to300 | BI74: H90HUwMtgHC300to400 | BJ74: H90HUwMtgHC400to500 | BK74: H90HUwMtgHC500to600 | BL74: H90HUwMtgHC600to700 | BM74: H90HUwMtgHC700to800 | BN74: H90HUwMtgHC800to900 | BO74: H90HUwMtgHC900to1000 | BP74: H90HUwMtgHC1000to1250 | BQ74: H90HUwMtgHC1250to1500 | BR74: H90HUwMtgHC1500to2000 | BS74: H90HUwMtgHC2000to2500 | BT74: H90HUwMtgHC2500to3000 | BU74: H90HUwMtgHC3000orMore | BV74: H90HUwOutMorgt | BW74: H90HUwOutMtgHC<100 | BX74: H90HUwOutMtgHC100to150 | BY74: H90HUwOutMtgHC150to200 | BZ74: H90HUwOutMtgHC200to250 | CA74: H90HUwOutMtgHC250to300 | CB74: H90HUwOutMtgHC300to350 | CC74: H90HUwOutMtgHC350to400 | CD74: H90HUwOutMtgHC400to500 | CE74: H90HUwOutMtgHC500to600 | CF74: H90HUwOutMtgHC600to700 | CG74: H90HUwOutMtgHC700to800 | CH74: H90HUwOutMtgHC800to900 | CI74: H90HUwOutMtgHC900to1000 | CJ74: H90HUwOutMtgHC1000orMore | CK74: H91MedianOCHUwMtg | CL74: H91MedianOCHUwOutMtg | CM74: H94SpecOOHU | CN74: H94HUwMortg | CO74: H94HUwMtgHC<10pct | CP74: H94HUwMtgHC10to15pct | CQ74: H94HUwMtgHC15to20pct | CR74: H94HUwMtgHC20to25pct | CS74: H94HUwMtgHC25to30pct | CT74: H94HUwMtgHC30to35pct | CU74: H94HUwMtgHC35to40pct | CV74: H94HUwMtgHC40to50pct | CW74: H94HUwMtgHC50pctOrMore | CX74: H94HUwMtgHCpctNotComp | CY74: H94HUWOutMortg | CZ74: H94HUWOutMortgHC<10pct | DA74: H94HUWOutMortgHC10to15pct | DB74: H94HUWOutMortgHC15to20pct | DC74: H94HUWOutMortgHC20to25pct | DD74: H94HUWOutMortgHC25to30pct | DE74: H94HUWOutMortgHC30to35pct | DF74: H94HUWOutMortgHC35to40pct | DG74: H94HUWOutMortgHC40to50pct | DH74: H94HUWOutMortgHC50pctOrMore | DI74: H94HUWOutMortgHCpctNotComp | DJ74: H97SpecifOwnOccHU | DK74: H97SOOHUInc<10k | DL74: H97SOOHUInc<10kHC<20pct | DM74: H97SOOHUInc<10kHC20to25pct | DN74: H97SOOHUInc<10kHC25to30pct | DO74: H97SOOHUInc<10kHC30to35pct | DP74: H97SOOHUInc<10kHC>35pct | DQ74: H97SOOHUInc<10kHCpctNotComput | DR74: H97SOOHUInc10to20k | DS74: H97SOOHUInc10to20kHC<20pct | DT74: H97SOOHUInc10to20kHC20to25pct | DU74: H97SOOHUInc10to20kHC25to30pct | DV74: H97SOOHUInc10to20kHC30to35pct | DW74: H97SOOHUInc10to20kHC>35pct | DX74: H97SOOHUInc10to20kHCpctNotComput | DY74: H97SOOHUInc20to35k | DZ74: H97SOOHUInc20to35kRC<20pct | EA74: H97SOOHUInc20to35kRC20to25pct | EB74: H97SOOHUInc20to35kRC25to30pct | EC74: H97SOOHUInc20to35kRC30to35pct | ED74: H97SOOHUInc20to35kRC>35pct | EE74: H97SOOHUInc20to35kRCpctNotComput | EF74: H97SOOHUInc35to50k | EG74: H97SOOHUInc35to50kRC<20pct | EH74: H97SOOHUInc35to50kRC20to25pct | EI74: H97SOOHUInc35to50kRC25to30pct | EJ74: H97SOOHUInc35to50kRC30to35pct | EK74: H97SOOHUInc35to50kRC>35pct | EL74: H97SOOHUInc35to50kRCpctNotCompute | EM74: H97SOOHUInc50to75k | EN74: H97SOOHUInc50to75kRC<20pct | EO74: H97SOOHUInc50to75kRC20to25pct | EP74: H97SOOHUInc50to75kRC25to30pct | EQ74: H97SOOHUInc50to75kRC30to35pct | ER74: H97SOOHUInc50to75kRC>35pct | ES74: H97SOOHUInc50to75kRCpctNotComput | ET74: H97SOOHUInc75to100k | EU74: H97SOOHUInc75to100kRC<20pct | EV74: H97SOOHUInc75to100kRC20to25pct | EW74: H97SOOHUInc75to100kRC25to30pct | EX74: H97SOOHUInc75to100kRC30to35pct | EY74: H97SOOHUInc75to100kRC>35pct | EZ74: H97SOOHUInc75to100kRCpctNotCompute | FA74: H97SOOHUInc100to150k | FB74: H97SOOHUInc100to150kRC<20pct | FC74: H97SOOHUInc100to150kRC20to25pct | FD74: H97SOOHUInc100to150kRC25to30pct | FE74: H97SOOHUInc100to150kRC30to35pct | FF74: H97SOOHUInc100to150kRC>35pct | FG74: H97SOOHUInc100to150kRCpctNotCompute | FH74: H97SOOHUInc>150k | FI74: H97SOOHUInc>150kRC<20pct | FJ74: H97SOOHUInc>150kRC20to25pct | FK74: H97SOOHUInc>150kRC25to30pct | FL74: H97SOOHUInc>150kRC30to35pct | FM74: H97SOOHUInc>150kRC>35pct | FN74: H97SOOHUInc>150kRCpctNotCompute
A75: =VLOOKUP(DropDownList!$B$27,CntyQryCensus!$A$245:$FN$267,A$1) -> Alstead | B75: =VLOOKUP(DropDownList!$B$27,CntyQryCensus!$A$245:$FN$267,B$1) -> 0000512 | C75: =VLOOKUP(DropDownList!$B$27,CntyQryCensus!$A$245:$FN$267,C$1) -> 00820 | D75: =VLOOKUP(DropDownList!$B$27,CntyQryCensus!$A$245:$FN$267,D$1) -> 1944 | E75: =VLOOKUP(DropDownList!$B$27,CntyQryCensus!$A$245:$FN$267,E$1) -> 330 | F75: =VLOOKUP(DropDownList!$B$27,CntyQryCensus!$A$245:$FN$267,F$1) -> 2 | G75: =VLOOKUP(DropDownList!$B$27,CntyQryCensus!$A$245:$FN$267,G$1) -> 0 | H75: =VLOOKUP(DropDownList!$B$27,CntyQryCensus!$A$245:$FN$267,H$1) -> 3 | I75: =VLOOKUP(DropDownList!$B$27,CntyQryCensus!$A$245:$FN$267,I$1) -> 2 | J75: =VLOOKUP(DropDownList!$B$27,CntyQryCensus!$A$245:$FN$267,J$1) -> 2 | K75: =VLOOKUP(DropDownList!$B$27,CntyQryCensus!$A$245:$FN$267,K$1) -> 9 | L75: =VLOOKUP(DropDownList!$B$27,CntyQryCensus!$A$245:$FN$267,L$1) -> 6 | M75: =VLOOKUP(DropDownList!$B$27,CntyQryCensus!$A$245:$FN$267,M$1) -> 10 | N75: =VLOOKUP(DropDownList!$B$27,CntyQryCensus!$A$245:$FN$267,N$1) -> 17 | O75: =VLOOKUP(DropDownList!$B$27,CntyQryCensus!$A$245:$FN$267,O$1) -> 26 | P75: =VLOOKUP(DropDownList!$B$27,CntyQryCensus!$A$245:$FN$267,P$1) -> 39 | Q75: =VLOOKUP(DropDownList!$B$27,CntyQryCensus!$A$245:$FN$267,Q$1) -> 62 | R75: =VLOOKUP(DropDownList!$B$27,CntyQryCensus!$A$245:$FN$267,R$1) -> 30 | S75: =VLOOKUP(DropDownList!$B$27,CntyQryCensus!$A$245:$FN$267,S$1) -> 49 | T75: =VLOOKUP(DropDownList!$B$27,CntyQryCensus!$A$245:$FN$267,T$1) -> 41 | U75: =VLOOKUP(DropDownList!$B$27,CntyQryCensus!$A$245:$FN$267,U$1) -> 17 | V75: =VLOOKUP(DropDownList!$B$27,CntyQryCensus!$A$245:$FN$267,V$1) -> 8 | W75: =VLOOKUP(DropDownList!$B$27,CntyQryCensus!$A$245:$FN$267,W$1) -> 2 | X75: =VLOOKUP(DropDownList!$B$27,CntyQryCensus!$A$245:$FN$267,X$1) -> 0 | Y75: =VLOOKUP(DropDownList!$B$27,CntyQryCensus!$A$245:$FN$267,Y$1) -> 2 | Z75: =VLOOKUP(DropDownList!$B$27,CntyQryCensus!$A$245:$FN$267,Z$1) -> 0 | AA75: =VLOOKUP(DropDownList!$B$27,CntyQryCensus!$A$245:$FN$267,AA$1) -> 0 | AB75: =VLOOKUP(DropDownList!$B$27,CntyQryCensus!$A$245:$FN$267,AB$1) -> 0 | AC75: =VLOOKUP(DropDownList!$B$27,CntyQryCensus!$A$245:$FN$267,AC$1) -> 3 | AD75: =VLOOKUP(DropDownList!$B$27,CntyQryCensus!$A$245:$FN$267,AD$1) -> 87900 | AE75: =VLOOKUP(DropDownList!$B$27,CntyQryCensus!$A$245:$FN$267,AE$1) -> 617 | AF75: =VLOOKUP(DropDownList!$B$27,CntyQryCensus!$A$245:$FN$267,AF$1) -> 10 | AG75: =VLOOKUP(DropDownList!$B$27,CntyQryCensus!$A$245:$FN$267,AG$1) -> 10 | AH75: =VLOOKUP(DropDownList!$B$27,CntyQryCensus!$A$245:$FN$267,AH$1) -> 9 | AI75: =VLOOKUP(DropDownList!$B$27,CntyQryCensus!$A$245:$FN$267,AI$1) -> 4 | AJ75: =VLOOKUP(DropDownList!$B$27,CntyQryCensus!$A$245:$FN$267,AJ$1) -> 14 | AK75: =VLOOKUP(DropDownList!$B$27,CntyQryCensus!$A$245:$FN$267,AK$1) -> 13 | AL75: =VLOOKUP(DropDownList!$B$27,CntyQryCensus!$A$245:$FN$267,AL$1) -> 16 | AM75: =VLOOKUP(DropDownList!$B$27,CntyQryCensus!$A$245:$FN$267,AM$1) -> 12 | AN75: =VLOOKUP(DropDownList!$B$27,CntyQryCensus!$A$245:$FN$267,AN$1) -> 26 | AO75: =VLOOKUP(DropDownList!$B$27,CntyQryCensus!$A$245:$FN$267,AO$1) -> 43 | AP75: =VLOOKUP(DropDownList!$B$27,CntyQryCensus!$A$245:$FN$267,AP$1) -> 60 | AQ75: =VLOOKUP(DropDownList!$B$27,CntyQryCensus!$A$245:$FN$267,AQ$1) -> 85 | AR75: =VLOOKUP(DropDownList!$B$27,CntyQryCensus!$A$245:$FN$267,AR$1) -> 57 | AS75: =VLOOKUP(DropDownList!$B$27,CntyQryCensus!$A$245:$FN$267,AS$1) -> 87 | AT75: =VLOOKUP(DropDownList!$B$27,CntyQryCensus!$A$245:$FN$267,AT$1) -> 74 | AU75: =VLOOKUP(DropDownList!$B$27,CntyQryCensus!$A$245:$FN$267,AU$1) -> 30 | AV75: =VLOOKUP(DropDownList!$B$27,CntyQryCensus!$A$245:$FN$267,AV$1) -> 14 | AW75: =VLOOKUP(DropDownList!$B$27,CntyQryCensus!$A$245:$FN$267,AW$1) -> 16 | AX75: =VLOOKUP(DropDownList!$B$27,CntyQryCensus!$A$245:$FN$267,AX$1) -> 10 | AY75: =VLOOKUP(DropDownList!$B$27,CntyQryCensus!$A$245:$FN$267,AY$1) -> 8 | AZ75: =VLOOKUP(DropDownList!$B$27,CntyQryCensus!$A$245:$FN$267,AZ$1) -> 10 | BA75: =VLOOKUP(DropDownList!$B$27,CntyQryCensus!$A$245:$FN$267,BA$1) -> 2 | BB75: =VLOOKUP(DropDownList!$B$27,CntyQryCensus!$A$245:$FN$267,BB$1) -> 0 | BC75: =VLOOKUP(DropDownList!$B$27,CntyQryCensus!$A$245:$FN$267,BC$1) -> 7 | BD75: =VLOOKUP(DropDownList!$B$27,CntyQryCensus!$A$245:$FN$267,BD$1) -> 91100 | BE75: =VLOOKUP(DropDownList!$B$27,CntyQryCensus!$A$245:$FN$267,BE$1) -> 330 | BF75: =VLOOKUP(DropDownList!$B$27,CntyQryCensus!$A$245:$FN$267,BF$1) -> 209 | BG75: =VLOOKUP(DropDownList!$B$27,CntyQryCensus!$A$245:$FN$267,BG$1) -> 0 | BH75: =VLOOKUP(DropDownList!$B$27,CntyQryCensus!$A$245:$FN$267,BH$1) -> 0 | BI75: =VLOOKUP(DropDownList!$B$27,CntyQryCensus!$A$245:$FN$267,BI$1) -> 0 | BJ75: =VLOOKUP(DropDownList!$B$27,CntyQryCensus!$A$245:$FN$267,BJ$1) -> 16 | BK75: =VLOOKUP(DropDownList!$B$27,CntyQryCensus!$A$245:$FN$267,BK$1) -> 16 | BL75: =VLOOKUP(DropDownList!$B$27,CntyQryCensus!$A$245:$FN$267,BL$1) -> 20 | BM75: =VLOOKUP(DropDownList!$B$27,CntyQryCensus!$A$245:$FN$267,BM$1) -> 35 | BN75: =VLOOKUP(DropDownList!$B$27,CntyQryCensus!$A$245:$FN$267,BN$1) -> 22 | BO75: =VLOOKUP(DropDownList!$B$27,CntyQryCensus!$A$245:$FN$267,BO$1) -> 34 | BP75: =VLOOKUP(DropDownList!$B$27,CntyQryCensus!$A$245:$FN$267,BP$1) -> 27 | BQ75: =VLOOKUP(DropDownList!$B$27,CntyQryCensus!$A$245:$FN$267,BQ$1) -> 24 | BR75: =VLOOKUP(DropDownList!$B$27,CntyQryCensus!$A$245:$FN$267,BR$1) -> 15 | BS75: =VLOOKUP(DropDownList!$B$27,CntyQryCensus!$A$245:$FN$267,BS$1) -> 0 | BT75: =VLOOKUP(DropDownList!$B$27,CntyQryCensus!$A$245:$FN$267,BT$1) -> 0 | BU75: =VLOOKUP(DropDownList!$B$27,CntyQryCensus!$A$245:$FN$267,BU$1) -> 0 | BV75: =VLOOKUP(DropDownList!$B$27,CntyQryCensus!$A$245:$FN$267,BV$1) -> 121 | BW75: =VLOOKUP(DropDownList!$B$27,CntyQryCensus!$A$245:$FN$267,BW$1) -> 2 | BX75: =VLOOKUP(DropDownList!$B$27,CntyQryCensus!$A$245:$FN$267,BX$1) -> 2 | BY75: =VLOOKUP(DropDownList!$B$27,CntyQryCensus!$A$245:$FN$267,BY$1) -> 3 | BZ75: =VLOOKUP(DropDownList!$B$27,CntyQryCensus!$A$245:$FN$267,BZ$1) -> 11 | CA75: =VLOOKUP(DropDownList!$B$27,CntyQryCensus!$A$245:$FN$267,CA$1) -> 17 | CB75: =VLOOKUP(DropDownList!$B$27,CntyQryCensus!$A$245:$FN$267,CB$1) -> 23 | CC75: =VLOOKUP(DropDownList!$B$27,CntyQryCensus!$A$245:$FN$267,CC$1) -> 10 | CD75: =VLOOKUP(DropDownList!$B$27,CntyQryCensus!$A$245:$FN$267,CD$1) -> 34 | CE75: =VLOOKUP(DropDownList!$B$27,CntyQryCensus!$A$245:$FN$267,CE$1) -> 8 | CF75: =VLOOKUP(DropDownList!$B$27,CntyQryCensus!$A$245:$FN$267,CF$1) -> 4 | CG75: =VLOOKUP(DropDownList!$B$27,CntyQryCensus!$A$245:$FN$267,CG$1) -> 2 | CH75: =VLOOKUP(DropDownList!$B$27,CntyQryCensus!$A$245:$FN$267,CH$1) -> 2 | CI75: =VLOOKUP(DropDownList!$B$27,CntyQryCensus!$A$245:$FN$267,CI$1) -> 0 | CJ75: =VLOOKUP(DropDownList!$B$27,CntyQryCensus!$A$245:$FN$267,CJ$1) -> 3 | CK75: =VLOOKUP(DropDownList!$B$27,CntyQryCensus!$A$245:$FN$267,CK$1) -> 880 | CL75: =VLOOKUP(DropDownList!$B$27,CntyQryCensus!$A$245:$FN$267,CL$1) -> 363 | CM75: =VLOOKUP(DropDownList!$B$27,CntyQryCensus!$A$245:$FN$267,CM$1) -> 330 | CN75: =VLOOKUP(DropDownList!$B$27,CntyQryCensus!$A$245:$FN$267,CN$1) -> 209 | CO75: =VLOOKUP(DropDownList!$B$27,CntyQryCensus!$A$245:$FN$267,CO$1) -> 11 | CP75: =VLOOKUP(DropDownList!$B$27,CntyQryCensus!$A$245:$FN$267,CP$1) -> 31 | CQ75: =VLOOKUP(DropDownList!$B$27,CntyQryCensus!$A$245:$FN$267,CQ$1) -> 41 | CR75: =VLOOKUP(DropDownList!$B$27,CntyQryCensus!$A$245:$FN$267,CR$1) -> 38 | CS75: =VLOOKUP(DropDownList!$B$27,CntyQryCensus!$A$245:$FN$267,CS$1) -> 30 | CT75: =VLOOKUP(DropDownList!$B$27,CntyQryCensus!$A$245:$FN$267,CT$1) -> 14 | CU75: =VLOOKUP(DropDownList!$B$27,CntyQryCensus!$A$245:$FN$267,CU$1) -> 12 | CV75: =VLOOKUP(DropDownList!$B$27,CntyQryCensus!$A$245:$FN$267,CV$1) -> 19 | CW75: =VLOOKUP(DropDownList!$B$27,CntyQryCensus!$A$245:$FN$267,CW$1) -> 13 | CX75: =VLOOKUP(DropDownList!$B$27,CntyQryCensus!$A$245:$FN$267,CX$1) -> 0 | CY75: =VLOOKUP(DropDownList!$B$27,CntyQryCensus!$A$245:$FN$267,CY$1) -> 121 | CZ75: =VLOOKUP(DropDownList!$B$27,CntyQryCensus!$A$245:$FN$267,CZ$1) -> 46 | DA75: =VLOOKUP(DropDownList!$B$27,CntyQryCensus!$A$245:$FN$267,DA$1) -> 34 | DB75: =VLOOKUP(DropDownList!$B$27,CntyQryCensus!$A$245:$FN$267,DB$1) -> 19 | DC75: =VLOOKUP(DropDownList!$B$27,CntyQryCensus!$A$245:$FN$267,DC$1) -> 4 | DD75: =VLOOKUP(DropDownList!$B$27,CntyQryCensus!$A$245:$FN$267,DD$1) -> 5 | DE75: =VLOOKUP(DropDownList!$B$27,CntyQryCensus!$A$245:$FN$267,DE$1) -> 2 | DF75: =VLOOKUP(DropDownList!$B$27,CntyQryCensus!$A$245:$FN$267,DF$1) -> 0 | DG75: =VLOOKUP(DropDownList!$B$27,CntyQryCensus!$A$245:$FN$267,DG$1) -> 7 | DH75: =VLOOKUP(DropDownList!$B$27,CntyQryCensus!$A$245:$FN$267,DH$1) -> 4 | DI75: =VLOOKUP(DropDownList!$B$27,CntyQryCensus!$A$245:$FN$267,DI$1) -> 0 | DJ75: =VLOOKUP(DropDownList!$B$27,CntyQryCensus!$A$245:$FN$267,DJ$1) -> 330 | DK75: =VLOOKUP(DropDownList!$B$27,CntyQryCensus!$A$245:$FN$267,DK$1) -> 6 | DL75: =VLOOKUP(DropDownList!$B$27,CntyQryCensus!$A$245:$FN$267,DL$1) -> 0 | DM75: =VLOOKUP(DropDownList!$B$27,CntyQryCensus!$A$245:$FN$267,DM$1) -> 0 | DN75: =VLOOKUP(DropDownList!$B$27,CntyQryCensus!$A$245:$FN$267,DN$1) -> 0 | DO75: =VLOOKUP(DropDownList!$B$27,CntyQryCensus!$A$245:$FN$267,DO$1) -> 0 | DP75: =VLOOKUP(DropDownList!$B$27,CntyQryCensus!$A$245:$FN$267,DP$1) -> 6 | DQ75: =VLOOKUP(DropDownList!$B$27,CntyQryCensus!$A$245:$FN$267,DQ$1) -> 0 | DR75: =VLOOKUP(DropDownList!$B$27,CntyQryCensus!$A$245:$FN$267,DR$1) -> 28 | DS75: =VLOOKUP(DropDownList!$B$27,CntyQryCensus!$A$245:$FN$267,DS$1) -> 6 | DT75: =VLOOKUP(DropDownList!$B$27,CntyQryCensus!$A$245:$FN$267,DT$1) -> 2 | DU75: =VLOOKUP(DropDownList!$B$27,CntyQryCensus!$A$245:$FN$267,DU$1) -> 0 | DV75: =VLOOKUP(DropDownList!$B$27,CntyQryCensus!$A$245:$FN$267,DV$1) -> 2 | DW75: =VLOOKUP(DropDownList!$B$27,CntyQryCensus!$A$245:$FN$267,DW$1) -> 18 | DX75: =VLOOKUP(DropDownList!$B$27,CntyQryCensus!$A$245:$FN$267,DX$1) -> 0 | DY75: =VLOOKUP(DropDownList!$B$27,CntyQryCensus!$A$245:$FN$267,DY$1) -> 79 | DZ75: =VLOOKUP(DropDownList!$B$27,CntyQryCensus!$A$245:$FN$267,DZ$1) -> 32 | EA75: =VLOOKUP(DropDownList!$B$27,CntyQryCensus!$A$245:$FN$267,EA$1) -> 6 | EB75: =VLOOKUP(DropDownList!$B$27,CntyQryCensus!$A$245:$FN$267,EB$1) -> 13 | EC75: =VLOOKUP(DropDownList!$B$27,CntyQryCensus!$A$245:$FN$267,EC$1) -> 5 | ED75: =VLOOKUP(DropDownList!$B$27,CntyQryCensus!$A$245:$FN$267,ED$1) -> 23 | EE75: =VLOOKUP(DropDownList!$B$27,CntyQryCensus!$A$245:$FN$267,EE$1) -> 0 | EF75: =VLOOKUP(DropDownList!$B$27,CntyQryCensus!$A$245:$FN$267,EF$1) -> 66 | EG75: =VLOOKUP(DropDownList!$B$27,CntyQryCensus!$A$245:$FN$267,EG$1) -> 39 | EH75: =VLOOKUP(DropDownList!$B$27,CntyQryCensus!$A$245:$FN$267,EH$1) -> 8 | EI75: =VLOOKUP(DropDownList!$B$27,CntyQryCensus!$A$245:$FN$267,EI$1) -> 7 | EJ75: =VLOOKUP(DropDownList!$B$27,CntyQryCensus!$A$245:$FN$267,EJ$1) -> 4 | EK75: =VLOOKUP(DropDownList!$B$27,CntyQryCensus!$A$245:$FN$267,EK$1) -> 8 | EL75: =VLOOKUP(DropDownList!$B$27,CntyQryCensus!$A$245:$FN$267,EL$1) -> 0 | EM75: =VLOOKUP(DropDownList!$B$27,CntyQryCensus!$A$245:$FN$267,EM$1) -> 89 | EN75: =VLOOKUP(DropDownList!$B$27,CntyQryCensus!$A$245:$FN$267,EN$1) -> 55 | EO75: =VLOOKUP(DropDownList!$B$27,CntyQryCensus!$A$245:$FN$267,EO$1) -> 14 | EP75: =VLOOKUP(DropDownList!$B$27,CntyQryCensus!$A$245:$FN$267,EP$1) -> 15 | EQ75: =VLOOKUP(DropDownList!$B$27,CntyQryCensus!$A$245:$FN$267,EQ$1) -> 5 | ER75: =VLOOKUP(DropDownList!$B$27,CntyQryCensus!$A$245:$FN$267,ER$1) -> 0 | ES75: =VLOOKUP(DropDownList!$B$27,CntyQryCensus!$A$245:$FN$267,ES$1) -> 0 | ET75: =VLOOKUP(DropDownList!$B$27,CntyQryCensus!$A$245:$FN$267,ET$1) -> 48 | EU75: =VLOOKUP(DropDownList!$B$27,CntyQryCensus!$A$245:$FN$267,EU$1) -> 36 | EV75: =VLOOKUP(DropDownList!$B$27,CntyQryCensus!$A$245:$FN$267,EV$1) -> 12 | EW75: =VLOOKUP(DropDownList!$B$27,CntyQryCensus!$A$245:$FN$267,EW$1) -> 0 | EX75: =VLOOKUP(DropDownList!$B$27,CntyQryCensus!$A$245:$FN$267,EX$1) -> 0 | EY75: =VLOOKUP(DropDownList!$B$27,CntyQryCensus!$A$245:$FN$267,EY$1) -> 0 | EZ75: =VLOOKUP(DropDownList!$B$27,CntyQryCensus!$A$245:$FN$267,EZ$1) -> 0 | FA75: =VLOOKUP(DropDownList!$B$27,CntyQryCensus!$A$245:$FN$267,FA$1) -> 12 | FB75: =VLOOKUP(DropDownList!$B$27,CntyQryCensus!$A$245:$FN$267,FB$1) -> 12 | FC75: =VLOOKUP(DropDownList!$B$27,CntyQryCensus!$A$245:$FN$267,FC$1) -> 0 | FD75: =VLOOKUP(DropDownList!$B$27,CntyQryCensus!$A$245:$FN$267,FD$1) -> 0 | FE75: =VLOOKUP(DropDownList!$B$27,CntyQryCensus!$A$245:$FN$267,FE$1) -> 0 | FF75: =VLOOKUP(DropDownList!$B$27,CntyQryCensus!$A$245:$FN$267,FF$1) -> 0 | FG75: =VLOOKUP(DropDownList!$B$27,CntyQryCensus!$A$245:$FN$267,FG$1) -> 0 | FH75: =VLOOKUP(DropDownList!$B$27,CntyQryCensus!$A$245:$FN$267,FH$1) -> 2 | FI75: =VLOOKUP(DropDownList!$B$27,CntyQryCensus!$A$245:$FN$267,FI$1) -> 2 | FJ75: =VLOOKUP(DropDownList!$B$27,CntyQryCensus!$A$245:$FN$267,FJ$1) -> 0 | FK75: =VLOOKUP(DropDownList!$B$27,CntyQryCensus!$A$245:$FN$267,FK$1) -> 0 | FL75: =VLOOKUP(DropDownList!$B$27,CntyQryCensus!$A$245:$FN$267,FL$1) -> 0 | FM75: =VLOOKUP(DropDownList!$B$27,CntyQryCensus!$A$245:$FN$267,FM$1) -> 0 | FN75: =VLOOKUP(DropDownList!$B$27,CntyQryCensus!$A$245:$FN$267,FN$1) -> 0
A78: Census 2000 SummaryFile3 Sample Data - SF3TownQry9HHIncomeByTenure
A79: NAME | B79: LOGRECNO | C79: COUNTY | D79: TotalPop | E79: HCT11OccHU | F79: HCT11OwnOccHU | G79: HCT11OOHUInc<5K | H79: HCT11OOHUInc5to10K | I79: HCT11OOHUInc10to15K | J79: HCT11OOHUInc15to20K | K79: HCT11OOHUInc20to25K | L79: HCT11OOHUInc25to35K | M79: HCT11OOHUInc35to50K | N79: HCT11OOHUInc50to75K | O79: HCT11OOHUInc75to100K | P79: HCT11OOHUInc100to150K | Q79: HCT11OOHUInc>150K | R79: HCT11RentOccHU | S79: HCT11ROHUInc<5K | T79: HCT11ROHUInc5to10K | U79: HCT11ROHUInc10to15K | V79: HCT11ROHUInc15to20K | W79: HCT11ROHUInc20to25K | X79: HCT11ROHUInc25to35K | Y79: HCT11ROHUInc35to50K | Z79: HCT11ROHUInc50to75K | AA79: HCT11ROHUInc75to100K | AB79: HCT11ROHUInc100to150K | AC79: HCT11ROHUInc>150K | AD79: HCT12MedHHInc | AE79: HCT12MedOwnOccHHInc | AF79: HCT12MedRentOccHHInc | AG79: SummaryLevel
A80: =VLOOKUP(DropDownList!$B$27,CntyQryCensus!$A$275:$AG$297,A$1) -> Alstead | B80: =VLOOKUP(DropDownList!$B$27,CntyQryCensus!$A$275:$AG$297,B$1) -> 0000512 | C80: =VLOOKUP(DropDownList!$B$27,CntyQryCensus!$A$275:$AG$297,C$1) -> 00820 | D80: =VLOOKUP(DropDownList!$B$27,CntyQryCensus!$A$275:$AG$297,D$1) -> 1944 | E80: =VLOOKUP(DropDownList!$B$27,CntyQryCensus!$A$275:$AG$297,E$1) -> 781 | F80: =VLOOKUP(DropDownList!$B$27,CntyQryCensus!$A$275:$AG$297,F$1) -> 617 | G80: =VLOOKUP(DropDownList!$B$27,CntyQryCensus!$A$275:$AG$297,G$1) -> 4 | H80: =VLOOKUP(DropDownList!$B$27,CntyQryCensus!$A$275:$AG$297,H$1) -> 11 | I80: =VLOOKUP(DropDownList!$B$27,CntyQryCensus!$A$275:$AG$297,I$1) -> 21 | J80: =VLOOKUP(DropDownList!$B$27,CntyQryCensus!$A$275:$AG$297,J$1) -> 33 | K80: =VLOOKUP(DropDownList!$B$27,CntyQryCensus!$A$275:$AG$297,K$1) -> 45 | L80: =VLOOKUP(DropDownList!$B$27,CntyQryCensus!$A$275:$AG$297,L$1) -> 101 | M80: =VLOOKUP(DropDownList!$B$27,CntyQryCensus!$A$275:$AG$297,M$1) -> 137 | N80: =VLOOKUP(DropDownList!$B$27,CntyQryCensus!$A$275:$AG$297,N$1) -> 151 | O80: =VLOOKUP(DropDownList!$B$27,CntyQryCensus!$A$275:$AG$297,O$1) -> 73 | P80: =VLOOKUP(DropDownList!$B$27,CntyQryCensus!$A$275:$AG$297,P$1) -> 26 | Q80: =VLOOKUP(DropDownList!$B$27,CntyQryCensus!$A$275:$AG$297,Q$1) -> 15 | R80: =VLOOKUP(DropDownList!$B$27,CntyQryCensus!$A$275:$AG$297,R$1) -> 164 | S80: =VLOOKUP(DropDownList!$B$27,CntyQryCensus!$A$275:$AG$297,S$1) -> 11 | T80: =VLOOKUP(DropDownList!$B$27,CntyQryCensus!$A$275:$AG$297,T$1) -> 19 | U80: =VLOOKUP(DropDownList!$B$27,CntyQryCensus!$A$275:$AG$297,U$1) -> 12 | V80: =VLOOKUP(DropDownList!$B$27,CntyQryCensus!$A$275:$AG$297,V$1) -> 19 | W80: =VLOOKUP(DropDownList!$B$27,CntyQryCensus!$A$275:$AG$297,W$1) -> 23 | X80: =VLOOKUP(DropDownList!$B$27,CntyQryCensus!$A$275:$AG$297,X$1) -> 20 | Y80: =VLOOKUP(DropDownList!$B$27,CntyQryCensus!$A$275:$AG$297,Y$1) -> 27 | Z80: =VLOOKUP(DropDownList!$B$27,CntyQryCensus!$A$275:$AG$297,Z$1) -> 14 | AA80: =VLOOKUP(DropDownList!$B$27,CntyQryCensus!$A$275:$AG$297,AA$1) -> 11 | AB80: =VLOOKUP(DropDownList!$B$27,CntyQryCensus!$A$275:$AG$297,AB$1) -> 5 | AC80: =VLOOKUP(DropDownList!$B$27,CntyQryCensus!$A$275:$AG$297,AC$1) -> 3 | AD80: =VLOOKUP(DropDownList!$B$27,CntyQryCensus!$A$275:$AG$297,AD$1) -> 42460 | AE80: =VLOOKUP(DropDownList!$B$27,CntyQryCensus!$A$275:$AG$297,AE$1) -> 45430 | AF80: =VLOOKUP(DropDownList!$B$27,CntyQryCensus!$A$275:$AG$297,AF$1) -> 24444 | AG80: =VLOOKUP(DropDownList!$B$27,CntyQryCensus!$A$275:$AG$297,AG$1) -> 060
A94: Census 2000 SummaryFile3 Sample Data - SF3TownQry10Disabil
A95: NAME | B95: LOGRECNO | C95: COUNTY | D95: TotalPop | E95: PCT026001-NonInstPop5yrs+ | F95: PCT026002-MaleNonInstPop5yrs+ | G95: PCT026003 | H95: PCT026004 | I95: PCT026005 | J95: PCT026006 | K95: PCT026007 | L95: PCT026008 | M95: PCT026009 | N95: PCT026010 | O95: PCT026011 | P95: PCT026012 | Q95: PCT026013 | R95: PCT026014 | S95: PCT026015 | T95: PCT026016 | U95: PCT026017 | V95: PCT026018 | W95: PCT026019 | X95: PCT026020 | Y95: PCT026021 | Z95: PCT026022 | AA95: PCT026023 | AB95: PCT026024 | AC95: PCT026025 | AD95: PCT026026 | AE95: PCT026027 | AF95: PCT026028 | AG95: PCT026029 | AH95: PCT026030 | AI95: PCT026031 | AJ95: PCT026032 | AK95: PCT026033 | AL95: PCT026034 | AM95: PCT026035 | AN95: PCT026036 | AO95: PCT026037 | AP95: PCT026038 | AQ95: PCT026039 | AR95: PCT026040 | AS95: PCT026041 | AT95: PCT026042 | AU95: PCT026043 | AV95: PCT026044 | AW95: PCT026045 | AX95: PCT026046 | AY95: PCT026047 | AZ95: PCT026048 | BA95: PCT026049 | BB95: PCT026050 | BC95: PCT026051 | BD95: PCT026052 | BE95: PCT026053 | BF95: PCT026054 | BG95: PCT026055 | BH95: PCT026056 | BI95: PCT026057 | BJ95: PCT026058 | BK95: PCT026059 | BL95: PCT026060 | BM95: PCT026061 | BN95: PCT026062 | BO95: PCT026063 | BP95: PCT026064 | BQ95: PCT026065 | BR95: PCT026066 | BS95: PCT026067 | BT95: PCT026068 | BU95: PCT026069 | BV95: PCT026070 | BW95: PCT026071 | BX95: PCT026072 | BY95: PCT026073 | BZ95: PCT026074 | CA95: PCT026075 | CB95: PCT026076 | CC95: PCT026077 | CD95: PCT026078 | CE95: PCT026079 | CF95: PCT026080 | CG95: PCT026081 | CH95: PCT026082 | CI95: PCT026083 | CJ95: PCT026084 | CK95: PCT026085 | CL95: PCT026086 | CM95: PCT026087 | CN95: PCT026088 | CO95: PCT026089 | CP95: PCT026090 | CQ95: PCT026091 | CR95: PCT026092 | CS95: PCT026093 | CT95: PCT026094 | CU95: PCT026095 | CV95: PCT026096 | CW95: PCT026097 | CX95: PCT026098 | CY95: PCT026099 | CZ95: PCT026100 | DA95: PCT026101
A105: ACS | B105: 2 | C105: =B105+1 -> 3 | D105: =C105+1 -> 4 | E105: 5 | F105: 6 | G105: 7 | H105: 8 | I105: 9 | J105: 10 | K105: 11 | L105: =K105+1 -> 12 | M105: 13 | N105: 14 | O105: 15 | P105: =O105+1 -> 16 | Q105: 17 | R105: 18 | S105: 19 | T105: 20 | U105: 21 | V105: 22 | W105: 23 | X105: 24 | Y105: 25 | Z105: 26 | AA105: 27 | AB105: 28 | AC105: 29 | AD105: 30 | AE105: 31 | AF105: 32 | AG105: 33 | AH105: 34 | AI105: 35 | AJ105: 36 | AK105: 37 | AL105: 38 | AM105: 39 | AN105: 40 | AO105: 41 | AP105: 42 | AQ105: 43 | AR105: 44 | AS105: 45 | AT105: 46 | AU105: 47 | AV105: 48 | AW105: 49 | AX105: 50 | AY105: 51 | AZ105: 52 | BA105: 53 | BB105: 54 | BC105: 55 | BD105: 56 | BE105: 57 | BF105: 58 | BG105: 59 | BH105: 60 | BI105: 61 | BJ105: 62 | BK105: 63 | BL105: 64 | BM105: 65 | BN105: 66 | BO105: 67 | BP105: =BO105+1 -> 68 | BQ105: 69 | BR105: 70 | BS105: 71 | BT105: 72 | BU105: 73 | BV105: 74 | BW105: 75 | BX105: 76 | BY105: 77 | BZ105: 78 | CA105: 79 | CB105: 80 | CC105: 81 | CD105: 82 | CE105: 83 | CF105: 84 | CG105: 85 | CH105: 86 | CI105: 87 | CJ105: 88 | CK105: 89 | CL105: 90 | CM105: 91 | CN105: 92 | CO105: 93 | CP105: 94 | CQ105: 95 | CR105: 96 | CS105: 97 | CT105: 98 | CU105: 99 | CV105: 100 | CW105: 101 | CX105: 102 | CY105: 103 | CZ105: 104 | DA105: 105 | DB105: 106 | DC105: 107 | DD105: 108 | DE105: 109 | DF105: 110 | DG105: 111 | DH105: 112 | DI105: 113 | DJ105: 114 | DK105: 115 | DL105: 116 | DM105: 117 | DN105: 118 | DO105: 119 | DP105: 120 | DQ105: 121 | DR105: 122 | DS105: 123 | DT105: 124 | DU105: 125
A106: Househould Data (Housing Unit Type)
A107: NAME | B107: TotalHU | C107: ="MOE "&B107 -> MOE TotalHU | D107: TotalOccHU | E107: ="MOE "&D107 -> MOE TotalOccHU | F107: TotalOwnerOccUn | G107: ="MOE "&F107 -> MOE TotalOwnerOccUn | H107: TotalRenterOccn | I107: ="MOE "&H107 -> MOE TotalRenterOccn | J107: TotalVacantUntis | K107: ="MOE "&J107 -> MOE TotalVacantUntis | L107: VacantUnitsForRent | M107: ="MOE "&L107 -> MOE VacantUnitsForRent | N107: VacantUnitRentedNotOcc | O107: ="MOE "&N107 -> MOE VacantUnitRentedNotOcc | P107: VacantUnitForSale | Q107: ="MOE "&P107 -> MOE VacantUnitForSale | R107: VacantUnitSoldNotOcc | S107: ="MOE "&R107 -> MOE VacantUnitSoldNotOcc | T107: VacantUnitSeasonalRec | U107: ="MOE "&T107 -> MOE VacantUnitSeasonalRec | V107: TotalPopInHousingUnits | W107: ="MOE "&V107 -> MOE TotalPopInHousingUnits | X107: OwnerOccPopHousingUnits | Y107: ="MOE "&X107 -> MOE OwnerOccPopHousingUnits | Z107: RenterOccPopHousingUnits | AA107: ="MOE "&Z107 -> MOE RenterOccPopHousingUnits | AB107: TotalUntis | AC107: ="MOE "&AB107 -> MOE TotalUntis | AD107: TotalOwnerOccUnits | AE107: ="MOE "&AD107 -> MOE TotalOwnerOccUnits | AF107: SigFamOwnerOcc | AG107: ="MOE "&AF107 -> MOE SigFamOwnerOcc | AH107: MultiFamOwnerOcc | AI107: ="MOE "&AH107 -> MOE MultiFamOwnerOcc | AJ107: MobileOwnerOcc | AK107: ="MOE "&AJ107 -> MOE MobileOwnerOcc | AL107: TotalRenterOccUnits | AM107: ="MOE "&AL107 -> MOE TotalRenterOccUnits | AN107: SigFamRenterOcc | AO107: ="MOE "&AN107 -> MOE SigFamRenterOcc | AP107: MultiFamRenterOcc | AQ107: ="MOE "&AP107 -> MOE MultiFamRenterOcc | AR107: MobileRenterOcc | AS107: ="MOE "&AR107 -> MOE MobileRenterOcc | AT107: TotalSigFamilyUnits | AU107: ="MOE "&AT107 -> MOE TotalSigFamilyUnits | AV107: TotalMultiFamilyUnits | AW107: ="MOE "&AV107 -> MOE TotalMultiFamilyUnits | AX107: TotalMobileUnits | AY107: ="MOE "&AX107 -> MOE TotalMobileUnits | AZ107: YrHouseBuilt2014Later | BA107: ="MOE "&AZ107 -> MOE YrHouseBuilt2014Later | BB107: YrHouseBuilt2010-2013 | BC107: ="MOE "&BB107 -> MOE YrHouseBuilt2010-2013 | BD107: YrHouseBuilt2000-2009 | BE107: ="MOE "&BD107 -> MOE YrHouseBuilt2000-2009 | BF107: YrHouseBuilt1990-1999 | BG107: ="MOE "&BF107 -> MOE YrHouseBuilt1990-1999 | BH107: YrHouseBuilt1980-1989 | BI107: ="MOE "&BH107 -> MOE YrHouseBuilt1980-1989 | BJ107: YrHouseBuilt1970-1979 | BK107: ="MOE "&BJ107 -> MOE YrHouseBuilt1970-1979 | BL107: YrHouseBuilt1960-1969 | BM107: ="MOE "&BL107 -> MOE YrHouseBuilt1960-1969 | BN107: YrHouseBuilt1950-1959 | BO107: ="MOE "&BN107 -> MOE YrHouseBuilt1950-1959 | BP107: YrHouseBuilt1940-1949 | BQ107: ="MOE "&BP107 -> MOE YrHouseBuilt1940-1949 | BR107: YrHouseBuilt1939orEarlier | BS107: ="MOE "&BR107 -> MOE YrHouseBuilt1939orEarlier | BT107: NoBedrooms | BU107: ="MOE "&BT107 -> MOE NoBedrooms | BV107: 1Bedroom | BW107: ="MOE "&BV107 -> MOE 1Bedroom | BX107: 2Bedroom | BY107: ="MOE "&BX107 -> MOE 2Bedroom | BZ107: 3Bedroom | CA107: ="MOE "&BZ107 -> MOE 3Bedroom | CB107: 4+Bedroom | CC107: ="MOE "&CB107 -> MOE 4+Bedroom
A108: =VLOOKUP(DropDownList!$B$27,CntyQryCensus!$A$275:$AG$297,A$1) -> Alstead | B108: 913 | C108: 78 | D108: 749 | E108: 71 | F108: 516 | G108: 72 | H108: 233 | I108: 67 | J108: 164 | K108: 63 | L108: 0 | M108: 11 | N108: 0 | O108: 11 | P108: 17 | Q108: 27 | R108: 0 | S108: 11 | T108: 98 | U108: 45 | V108: 1744 | W108: 192 | X108: 1174 | Y108: 166 | Z108: 570 | AA108: 200 | AB108: 749 | AC108: 71 | AD108: 516 | AE108: 72 | AF108: 435 | AG108: 73 | AH108: 9 | AI108: 26.05762844 | AJ108: 72 | AK108: 37.64306045 | AL108: 233 | AM108: 67 | AN108: 105 | AO108: 47 | AP108: 75 | AQ108: 45.32107677 | AR108: 53 | AS108: 36.68787266 | AT108: 678 | AU108: 80 | AV108: 84 | AW108: 46.24932432 | AX108: 151 | AY108: 57.07013229 | AZ108: 0 | BA108: 11 | BB108: 34 | BC108: 17 | BD108: 214 | BE108: 69 | BF108: 88 | BG108: 35 | BH108: 125 | BI108: 41 | BJ108: 127 | BK108: 59 | BL108: 84 | BM108: 47 | BN108: 45 | BO108: 19 | BP108: 10 | BQ108: 9 | BR108: 186 | BS108: 53 | BT108: 11 | BU108: 13 | BV108: 149 | BW108: 58 | BX108: 310 | BY108: 74 | BZ108: 302 | CA108: 58 | CB108: 141 | CC108: 55.36244214
A110: Disability Data
A111: NAME | B111: TotalPop | C111: ="MOE "&B111 -> MOE TotalPop | D111: PopUnder 5 years: | E111: ="MOE "&D111 -> MOE PopUnder 5 years: | F111: =D$111&"-WithDisability" -> PopUnder 5 years:-WithDisability | G111: ="MOE "&F111 -> MOE PopUnder 5 years:-WithDisability | H111: =D111&"-NoDisability" -> PopUnder 5 years:-NoDisability | I111: ="MOE "&H111 -> MOE PopUnder 5 years:-NoDisability | J111: PopUnder 5 to 17years: | K111: ="MOE "&J111 -> MOE PopUnder 5 to 17years: | L111: =J$111&"-WithDisability" -> PopUnder 5 to 17years:-WithDisability | M111: ="MOE "&L111 -> MOE PopUnder 5 to 17years:-WithDisability | N111: =J111&"-NoDisability" -> PopUnder 5 to 17years:-NoDisability | O111: ="MOE "&N111 -> MOE PopUnder 5 to 17years:-NoDisability | P111: PopUnder 18 to 34 years: | Q111: ="MOE "&P111 -> MOE PopUnder 18 to 34 years: | R111: =P$111&"-WithDisability" -> PopUnder 18 to 34 years:-WithDisability | S111: ="MOE "&R111 -> MOE PopUnder 18 to 34 years:-WithDisability | T111: =P111&"-NoDisability" -> PopUnder 18 to 34 years:-NoDisability | U111: ="MOE "&T111 -> MOE PopUnder 18 to 34 years:-NoDisability | V111: Pop 35 years to 64: | W111: ="MOE "&V111 -> MOE Pop 35 years to 64: | X111: =$V$111&"-WithDisability" -> Pop 35 years to 64:-WithDisability | Y111: ="MOE "&X111 -> MOE Pop 35 years to 64:-WithDisability | Z111: =$V$111&"-NoDisability" -> Pop 35 years to 64:-NoDisability | AA111: ="MOE "&Z111 -> MOE Pop 35 years to 64:-NoDisability | AB111: Pop 65 years to 74: | AC111: ="MOE "&AB111 -> MOE Pop 65 years to 74: | AD111: =$AB$111&"-WithDisability" -> Pop 65 years to 74:-WithDisability | AE111: ="MOE "&AD111 -> MOE Pop 65 years to 74:-WithDisability | AF111: =$AB$111&"-NoDisability" -> Pop 65 years to 74:-NoDisability | AG111: ="MOE "&AF111 -> MOE Pop 65 years to 74:-NoDisability | AH111: Pop 75 and older: | AI111: ="MOE "&AH111 -> MOE Pop 75 and older: | AJ111: =$AH$111&"-WithDisability" -> Pop 75 and older:-WithDisability | AK111: ="MOE "&AJ111 -> MOE Pop 75 and older:-WithDisability | AL111: =$AH$111&"-NoDisability" -> Pop 75 and older:-NoDisability | AM111: ="MOE "&AL111 -> MOE Pop 75 and older:-NoDisability | AN111: TotalPopUnder5_HearingDisability | AO111: ="MOE "&AN111 -> MOE TotalPopUnder5_HearingDisability | AP111: TotalPopUnder5_HearingDisability | AQ111: ="MOE "&AP111 -> MOE TotalPopUnder5_HearingDisability | AR111: TotalPop18To34_HearingDisability | AS111: ="MOE "&AR111 -> MOE TotalPop18To34_HearingDisability | AT111: TotalPop35To64_HearingDisability | AU111: ="MOE "&AT111 -> MOE TotalPop35To64_HearingDisability | AV111: TotalPop65To74_HearingDisability | AW111: ="MOE "&AV111 -> MOE TotalPop65To74_HearingDisability | AX111: TotalPop75andOlder_HearingDisability | AY111: ="MOE "&AX111 -> MOE TotalPop75andOlder_HearingDisability | AZ111: TotalPopUnder5_VisionDisability | BA111: ="MOE "&AZ111 -> MOE TotalPopUnder5_VisionDisability | BB111: TotalPop5To17_VisionDisability | BC111: ="MOE "&BB111 -> MOE TotalPop5To17_VisionDisability | BD111: TotalPop18To34_VisionDisability | BE111: ="MOE "&BD111 -> MOE TotalPop18To34_VisionDisability | BF111: TotalPop35To64_VisionDisability | BG111: ="MOE "&BF111 -> MOE TotalPop35To64_VisionDisability | BH111: TotalPop65To74_VisionDisability | BI111: ="MOE "&BH111 -> MOE TotalPop65To74_VisionDisability | BJ111: TotalPop75andOlder_VisionDisability | BK111: ="MOE "&BJ111 -> MOE TotalPop75andOlder_VisionDisability | BL111: TotalPop5To17_CongnitiveDisability | BM111: ="MOE "&BL111 -> MOE TotalPop5To17_CongnitiveDisability | BN111: TotalPop18To34_CongnitiveDisability | BO111: ="MOE "&BN111 -> MOE TotalPop18To34_CongnitiveDisability | BP111: TotalPop35To64_CongnitiveDisability | BQ111: ="MOE "&BP111 -> MOE TotalPop35To64_CongnitiveDisability | BR111: TotalPop65To74_CongnitiveDisability | BS111: ="MOE "&BR111 -> MOE TotalPop65To74_CongnitiveDisability | BT111: TotalPop75andOlder_CongnitiveDisability | BU111: ="MOE "&BT111 -> MOE TotalPop75andOlder_CongnitiveDisability | BV111: TotalPop5To17_AmbulatoryDisability | BW111: ="MOE "&BV111 -> MOE TotalPop5To17_AmbulatoryDisability | BX111: TotalPop18To34_AmbulatoryDisability | BY111: ="MOE "&BX111 -> MOE TotalPop18To34_AmbulatoryDisability | BZ111: TotalPop35To64_AmbulatoryDisability | CA111: ="MOE "&BZ111 -> MOE TotalPop35To64_AmbulatoryDisability | CB111: TotalPop65To74_AmbulatoryDisability | CC111: ="MOE "&CB111 -> MOE TotalPop65To74_AmbulatoryDisability | CD111: TotalPop75andOlder_AmbulatoryDisability | CE111: ="MOE "&CD111 -> MOE TotalPop75andOlder_AmbulatoryDisability | CF111: TotalPop5To17_SelfCareDisability | CG111: ="MOE "&CF111 -> MOE TotalPop5To17_SelfCareDisability | CH111: TotalPop18To34_SelfCareDisability | CI111: ="MOE "&CH111 -> MOE TotalPop18To34_SelfCareDisability | CJ111: TotalPop35To64_SelfCareDisability | CK111: ="MOE "&CJ111 -> MOE TotalPop35To64_SelfCareDisability | CL111: TotalPop65To74_SelfCareDisability | CM111: ="MOE "&CL111 -> MOE TotalPop65To74_SelfCareDisability | CN111: TotalPop75andOlder_SelfCareDisability | CO111: ="MOE "&CN111 -> MOE TotalPop75andOlder_SelfCareDisability | CP111: TotalPop18To34_IndependantLivingDisability | CQ111: ="MOE "&CP111 -> MOE TotalPop18To34_IndependantLivingDisability | CR111: TotalPop35To64_IndependantLivingDisability | CS111: ="MOE "&CR111 -> MOE TotalPop35To64_IndependantLivingDisability | CT111: TotalPop65To74_IndependantLivingDisability | CU111: ="MOE "&CT111 -> MOE TotalPop65To74_IndependantLivingDisability | CV111: TotalPop75andOlder_IndependantLivingDisability | CW111: ="MOE "&CV111 -> MOE TotalPop75andOlder_IndependantLivingDisability | CX111: TotalUnder5_HearingorVisionDisability | CY111: ="MOE "&CX111 -> MOE TotalUnder5_HearingorVisionDisability | CZ111: TotalUnder5_HearingandVisionDisability | DA111: ="MOE "&CZ111 -> MOE TotalUnder5_HearingandVisionDisability | DB111: 5to17YearWIthOneDisability | DC111: ="MOE "&DB111 -> MOE 5to17YearWIthOneDisability | DD111: 5to17YearWIthTwoOrMoreDisability | DE111: ="MOE "&DD111 -> MOE 5to17YearWIthTwoOrMoreDisability | DF111: 18to34YearWIthOneDisability | DG111: ="MOE "&DF111 -> MOE 18to34YearWIthOneDisability | DH111: 18to34YearWIthTwoOrMoreDisability | DI111: ="MOE "&DH111 -> MOE 18to34YearWIthTwoOrMoreDisability | DJ111: 35to64YearWIthOneDisability | DK111: ="MOE "&DJ111 -> MOE 35to64YearWIthOneDisability | DL111: 35to64YearWIthTwoOrMoreDisability | DM111: ="MOE "&DL111 -> MOE 35to64YearWIthTwoOrMoreDisability | DN111: 65to74YearWIthOneDisability | DO111: ="MOE "&DN111 -> MOE 65to74YearWIthOneDisability | DP111: 65to74YearWIthTwoOrMoreDisability | DQ111: ="MOE "&DP111 -> MOE 65to74YearWIthTwoOrMoreDisability | DR111: 75AndOlderWIthOneDisability | DS111: ="MOE "&DR111 -> MOE 75AndOlderWIthOneDisability | DT111: 75AndOlderWIthTwoOrMoreDisability | DU111: ="MOE "&DT111 -> MOE 75AndOlderWIthTwoOrMoreDisability
A112: =VLOOKUP(DropDownList!$B$27,CntyQryCensus!$A$275:$AG$297,A$1) -> Alstead | B112: 1736 | C112: 186 | D112: 89 | E112: 47.01063709 | F112: 0 | G112: 15.55634919 | H112: 89 | I112: 47.01063709 | J112: 214 | K112: 82.32860985 | L112: 4 | M112: 12.52996409 | N112: 210 | O112: 81.56592426 | P112: 279 | Q112: 94.33981132 | R112: 14 | S112: 12.04159458 | T112: 265 | U112: 94.33981132 | V112: 701 | W112: 88.41379983 | X112: 55 | Y112: 23.60084744 | Z112: 646 | AA112: 85.63293759 | AB112: 294 | AC112: 67.17886572 | AD112: 77 | AE112: 28.31960452 | AF112: 217 | AG112: 62.36986452 | AH112: 159 | AI112: 53.53503526 | AJ112: 55 | AK112: 35.11409973 | AL112: 104 | AM112: 46.04345773 | AN112: 0 | AO112: 15.55634919 | AP112: 0 | AQ112: 15.55634919 | AR112: 0 | AS112: 15.55634919 | AT112: 9 | AU112: 10.63014581 | AV112: 35 | AW112: 18.02775638 | AX112: 25 | AY112: 16.2788206 | AZ112: 0 | BA112: 15.55634919 | BB112: 0 | BC112: 15.55634919 | BD112: 0 | BE112: 15.55634919 | BF112: 9 | BG112: 16.2788206 | BH112: 5 | BI112: 13.03840481 | BJ112: 22 | BK112: 18.60107524 | BL112: 0 | BM112: 15.55634919 | BN112: 6 | BO112: 13.60147051 | BP112: 35 | BQ112: 18.02775638 | BR112: 4 | BS112: 12.52996409 | BT112: 17 | BU112: 13.03840481 | BV112: 0 | BW112: 15.55634919 | BX112: 0 | BY112: 15.55634919 | BZ112: 35 | CA112: 19.20937271 | CB112: 51 | CC112: 23.34523506 | CD112: 37 | CE112: 33.83784863 | CF112: 0 | CG112: 15.55634919 | CH112: 0 | CI112: 15.55634919 | CJ112: 16 | CK112: 16.2788206 | CL112: 0 | CM112: 15.55634919 | CN112: 12 | CO112: 15.55634919 | CP112: 14 | CQ112: 12.04159458 | CR112: 28 | CS112: 17 | CT112: 5 | CU112: 13.03840481 | CV112: 12 | CW112: 15.55634919 | CX112: 4 | CY112: 6 | CZ112: 0 | DA112: 11 | DB112: 28 | DC112: 16 | DD112: 41 | DE112: 23 | DF112: 96 | DG112: 32 | DH112: 36 | DI112: 18
A114: Househould Income By Age
A115: NAME | B115: TotalHouseholds | C115: ="MOE "&B115 -> MOE TotalHouseholds | D115: HHInc<10K | E115: ="MOE "&D115 -> MOE HHInc<10K | F115: HHInc10to15K | G115: ="MOE "&F115 -> MOE HHInc10to15K | H115: HHInc15to20K | I115: ="MOE "&H115 -> MOE HHInc15to20K | J115: HHInc20to25K | K115: ="MOE "&J115 -> MOE HHInc20to25K | L115: HHInc25to30K | M115: ="MOE "&L115 -> MOE HHInc25to30K | N115: HHInc30to35K | O115: ="MOE "&N115 -> MOE HHInc30to35K | P115: HHInc35to40K | Q115: ="MOE "&P115 -> MOE HHInc35to40K | R115: HHInc40to45K | S115: ="MOE "&R115 -> MOE HHInc40to45K | T115: HHInc45to50K | U115: ="MOE "&T115 -> MOE HHInc45to50K | V115: HHInc50to60K | W115: ="MOE "&V115 -> MOE HHInc50to60K | X115: HHInc60to75K | Y115: ="MOE "&X115 -> MOE HHInc60to75K | Z115: HHInc75to100K | AA115: ="MOE "&Z115 -> MOE HHInc75to100K | AB115: HHInc100to125K | AC115: ="MOE "&AB115 -> MOE HHInc100to125K | AD115: HHInc125to150K | AE115: ="MOE "&AD115 -> MOE HHInc125to150K | AF115: HHInc150to200K | AG115: ="MOE "&AF115 -> MOE HHInc150to200K | AH115: HHInc>200K | AI115: ="MOE "&AH115 -> MOE HHInc>200K | AJ115: TotalHH | AK115: ="MOE "&AJ115 -> MOE TotalHH | AL115: HHAgeHHUnder25yrs | AM115: ="MOE "&AL115 -> MOE HHAgeHHUnder25yrs | AN115: HHAgeHH<25HHInc<10K | AO115: ="MOE "&AN115 -> MOE HHAgeHH<25HHInc<10K | AP115: HHAgeHH<25HHInc10to15K | AQ115: ="MOE "&AP115 -> MOE HHAgeHH<25HHInc10to15K | AR115: HHAgeHH<25HHInc15to20K | AS115: ="MOE "&AR115 -> MOE HHAgeHH<25HHInc15to20K | AT115: HHAgeHH<25HHInc20to25K | AU115: ="MOE "&AT115 -> MOE HHAgeHH<25HHInc20to25K | AV115: HHAgeHH<25HHInc25to30K | AW115: ="MOE "&AV115 -> MOE HHAgeHH<25HHInc25to30K | AX115: HHAgeHH<25HHInc30to35K | AY115: ="MOE "&AX115 -> MOE HHAgeHH<25HHInc30to35K | AZ115: HHAgeHH<25HHInc35to40K | BA115: ="MOE "&AZ115 -> MOE HHAgeHH<25HHInc35to40K | BB115: HHAgeHH<25HHInc40to45K | BC115: ="MOE "&BB115 -> MOE HHAgeHH<25HHInc40to45K | BD115: HHAgeHH<25HHInc45to50K | BE115: ="MOE "&BD115 -> MOE HHAgeHH<25HHInc45to50K | BF115: HHAgeHH<25HHInc50to60K | BG115: ="MOE "&BF115 -> MOE HHAgeHH<25HHInc50to60K | BH115: HHAgeHH<25HHInc60to75K | BI115: ="MOE "&BH115 -> MOE HHAgeHH<25HHInc60to75K | BJ115: HHAgeHH<25HHInc75to100K | BK115: ="MOE "&BJ115 -> MOE HHAgeHH<25HHInc75to100K | BL115: HHAgeHH<25HHInc100to125K | BM115: ="MOE "&BL115 -> MOE HHAgeHH<25HHInc100to125K | BN115: HHAgeHH<25HHInc125to150K | BO115: ="MOE "&BN115 -> MOE HHAgeHH<25HHInc125to150K | BP115: HHAgeHH<25HHInc150to200K | BQ115: ="MOE "&BP115 -> MOE HHAgeHH<25HHInc150to200K | BR115: HHAge<25HHInc>200K | BS115: ="MOE "&BR115 -> MOE HHAge<25HHInc>200K | BT115: HHAgeHH25to44yrs | BU115: ="MOE "&BT115 -> MOE HHAgeHH25to44yrs | BV115: HHAgeHH25To44yrsHHInc<10K | BW115: ="MOE "&BV115 -> MOE HHAgeHH25To44yrsHHInc<10K | BX115: HHAgeHH25To44yrsHHInc10to15K | BY115: ="MOE "&BX115 -> MOE HHAgeHH25To44yrsHHInc10to15K | BZ115: HHAgeHH25To44yrsHHInc15to20K | CA115: ="MOE "&BZ115 -> MOE HHAgeHH25To44yrsHHInc15to20K | CB115: HHAgeHH25To44yrsHHInc20to25K | CC115: ="MOE "&CB115 -> MOE HHAgeHH25To44yrsHHInc20to25K | CD115: HHAgeHH25To44yrsHHInc25to30K | CE115: ="MOE "&CD115 -> MOE HHAgeHH25To44yrsHHInc25to30K | CF115: HHAgeHH25To44yrsHHInc30to35K | CG115: ="MOE "&CF115 -> MOE HHAgeHH25To44yrsHHInc30to35K | CH115: HHAgeHH25To44yrsHHInc35to40K | CI115: ="MOE "&CH115 -> MOE HHAgeHH25To44yrsHHInc35to40K | CJ115: HHAgeHH25To44yrsHHInc40to45K | CK115: ="MOE "&CJ115 -> MOE HHAgeHH25To44yrsHHInc40to45K | CL115: HHAgeHH25To44yrsHHInc45to50K | CM115: ="MOE "&CL115 -> MOE HHAgeHH25To44yrsHHInc45to50K | CN115: HHAgeHH25To44yrsHHInc50to60K | CO115: ="MOE "&CN115 -> MOE HHAgeHH25To44yrsHHInc50to60K | CP115: HHAgeHH25To44yrsHHInc60to75K | CQ115: ="MOE "&CP115 -> MOE HHAgeHH25To44yrsHHInc60to75K | CR115: HHAgeHH25To44yrsHHInc75to100K | CS115: ="MOE "&CR115 -> MOE HHAgeHH25To44yrsHHInc75to100K | CT115: HHAgeHH25To44yrsHHInc100to125K | CU115: ="MOE "&CT115 -> MOE HHAgeHH25To44yrsHHInc100to125K | CV115: HHAgeHH25To44yrsHHInc125to150K | CW115: ="MOE "&CV115 -> MOE HHAgeHH25To44yrsHHInc125to150K | CX115: HHAgeHH25To44yrsHHInc150to200K | CY115: ="MOE "&CX115 -> MOE HHAgeHH25To44yrsHHInc150to200K | CZ115: HHAge25To44yrsHHInc>200K | DA115: ="MOE "&CZ115 -> MOE HHAge25To44yrsHHInc>200K | DB115: HHAgeHH45To64yrs | DC115: ="MOE "&DB115 -> MOE HHAgeHH45To64yrs | DD115: HHAgeHH45To64yrsHHInc<10K | DE115: ="MOE "&DD115 -> MOE HHAgeHH45To64yrsHHInc<10K | DF115: HHAgeHH45To64yrsHHInc10to15K | DG115: ="MOE "&DF115 -> MOE HHAgeHH45To64yrsHHInc10to15K | DH115: HHAgeHH45To64yrsHHInc15to20K | DI115: ="MOE "&DH115 -> MOE HHAgeHH45To64yrsHHInc15to20K | DJ115: HHAgeHH45To64yrsHHInc20to25K | DK115: ="MOE "&DJ115 -> MOE HHAgeHH45To64yrsHHInc20to25K | DL115: HHAgeHH45To64yrsHHInc25to30K | DM115: ="MOE "&DL115 -> MOE HHAgeHH45To64yrsHHInc25to30K | DN115: HHAgeHH45To64yrsHHInc30to35K | DO115: ="MOE "&DN115 -> MOE HHAgeHH45To64yrsHHInc30to35K | DP115: HHAgeHH45To64yrsHHInc35to40K | DQ115: ="MOE "&DP115 -> MOE HHAgeHH45To64yrsHHInc35to40K | DR115: HHAgeHH45To64yrsHHInc40to45K | DS115: ="MOE "&DR115 -> MOE HHAgeHH45To64yrsHHInc40to45K | DT115: HHAgeHH45To64yrsHHInc45to50K | DU115: ="MOE "&DT115 -> MOE HHAgeHH45To64yrsHHInc45to50K | DV115: HHAgeHH45To64yrsHHInc50to60K | DW115: ="MOE "&DV115 -> MOE HHAgeHH45To64yrsHHInc50to60K | DX115: HHAgeHH45To64yrsHHInc60to75K | DY115: ="MOE "&DX115 -> MOE HHAgeHH45To64yrsHHInc60to75K | DZ115: HHAgeHH45To64yrsHHInc75to100K | EA115: ="MOE "&DZ115 -> MOE HHAgeHH45To64yrsHHInc75to100K | EB115: HHAgeHH45To64yrsHHInc100to125K | EC115: ="MOE "&EB115 -> MOE HHAgeHH45To64yrsHHInc100to125K | ED115: HHAgeHH45To64yrsHHInc125to150K | EE115: ="MOE "&ED115 -> MOE HHAgeHH45To64yrsHHInc125to150K | EF115: HHAgeHH45To64yrsHHInc150to200K | EG115: ="MOE "&EF115 -> MOE HHAgeHH45To64yrsHHInc150to200K | EH115: HHAge45To64yrsHHInc>200K | EI115: ="MOE "&EH115 -> MOE HHAge45To64yrsHHInc>200K | EJ115: HHAgeHH65yrsorOlder | EK115: ="MOE "&EJ115 -> MOE HHAgeHH65yrsorOlder | EL115: HHAgeHH65yrsorOlderHHInc<10K | EM115: ="MOE "&EL115 -> MOE HHAgeHH65yrsorOlderHHInc<10K | EN115: HHAgeHH65yrsorOlderHHInc10to15K | EO115: ="MOE "&EN115 -> MOE HHAgeHH65yrsorOlderHHInc10to15K | EP115: HHAgeHH65yrsorOlderHHInc15to20K | EQ115: ="MOE "&EP115 -> MOE HHAgeHH65yrsorOlderHHInc15to20K | ER115: HHAgeHH65yrsorOlderHHInc20to25K | ES115: ="MOE "&ER115 -> MOE HHAgeHH65yrsorOlderHHInc20to25K | ET115: HHAgeHH65yrsorOlderHHInc25to30K | EU115: ="MOE "&ET115 -> MOE HHAgeHH65yrsorOlderHHInc25to30K | EV115: HHAgeHH65yrsorOlderHHInc30to35K | EW115: ="MOE "&EV115 -> MOE HHAgeHH65yrsorOlderHHInc30to35K | EX115: HHAgeHH65yrsorOlderHHInc35to40K | EY115: ="MOE "&EX115 -> MOE HHAgeHH65yrsorOlderHHInc35to40K | EZ115: HHAgeHH65yrsorOlderHHInc40to45K | FA115: ="MOE "&EZ115 -> MOE HHAgeHH65yrsorOlderHHInc40to45K | FB115: HHAgeHH65yrsorOlderHHInc45to50K | FC115: ="MOE "&FB115 -> MOE HHAgeHH65yrsorOlderHHInc45to50K | FD115: HHAgeHH65yrsorOlderHHInc50to60K | FE115: ="MOE "&FD115 -> MOE HHAgeHH65yrsorOlderHHInc50to60K | FF115: HHAgeHH65yrsorOlderHHInc60to75K | FG115: ="MOE "&FF115 -> MOE HHAgeHH65yrsorOlderHHInc60to75K | FH115: HHAgeHH65yrsorOlderHHInc75to100K | FI115: ="MOE "&FH115 -> MOE HHAgeHH65yrsorOlderHHInc75to100K | FJ115: HHAgeHH65yrsorOlderHHInc100to125K | FK115: ="MOE "&FJ115 -> MOE HHAgeHH65yrsorOlderHHInc100to125K | FL115: HHAgeHH65yrsorOlderHHInc125to150K | FM115: ="MOE "&FL115 -> MOE HHAgeHH65yrsorOlderHHInc125to150K | FN115: HHAgeHH65yrsorOlderHHInc150to200K | FO115: ="MOE "&FN115 -> MOE HHAgeHH65yrsorOlderHHInc150to200K | FP115: HHAge65yrsorOlderHHInc>200K | FQ115: ="MOE "&FP115 -> MOE HHAge65yrsorOlderHHInc>200K | FR115: MedianHHInc | FS115: ="MOE "&FR115 -> MOE MedianHHInc | FT115: HH under 25 years | FU115: ="MOE "&FT115 -> MOE HH under 25 years | FV115: Householder 25 to 44 years | FW115: ="MOE "&FV115 -> MOE Householder 25 to 44 years | FX115: Householder 45 to 64 years | FY115: ="MOE "&FX115 -> MOE Householder 45 to 64 years | FZ115: Householder 65 years and over | GA115: ="MOE "&FZ115 -> MOE Householder 65 years and over
A116: =VLOOKUP(DropDownList!$B$27,CntyQryCensus!$A$275:$AG$297,A$1) -> Alstead | B116: 771 | C116: 70 | D116: 36 | E116: 30 | F116: 68 | G116: 31 | H116: 37 | I116: 29 | J116: 24 | K116: 17 | L116: 28 | M116: 21 | N116: 23 | O116: 19 | P116: 46 | Q116: 30 | R116: 28 | S116: 22 | T116: 43 | U116: 24 | V116: 71 | W116: 37 | X116: 103 | Y116: 47 | Z116: 111 | AA116: 44 | AB116: 85 | AC116: 30 | AD116: 35 | AE116: 23 | AF116: 20 | AG116: 14 | AH116: 13 | AI116: 9 | AJ116: 771 | AK116: 70 | AL116: 6 | AM116: 6 | AN116: 0 | AO116: 11 | AP116: 0 | AQ116: 11 | AR116: 3 | AS116: 4 | AT116: 0 | AU116: 11 | AV116: 0 | AW116: 11 | AX116: 0 | AY116: 11 | AZ116: 0 | BA116: 11 | BB116: 0 | BC116: 11 | BD116: 0 | BE116: 11 | BF116: 0 | BG116: 11 | BH116: 0 | BI116: 11 | BJ116: 0 | BK116: 11 | BL116: 0 | BM116: 11 | BN116: 3 | BO116: 4 | BP116: 0 | BQ116: 11 | BR116: 0 | BS116: 11 | BT116: 196 | BU116: 56 | BV116: 36 | BW116: 30 | BX116: 10 | BY116: 10 | BZ116: 2 | CA116: 3 | CB116: 7 | CC116: 11 | CD116: 17 | CE116: 18 | CF116: 9 | CG116: 14 | CH116: 0 | CI116: 11 | CJ116: 4 | CK116: 6 | CL116: 5 | CM116: 7 | CN116: 38 | CO116: 32 | CP116: 27 | CQ116: 26 | CR116: 19 | CS116: 14 | CT116: 9 | CU116: 11 | CV116: 13 | CW116: 15 | CX116: 0 | CY116: 11 | CZ116: 0 | DA116: 11 | DB116: 292 | DC116: 52 | DD116: 0 | DE116: 11 | DF116: 5 | DG116: 6 | DH116: 4 | DI116: 7 | DJ116: 8 | DK116: 9 | DL116: 0 | DM116: 11 | DN116: 0 | DO116: 11 | DP116: 11 | DQ116: 12 | DR116: 24 | DS116: 22 | DT116: 9 | DU116: 9 | DV116: 23 | DW116: 16 | DX116: 52 | DY116: 32 | DZ116: 56 | EA116: 33 | EB116: 71 | EC116: 28 | ED116: 19 | EE116: 16 | EF116: 10 | EG116: 9 | EH116: 0 | EI116: 11 | EJ116: 277 | EK116: 54 | EL116: 0 | EM116: 11 | EN116: 53 | EO116: 30 | EP116: 28 | EQ116: 26 | ER116: 9 | ES116: 9 | ET116: 11 | EU116: 10 | EV116: 14 | EW116: 11 | EX116: 35 | EY116: 26 | EZ116: 0 | FA116: 11 | FB116: 29 | FC116: 21 | FD116: 10 | FE116: 11 | FF116: 24 | FG116: 25 | FH116: 36 | FI116: 27 | FJ116: 5 | FK116: 6 | FL116: 0 | FM116: 11 | FN116: 10 | FO116: 9 | FP116: 13 | FQ116: 9 | FR116: 57011 | FS116: 6970 | FT116: - | FU116: ** | FV116: 53833 | FW116: 15089 | FX116: 79583 | FY116: 15889 | FZ116: 37604 | GA116: 10883
A118: Number of Households by Income
A119: NAME | B119: HHIncLessThn10k | C119: ="MOE "&B119 -> MOE HHIncLessThn10k | D119: HHInc10to15K | E119: ="MOE "&D119 -> MOE HHInc10to15K | F119: HHInc15to25K | G119: ="MOE "&F119 -> MOE HHInc15to25K | H119: HHInc25to35K | I119: ="MOE "&H119 -> MOE HHInc25to35K | J119: HHInc35to50K | K119: ="MOE "&J119 -> MOE HHInc35to50K | L119: HHInc50to75K | M119: ="MOE "&L119 -> MOE HHInc50to75K | N119: HHInc75to100K | O119: ="MOE "&N119 -> MOE HHInc75to100K | P119: HHInc100to150K | Q119: ="MOE "&P119 -> MOE HHInc100to150K | R119: HHInc150to200K | S119: ="MOE "&R119 -> MOE HHInc150to200K | T119: HHIncOver200K | U119: ="MOE "&T119 -> MOE HHIncOver200K
A120: =VLOOKUP(DropDownList!$B$27,CntyQryCensus!$A$275:$AG$297,A$1) -> Alstead | B120: 36 | C120: 30 | D120: 68 | E120: 31 | F120: 61 | G120: 33.61547263 | H120: 51 | I120: 28.31960452 | J120: 117 | K120: 44.27188724 | L120: 174 | M120: 59.81638571 | N120: 111 | O120: 44 | P120: 120 | Q120: 37.80211634 | R120: 20 | S120: 14 | T120: 13 | U120: 9 | V120: 120 | W120: 31 | X120: 78 | Y120: 28 | Z120: 79 | AA120: 33 | AB120: 11 | AC120: 10 | AD120: 25 | AE120: 16 | AF120: 23 | AG120: 20 | CH120: Alstead | CJ120: Estimate | CK120: Margin of Error | CL120: 789 | CM120: 93 | CP120: 51 | CQ120: 41 | CR120: 26 | CS120: 20 | CT120: 47 | CU120: 31 | CV120: 48 | CW120: 33 | CX120: 45 | CY120: 22 | CZ120: 74 | DA120: 50 | DB120: 22 | DC120: 17 | DD120: 8 | DE120: 9 | DF120: 39 | DG120: 24 | DH120: 97 | DI120: 34 | DJ120: 114 | DK120: 35 | DL120: 89 | DM120: 34 | DN120: 64 | DO120: 31 | DP120: 7 | DQ120: 7 | DR120: 41 | DS120: 24 | DT120: 17 | DU120: 14 | EJ120: Alstead | EL120: Estimate | EM120: Margin of Error | EN120: 789 | EO120: 93 | ER120: 51 | ES120: 41 | ET120: 26 | EU120: 20 | EV120: 95 | EW120: 45.27692569 | EX120: 119 | EY120: 54.62600113 | EZ120: 69 | FA120: 30.757113 | FB120: 211 | FC120: 48.7954916 | FD120: 89 | FE120: 34 | FF120: 71 | FG120: 31.78049716 | FH120: 41 | FI120: 24 | FJ120: 17 | FK120: 14
A123: NAME | B123: TotalPop | C123: ="MOE "&B123 -> MOE TotalPop | D123: Total Individuals living in Poverty | E123: ="MOE "&D123 -> MOE Total Individuals living in Poverty | F123: Under 5 yrs. | G123: ="MOE "&F123 -> MOE Under 5 yrs. | H123: 5 to 17 yrs. | I123: ="MOE "&H123 -> MOE 5 to 17 yrs. | J123: 18 to 64 yrs. | K123: ="MOE "&J123 -> MOE 18 to 64 yrs. | L123: 65 to 74 yrs. | M123: ="MOE "&L123 -> MOE 65 to 74 yrs. | N123: 75 yrs. & Over | O123: ="MOE "&N123 -> MOE 75 yrs. & Over | P123: Total Individuals Not living Poverty | Q123: ="MOE "&P123 -> MOE Total Individuals Not living Poverty | R123: Under 5 yrs. | S123: ="MOE "&R123 -> MOE Under 5 yrs. | T123: 5 to 17 yrs. | U123: ="MOE "&T123 -> MOE 5 to 17 yrs. | V123: 18 to 64 yrs. | W123: ="MOE "&V123 -> MOE 18 to 64 yrs. | X123: 65 to 74 yrs. | Y123: ="MOE "&X123 -> MOE 65 to 74 yrs. | Z123: 75 yrs. & Over | AA123: ="MOE "&Z123 -> MOE 75 yrs. & Over | AB123: Total HH | AC123: ="MOE "&AB123 -> MOE Total HH | AD123: Total Households Below Poverty | AE123: ="MOE "&AD123 -> MOE Total Households Below Poverty | AF123: Family Households in Poverty | AG123: ="MOE "&AF123 -> MOE Family Households in Poverty | AH123: Married Couple Fam HH | AI123: ="MOE "&AH123 -> MOE Married Couple Fam HH | AJ123: Other Family | AK123: ="MOE "&AJ123 -> MOE Other Family | AL123: Male Head of Family HH no wife | AM123: ="MOE "&AL123 -> MOE Male Head of Family HH no wife | AN123: Female Head of Family HH no husband | AO123: ="MOE "&AN123 -> MOE Female Head of Family HH no husband | AP123: Non-Family HH | AQ123: ="MOE "&AP123 -> MOE Non-Family HH | AR123: Non-Family Male HH | AS123: ="MOE "&AR123 -> MOE Non-Family Male HH | AT123: Non-Family Female HH | AU123: ="MOE "&AT123 -> MOE Non-Family Female HH | AV123: Total Households at or Above Poverty | AW123: ="MOE "&AV123 -> MOE Total Households at or Above Poverty | AX123: Family Households above Poverty | AY123: ="MOE "&AX123 -> MOE Family Households above Poverty | AZ123: Married Couple Fam HH | BA123: ="MOE "&AZ123 -> MOE Married Couple Fam HH | BB123: Other Family | BC123: ="MOE "&BB123 -> MOE Other Family | BD123: Male Head of Family HH no wife | BE123: ="MOE "&BD123 -> MOE Male Head of Family HH no wife | BF123: Female Head of Family HH no husband | BG123: ="MOE "&BF123 -> MOE Female Head of Family HH no husband | BH123: Non-Family HH | BI123: ="MOE "&BH123 -> MOE Non-Family HH | BJ123: Non-Family Male HH | BK123: ="MOE "&BJ123 -> MOE Non-Family Male HH | BL123: Non-Family Female HH | BM123: ="MOE "&BL123 -> MOE Non-Family Female HH | BN123: Married Couple with Children Below Poverty | BO123: ="MOE "&BN123 -> MOE Married Couple with Children Below Poverty | BP123: Male HH with children below poverty | BQ123: ="MOE "&BP123 -> MOE Male HH with children below poverty | BR123: Female HH with children below poverty | BS123: ="MOE "&BR123 -> MOE Female HH with children below poverty | BT123: Married Couple with Children At or Above Poverty | BU123: ="MOE "&BT123 -> MOE Married Couple with Children At or Above Poverty | BV123: Male HH with children at or above poverty | BW123: ="MOE "&BV123 -> MOE Male HH with children at or above poverty | BX123: Female HH with children at or above poverty | BY123: ="MOE "&BX123 -> MOE Female HH with children at or above poverty
A124: =VLOOKUP(DropDownList!$B$27,CntyQryCensus!$A$275:$AG$297,A$1) -> Alstead | B124: 1725 | C124: 183 | D124: 326 | E124: 165 | F124: 37 | G124: 12.52996409 | H124: 58 | I124: 39.11521443 | J124: 201 | K124: 87.91473142 | L124: 18 | M124: 15.62049935 | N124: 12 | O124: 21.9544984 | P124: 1399 | Q124: 152 | R124: 52 | S124: 29.73213749 | T124: 145 | U124: 49.62862077 | V124: 779 | W124: 112.2140811 | X124: 276 | Y124: 64.35060217 | Z124: 147 | AA124: 51.03920062 | AB124: 749 | AC124: 71 | AD124: 90 | AE124: 55 | AF124: 46 | AG124: 37 | AH124: 7 | AI124: 7 | AJ124: 39 | AK124: 36 | AL124: 0 | AM124: 11 | AN124: 39 | AO124: 36 | AP124: 44 | AQ124: 32 | AR124: 9 | AS124: 9 | AT124: 35 | AU124: 32 | AV124: 659 | AW124: 69 | AX124: 429 | AY124: 76 | AZ124: 337 | BA124: 78 | BB124: 92 | BC124: 31 | BD124: 28 | BE124: 19 | BF124: 64 | BG124: 27 | BH124: 230 | BI124: 63 | BJ124: 103 | BK124: 43 | BL124: 127 | BM124: 45 | BN124: 2 | BO124: 3 | BP124: 0 | BQ124: 11 | BR124: 39 | BS124: 36 | BT124: 44 | BU124: 26 | BV124: 14 | BW124: 11 | BX124: 52 | BY124: 23
A126: Household Income By Tenure
A127: NAME | B127: TotalOccHU | C127: ="MOE "&B127 -> MOE TotalOccHU | D127: OwnOccHU | E127: ="MOE "&D127 -> MOE OwnOccHU | F127: OOHUInc<5K | G127: ="MOE "&F127 -> MOE OOHUInc<5K | H127: OOHUInc5to10K | I127: ="MOE "&H127 -> MOE OOHUInc5to10K | J127: OOHUInc10to15K | K127: ="MOE "&J127 -> MOE OOHUInc10to15K | L127: OOHUInc15to20K | M127: ="MOE "&L127 -> MOE OOHUInc15to20K | N127: OOHUInc20to25K | O127: ="MOE "&N127 -> MOE OOHUInc20to25K | P127: OOHUInc25to35K | Q127: ="MOE "&P127 -> MOE OOHUInc25to35K | R127: OOHUInc35to50K | S127: ="MOE "&R127 -> MOE OOHUInc35to50K | T127: OOHUInc50to75K | U127: ="MOE "&T127 -> MOE OOHUInc50to75K | V127: OOHUInc75to100K | W127: ="MOE "&V127 -> MOE OOHUInc75to100K | X127: OOHUInc100to150K | Y127: ="MOE "&X127 -> MOE OOHUInc100to150K | Z127: OOHUInc>150K | AA127: ="MOE "&Z127 -> MOE OOHUInc>150K | AB127: RentOccHU | AC127: ="MOE "&AB127 -> MOE RentOccHU | AD127: ROHUInc<5K | AE127: ="MOE "&AD127 -> MOE ROHUInc<5K | AF127: ROHUInc5to10K | AG127: ="MOE "&AF127 -> MOE ROHUInc5to10K | AH127: ROHUInc10to15K | AI127: ="MOE "&AH127 -> MOE ROHUInc10to15K | AJ127: ROHUInc15to20K | AK127: ="MOE "&AJ127 -> MOE ROHUInc15to20K | AL127: ROHUInc20to25K | AM127: ="MOE "&AL127 -> MOE ROHUInc20to25K | AN127: ROHUInc25to35K | AO127: ="MOE "&AN127 -> MOE ROHUInc25to35K | AP127: ROHUInc35to50K | AQ127: ="MOE "&AP127 -> MOE ROHUInc35to50K | AR127: ROHUInc50to75K | AS127: ="MOE "&AR127 -> MOE ROHUInc50to75K | AT127: ROHUInc75to100K | AU127: ="MOE "&AT127 -> MOE ROHUInc75to100K | AV127: ROHUInc100to150K | AW127: ="MOE "&AV127 -> MOE ROHUInc100to150K | AX127: ROHUInc>150K | AY127: ="MOE "&AX127 -> MOE ROHUInc>150K | AZ127: Total OCC HUInc<5K | BA127: ="MOE "&AZ127 -> MOE Total OCC HUInc<5K | BB127: Total OCC HUInc5to10K | BC127: ="MOE "&BB127 -> MOE Total OCC HUInc5to10K | BD127: Total OCC HUInc10to15K | BE127: ="MOE "&BD127 -> MOE Total OCC HUInc10to15K | BF127: Total OCC HUInc15to20K | BG127: ="MOE "&BF127 -> MOE Total OCC HUInc15to20K | BH127: Total OCC HUInc20to25K | BI127: ="MOE "&BH127 -> MOE Total OCC HUInc20to25K | BJ127: Total OCC HUInc25to35K | BK127: ="MOE "&BJ127 -> MOE Total OCC HUInc25to35K | BL127: Total OCC HUInc35to50K | BM127: ="MOE "&BL127 -> MOE Total OCC HUInc35to50K | BN127: Total OCC HUInc50to75K | BO127: ="MOE "&BN127 -> MOE Total OCC HUInc50to75K | BP127: Total OCC HUInc75to100K | BQ127: ="MOE "&BP127 -> MOE Total OCC HUInc75to100K | BR127: Total OCC HUInc100to150K | BS127: ="MOE "&BR127 -> MOE Total OCC HUInc100to150K | BT127: Total OCC HUInc>150K | BU127: ="MOE "&BT127 -> MOE Total OCC HUInc>150K | BV127: MedHHInc | BW127: ="MOE "&BV127 -> MOE MedHHInc | BX127: MedOwnOccHHInc | BY127: ="MOE "&BX127 -> MOE MedOwnOccHHInc | BZ127: MedRentOccHHInc | CA127: ="MOE "&BZ127 -> MOE MedRentOccHHInc
A128: =VLOOKUP(DropDownList!$B$27,CntyQryCensus!$A$275:$AG$297,A$1) -> Alstead | B128: 771 | C128: 70 | D128: 540 | E128: 64 | F128: 13 | G128: 16 | H128: 0 | I128: 11 | J128: 31 | K128: 21 | L128: 10 | M128: 10 | N128: 14 | O128: 11 | P128: 25 | Q128: 15 | R128: 80 | S128: 32 | T128: 119 | U128: 45 | V128: 108 | W128: 45 | X128: 111 | Y128: 35 | Z128: 29 | AA128: 16 | AB128: 231 | AC128: 54 | AD128: 4 | AE128: 7 | AF128: 19 | AG128: 23 | AH128: 37 | AI128: 24 | AJ128: 27 | AK128: 28 | AL128: 10 | AM128: 13 | AN128: 26 | AO128: 22 | AP128: 37 | AQ128: 20 | AR128: 55 | AS128: 39 | AT128: 3 | AU128: 4 | AV128: 9 | AW128: 13 | AX128: 4 | AY128: 6 | AZ128: 17 | BA128: 17.4642492 | BB128: 19 | BC128: 25.49509757 | BD128: 68 | BE128: 31.89043744 | BF128: 37 | BG128: 29.73213749 | BH128: 24 | BI128: 17.02938637 | BJ128: 51 | BK128: 26.62705391 | BL128: 117 | BM128: 37.73592453 | BN128: 174 | BO128: 59.54829972 | BP128: 111 | BQ128: 45.17742799 | BR128: 120 | BS128: 37.33630941 | BT128: 33 | BU128: 17.08800749 | BV128: 57011 | BW128: 6970 | BX128: 70000 | BY128: 9633 | BZ128: 32917 | CA128: 14973 | CJ128: Dublin | CL128: Estimate | CM128: Margin of Error | CN128: 576 | CO128: 69 | CP128: 5 | CQ128: 12.08304597 | CR128: 8 | CS128: 6.708203932 | CT128: 11 | CU128: 13.03840481 | CV128: 18 | CW128: 9.848857802 | CX128: 31 | CY128: 25.49509757 | CZ128: 83 | DA128: 36.23534186 | DB128: 49 | DC128: 26.2488095 | DD128: 106 | DE128: 39.05124838 | DF128: 80 | DG128: 32.75667871 | DH128: 114 | DI128: 37.64306045 | DJ128: 71 | DK128: 31.01612484 | EZ128: Dublin | FB128: Estimate | FC128: Margin of Error | FD128: 585 | FE128: 68 | FF128: 477 | FG128: 65 | FH128: 11 | FI128: 13 | FJ128: 0 | FK128: 85 | FL128: 4 | FM128: 6 | FN128: 9 | FO128: 13 | FP128: 13 | FQ128: 12 | FR128: 56 | FS128: 32 | FT128: 55 | FU128: 25 | FV128: 135 | FW128: 41 | FX128: 43 | FY128: 26 | FZ128: 95 | GA128: 30 | GB128: 56 | GC128: 29 | GD128: 108 | GE128: 38 | GF128: 5 | GG128: 7 | GH128: 10 | GI128: 7 | GJ128: 5 | GK128: 7 | GL128: 0 | GM128: 85 | GN128: 13 | GO128: 17 | GP128: 12 | GQ128: 14 | GR128: 25 | GS128: 20 | GT128: 17 | GU128: 17 | GV128: 12 | GW128: 11 | GX128: 9 | GY128: 14 | GZ128: 0 | HA128: 85 | HR128: Dublin | HT128: Estimate | HU128: Margin of Error | HV128: 585 | HW128: 68 | HX128: 16 | HY128: 14.76482306 | HZ128: 10 | IA128: 85.28774824 | IB128: 9 | IC128: 9.219544457 | ID128: 9 | IE128: 85.98837131 | IF128: 26 | IG128: 20.80865205 | IH128: 68 | II128: 34.92849839 | IJ128: 80 | IK128: 32.01562119 | IL128: 152 | IM128: 44.38468204 | IN128: 55 | IO128: 28.23118843 | IP128: 104 | IQ128: 33.10589071 | IR128: 56 | IS128: 89.81091248
A130: Population Data
A131: NAME | B131: Total Population | C131: MOE Total Population | D131: Under 15 Years | E131: MOE Under 15 yrs. | F131: 15 to 24 yrs. | G131: MOE 15 to 24 yrs. | H131: 25 to 34 yrs. | I131: MOE 25 to 34 yrs. | J131: 35 to 44 yrs. | K131: MOE 35 to 44 yrs. | L131: 45 to 54 yrs. | M131: MOE 45 to 54 yrs. | N131: 55 to 64 yrs. | O131: MOE 55 to 64 yrs. | P131: 65 to 74 yrs. | Q131: MOE 65 to 74 yrs. | R131: Over 74 yrs. | S131: MOE Over 74 yrs. | T131: TotalHH | U131: MOE TotalHH | V131: FamilyHH | W131: MOE FamilyHH | X131: MarriedFamilyHH | Y131: MOE MarriedFamilyHH | Z131: SingleFamilyHH | AA131: MOE SingleFamilyHH | AB131: Sfamily-MaleHH | AC131: MOE Sfamily-MaleHH | AD131: Sfamily-FemaleHH | AE131: MOE Sfamily-FemaleHH | AF131: NonFamilyHH | AG131: MOE NonFamilyHH | AH131: NonFamilyHH-LivingAlone | AI131: MOE NonFamilyHH-LivingAlone | AJ131: NonFamilyHH-NotLivingAlone | AK131: MOE NonFamilyHH-NotLivingAlone | AL131: PopRaceWhite | AM131: MOE PopRaceWhite | AN131: PopRaceBlack | AO131: MOE PopRaceBlack | AP131: PopRaceAmerican Indian | AQ131: MOE PopRaceAmerican Indian | AR131: PopRaceAsian &Pacific Is. | AS131: MOE PopRaceAsian &Pacific Is. | AT131: PopRaceOther* | AU131: MOE PopRaceOther* | AV131: PopRaceHispanic or Latino: | AW131: MOE PopRaceHispanic or Latino: | AX131: MedianAgeTotalPop | AY131: MOE MedianAgeTotalPop | AZ131: MedianAgeMale | BA131: MOE MedianAgeMale | BB131: MedianAgeFemale | BC131: MOE MedianAgeFemale | BD131: AvgHHSizeTotal | BE131: MOE AvgHHSizeTotal | BF131: AvgHHSizeFamilyHH | BG131: MOE AvgHHSizeFamilyHH | BH131: AvgHHSizeNonFamilyHH | BI131: MOE AvgHHSizeNonFamilyHH
A132: =VLOOKUP(DropDownList!$B$27,CntyQryCensus!$A$275:$AG$297,A$1) -> Alstead | B132: 1744 | C132: 192 | D132: 262 | E132: 73.34848328 | F132: 132 | G132: 55.3714728 | H132: 233 | I132: 75.05997602 | J132: 172 | K132: 56.24944444 | L132: 286 | M132: 67.95586803 | N132: 229 | O132: 61.26989473 | P132: 279 | Q132: 67.85278181 | R132: 151 | S132: 59.93329626 | T132: 749 | U132: 71 | V132: 475 | W132: 69 | X132: 344 | Y132: 76 | Z132: 131 | AA132: 44 | AB132: 28 | AC132: 19 | AD132: 103 | AE132: 41 | AF132: 274 | AG132: 71 | AH132: 185 | AI132: 57 | AJ132: 89 | AK132: 45 | AL132: 1672 | AM132: 182 | AN132: 0 | AO132: 11 | AP132: 0 | AQ132: 11 | AR132: 8 | AS132: 13.60147051 | AT132: 27 | AU132: 32.89376841 | AV132: 37 | AW132: 40 | AX132: 48.7 | AY132: 5.9 | AZ132: 48.1 | BA132: 8.8 | BB132: 50.1 | BC132: 7.2 | BD132: 2.328437917 | BE132: 0.19 | BF132: 2.835789474 | BG132: 0.5640201679 | BH132: 1.448905109 | BI132: 0.5824193485 | BW132: 31 | BX132: 51 | BY132: 37 | BZ132: 93 | CA132: 36 | CB132: 23 | CC132: 16 | CD132: 38 | CE132: 28 | CF132: 17 | CG132: 20 | CH132: 5 | CI132: 7 | CJ132: 0 | CK132: 11 | CL132: 39 | CM132: 19 | CN132: 47 | CO132: 22 | CP132: 40 | CQ132: 28 | CR132: 76 | CS132: 37 | CT132: 108 | CU132: 41 | CV132: 78 | CW132: 30 | CX132: 49 | CY132: 29 | CZ132: 38 | DA132: 21 | DB132: 53 | DC132: 26 | DD132: 39 | DE132: 23 | DF132: 27 | DG132: 18 | DH132: 51 | DI132: 22 | DJ132: 20 | DK132: 13 | DL132: 12 | DM132: 10 | DN132: 5 | DO132: 7 | GL132: Dublin | GN132: Estimate | GO132: Margin of Error | GP132: 1478 | GQ132: 208 | GR132: 337 | GS132: 86.48121183 | GT132: 177 | GU132: 49.62862077 | GV132: 55 | GW132: 24.06241883 | GX132: 209 | GY132: 54.64430437 | GZ132: 285 | HA132: 65.5286197 | HB132: 224 | HC132: 52.94336597 | HD132: 137 | HE132: 44.31703961 | HF132: 54 | HG132: 117.3797257
A134: Nativity and Prior Place of Residence
A135: NAME | B135: TotalPop | C135: ="MOE "&B135 -> MOE TotalPop | D135: Native: | E135: ="MOE "&D135 -> MOE Native: | F135: NatBornInStateOfResidence | G135: ="MOE "&F135 -> MOE NatBornInStateOfResidence | H135: Born in other state in the United States: | I135: ="MOE "&H135 -> MOE Born in other state in the United States: | J135: Northeast | K135: ="MOE "&J135 -> MOE Northeast | L135: Midwest | M135: ="MOE "&L135 -> MOE Midwest | N135: South | O135: ="MOE "&N135 -> MOE South | P135: West | Q135: ="MOE "&P135 -> MOE West | R135: Born outside the United States: | S135: ="MOE "&R135 -> MOE Born outside the United States: | T135: Puerto Rico | U135: ="MOE "&T135 -> MOE Puerto Rico | V135: U.S. Island Areas | W135: ="MOE "&V135 -> MOE U.S. Island Areas | X135: Born abroad of American parent(s) | Y135: ="MOE "&X135 -> MOE Born abroad of American parent(s) | Z135: Foreign born: | AA135: ="MOE "&Z135 -> MOE Foreign born: | AB135: Naturalized U.S. citizen | AC135: ="MOE "&AB135 -> MOE Naturalized U.S. citizen | AD135: Not a U.S. citizen | AE135: ="MOE "&AD135 -> MOE Not a U.S. citizen | AF135: CurrentResidenceTotal: | AG135: ="MOE "&AF135 -> MOE CurrentResidenceTotal: | AH135: SameHouse: | AI135: ="MOE "&AH135 -> MOE SameHouse: | AJ135: DifferentHouse: | AK135: ="MOE "&AJ135 -> MOE DifferentHouse: | AL135: DiffHouseInNH | AM135: ="MOE "&AL135 -> MOE DiffHouseInNH | AN135: DiffHouseInNHSameCnty | AO135: ="MOE "&AN135 -> MOE DiffHouseInNHSameCnty | AP135: DiffHouseInNHDiffCnty | AQ135: ="MOE "&AP135 -> MOE DiffHouseInNHDiffCnty | AR135: DiffHouseInDiffState | AS135: ="MOE "&AR135 -> MOE DiffHouseInDiffState | AT135: DiffHouseInElsewhere | AU135: ="MOE "&AT135 -> MOE DiffHouseInElsewhere
A136: =VLOOKUP(DropDownList!$B$27,CntyQryCensus!$A$275:$AG$297,A$1) -> Alstead | B136: 1736 | C136: 186 | D136: 1694 | E136: 185 | F136: 620 | G136: 125 | H136: 1074 | I136: 160 | J136: 907 | K136: 158 | L136: 71 | M136: 37 | N136: 75 | O136: 34 | P136: 21 | Q136: 15 | R136: 0 | S136: 11 | T136: 0 | U136: 11 | V136: 0 | W136: 11 | X136: 0 | Y136: 11 | Z136: 42 | AA136: 28 | AB136: 14 | AC136: 11 | AD136: 28 | AE136: 26 | AF136: 1705 | AG136: 182 | AH136: 1469 | AI136: 169 | AJ136: 236 | AK136: 136.6382084 | AL136: 209 | AM136: 134.7182245 | AN136: 101 | AO136: 65 | AP136: 108 | AQ136: 118 | AR136: 27 | AS136: 20 | AT136: 0 | AU136: 11 | AV136: 76 | AW136: 68 | AX136: 92 | AY136: 120 | AZ136: 51 | BA136: 43 | BB136: 0 | BC136: 11 | DQ136: 1854 | DR136: 45754 | DS136: 2415 | DT136: 5817 | DU136: 754
A138: School Enrollment - Education
A139: NAME | B139: Total Pop 3 Years and Older | C139: MOE Total Pop 3 Years and Older | D139: SchEnrlPop3yrOver | E139: ="MOE "&D139 -> MOE SchEnrlPop3yrOver | F139: TotalEnrollNursy&Kinder | G139: ="MOE "&F139 -> MOE TotalEnrollNursy&Kinder | H139: NurserSchEnrl | I139: ="MOE "&H139 -> MOE NurserSchEnrl | J139: KinderSchEnrl | K139: ="MOE "&J139 -> MOE KinderSchEnrl | L139: ElemSchEnrl (1-8) | M139: ="MOE "&L139 -> MOE ElemSchEnrl (1-8) | N139: HighSchEnrl(9-12) | O139: ="MOE "&N139 -> MOE HighSchEnrl(9-12) | P139: TotalElementry&HSEnroll | Q139: ="MOE "&P139 -> MOE TotalElementry&HSEnroll | R139: CollGradSchEnrl | S139: ="MOE "&R139 -> MOE CollGradSchEnrl | T139: PopNotEnrolled | U139: MOE PopNotEnrolled | V139: Pop25yrsOver | W139: ="MOE "&V139 -> MOE Pop25yrsOver | X139: EduAtain<9grd | Y139: ="MOE "&X139 -> MOE EduAtain<9grd | Z139: EduAtainHSnoDip | AA139: ="MOE "&Z139 -> MOE EduAtainHSnoDip | AB139: EduAtainHSgrad | AC139: ="MOE "&AB139 -> MOE EduAtainHSgrad | AD139: EduAtainCollNoDeg | AE139: ="MOE "&AD139 -> MOE EduAtainCollNoDeg | AF139: EduAtainAssocDeg | AG139: ="MOE "&AF139 -> MOE EduAtainAssocDeg | AH139: EduAtainBachDeg | AI139: ="MOE "&AH139 -> MOE EduAtainBachDeg | AJ139: EduAtainGradProfDeg | AK139: ="MOE "&AJ139 -> MOE EduAtainGradProfDeg
A140: =VLOOKUP(DropDownList!$B$27,CntyQryCensus!$A$275:$AG$297,A$1) -> Alstead | B140: 1668 | C140: 176 | D140: 309 | E140: 128 | F140: 6 | G140: 13.60147051 | H140: 6 | I140: 8 | J140: 0 | K140: 11 | L140: 146 | M140: 53.26349594 | N140: 74 | O140: 37 | P140: 220 | Q140: 64.85368147 | R140: 83 | S140: 63.78871374 | T140: 1359 | U140: 140 | V140: 1356 | W140: 144 | X140: 24 | Y140: 27.82085549 | Z140: 69 | AA140: 38.93584467 | AB140: 404 | AC140: 92.6984358 | AD140: 222 | AE140: 55.65069631 | AF140: 115 | AG140: 37.64306045 | AH140: 278 | AI140: 62.62587325 | AJ140: 240 | AK140: 54.15717866
A142: Occupied Owner Housing Value
A143: NAME | B143: Estimate; Total: | C143: Margin of Error; Total: | D143: Estimate; Total: - Less than $10,000 | E143: Margin of Error; Total: - Less than $10,000 | F143: Estimate; Total: - $10,000 to $14,999 | G143: Margin of Error; Total: - $10,000 to $14,999 | H143: Estimate; Total: - $15,000 to $19,999 | I143: Margin of Error; Total: - $15,000 to $19,999 | J143: Estimate; Total: - $20,000 to $24,999 | K143: Margin of Error; Total: - $20,000 to $24,999 | L143: Estimate; Total: - $25,000 to $29,999 | M143: Margin of Error; Total: - $25,000 to $29,999 | N143: Estimate; Total: - $30,000 to $34,999 | O143: Margin of Error; Total: - $30,000 to $34,999 | P143: Estimate; Total: - $35,000 to $39,999 | Q143: Margin of Error; Total: - $35,000 to $39,999 | R143: Estimate; Total: - $40,000 to $49,999 | S143: Margin of Error; Total: - $40,000 to $49,999 | T143: Estimate; Total: - $50,000 to $59,999 | U143: Margin of Error; Total: - $50,000 to $59,999 | V143: Estimate; Total: - $60,000 to $69,999 | W143: Margin of Error; Total: - $60,000 to $69,999 | X143: Estimate; Total: - $70,000 to $79,999 | Y143: Margin of Error; Total: - $70,000 to $79,999 | Z143: Estimate; Total: - $80,000 to $89,999 | AA143: Margin of Error; Total: - $80,000 to $89,999 | AB143: Estimate; Total: - $90,000 to $99,999 | AC143: Margin of Error; Total: - $90,000 to $99,999 | AD143: Estimate; Total: - $100,000 to $124,999 | AE143: Margin of Error; Total: - $100,000 to $124,999 | AF143: Estimate; Total: - $125,000 to $149,999 | AG143: Margin of Error; Total: - $125,000 to $149,999 | AH143: Estimate; Total: - $150,000 to $174,999 | AI143: Margin of Error; Total: - $150,000 to $174,999 | AJ143: Estimate; Total: - $175,000 to $199,999 | AK143: Margin of Error; Total: - $175,000 to $199,999 | AL143: Estimate; Total: - $200,000 to $249,999 | AM143: Margin of Error; Total: - $200,000 to $249,999 | AN143: Estimate; Total: - $250,000 to $299,999 | AO143: Margin of Error; Total: - $250,000 to $299,999 | AP143: Estimate; Total: - $300,000 to $399,999 | AQ143: Margin of Error; Total: - $300,000 to $399,999 | AR143: Estimate; Total: - $400,000 to $499,999 | AS143: Margin of Error; Total: - $400,000 to $499,999 | AT143: Estimate; Total: - $500,000 to $749,999 | AU143: Margin of Error; Total: - $500,000 to $749,999 | AV143: Estimate; Total: - $750,000 to $999,999 | AW143: Margin of Error; Total: - $750,000 to $999,999 | AX143: Estimate; Total: - $1,000,000 to $1,499,999 | AY143: Margin of Error; Total: - $1,000,000 to $1,499,999 | AZ143: Estimate; Total: - $1,500,000 to $1,999,999 | BA143: Margin of Error; Total: - $1,500,000 to $1,999,999 | BB143: Estimate; Total: - $2,000,000 or more | BC143: Margin of Error; Total: - $2,000,000 or more | BD143: MedianOwnOCCHomeValue | BE143: MOE MedianOwnOCCHomeValue | BF143: OnwerOccHsU | BG143: MOE OnwerOccHsU | BH143: OwnerCosts>20PctHHInc | BI143: MOE OwnerCosts>20PctHHInc | BJ143: OwnerCosts20to29.9PctHHInc | BK143: MOE OwnerCosts20to29.9PctHHInc | BL143: OwnerCosts<30PctHHInc | BM143: MOE OwnerCosts<30PctHHInc | BN143: OwnerCosts>30PctHHInc | BO143: MOE OwnerCosts>30PctHHInc | BP143: OwnerCosts30to34.9PctHHInc | BQ143: MOE OwnerCosts30to34.9PctHHInc | BR143: OwnerCosts<35PctHHInc | BS143: MOE OwnerCosts<35PctHHInc | BT143: OwnerCosts>35PctHHInc | BU143: MOE OwnerCosts>35PctHHInc | BV143: OwnerCosts>50PctHHInc | BW143: MOE OwnerCosts>50PctHHInc | BX143: OwnerCostsPctNotcomputed | BY143: MOE OwnerCostsPctNotcomputed | BZ143: OwnerOHUHhInc<20k | CA143: MOE OwnerOHUHhInc<20k | CB143: OwnerOHUHhInc<20kHCosts<20pct | CC143: MOE OwnerOHUHhInc<20kHCosts<20pct | CD143: OwnerOHUHhInc<20kHCosts20to29pct | CE143: MOE OwnerOHUHhInc<20kHCosts20to29pct | CF143: OwnerOHUHhInc>20kHCosts30pct | CG143: MOE OwnerOHUHhInc>20kHCosts30pct | CH143: OwnerOHUHhInc20kTo34999 | CI143: MOE OwnerOHUHhInc20kTo34999 | CJ143: OwnerOHUHhInc20kTo34999HCosts<20pct | CK143: MOE OwnerOHUHhInc20kTo34999HCosts<20pct | CL143: OwnerOHUHhInc20kTo34999HCosts20to29pct | CM143: MOE OwnerOHUHhInc20kTo34999HCosts20to29pct | CN143: OwnerOHUHhInc20kTo34999HCosts30pct | CO143: MOE OwnerOHUHhInc20kTo34999HCosts30pct | CP143: OwnerOHUHhInc35kTo49999 | CQ143: MOE OwnerOHUHhInc35kTo49999 | CR143: OwnerOHUHhInc35kTo49999HCosts<20pct | CS143: MOE OwnerOHUHhInc35kTo49999HCosts<20pct | CT143: OwnerOHUHhInc35kTo49999HCosts20to29pct | CU143: MOE OwnerOHUHhInc35kTo49999HCosts20to29pct | CV143: OwnerOHUHhInc35kTo49999HCosts30pct | CW143: MOE OwnerOHUHhInc35kTo49999HCosts30pct | CX143: OwnerOHUHhInc50kTo74999 | CY143: MOE OwnerOHUHhInc50kTo74999 | CZ143: OwnerOHUHhInc50kTo74999HCosts<20pct | DA143: MOE OwnerOHUHhInc50kTo74999HCosts<20pct | DB143: OwnerOHUHhInc50kTo74999HCosts20to29pct | DC143: MOE OwnerOHUHhInc50kTo74999HCosts20to29pct | DD143: OwnerOHUHhInc50kTo74999HCosts30pct | DE143: MOE OwnerOHUHhInc50kTo74999HCosts30pct | DF143: OwnerOHUHhInc>75000 | DG143: MOE OwnerOHUHhInc>75000 | DH143: OwnerOHUHhInc>75000HCosts<20pct | DI143: MOE OwnerOHUHhInc>75000HCosts<20pct | DJ143: OwnerOHUHhInc>75000HCosts20to29pct | DK143: MOE OwnerOHUHhInc>75000HCosts20to29pct | DL143: OwnerOHUHhInc>75000HCosts30pct | DM143: MOE OwnerOHUHhInc>75000HCosts30pct | DN143: ZeroOrNegativeIncome | DO143: MOE ZeroOrNegativeIncome
